Workbook

Sheet MainDisplay
O1: =TODAY() -> 2020-12-22
B2: =MOD(RTD("cqg.rtd", ,"SystemInfo", "Linetime"),1) -> 11:57:22 | F2: CQG Globex Equity Indices & NASDAQ 100 Stocks | Y2: Ribbon | AC2: =IF(B2>0.625,1,0) -> 0
B4: Symbol | D4: Equities | F4: =IF(RTD("cqg.rtd", ,"ContractData",Sheet3!$D$12, "NetLastTradeToday",, "T")>=0,"+",0) -> 0 | G4: Last | H4: =TEXT(RTD("cqg.rtd", ,"ContractData",Sheet3!$D$12, "LastTradeToday",, "T"),Sheet3!$F$17) -> 12678.25 | J4: Net | K4: =IF(F4="+","+"&TEXT(RTD("cqg.rtd", ,"ContractData",Sheet3!$D$12, "NetLastTradeToday",, "T"),Sheet3!$F$17),TEXT(RTD("cqg.rtd", ,"ContractData",Sheet3!$D$12, "NetLastTradeToday",, "T"),Sheet3!$F$17)) -> -5.25 | M4: Net $ Change | P4: NASDAQ 100
B5: ENQ | C5: =" "&RTD("cqg.rtd", ,"ContractData",Sheet3!$D$12, "LongDescription",, "T")&" " -> E-mini NASDAQ-100, Mar 21 | G5: Trade | J5: Change | M5: =IFERROR(1/RTD("cqg.rtd",,"ContractData","Tsize("&B5&")","LastQuoteToday",,"T")*RTD("cqg.rtd",,"ContractData","PriceToDollar(Tsize("&B5&"))","LastQuoteToday")*RTD("cqg.rtd", ,"ContractData", B5, "NetLastTrade"),"") -> -105 | P5: Issues Up
B6: =2*RTD("cqg.rtd",,"ContractData","Tsize("&B5&")","LastQuoteToday",,"T") -> 0.5 | G6: Open | H6: =TEXT(RTD("cqg.rtd", ,"ContractData",Sheet3!$D$12, "Open",, "T"),Sheet3!$F$17) -> 12698.25 | I6: High | J6: =TEXT(RTD("cqg.rtd", ,"ContractData",Sheet3!$D$12, "High",, "T"),Sheet3!$F$17) -> 12760.00 | K6: Low | L6: =TEXT(RTD("cqg.rtd", ,"ContractData",Sheet3!$D$12, "Low",, "T"),Sheet3!$F$17) -> 12593.50 | P6: =Sheet1!C105 -> 44
M7: =IF(J6-H4<=B6,1,0) -> 0 | O7: =IF(H4-L6<=B6,1,0) -> 0 | P7: NASDAQ 100
B8: =Sheet4!I85+1 -> 6 | C8: =RTD("cqg.rtd", ,"ContractData",Sheet3!$D$12, "MT_LastBidVolume",, "T") -> 3 | E8: =TEXT(RTD("cqg.rtd", ,"ContractData",Sheet3!$D$12, "Bid",, "T"),Sheet3!$F$17) -> 12677.75 | G8: =TEXT(RTD("cqg.rtd", ,"ContractData",Sheet3!$D$12, "Ask",, "T"),Sheet3!$F$17) -> 12678.25 | I8: =RTD("cqg.rtd", ,"ContractData",Sheet3!$D$12, "MT_LastAskVolume",, "T") -> 4 | K8: Top Correlation to: | M8: Highlight | P8: Issues Down
K9: =IFERROR(Sheet4!G85,"") -> 2020-12-15 | L9: =IFERROR(Sheet4!H85,"") -> 0.7296647859 | M9: Reset | P9: =Sheet1!D105 -> 57
A10: =IF(M14=$O$1,1,0) -> 0 | P10: NASDAQ 100
A11: =IF(M15=$O$1,1,0) -> 0 | P11: Issues Unch
A12: 0 | M12: Bar Time | N12: Corr | O12: =IFERROR(IF(TIME(0,5,0)-(MOD(B2,1)-M13)<0,1,TIME(0,5,0)-(MOD(B2,1)-M13)),"") -> 00:02:38 | P12: =Sheet1!E105 -> 1
A13: 0 | M13: =IFERROR(Sheet3!AC12,"") -> 11:55:00 | N13: Now | O13: % NC
A14: 0 | M14: =IFERROR(Sheet3!AG1,"") -> 2020-12-14 | N14: =IFERROR(VLOOKUP(M14,Sheet4!$G$85:$H$93,2,FALSE),"") -> -0.09093994688 | O14: =IFERROR(Sheet3!AH1,"") -> 0.01061184889 | P14: NASDAQ
A15: 1 | M15: =IFERROR(Sheet3!AG2,"") -> 2020-12-15 | N15: =IFERROR(VLOOKUP(M15,Sheet4!$G$85:$H$93,2,FALSE),"") -> 0.7296647859 | O15: =IFERROR(Sheet3!AH2,"") -> 0.005877632899 | P15: Issues Up
A16: 0 | M16: =IFERROR(Sheet3!AG3,"") -> 2020-12-17 | N16: =IFERROR(VLOOKUP(M16,Sheet4!$G$85:$H$93,2,FALSE),"") -> 0.6333318736 | O16: =IFERROR(Sheet3!AH3,"") -> 0.004439358365 | P16: =Sheet1!D108 -> 1983
A17: 0 | M17: =IFERROR(Sheet3!AG4,"") -> 2020-12-16 | N17: =IFERROR(VLOOKUP(M17,Sheet4!$G$85:$H$93,2,FALSE),"") -> -0.6951401282 | O17: =IFERROR(Sheet3!AH4,"") -> 0.003969514131 | P17: NASDAQ
A18: 0 | M18: =IFERROR(Sheet3!AG5,"") -> 2020-12-10 | N18: =IFERROR(VLOOKUP(M18,Sheet4!$G$85:$H$93,2,FALSE),"") -> -0.2443329107 | O18: =IFERROR(Sheet3!AH5,"") -> -0.0003234871919 | P18: Issues Down
A19: =IF(M23=$O$1,1,0) -> 0 | M19: =IFERROR(Sheet3!AG6,"") -> 2020-12-22 | N19: =IFERROR(VLOOKUP(M19,Sheet4!$G$85:$H$93,2,FALSE),"") ->  | O19: =IFERROR(Sheet3!AH6,"") -> -0.0004139236015 | P19: =Sheet1!E108 -> 1666 | Z19: =IF(AC2=1,"Stock Market is Closed",TEXT(Sheet2!DF2,"#%")&" Higher") -> 49% Higher
M20: =IFERROR(Sheet3!AG7,"") -> 2020-12-18 | N20: =IFERROR(VLOOKUP(M20,Sheet4!$G$85:$H$93,2,FALSE),"") -> 0.3816510665 | O20: =IFERROR(Sheet3!AH7,"") -> -0.003156615167 | P20: NASDAQ
M21: =IFERROR(Sheet3!AG8,"") -> 2020-12-21 | N21: =IFERROR(VLOOKUP(M21,Sheet4!$G$85:$H$93,2,FALSE),"") -> -0.3622826366 | O21: =IFERROR(Sheet3!AH8,"") -> -0.005014749263 | P21: Issues Unch
M22: =IFERROR(Sheet3!AG9,"") -> 2020-12-11 | N22: =IFERROR(VLOOKUP(M22,Sheet4!$G$85:$H$93,2,FALSE),"") -> 0.6344228554 | O22: =IFERROR(Sheet3!AH9,"") -> -0.01036227648 | P22: =Sheet1!F108 -> 87
M23: =IFERROR(Sheet3!AG10,"") -> 2020-12-09 | N23: =IFERROR(VLOOKUP(M23,Sheet4!$G$85:$H$93,2,FALSE),"") -> 0.4228827509 | O23: =IFERROR(Sheet3!AH10,"") -> -0.01123862287 | P23: NASDAQ Tick
P24: =Sheet1!G108 -> 173
B25: Description | E25: %NC | F25: 5-min Up | G25: 5-min Dn | I25: Description | L25: %NC | M25: 5-min Up | N25: 5-min Dn | P25: Description | S25: %NC | T25: 5-min Up | U25: 5-min Dn | W25: Description | Z25: %NC | AA25: 5-min Up | AB25: 5-min Dn
A26: =Sheet1!A2 -> S.US.AAPL | B26: =Sheet1!B2 -> Apple Inc | E26: =IFERROR(RTD("cqg.rtd", ,"ContractData",A26, "PerCentNetLastTrade",, "T")/100,"") -> 0.02986820557 | F26: =IF(Sheet2!DB1=1,"p","") -> p | G26: =IF('Sheet2 (2)'!DB1=-1,"q","") ->  | H26: =Sheet1!A28 -> S.US.CPRT | I26: =Sheet1!B28 -> Copart Inc | L26: =IFERROR(RTD("cqg.rtd", ,"ContractData",H26, "PerCentNetLastTrade",, "T")/100,"") -> 0.001227696841 | M26: =IF(Sheet2!DB27=1,"p","") ->  | N26: =IF('Sheet2 (2)'!DB27=-1,"q","") -> q | O26: =Sheet1!A54 -> S.US.KDP | P26: =Sheet1!B54 -> Keurig Dr Pepper Inc. | S26: =IFERROR(RTD("cqg.rtd", ,"ContractData",O26, "PerCentNetLastTrade",, "T")/100,"") -> 0.00747481313 | T26: =IF(Sheet2!DB53=1,"p","") ->  | U26: =IF('Sheet2 (2)'!DB53=-1,"q","") -> q | V26: =Sheet1!A80 -> S.US.PTON | W26: =Sheet1!B80 -> Peloton Interactive, Inc. Class A | Z26: =IFERROR(RTD("cqg.rtd", ,"ContractData",V26, "PerCentNetLastTrade",, "T")/100,"") -> 0.1194681072 | AA26: =IF(Sheet2!DB79=1,"p","") -> p | AB26: =IF('Sheet2 (2)'!DB79=-1,"q","") -> 
A27: =Sheet1!A3 -> S.US.ADBE | B27: =Sheet1!B3 -> Adobe Inc. | E27: =IFERROR(RTD("cqg.rtd", ,"ContractData",A27, "PerCentNetLastTrade",, "T")/100,"") -> 0.01125624511 | F27: =IF(Sheet2!DB2=1,"p","") -> p | G27: =IF('Sheet2 (2)'!DB2=-1,"q","") ->  | H27: =Sheet1!A29 -> S.US.CSCO | I27: =Sheet1!B29 -> Cisco Systems Inc | L27: =IFERROR(RTD("cqg.rtd", ,"ContractData",H27, "PerCentNetLastTrade",, "T")/100,"") -> 0.0006684491979 | M27: =IF(Sheet2!DB28=1,"p","") ->  | N27: =IF('Sheet2 (2)'!DB28=-1,"q","") -> q | O27: =Sheet1!A55 -> S.US.KHC | P27: =Sheet1!B55 -> The Kraft Heinz Company | S27: =IFERROR(RTD("cqg.rtd", ,"ContractData",O27, "PerCentNetLastTrade",, "T")/100,"") -> 0.003181949667 | T27: =IF(Sheet2!DB54=1,"p","") ->  | U27: =IF('Sheet2 (2)'!DB54=-1,"q","") -> q | V27: =Sheet1!A81 -> S.US.PYPL | W27: =Sheet1!B81 -> PayPal Holdings, Inc. | Z27: =IFERROR(RTD("cqg.rtd", ,"ContractData",V27, "PerCentNetLastTrade",, "T")/100,"") -> 0.01510180044 | AA27: =IF(Sheet2!DB80=1,"p","") -> p | AB27: =IF('Sheet2 (2)'!DB80=-1,"q","") -> 
A28: =Sheet1!A4 -> S.US.ADI | B28: =Sheet1!B4 -> Analog Devices Inc | E28: =IFERROR(RTD("cqg.rtd", ,"ContractData",A28, "PerCentNetLastTrade",, "T")/100,"") -> 0.008626130865 | F28: =IF(Sheet2!DB3=1,"p","") -> p | G28: =IF('Sheet2 (2)'!DB3=-1,"q","") ->  | H28: =Sheet1!A30 -> S.US.CSX | I28: =Sheet1!B30 -> CSX Corporation | L28: =IFERROR(RTD("cqg.rtd", ,"ContractData",H28, "PerCentNetLastTrade",, "T")/100,"") -> 0.003790835099 | M28: =IF(Sheet2!DB29=1,"p","") ->  | N28: =IF('Sheet2 (2)'!DB29=-1,"q","") -> q | O28: =Sheet1!A56 -> S.US.KLAC | P28: =Sheet1!B56 -> KLA Corporation | S28: =IFERROR(RTD("cqg.rtd", ,"ContractData",O28, "PerCentNetLastTrade",, "T")/100,"") -> -0.01223300226 | T28: =IF(Sheet2!DB55=1,"p","") -> p | U28: =IF('Sheet2 (2)'!DB55=-1,"q","") ->  | V28: =Sheet1!A82 -> S.US.QCOM | W28: =Sheet1!B82 -> QUALCOMM Inc | Z28: =IFERROR(RTD("cqg.rtd", ,"ContractData",V28, "PerCentNetLastTrade",, "T")/100,"") -> -0.01158038147 | AA28: =IF(Sheet2!DB81=1,"p","") -> p | AB28: =IF('Sheet2 (2)'!DB81=-1,"q","") -> 
A29: =Sheet1!A5 -> S.US.ADP | B29: =Sheet1!B5 -> Auto Data Processing Inc | E29: =IFERROR(RTD("cqg.rtd", ,"ContractData",A29, "PerCentNetLastTrade",, "T")/100,"") -> -0.007493379909 | F29: =IF(Sheet2!DB4=1,"p","") ->  | G29: =IF('Sheet2 (2)'!DB4=-1,"q","") -> q | H29: =Sheet1!A31 -> S.US.CTAS | I29: =Sheet1!B31 -> Cintas Corp | L29: =IFERROR(RTD("cqg.rtd", ,"ContractData",H29, "PerCentNetLastTrade",, "T")/100,"") -> -0.008638372866 | M29: =IF(Sheet2!DB30=1,"p","") ->  | N29: =IF('Sheet2 (2)'!DB30=-1,"q","") -> q | O29: =Sheet1!A57 -> S.US.LRCX | P29: =Sheet1!B57 -> LAM Research Corporation | S29: =IFERROR(RTD("cqg.rtd", ,"ContractData",O29, "PerCentNetLastTrade",, "T")/100,"") -> -0.01144382592 | T29: =IF(Sheet2!DB56=1,"p","") -> p | U29: =IF('Sheet2 (2)'!DB56=-1,"q","") ->  | V29: =Sheet1!A83 -> S.US.REGN | W29: =Sheet1!B83 -> Regeneron Pharm Inc | Z29: =IFERROR(RTD("cqg.rtd", ,"ContractData",V29, "PerCentNetLastTrade",, "T")/100,"") -> -0.004630188831 | AA29: =IF(Sheet2!DB82=1,"p","") ->  | AB29: =IF('Sheet2 (2)'!DB82=-1,"q","") -> q
A30: =Sheet1!A6 -> S.US.ADSK | B30: =Sheet1!B6 -> Autodesk Inc | E30: =IFERROR(RTD("cqg.rtd", ,"ContractData",A30, "PerCentNetLastTrade",, "T")/100,"") -> 0.007245413454 | F30: =IF(Sheet2!DB5=1,"p","") -> p | G30: =IF('Sheet2 (2)'!DB5=-1,"q","") ->  | H30: =Sheet1!A32 -> S.US.CTSH | I30: =Sheet1!B32 -> Cognizant Tech Solutions Corp | L30: =IFERROR(RTD("cqg.rtd", ,"ContractData",H30, "PerCentNetLastTrade",, "T")/100,"") -> 0.01068721263 | M30: =IF(Sheet2!DB31=1,"p","") -> p | N30: =IF('Sheet2 (2)'!DB31=-1,"q","") ->  | O30: =Sheet1!A58 -> S.US.LULU | P30: =Sheet1!B58 -> Lululemon Athletica Inc | S30: =IFERROR(RTD("cqg.rtd", ,"ContractData",O30, "PerCentNetLastTrade",, "T")/100,"") -> -0.03599357258 | T30: =IF(Sheet2!DB57=1,"p","") -> p | U30: =IF('Sheet2 (2)'!DB57=-1,"q","") ->  | V30: =Sheet1!A84 -> S.US.ROST | W30: =Sheet1!B84 -> Ross Stores Inc | Z30: =IFERROR(RTD("cqg.rtd", ,"ContractData",V30, "PerCentNetLastTrade",, "T")/100,"") -> -0.001198732768 | AA30: =IF(Sheet2!DB83=1,"p","") ->  | AB30: =IF('Sheet2 (2)'!DB83=-1,"q","") -> q
A31: =Sheet1!A7 -> S.US.AEP | B31: =Sheet1!B7 -> American Electric Power Company, Inc. | E31: =IFERROR(RTD("cqg.rtd", ,"ContractData",A31, "PerCentNetLastTrade",, "T")/100,"") -> -0.01205552849 | F31: =IF(Sheet2!DB6=1,"p","") ->  | G31: =IF('Sheet2 (2)'!DB6=-1,"q","") -> q | H31: =Sheet1!A33 -> S.US.DLTR | I31: =Sheet1!B33 -> Dollar Tree Stores | L31: =IFERROR(RTD("cqg.rtd", ,"ContractData",H31, "PerCentNetLastTrade",, "T")/100,"") -> -0.02537661406 | M31: =IF(Sheet2!DB32=1,"p","") ->  | N31: =IF('Sheet2 (2)'!DB32=-1,"q","") -> q | O31: =Sheet1!A59 -> S.US.MAR | P31: =Sheet1!B59 -> Marriot International, Inc. | S31: =IFERROR(RTD("cqg.rtd", ,"ContractData",O31, "PerCentNetLastTrade",, "T")/100,"") -> -0.009896324222 | T31: =IF(Sheet2!DB58=1,"p","") -> p | U31: =IF('Sheet2 (2)'!DB58=-1,"q","") ->  | V31: =Sheet1!A85 -> S.US.SBUX | W31: =Sheet1!B85 -> Starbucks Corp | Z31: =IFERROR(RTD("cqg.rtd", ,"ContractData",V31, "PerCentNetLastTrade",, "T")/100,"") -> 0 | AA31: =IF(Sheet2!DB84=1,"p","") ->  | AB31: =IF('Sheet2 (2)'!DB84=-1,"q","") -> q
A32: =Sheet1!A8 -> S.US.ALGN | B32: =Sheet1!B8 -> Align Technology Inc | E32: =IFERROR(RTD("cqg.rtd", ,"ContractData",A32, "PerCentNetLastTrade",, "T")/100,"") -> 0.007179062011 | F32: =IF(Sheet2!DB7=1,"p","") ->  | G32: =IF('Sheet2 (2)'!DB7=-1,"q","") -> q | H32: =Sheet1!A34 -> S.US.DOCU | I32: =Sheet1!B34 -> DocuSign, Inc. | L32: =IFERROR(RTD("cqg.rtd", ,"ContractData",H32, "PerCentNetLastTrade",, "T")/100,"") -> 0.008064516129 | M32: =IF(Sheet2!DB33=1,"p","") -> p | N32: =IF('Sheet2 (2)'!DB33=-1,"q","") ->  | O32: =Sheet1!A60 -> S.US.MCHP | P32: =Sheet1!B60 -> Microchip Technology Inc | S32: =IFERROR(RTD("cqg.rtd", ,"ContractData",O32, "PerCentNetLastTrade",, "T")/100,"") -> -0.007028985507 | T32: =IF(Sheet2!DB59=1,"p","") -> p | U32: =IF('Sheet2 (2)'!DB59=-1,"q","") ->  | V32: =Sheet1!A86 -> S.US.SGEN | W32: =Sheet1!B86 -> Seagen Inc. | Z32: =IFERROR(RTD("cqg.rtd", ,"ContractData",V32, "PerCentNetLastTrade",, "T")/100,"") -> -0.004549130611 | AA32: =IF(Sheet2!DB85=1,"p","") -> p | AB32: =IF('Sheet2 (2)'!DB85=-1,"q","") -> 
A33: =Sheet1!A9 -> S.US.ALXN | B33: =Sheet1!B9 -> Alexion Pharmaceuticals | E33: =IFERROR(RTD("cqg.rtd", ,"ContractData",A33, "PerCentNetLastTrade",, "T")/100,"") -> -0.01110895821 | F33: =IF(Sheet2!DB8=1,"p","") ->  | G33: =IF('Sheet2 (2)'!DB8=-1,"q","") -> q | H33: =Sheet1!A35 -> S.US.DXCM | I33: =Sheet1!B35 -> DexCom Inc | L33: =IFERROR(RTD("cqg.rtd", ,"ContractData",H33, "PerCentNetLastTrade",, "T")/100,"") -> 0.004414504801 | M33: =IF(Sheet2!DB34=1,"p","") -> p | N33: =IF('Sheet2 (2)'!DB34=-1,"q","") ->  | O33: =Sheet1!A61 -> S.US.MDLZ | P33: =Sheet1!B61 -> Mondelez International, Inc. | S33: =IFERROR(RTD("cqg.rtd", ,"ContractData",O33, "PerCentNetLastTrade",, "T")/100,"") -> -0.006241331484 | T33: =IF(Sheet2!DB60=1,"p","") ->  | U33: =IF('Sheet2 (2)'!DB60=-1,"q","") -> q | V33: =Sheet1!A87 -> S.US.SIRI | W33: =Sheet1!B87 -> Sirius XM Holdings Inc. | Z33: =IFERROR(RTD("cqg.rtd", ,"ContractData",V33, "PerCentNetLastTrade",, "T")/100,"") -> -0.004754358162 | AA33: =IF(Sheet2!DB86=1,"p","") ->  | AB33: =IF('Sheet2 (2)'!DB86=-1,"q","") -> q
A34: =Sheet1!A10 -> S.US.AMAT | B34: =Sheet1!B10 -> Applied Materials Inc | E34: =IFERROR(RTD("cqg.rtd", ,"ContractData",A34, "PerCentNetLastTrade",, "T")/100,"") -> -0.0004629093855 | F34: =IF(Sheet2!DB9=1,"p","") -> p | G34: =IF('Sheet2 (2)'!DB9=-1,"q","") ->  | H34: =Sheet1!A36 -> S.US.EA | I34: =Sheet1!B36 -> Electronic Arts | L34: =IFERROR(RTD("cqg.rtd", ,"ContractData",H34, "PerCentNetLastTrade",, "T")/100,"") -> -0.009857456918 | M34: =IF(Sheet2!DB35=1,"p","") ->  | N34: =IF('Sheet2 (2)'!DB35=-1,"q","") -> q | O34: =Sheet1!A62 -> S.US.MELI | P34: =Sheet1!B62 -> MercadoLibre Inc | S34: =IFERROR(RTD("cqg.rtd", ,"ContractData",O34, "PerCentNetLastTrade",, "T")/100,"") -> 0.01130815306 | T34: =IF(Sheet2!DB61=1,"p","") ->  | U34: =IF('Sheet2 (2)'!DB61=-1,"q","") -> q | V34: =Sheet1!A88 -> S.US.SNPS | W34: =Sheet1!B88 -> Synopsis | Z34: =IFERROR(RTD("cqg.rtd", ,"ContractData",V34, "PerCentNetLastTrade",, "T")/100,"") -> 0.008181246067 | AA34: =IF(Sheet2!DB87=1,"p","") -> p | AB34: =IF('Sheet2 (2)'!DB87=-1,"q","") -> 
A35: =Sheet1!A11 -> S.US.AMD | B35: =Sheet1!B11 -> Advanced Micro Devices | E35: =IFERROR(RTD("cqg.rtd", ,"ContractData",A35, "PerCentNetLastTrade",, "T")/100,"") -> -0.01576745683 | F35: =IF(Sheet2!DB10=1,"p","") -> p | G35: =IF('Sheet2 (2)'!DB10=-1,"q","") ->  | H35: =Sheet1!A37 -> S.US.EBAY | I35: =Sheet1!B37 -> eBay Inc | L35: =IFERROR(RTD("cqg.rtd", ,"ContractData",H35, "PerCentNetLastTrade",, "T")/100,"") -> -0.00290866783 | M35: =IF(Sheet2!DB36=1,"p","") ->  | N35: =IF('Sheet2 (2)'!DB36=-1,"q","") -> q | O35: =Sheet1!A63 -> S.US.MNST | P35: =Sheet1!B63 -> Monster Beverage Corporation | S35: =IFERROR(RTD("cqg.rtd", ,"ContractData",O35, "PerCentNetLastTrade",, "T")/100,"") -> -0.006181859054 | T35: =IF(Sheet2!DB62=1,"p","") ->  | U35: =IF('Sheet2 (2)'!DB62=-1,"q","") -> q | V35: =Sheet1!A89 -> S.US.SPLK | W35: =Sheet1!B89 -> Splunk, Inc. | Z35: =IFERROR(RTD("cqg.rtd", ,"ContractData",V35, "PerCentNetLastTrade",, "T")/100,"") -> 0.01926936973 | AA35: =IF(Sheet2!DB88=1,"p","") -> p | AB35: =IF('Sheet2 (2)'!DB88=-1,"q","") -> 
A36: =Sheet1!A12 -> S.US.AMGN | B36: =Sheet1!B12 -> Amgen Inc | E36: =IFERROR(RTD("cqg.rtd", ,"ContractData",A36, "PerCentNetLastTrade",, "T")/100,"") -> -0.02371211121 | F36: =IF(Sheet2!DB11=1,"p","") -> p | G36: =IF('Sheet2 (2)'!DB11=-1,"q","") ->  | H36: =Sheet1!A38 -> S.US.EXC | I36: =Sheet1!B38 -> Exelon Corporation | L36: =IFERROR(RTD("cqg.rtd", ,"ContractData",H36, "PerCentNetLastTrade",, "T")/100,"") -> 0.003854492893 | M36: =IF(Sheet2!DB37=1,"p","") ->  | N36: =IF('Sheet2 (2)'!DB37=-1,"q","") -> q | O36: =Sheet1!A64 -> S.US.MRNA | P36: =Sheet1!B64 -> Moderna, Inc. | S36: =IFERROR(RTD("cqg.rtd", ,"ContractData",O36, "PerCentNetLastTrade",, "T")/100,"") -> -0.08799710774 | T36: =IF(Sheet2!DB63=1,"p","") -> p | U36: =IF('Sheet2 (2)'!DB63=-1,"q","") ->  | V36: =Sheet1!A90 -> S.US.SWKS | W36: =Sheet1!B90 -> Skyworks Solutions Inc | Z36: =IFERROR(RTD("cqg.rtd", ,"ContractData",V36, "PerCentNetLastTrade",, "T")/100,"") -> 0.01530025049 | AA36: =IF(Sheet2!DB89=1,"p","") -> p | AB36: =IF('Sheet2 (2)'!DB89=-1,"q","") -> 
A37: =Sheet1!A13 -> S.US.AMZN | B37: =Sheet1!B13 -> Amazon.com Inc | E37: =IFERROR(RTD("cqg.rtd", ,"ContractData",A37, "PerCentNetLastTrade",, "T")/100,"") -> -0.004719011409 | F37: =IF(Sheet2!DB12=1,"p","") ->  | G37: =IF('Sheet2 (2)'!DB12=-1,"q","") -> q | H37: =Sheet1!A39 -> S.US.FAST | I37: =Sheet1!B39 -> Fastenal Co | L37: =IFERROR(RTD("cqg.rtd", ,"ContractData",H37, "PerCentNetLastTrade",, "T")/100,"") -> -0.004233017537 | M37: =IF(Sheet2!DB38=1,"p","") ->  | N37: =IF('Sheet2 (2)'!DB38=-1,"q","") -> q | O37: =Sheet1!A65 -> S.US.MRVL | P37: =Sheet1!B65 -> Marvell Technology Grp Ltd | S37: =IFERROR(RTD("cqg.rtd", ,"ContractData",O37, "PerCentNetLastTrade",, "T")/100,"") -> -0.004867724868 | T37: =IF(Sheet2!DB64=1,"p","") -> p | U37: =IF('Sheet2 (2)'!DB64=-1,"q","") ->  | V37: =Sheet1!A91 -> S.US.TCOM | W37: =Sheet1!B91 -> Trip.com Group Limited | Z37: =IFERROR(RTD("cqg.rtd", ,"ContractData",V37, "PerCentNetLastTrade",, "T")/100,"") -> -0.01785714286 | AA37: =IF(Sheet2!DB90=1,"p","") ->  | AB37: =IF('Sheet2 (2)'!DB90=-1,"q","") -> q
A38: =Sheet1!A14 -> S.US.ANSS | B38: =Sheet1!B14 -> ANSYS Inc | E38: =IFERROR(RTD("cqg.rtd", ,"ContractData",A38, "PerCentNetLastTrade",, "T")/100,"") -> 0.0120241607 | F38: =IF(Sheet2!DB13=1,"p","") ->  | G38: =IF('Sheet2 (2)'!DB13=-1,"q","") -> q | H38: =Sheet1!A40 -> S.US.FB | I38: =Sheet1!B40 -> Facebook, Inc. | L38: =IFERROR(RTD("cqg.rtd", ,"ContractData",H38, "PerCentNetLastTrade",, "T")/100,"") -> -0.0240111441 | M38: =IF(Sheet2!DB39=1,"p","") ->  | N38: =IF('Sheet2 (2)'!DB39=-1,"q","") -> q | O38: =Sheet1!A66 -> S.US.MSFT | P38: =Sheet1!B66 -> Microsoft Corporation | S38: =IFERROR(RTD("cqg.rtd", ,"ContractData",O38, "PerCentNetLastTrade",, "T")/100,"") -> 0.007502583225 | T38: =IF(Sheet2!DB65=1,"p","") ->  | U38: =IF('Sheet2 (2)'!DB65=-1,"q","") -> q | V38: =Sheet1!A92 -> S.US.TEAM | W38: =Sheet1!B92 -> Atlassian Corporation Plc | Z38: =IFERROR(RTD("cqg.rtd", ,"ContractData",V38, "PerCentNetLastTrade",, "T")/100,"") -> 0.005560256255 | AA38: =IF(Sheet2!DB91=1,"p","") -> p | AB38: =IF('Sheet2 (2)'!DB91=-1,"q","") -> 
A39: =Sheet1!A15 -> S.US.ASML | B39: =Sheet1!B15 -> ASML Holding NV NY Reg Shs | E39: =IFERROR(RTD("cqg.rtd", ,"ContractData",A39, "PerCentNetLastTrade",, "T")/100,"") -> 0.007707618685 | F39: =IF(Sheet2!DB14=1,"p","") -> p | G39: =IF('Sheet2 (2)'!DB14=-1,"q","") ->  | H39: =Sheet1!A41 -> S.US.FISV | I39: =Sheet1!B41 -> FISERV Inc | L39: =IFERROR(RTD("cqg.rtd", ,"ContractData",H39, "PerCentNetLastTrade",, "T")/100,"") -> -0.01155658281 | M39: =IF(Sheet2!DB40=1,"p","") ->  | N39: =IF('Sheet2 (2)'!DB40=-1,"q","") -> q | O39: =Sheet1!A67 -> S.US.MTCH | P39: =Sheet1!B67 -> Match Group, Inc. | S39: =IFERROR(RTD("cqg.rtd", ,"ContractData",O39, "PerCentNetLastTrade",, "T")/100,"") -> -0.0006487187804 | T39: =IF(Sheet2!DB66=1,"p","") -> p | U39: =IF('Sheet2 (2)'!DB66=-1,"q","") ->  | V39: =Sheet1!A93 -> S.US.TMUS | W39: =Sheet1!B93 -> T-Mobile US, Inc. | Z39: =IFERROR(RTD("cqg.rtd", ,"ContractData",V39, "PerCentNetLastTrade",, "T")/100,"") -> 0.008447243127 | AA39: =IF(Sheet2!DB92=1,"p","") ->  | AB39: =IF('Sheet2 (2)'!DB92=-1,"q","") -> q
A40: =Sheet1!A16 -> S.US.ATVI | B40: =Sheet1!B16 -> Activision Blizzard Inc | E40: =IFERROR(RTD("cqg.rtd", ,"ContractData",A40, "PerCentNetLastTrade",, "T")/100,"") -> 0.0041661975 | F40: =IF(Sheet2!DB15=1,"p","") -> p | G40: =IF('Sheet2 (2)'!DB15=-1,"q","") ->  | H40: =Sheet1!A42 -> S.US.FOX | I40: =Sheet1!B42 -> Fox Corporation | L40: =IFERROR(RTD("cqg.rtd", ,"ContractData",H40, "PerCentNetLastTrade",, "T")/100,"") -> -0.009492515517 | M40: =IF(Sheet2!DB41=1,"p","") ->  | N40: =IF('Sheet2 (2)'!DB41=-1,"q","") -> q | O40: =Sheet1!A68 -> S.US.MU | P40: =Sheet1!B68 -> Micron Technology Inc | S40: =IFERROR(RTD("cqg.rtd", ,"ContractData",O40, "PerCentNetLastTrade",, "T")/100,"") -> -0.01525115433 | T40: =IF(Sheet2!DB67=1,"p","") ->  | U40: =IF('Sheet2 (2)'!DB67=-1,"q","") -> q | V40: =Sheet1!A94 -> S.US.TSLA | W40: =Sheet1!B94 -> Tesla, Inc. | Z40: =IFERROR(RTD("cqg.rtd", ,"ContractData",V40, "PerCentNetLastTrade",, "T")/100,"") -> -0.0423168067 | AA40: =IF(Sheet2!DB93=1,"p","") ->  | AB40: =IF('Sheet2 (2)'!DB93=-1,"q","") -> q
A41: =Sheet1!A17 -> S.US.AVGO | B41: =Sheet1!B17 -> Broadcom Inc. | E41: =IFERROR(RTD("cqg.rtd", ,"ContractData",A41, "PerCentNetLastTrade",, "T")/100,"") -> 0.005922402537 | F41: =IF(Sheet2!DB16=1,"p","") -> p | G41: =IF('Sheet2 (2)'!DB16=-1,"q","") ->  | H41: =Sheet1!A43 -> S.US.FOXA | I41: =Sheet1!B43 -> Fox Corporation Class A | L41: =IFERROR(RTD("cqg.rtd", ,"ContractData",H41, "PerCentNetLastTrade",, "T")/100,"") -> -0.01334776335 | M41: =IF(Sheet2!DB42=1,"p","") ->  | N41: =IF('Sheet2 (2)'!DB42=-1,"q","") -> q | O41: =Sheet1!A69 -> S.US.MXIM | P41: =Sheet1!B69 -> Maxim Integrated Products Inc | S41: =IFERROR(RTD("cqg.rtd", ,"ContractData",O41, "PerCentNetLastTrade",, "T")/100,"") -> 0.007746478873 | T41: =IF(Sheet2!DB68=1,"p","") -> p | U41: =IF('Sheet2 (2)'!DB68=-1,"q","") ->  | V41: =Sheet1!A95 -> S.US.TXN | W41: =Sheet1!B95 -> Texas Instruments Inc | Z41: =IFERROR(RTD("cqg.rtd", ,"ContractData",V41, "PerCentNetLastTrade",, "T")/100,"") -> -0.0002462599274 | AA41: =IF(Sheet2!DB94=1,"p","") -> p | AB41: =IF('Sheet2 (2)'!DB94=-1,"q","") -> 
A42: =Sheet1!A18 -> S.US.BIDU | B42: =Sheet1!B18 -> Baidu Inc | E42: =IFERROR(RTD("cqg.rtd", ,"ContractData",A42, "PerCentNetLastTrade",, "T")/100,"") -> -0.007872384504 | F42: =IF(Sheet2!DB17=1,"p","") -> p | G42: =IF('Sheet2 (2)'!DB17=-1,"q","") ->  | H42: =Sheet1!A44 -> S.US.GILD | I42: =Sheet1!B44 -> Gilead Sciences Inc | L42: =IFERROR(RTD("cqg.rtd", ,"ContractData",H42, "PerCentNetLastTrade",, "T")/100,"") -> -0.02545268193 | M42: =IF(Sheet2!DB43=1,"p","") ->  | N42: =IF('Sheet2 (2)'!DB43=-1,"q","") -> q | O42: =Sheet1!A70 -> S.US.NFLX | P42: =Sheet1!B70 -> Netflix Inc | S42: =IFERROR(RTD("cqg.rtd", ,"ContractData",O42, "PerCentNetLastTrade",, "T")/100,"") -> -0.009547938213 | T42: =IF(Sheet2!DB69=1,"p","") -> p | U42: =IF('Sheet2 (2)'!DB69=-1,"q","") ->  | V42: =Sheet1!A96 -> S.US.VRSK | W42: =Sheet1!B96 -> Verisk Analytics, Inc. | Z42: =IFERROR(RTD("cqg.rtd", ,"ContractData",V42, "PerCentNetLastTrade",, "T")/100,"") -> -0.00463579425 | AA42: =IF(Sheet2!DB95=1,"p","") ->  | AB42: =IF('Sheet2 (2)'!DB95=-1,"q","") -> q
A43: =Sheet1!A19 -> S.US.BIIB | B43: =Sheet1!B19 -> Biogen Inc. | E43: =IFERROR(RTD("cqg.rtd", ,"ContractData",A43, "PerCentNetLastTrade",, "T")/100,"") -> 0.001208118557 | F43: =IF(Sheet2!DB18=1,"p","") -> p | G43: =IF('Sheet2 (2)'!DB18=-1,"q","") ->  | H43: =Sheet1!A45 -> S.US.GOOG | I43: =Sheet1!B45 -> Alphabet, Inc. Class C | L43: =IFERROR(RTD("cqg.rtd", ,"ContractData",H43, "PerCentNetLastTrade",, "T")/100,"") -> -0.01055554597 | M43: =IF(Sheet2!DB44=1,"p","") -> p | N43: =IF('Sheet2 (2)'!DB44=-1,"q","") ->  | O43: =Sheet1!A71 -> S.US.NTES | P43: =Sheet1!B71 -> NetEase, Inc. | S43: =IFERROR(RTD("cqg.rtd", ,"ContractData",O43, "PerCentNetLastTrade",, "T")/100,"") -> -0.001936941784 | T43: =IF(Sheet2!DB70=1,"p","") -> p | U43: =IF('Sheet2 (2)'!DB70=-1,"q","") ->  | V43: =Sheet1!A97 -> S.US.VRSN | W43: =Sheet1!B97 -> Verisign Inc | Z43: =IFERROR(RTD("cqg.rtd", ,"ContractData",V43, "PerCentNetLastTrade",, "T")/100,"") -> 0.004607008237 | AA43: =IF(Sheet2!DB96=1,"p","") -> p | AB43: =IF('Sheet2 (2)'!DB96=-1,"q","") -> 
A44: =Sheet1!A20 -> S.US.BKNG | B44: =Sheet1!B20 -> Booking Holdings Inc. | E44: =IFERROR(RTD("cqg.rtd", ,"ContractData",A44, "PerCentNetLastTrade",, "T")/100,"") -> -0.01395899816 | F44: =IF(Sheet2!DB19=1,"p","") ->  | G44: =IF('Sheet2 (2)'!DB19=-1,"q","") -> q | H44: =Sheet1!A46 -> S.US.GOOGL | I44: =Sheet1!B46 -> Alphabet, Inc. Class A | L44: =IFERROR(RTD("cqg.rtd", ,"ContractData",H44, "PerCentNetLastTrade",, "T")/100,"") -> -0.011276635 | M44: =IF(Sheet2!DB45=1,"p","") -> p | N44: =IF('Sheet2 (2)'!DB45=-1,"q","") ->  | O44: =Sheet1!A72 -> S.US.NVDA | P44: =Sheet1!B72 -> NVIDIA Corp | S44: =IFERROR(RTD("cqg.rtd", ,"ContractData",O44, "PerCentNetLastTrade",, "T")/100,"") -> -0.008438185603 | T44: =IF(Sheet2!DB71=1,"p","") -> p | U44: =IF('Sheet2 (2)'!DB71=-1,"q","") ->  | V44: =Sheet1!A98 -> S.US.VRTX | W44: =Sheet1!B98 -> Vertex Pharmaceuticals Incorporated | Z44: =IFERROR(RTD("cqg.rtd", ,"ContractData",V44, "PerCentNetLastTrade",, "T")/100,"") -> 0.0004689831592 | AA44: =IF(Sheet2!DB97=1,"p","") -> p | AB44: =IF('Sheet2 (2)'!DB97=-1,"q","") -> 
A45: =Sheet1!A21 -> S.US.CDNS | B45: =Sheet1!B21 -> Cadence Design Systems, Inc | E45: =IFERROR(RTD("cqg.rtd", ,"ContractData",A45, "PerCentNetLastTrade",, "T")/100,"") -> 0.01381613907 | F45: =IF(Sheet2!DB20=1,"p","") -> p | G45: =IF('Sheet2 (2)'!DB20=-1,"q","") ->  | H45: =Sheet1!A47 -> S.US.IDXX | I45: =Sheet1!B47 -> IDEXX Laboratories Inc | L45: =IFERROR(RTD("cqg.rtd", ,"ContractData",H45, "PerCentNetLastTrade",, "T")/100,"") -> 0.01104803137 | M45: =IF(Sheet2!DB46=1,"p","") ->  | N45: =IF('Sheet2 (2)'!DB46=-1,"q","") -> q | O45: =Sheet1!A73 -> S.US.NXPI | P45: =Sheet1!B73 -> NXP Semiconductors N.V. | S45: =IFERROR(RTD("cqg.rtd", ,"ContractData",O45, "PerCentNetLastTrade",, "T")/100,"") -> -0.004967203719 | T45: =IF(Sheet2!DB72=1,"p","") -> p | U45: =IF('Sheet2 (2)'!DB72=-1,"q","") ->  | V45: =Sheet1!A99 -> S.US.WBA | W45: =Sheet1!B99 -> Walgreens Boots Alliance, Inc. | Z45: =IFERROR(RTD("cqg.rtd", ,"ContractData",V45, "PerCentNetLastTrade",, "T")/100,"") -> -0.02385050406 | AA45: =IF(Sheet2!DB98=1,"p","") ->  | AB45: =IF('Sheet2 (2)'!DB98=-1,"q","") -> q
A46: =Sheet1!A22 -> S.US.CDW | B46: =Sheet1!B22 -> CDW Corporation | E46: =IFERROR(RTD("cqg.rtd", ,"ContractData",A46, "PerCentNetLastTrade",, "T")/100,"") -> -0.004733185739 | F46: =IF(Sheet2!DB21=1,"p","") ->  | G46: =IF('Sheet2 (2)'!DB21=-1,"q","") -> q | H46: =Sheet1!A48 -> S.US.ILMN | I46: =Sheet1!B48 -> Illumina Inc | L46: =IFERROR(RTD("cqg.rtd", ,"ContractData",H46, "PerCentNetLastTrade",, "T")/100,"") -> 0.02630780686 | M46: =IF(Sheet2!DB47=1,"p","") ->  | N46: =IF('Sheet2 (2)'!DB47=-1,"q","") -> q | O46: =Sheet1!A74 -> S.US.OKTA | P46: =Sheet1!B74 -> Okta, Inc. Cl A | S46: =IFERROR(RTD("cqg.rtd", ,"ContractData",O46, "PerCentNetLastTrade",, "T")/100,"") -> 0.02685635479 | T46: =IF(Sheet2!DB73=1,"p","") -> p | U46: =IF('Sheet2 (2)'!DB73=-1,"q","") ->  | V46: =Sheet1!A100 -> S.US.WDAY | W46: =Sheet1!B100 -> Workday, Inc. | Z46: =IFERROR(RTD("cqg.rtd", ,"ContractData",V46, "PerCentNetLastTrade",, "T")/100,"") -> 0.0495625619 | AA46: =IF(Sheet2!DB99=1,"p","") -> p | AB46: =IF('Sheet2 (2)'!DB99=-1,"q","") -> 
A47: =Sheet1!A23 -> S.US.CERN | B47: =Sheet1!B23 -> Cerner Corporation | E47: =IFERROR(RTD("cqg.rtd", ,"ContractData",A47, "PerCentNetLastTrade",, "T")/100,"") -> 0.008356182269 | F47: =IF(Sheet2!DB22=1,"p","") ->  | G47: =IF('Sheet2 (2)'!DB22=-1,"q","") -> q | H47: =Sheet1!A49 -> S.US.INCY | I47: =Sheet1!B49 -> Incyte Corporation | L47: =IFERROR(RTD("cqg.rtd", ,"ContractData",H47, "PerCentNetLastTrade",, "T")/100,"") -> 0.01011843164 | M47: =IF(Sheet2!DB48=1,"p","") ->  | N47: =IF('Sheet2 (2)'!DB48=-1,"q","") -> q | O47: =Sheet1!A75 -> S.US.ORLY | P47: =Sheet1!B75 -> OReilly Automotive Inc | S47: =IFERROR(RTD("cqg.rtd", ,"ContractData",O47, "PerCentNetLastTrade",, "T")/100,"") -> 0.003800349102 | T47: =IF(Sheet2!DB74=1,"p","") ->  | U47: =IF('Sheet2 (2)'!DB74=-1,"q","") -> q | V47: =Sheet1!A101 -> S.US.XEL | W47: =Sheet1!B101 -> Xcel Energy Inc | Z47: =IFERROR(RTD("cqg.rtd", ,"ContractData",V47, "PerCentNetLastTrade",, "T")/100,"") -> -0.01315185808 | AA47: =IF(Sheet2!DB100=1,"p","") ->  | AB47: =IF('Sheet2 (2)'!DB100=-1,"q","") -> q
A48: =Sheet1!A24 -> S.US.CHKP | B48: =Sheet1!B24 -> Check Point Sftwr Tech Ltd | E48: =IFERROR(RTD("cqg.rtd", ,"ContractData",A48, "PerCentNetLastTrade",, "T")/100,"") -> 0.03607151296 | F48: =IF(Sheet2!DB23=1,"p","") -> p | G48: =IF('Sheet2 (2)'!DB23=-1,"q","") ->  | H48: =Sheet1!A50 -> S.US.INTC | I48: =Sheet1!B50 -> Intel Corporation | L48: =IFERROR(RTD("cqg.rtd", ,"ContractData",H48, "PerCentNetLastTrade",, "T")/100,"") -> -0.007981018119 | M48: =IF(Sheet2!DB49=1,"p","") -> p | N48: =IF('Sheet2 (2)'!DB49=-1,"q","") ->  | O48: =Sheet1!A76 -> S.US.PAYX | P48: =Sheet1!B76 -> Paychex Inc | S48: =IFERROR(RTD("cqg.rtd", ,"ContractData",O48, "PerCentNetLastTrade",, "T")/100,"") -> 0.004451806605 | T48: =IF(Sheet2!DB75=1,"p","") ->  | U48: =IF('Sheet2 (2)'!DB75=-1,"q","") -> q | V48: =Sheet1!A102 -> S.US.XLNX | W48: =Sheet1!B102 -> Xilinx Inc | Z48: =IFERROR(RTD("cqg.rtd", ,"ContractData",V48, "PerCentNetLastTrade",, "T")/100,"") -> -0.02023678414 | AA48: =IF(Sheet2!DB101=1,"p","") -> p | AB48: =IF('Sheet2 (2)'!DB101=-1,"q","") -> 
A49: =Sheet1!A25 -> S.US.CHTR | B49: =Sheet1!B25 -> Charter Communications, Inc. Class A | E49: =IFERROR(RTD("cqg.rtd", ,"ContractData",A49, "PerCentNetLastTrade",, "T")/100,"") -> -0.01020330233 | F49: =IF(Sheet2!DB24=1,"p","") ->  | G49: =IF('Sheet2 (2)'!DB24=-1,"q","") -> q | H49: =Sheet1!A51 -> S.US.INTU | I49: =Sheet1!B51 -> Intuit Corp | L49: =IFERROR(RTD("cqg.rtd", ,"ContractData",H49, "PerCentNetLastTrade",, "T")/100,"") -> 0.004708323358 | M49: =IF(Sheet2!DB50=1,"p","") -> p | N49: =IF('Sheet2 (2)'!DB50=-1,"q","") ->  | O49: =Sheet1!A77 -> S.US.PCAR | P49: =Sheet1!B77 -> PACCAR Inc | S49: =IFERROR(RTD("cqg.rtd", ,"ContractData",O49, "PerCentNetLastTrade",, "T")/100,"") -> -0.008153756552 | T49: =IF(Sheet2!DB76=1,"p","") ->  | U49: =IF('Sheet2 (2)'!DB76=-1,"q","") -> q | V49: =Sheet1!A103 -> S.US.ZM | W49: =Sheet1!B103 -> Zoom Video Communications, Inc. Class A | Z49: =IFERROR(RTD("cqg.rtd", ,"ContractData",V49, "PerCentNetLastTrade",, "T")/100,"") -> -0.0154045529 | AA49: =IF(Sheet2!DB102=1,"p","") -> p | AB49: =IF('Sheet2 (2)'!DB102=-1,"q","") -> 
A50: =Sheet1!A26 -> S.US.CMCSA | B50: =Sheet1!B26 -> Comcast Corp ClsA | E50: =IFERROR(RTD("cqg.rtd", ,"ContractData",A50, "PerCentNetLastTrade",, "T")/100,"") -> -0.002977963073 | F50: =IF(Sheet2!DB25=1,"p","") ->  | G50: =IF('Sheet2 (2)'!DB25=-1,"q","") -> q | H50: =Sheet1!A52 -> S.US.ISRG | I50: =Sheet1!B52 -> Intuitive Surgical Inc | L50: =IFERROR(RTD("cqg.rtd", ,"ContractData",H50, "PerCentNetLastTrade",, "T")/100,"") -> 0.02797521761 | M50: =IF(Sheet2!DB51=1,"p","") -> p | N50: =IF('Sheet2 (2)'!DB51=-1,"q","") ->  | O50: =Sheet1!A78 -> S.US.PDD | P50: =Sheet1!B78 -> Pinduoduo Inc | S50: =IFERROR(RTD("cqg.rtd", ,"ContractData",O50, "PerCentNetLastTrade",, "T")/100,"") -> -0.03145639 | T50: =IF(Sheet2!DB77=1,"p","") ->  | U50: =IF('Sheet2 (2)'!DB77=-1,"q","") -> q | V50: =Sheet1!A104 -> 0
A51: =Sheet1!A27 -> S.US.COST | B51: =Sheet1!B27 -> Costco Wholesale Corp | E51: =IFERROR(RTD("cqg.rtd", ,"ContractData",A51, "PerCentNetLastTrade",, "T")/100,"") -> -0.009425432227 | F51: =IF(Sheet2!DB26=1,"p","") ->  | G51: =IF('Sheet2 (2)'!DB26=-1,"q","") -> q | H51: =Sheet1!A53 -> S.US.JD | I51: =Sheet1!B53 -> JD.com, Inc. | L51: =IFERROR(RTD("cqg.rtd", ,"ContractData",H51, "PerCentNetLastTrade",, "T")/100,"") -> 0.01240079365 | M51: =IF(Sheet2!DB52=1,"p","") ->  | N51: =IF('Sheet2 (2)'!DB52=-1,"q","") -> q | O51: =Sheet1!A79 -> S.US.PEP | P51: =Sheet1!B79 -> PepsiCo Inc | S51: =IFERROR(RTD("cqg.rtd", ,"ContractData",O51, "PerCentNetLastTrade",, "T")/100,"") -> -0.008390646492 | T51: =IF(Sheet2!DB78=1,"p","") ->  | U51: =IF('Sheet2 (2)'!DB78=-1,"q","") -> q
C52: Copyright © 2020 | G52: Designed by Thom Hartle

Sheet Sheet3 (hidden)
A1: 0 | B1: 08:30:00 | C1: =RTD("cqg.rtd",,"StudyData",$D$12, "Bar", "", "Time","D","0",,,,,"T") -> 2020-12-22 | D1: =YEAR(C1) -> 2020 | E1: =MONTH(C1) -> 12 | F1: =DAY(C1) -> 22 | H1: =RTD("cqg.rtd",,"StudyData", "Close("&$D$12&") when LocalYear("&$D$12&")="&$D$1&" and localMonth("&$D$12&") ="&$E$1&" and LocalDay("&$D$12&")="&$F$1&" and Barix("&$D$12&",reference:=StartOfSession)="&A1&"", "FG", "", "Close","5","0","PrimaryOnly",,,"False","T","EveryTick") -> 12686.25 | I1: =IFERROR((H1-$G$2)/$G$2,NA()) -> 0.0002168171246 | J1: =RTD("cqg.rtd",,"StudyData", "Close("&$D$12&") when LocalYear("&$D$12&")="&$D$2&" and localMonth("&$D$12&") ="&$E$2&" and LocalDay("&$D$12&")="&$F$2&" and Barix("&$D$12&",reference:=StartOfSession)="&A1&"", "FG", "", "Close","5","0","PrimaryOnly",,,"False","T","EveryTick") -> 12628.25 | K1: =IFERROR((J1-$G$3)/$G$3,NA()) -> -0.0066273353 | L1: =RTD("cqg.rtd",,"StudyData", "Close("&$D$12&") when LocalYear("&$D$12&")="&$D$3&" and localMonth("&$D$12&") ="&$E$3&" and LocalDay("&$D$12&")="&$F$3&" and Barix("&$D$12&",reference:=StartOfSession)="&A1&"", "FG", "", "Close","5","0","PrimaryOnly",,,"False","T","EveryTick") -> 12757.25 | M1: =IFERROR((L1-$G$4)/$G$4,NA()) -> 0.0004901576347 | N1: =RTD("cqg.rtd",,"StudyData", "Close("&$D$12&") when LocalYear("&$D$12&")="&$D$4&" and localMonth("&$D$12&") ="&$E$4&" and LocalDay("&$D$12&")="&$F$4&" and Barix("&$D$12&",reference:=StartOfSession)="&A1&"", "FG", "", "Close","5","0","PrimaryOnly",,,"False","T","EveryTick") -> 12756.25 | O1: =IFERROR((N1-$G$5)/$G$5,NA()) -> 0.006747824714 | P1: =RTD("cqg.rtd",,"StudyData", "Close("&$D$12&") when LocalYear("&$D$12&")="&$D$5&" and localMonth("&$D$12&") ="&$E$5&" and LocalDay("&$D$12&")="&$F$5&" and Barix("&$D$12&",reference:=StartOfSession)="&A1&"", "FG", "", "Close","5","0","PrimaryOnly",,,"False","T","EveryTick") -> 12602 | Q1: =IFERROR((P1-$G$6)/$G$6,NA()) -> 0.0004763416958 | R1: =RTD("cqg.rtd",,"StudyData", "Close("&$D$12&") when LocalYear("&$D$12&")="&$D$6&" and localMonth("&$D$12&") ="&$E$6&" and LocalDay("&$D$12&")="&$F$6&" and Barix("&$D$12&",reference:=StartOfSession)="&A1&"", "FG", "", "Close","5","0","PrimaryOnly",,,"False","T","EveryTick") -> 12565.25 | S1: =IFERROR((R1-$G$7)/$G$7,NA()) -> 0.008244734203 | T1: =RTD("cqg.rtd",,"StudyData", "Close("&$D$12&") when LocalYear("&$D$12&")="&$D$7&" and localMonth("&$D$12&") ="&$E$7&" and LocalDay("&$D$12&")="&$F$7&" and Barix("&$D$12&",reference:=StartOfSession)="&A1&"", "FG", "", "Close","5","0","PrimaryOnly",,,"False","T","EveryTick") -> 12439 | U1: =IFERROR((T1-$G$8)/$G$8,NA()) -> 0.005720291876 | V1: =RTD("cqg.rtd",,"StudyData", "Close("&$D$12&") when LocalYear("&$D$12&")="&$D$8&" and localMonth("&$D$12&") ="&$E$8&" and LocalDay("&$D$12&")="&$F$8&" and Barix("&$D$12&",reference:=StartOfSession)="&A1&"", "FG", "", "Close","5","0","PrimaryOnly",,,"False","T","EveryTick") -> 12314.75 | W1: =IFERROR((V1-$G$9)/$G$9,NA()) -> -0.006935064411 | X1: =RTD("cqg.rtd",,"StudyData", "Close("&$D$12&") when LocalYear("&$D$12&")="&$D$9&" and localMonth("&$D$12&") ="&$E$9&" and LocalDay("&$D$12&")="&$F$9&" and Barix("&$D$12&",reference:=StartOfSession)="&A1&"", "FG", "", "Close","5","0","PrimaryOnly",,,"False","T","EveryTick") -> 12224.25 | Y1: =IFERROR((X1-$G$10)/$G$10,NA()) -> -0.01140292352 | Z1: =RTD("cqg.rtd",,"StudyData", "Close("&$D$12&") when LocalYear("&$D$12&")="&$D$10&" and localMonth("&$D$12&") ="&$E$10&" and LocalDay("&$D$12&")="&$F$10&" and Barix("&$D$12&",reference:=StartOfSession)="&A1&"", "FG", "", "Close","5","0","PrimaryOnly",,,"False","T","EveryTick") -> 12597 | AA1: =IFERROR((Z1-$G$11)/$G$11,NA()) -> -0.003007518797 | AB1: =RANK(AD1,$AD$1:$AD$10)+COUNTIF($AD$1:AD1,AD1)-1 -> 6 | AC1: =DATE(D1,E1,F1) -> 2020-12-22 | AD1: =IFERROR(VLOOKUP(MAX(AE2:AE81),A1:I81,9,FALSE),"") -> -0.0004139236015 | AF1: 1 | AG1: =VLOOKUP(AF1,$AB$1:$AD$10,2,FALSE) -> 2020-12-14 | AH1: =VLOOKUP(AF1,$AB$1:$AD$10,3,FALSE) -> 0.01061184889 | AK1: =AG1 -> 2020-12-14 | AL1: =AC1 -> 2020-12-22 | AM1: 0 | AN1: =VLOOKUP(AK1,$AL$1:$AM$10,2,FALSE) -> 6
A2: =A1+1 -> 1 | B2: 08:35:00 | C2: =RTD("cqg.rtd",,"StudyData",$D$12, "Bar", "", "Time","D","-1",,,,,"T") -> 2020-12-21 | D2: =YEAR(C2) -> 2020 | E2: =MONTH(C2) -> 12 | F2: =DAY(C2) -> 21 | G2: =RTD("cqg.rtd",,"StudyData",$D$12, "Bar", "", "Close","D","-1",,,,,"T") -> 12683.5 | H2: =RTD("cqg.rtd",,"StudyData", "Close("&$D$12&") when LocalYear("&$D$12&")="&$D$1&" and localMonth("&$D$12&") ="&$E$1&" and LocalDay("&$D$12&")="&$F$1&" and Barix("&$D$12&",reference:=StartOfSession)="&A2&"", "FG", "", "Close","5","0","PrimaryOnly",,,"False","T","EveryTick") -> 12702.75 | I2: =IFERROR((H2-$G$2)/$G$2,NA()) -> 0.001517719872 | J2: =RTD("cqg.rtd",,"StudyData", "Close("&$D$12&") when LocalYear("&$D$12&")="&$D$2&" and localMonth("&$D$12&") ="&$E$2&" and LocalDay("&$D$12&")="&$F$2&" and Barix("&$D$12&",reference:=StartOfSession)="&A2&"", "FG", "", "Close","5","0","PrimaryOnly",,,"False","T","EveryTick") -> 12640.25 | K2: =IFERROR((J2-$G$3)/$G$3,NA()) -> -0.005683382498 | L2: =RTD("cqg.rtd",,"StudyData", "Close("&$D$12&") when LocalYear("&$D$12&")="&$D$3&" and localMonth("&$D$12&") ="&$E$3&" and LocalDay("&$D$12&")="&$F$3&" and Barix("&$D$12&",reference:=StartOfSession)="&A2&"", "FG", "", "Close","5","0","PrimaryOnly",,,"False","T","EveryTick") -> 12760.25 | M2: =IFERROR((L2-$G$4)/$G$4,NA()) -> 0.0007254332993 | N2: =RTD("cqg.rtd",,"StudyData", "Close("&$D$12&") when LocalYear("&$D$12&")="&$D$4&" and localMonth("&$D$12&") ="&$E$4&" and LocalDay("&$D$12&")="&$F$4&" and Barix("&$D$12&",reference:=StartOfSession)="&A2&"", "FG", "", "Close","5","0","PrimaryOnly",,,"False","T","EveryTick") -> 12752.75 | O2: =IFERROR((N2-$G$5)/$G$5,NA()) -> 0.006471597972 | P2: =RTD("cqg.rtd",,"StudyData", "Close("&$D$12&") when LocalYear("&$D$12&")="&$D$5&" and localMonth("&$D$12&") ="&$E$5&" and LocalDay("&$D$12&")="&$F$5&" and Barix("&$D$12&",reference:=StartOfSession)="&A2&"", "FG", "", "Close","5","0","PrimaryOnly",,,"False","T","EveryTick") -> 12583.75 | Q2: =IFERROR((P2-$G$6)/$G$6,NA()) -> -0.0009725309622 | R2: =RTD("cqg.rtd",,"StudyData", "Close("&$D$12&") when LocalYear("&$D$12&")="&$D$6&" and localMonth("&$D$12&") ="&$E$6&" and LocalDay("&$D$12&")="&$F$6&" and Barix("&$D$12&",reference:=StartOfSession)="&A2&"", "FG", "", "Close","5","0","PrimaryOnly",,,"False","T","EveryTick") -> 12567 | S2: =IFERROR((R2-$G$7)/$G$7,NA()) -> 0.008385155466 | T2: =RTD("cqg.rtd",,"StudyData", "Close("&$D$12&") when LocalYear("&$D$12&")="&$D$7&" and localMonth("&$D$12&") ="&$E$7&" and LocalDay("&$D$12&")="&$F$7&" and Barix("&$D$12&",reference:=StartOfSession)="&A2&"", "FG", "", "Close","5","0","PrimaryOnly",,,"False","T","EveryTick") -> 12494.75 | U2: =IFERROR((T2-$G$8)/$G$8,NA()) -> 0.01022780102 | V2: =RTD("cqg.rtd",,"StudyData", "Close("&$D$12&") when LocalYear("&$D$12&")="&$D$8&" and localMonth("&$D$12&") ="&$E$8&" and LocalDay("&$D$12&")="&$F$8&" and Barix("&$D$12&",reference:=StartOfSession)="&A2&"", "FG", "", "Close","5","0","PrimaryOnly",,,"False","T","EveryTick") -> 12328.75 | W2: =IFERROR((V2-$G$9)/$G$9,NA()) -> -0.005806100437 | X2: =RTD("cqg.rtd",,"StudyData", "Close("&$D$12&") when LocalYear("&$D$12&")="&$D$9&" and localMonth("&$D$12&") ="&$E$9&" and LocalDay("&$D$12&")="&$F$9&" and Barix("&$D$12&",reference:=StartOfSession)="&A2&"", "FG", "", "Close","5","0","PrimaryOnly",,,"False","T","EveryTick") -> 12300.75 | Y2: =IFERROR((X2-$G$10)/$G$10,NA()) -> -0.00521623097 | Z2: =RTD("cqg.rtd",,"StudyData", "Close("&$D$12&") when LocalYear("&$D$12&")="&$D$10&" and localMonth("&$D$12&") ="&$E$10&" and LocalDay("&$D$12&")="&$F$10&" and Barix("&$D$12&",reference:=StartOfSession)="&A2&"", "FG", "", "Close","5","0","PrimaryOnly",,,"False","T","EveryTick") -> 12603.25 | AA2: =IFERROR((Z2-$G$11)/$G$11,NA()) -> -0.0025128611 | AB2: =RANK(AD2,$AD$1:$AD$10)+COUNTIF($AD$1:AD2,AD2)-1 -> 8 | AC2: =DATE(D2,E2,F2) -> 2020-12-21 | AD2: =IFERROR(VLOOKUP(MAX(AE2:AE81),A1:K81,11,FALSE),"") -> -0.005014749263 | AE2: =IF(AND(H1<>"",H2<>"",H3=""),A2,"") ->  | AF2: 2 | AG2: =VLOOKUP(AF2,$AB$1:$AD$10,2,FALSE) -> 2020-12-15 | AH2: =VLOOKUP(AF2,$AB$1:$AD$10,3,FALSE) -> 0.005877632899 | AK2: =AG2 -> 2020-12-15 | AL2: =AC2 -> 2020-12-21 | AM2: 1 | AN2: =VLOOKUP(AK2,$AL$1:$AM$10,2,FALSE) -> 5
A3: =A2+1 -> 2 | B3: 08:40:00 | C3: =RTD("cqg.rtd",,"StudyData",$D$12, "Bar", "", "Time","D","-2",,,,,"T") -> 2020-12-18 | D3: 2020 | E3: 12 | F3: 18 | G3: =RTD("cqg.rtd",,"StudyData",$D$12, "Bar", "", "Close","D","-2",,,,,"T") -> 12712.5 | H3: =RTD("cqg.rtd",,"StudyData", "Close("&$D$12&") when LocalYear("&$D$12&")="&$D$1&" and localMonth("&$D$12&") ="&$E$1&" and LocalDay("&$D$12&")="&$F$1&" and Barix("&$D$12&",reference:=StartOfSession)="&A3&"", "FG", "", "Close","5","0","PrimaryOnly",,,"False","T","EveryTick") -> 12713.75 | I3: =IFERROR((H3-$G$2)/$G$2,NA()) -> 0.002384988371 | J3: =RTD("cqg.rtd",,"StudyData", "Close("&$D$12&") when LocalYear("&$D$12&")="&$D$2&" and localMonth("&$D$12&") ="&$E$2&" and LocalDay("&$D$12&")="&$F$2&" and Barix("&$D$12&",reference:=StartOfSession)="&A3&"", "FG", "", "Close","5","0","PrimaryOnly",,,"False","T","EveryTick") -> 12607.25 | K3: -0.008279252704 | L3: =RTD("cqg.rtd",,"StudyData", "Close("&$D$12&") when LocalYear("&$D$12&")="&$D$3&" and localMonth("&$D$12&") ="&$E$3&" and LocalDay("&$D$12&")="&$F$3&" and Barix("&$D$12&",reference:=StartOfSession)="&A3&"", "FG", "", "Close","5","0","PrimaryOnly",,,"False","T","EveryTick") -> 12743.5 | M3: -0.0005881891616 | N3: =RTD("cqg.rtd",,"StudyData", "Close("&$D$12&") when LocalYear("&$D$12&")="&$D$4&" and localMonth("&$D$12&") ="&$E$4&" and LocalDay("&$D$12&")="&$F$4&" and Barix("&$D$12&",reference:=StartOfSession)="&A3&"", "FG", "", "Close","5","0","PrimaryOnly",,,"False","T","EveryTick") -> 12740.5 | O3: 0.005504804372 | P3: =RTD("cqg.rtd",,"StudyData", "Close("&$D$12&") when LocalYear("&$D$12&")="&$D$5&" and localMonth("&$D$12&") ="&$E$5&" and LocalDay("&$D$12&")="&$F$5&" and Barix("&$D$12&",reference:=StartOfSession)="&A3&"", "FG", "", "Close","5","0","PrimaryOnly",,,"False","T","EveryTick") -> 12582.75 | Q3: -0.001051921245 | R3: =RTD("cqg.rtd",,"StudyData", "Close("&$D$12&") when LocalYear("&$D$12&")="&$D$6&" and localMonth("&$D$12&") ="&$E$6&" and LocalDay("&$D$12&")="&$F$6&" and Barix("&$D$12&",reference:=StartOfSession)="&A3&"", "FG", "", "Close","5","0","PrimaryOnly",,,"False","T","EveryTick") -> 12556.75 | S3: 0.007562688064 | T3: =RTD("cqg.rtd",,"StudyData", "Close("&$D$12&") when LocalYear("&$D$12&")="&$D$7&" and localMonth("&$D$12&") ="&$E$7&" and LocalDay("&$D$12&")="&$F$7&" and Barix("&$D$12&",reference:=StartOfSession)="&A3&"", "FG", "", "Close","5","0","PrimaryOnly",,,"False","T","EveryTick") -> 12492 | U3: 0.01000545752 | V3: =RTD("cqg.rtd",,"StudyData", "Close("&$D$12&") when LocalYear("&$D$12&")="&$D$8&" and localMonth("&$D$12&") ="&$E$8&" and LocalDay("&$D$12&")="&$F$8&" and Barix("&$D$12&",reference:=StartOfSession)="&A3&"", "FG", "", "Close","5","0","PrimaryOnly",,,"False","T","EveryTick") -> 12276.75 | W3: -0.009999395198 | X3: =RTD("cqg.rtd",,"StudyData", "Close("&$D$12&") when LocalYear("&$D$12&")="&$D$9&" and localMonth("&$D$12&") ="&$E$9&" and LocalDay("&$D$12&")="&$F$9&" and Barix("&$D$12&",reference:=StartOfSession)="&A3&"", "FG", "", "Close","5","0","PrimaryOnly",,,"False","T","EveryTick") -> 12309 | Y3: -0.004549038637 | Z3: =RTD("cqg.rtd",,"StudyData", "Close("&$D$12&") when LocalYear("&$D$12&")="&$D$10&" and localMonth("&$D$12&") ="&$E$10&" and LocalDay("&$D$12&")="&$F$10&" and Barix("&$D$12&",reference:=StartOfSession)="&A3&"", "FG", "", "Close","5","0","PrimaryOnly",,,"False","T","EveryTick") -> 12621.25 | AA3: -0.001088246933 | AB3: =RANK(AD3,$AD$1:$AD$10)+COUNTIF($AD$1:AD3,AD3)-1 -> 7 | AC3: 2020-12-18 | AD3: =IFERROR(VLOOKUP(MAX(AE2:AE81),A1:M81,13,FALSE),"") -> -0.003156615167 | AE3: =IF(AND(H2<>"",H3<>"",H4=""),A3,"") ->  | AF3: 3 | AG3: 2020-12-17 | AH3: 0.004439358365 | AK3: 2020-12-17 | AL3: 2020-12-18 | AM3: 2 | AN3: 3
A4: 3 | B4: 08:45:00 | C4: =RTD("cqg.rtd",,"StudyData",$D$12, "Bar", "", "Time","D","-3",,,,,"T") -> 2020-12-17 | D4: 2020 | E4: 12 | F4: 17 | G4: =RTD("cqg.rtd",,"StudyData",$D$12, "Bar", "", "Close","D","-3",,,,,"T") -> 12751 | H4: =RTD("cqg.rtd",,"StudyData", "Close("&$D$12&") when LocalYear("&$D$12&")="&$D$1&" and localMonth("&$D$12&") ="&$E$1&" and LocalDay("&$D$12&")="&$F$1&" and Barix("&$D$12&",reference:=StartOfSession)="&A4&"", "FG", "", "Close","5","0","PrimaryOnly",,,"False","T","EveryTick") -> 12725.75 | I4: 0.00333109946 | J4: =RTD("cqg.rtd",,"StudyData", "Close("&$D$12&") when LocalYear("&$D$12&")="&$D$2&" and localMonth("&$D$12&") ="&$E$2&" and LocalDay("&$D$12&")="&$F$2&" and Barix("&$D$12&",reference:=StartOfSession)="&A4&"", "FG", "", "Close","5","0","PrimaryOnly",,,"False","T","EveryTick") -> 12574.5 | K4: -0.01085545723 | L4: =RTD("cqg.rtd",,"StudyData", "Close("&$D$12&") when LocalYear("&$D$12&")="&$D$3&" and localMonth("&$D$12&") ="&$E$3&" and LocalDay("&$D$12&")="&$F$3&" and Barix("&$D$12&",reference:=StartOfSession)="&A4&"", "FG", "", "Close","5","0","PrimaryOnly",,,"False","T","EveryTick") -> 12737.75 | M4: -0.001039134186 | N4: =RTD("cqg.rtd",,"StudyData", "Close("&$D$12&") when LocalYear("&$D$12&")="&$D$4&" and localMonth("&$D$12&") ="&$E$4&" and LocalDay("&$D$12&")="&$F$4&" and Barix("&$D$12&",reference:=StartOfSession)="&A4&"", "FG", "", "Close","5","0","PrimaryOnly",,,"False","T","EveryTick") -> 12753.75 | O4: 0.006550519898 | P4: =RTD("cqg.rtd",,"StudyData", "Close("&$D$12&") when LocalYear("&$D$12&")="&$D$5&" and localMonth("&$D$12&") ="&$E$5&" and LocalDay("&$D$12&")="&$F$5&" and Barix("&$D$12&",reference:=StartOfSession)="&A4&"", "FG", "", "Close","5","0","PrimaryOnly",,,"False","T","EveryTick") -> 12595.5 | Q4: -3.969514131e-05 | R4: =RTD("cqg.rtd",,"StudyData", "Close("&$D$12&") when LocalYear("&$D$12&")="&$D$6&" and localMonth("&$D$12&") ="&$E$6&" and LocalDay("&$D$12&")="&$F$6&" and Barix("&$D$12&",reference:=StartOfSession)="&A4&"", "FG", "", "Close","5","0","PrimaryOnly",,,"False","T","EveryTick") -> 12572.25 | S4: 0.008806419258 | T4: =RTD("cqg.rtd",,"StudyData", "Close("&$D$12&") when LocalYear("&$D$12&")="&$D$7&" and localMonth("&$D$12&") ="&$E$7&" and LocalDay("&$D$12&")="&$F$7&" and Barix("&$D$12&",reference:=StartOfSession)="&A4&"", "FG", "", "Close","5","0","PrimaryOnly",,,"False","T","EveryTick") -> 12493.75 | U4: 0.01014694884 | V4: =RTD("cqg.rtd",,"StudyData", "Close("&$D$12&") when LocalYear("&$D$12&")="&$D$8&" and localMonth("&$D$12&") ="&$E$8&" and LocalDay("&$D$12&")="&$F$8&" and Barix("&$D$12&",reference:=StartOfSession)="&A4&"", "FG", "", "Close","5","0","PrimaryOnly",,,"False","T","EveryTick") -> 12311.5 | W4: -0.007197145334 | X4: =RTD("cqg.rtd",,"StudyData", "Close("&$D$12&") when LocalYear("&$D$12&")="&$D$9&" and localMonth("&$D$12&") ="&$E$9&" and LocalDay("&$D$12&")="&$F$9&" and Barix("&$D$12&",reference:=StartOfSession)="&A4&"", "FG", "", "Close","5","0","PrimaryOnly",,,"False","T","EveryTick") -> 12338.75 | Y4: -0.002143102647 | Z4: =RTD("cqg.rtd",,"StudyData", "Close("&$D$12&") when LocalYear("&$D$12&")="&$D$10&" and localMonth("&$D$12&") ="&$E$10&" and LocalDay("&$D$12&")="&$F$10&" and Barix("&$D$12&",reference:=StartOfSession)="&A4&"", "FG", "", "Close","5","0","PrimaryOnly",,,"False","T","EveryTick") -> 12626.5 | AA4: -0.0006727344677 | AB4: =RANK(AD4,$AD$1:$AD$10)+COUNTIF($AD$1:AD4,AD4)-1 -> 3 | AC4: 2020-12-17 | AD4: =IFERROR(VLOOKUP(MAX(AE2:AE81),A1:O81,15,FALSE),"") -> 0.004439358365 | AF4: 4 | AG4: 2020-12-16 | AH4: 0.003969514131 | AK4: 2020-12-16 | AL4: 2020-12-17 | AM4: 3 | AN4: 4
A5: 4 | B5: 08:50:00 | C5: =RTD("cqg.rtd",,"StudyData",$D$12, "Bar", "", "Time","D","-4",,,,,"T") -> 2020-12-16 | D5: 2020 | E5: 12 | F5: 16 | G5: =RTD("cqg.rtd",,"StudyData",$D$12, "Bar", "", "Close","D","-4",,,,,"T") -> 12670.75 | H5: =RTD("cqg.rtd",,"StudyData", "Close("&$D$12&") when LocalYear("&$D$12&")="&$D$1&" and localMonth("&$D$12&") ="&$E$1&" and LocalDay("&$D$12&")="&$F$1&" and Barix("&$D$12&",reference:=StartOfSession)="&A5&"", "FG", "", "Close","5","0","PrimaryOnly",,,"False","T","EveryTick") -> 12740.75 | I5: 0.004513738321 | J5: =RTD("cqg.rtd",,"StudyData", "Close("&$D$12&") when LocalYear("&$D$12&")="&$D$2&" and localMonth("&$D$12&") ="&$E$2&" and LocalDay("&$D$12&")="&$F$2&" and Barix("&$D$12&",reference:=StartOfSession)="&A5&"", "FG", "", "Close","5","0","PrimaryOnly",,,"False","T","EveryTick") -> 12585.25 | K5: -0.01000983284 | L5: =RTD("cqg.rtd",,"StudyData", "Close("&$D$12&") when LocalYear("&$D$12&")="&$D$3&" and localMonth("&$D$12&") ="&$E$3&" and LocalDay("&$D$12&")="&$F$3&" and Barix("&$D$12&",reference:=StartOfSession)="&A5&"", "FG", "", "Close","5","0","PrimaryOnly",,,"False","T","EveryTick") -> 12729.5 | M5: -0.001686142263 | N5: =RTD("cqg.rtd",,"StudyData", "Close("&$D$12&") when LocalYear("&$D$12&")="&$D$4&" and localMonth("&$D$12&") ="&$E$4&" and LocalDay("&$D$12&")="&$F$4&" and Barix("&$D$12&",reference:=StartOfSession)="&A5&"", "FG", "", "Close","5","0","PrimaryOnly",,,"False","T","EveryTick") -> 12738.75 | O5: 0.005366691001 | P5: =RTD("cqg.rtd",,"StudyData", "Close("&$D$12&") when LocalYear("&$D$12&")="&$D$5&" and localMonth("&$D$12&") ="&$E$5&" and LocalDay("&$D$12&")="&$F$5&" and Barix("&$D$12&",reference:=StartOfSession)="&A5&"", "FG", "", "Close","5","0","PrimaryOnly",,,"False","T","EveryTick") -> 12609 | Q5: 0.001032073674 | R5: =RTD("cqg.rtd",,"StudyData", "Close("&$D$12&") when LocalYear("&$D$12&")="&$D$6&" and localMonth("&$D$12&") ="&$E$6&" and LocalDay("&$D$12&")="&$F$6&" and Barix("&$D$12&",reference:=StartOfSession)="&A5&"", "FG", "", "Close","5","0","PrimaryOnly",,,"False","T","EveryTick") -> 12578 | S5: 0.00926780341 | T5: =RTD("cqg.rtd",,"StudyData", "Close("&$D$12&") when LocalYear("&$D$12&")="&$D$7&" and localMonth("&$D$12&") ="&$E$7&" and LocalDay("&$D$12&")="&$F$7&" and Barix("&$D$12&",reference:=StartOfSession)="&A5&"", "FG", "", "Close","5","0","PrimaryOnly",,,"False","T","EveryTick") -> 12499 | U5: 0.0105714228 | V5: =RTD("cqg.rtd",,"StudyData", "Close("&$D$12&") when LocalYear("&$D$12&")="&$D$8&" and localMonth("&$D$12&") ="&$E$8&" and LocalDay("&$D$12&")="&$F$8&" and Barix("&$D$12&",reference:=StartOfSession)="&A5&"", "FG", "", "Close","5","0","PrimaryOnly",,,"False","T","EveryTick") -> 12319.25 | W5: -0.006572183134 | X5: =RTD("cqg.rtd",,"StudyData", "Close("&$D$12&") when LocalYear("&$D$12&")="&$D$9&" and localMonth("&$D$12&") ="&$E$9&" and LocalDay("&$D$12&")="&$F$9&" and Barix("&$D$12&",reference:=StartOfSession)="&A5&"", "FG", "", "Close","5","0","PrimaryOnly",,,"False","T","EveryTick") -> 12355.5 | Y5: -0.0007885000303 | Z5: =RTD("cqg.rtd",,"StudyData", "Close("&$D$12&") when LocalYear("&$D$12&")="&$D$10&" and localMonth("&$D$12&") ="&$E$10&" and LocalDay("&$D$12&")="&$F$10&" and Barix("&$D$12&",reference:=StartOfSession)="&A5&"", "FG", "", "Close","5","0","PrimaryOnly",,,"False","T","EveryTick") -> 12632 | AA5: -0.0002374356945 | AB5: =RANK(AD5,$AD$1:$AD$10)+COUNTIF($AD$1:AD5,AD5)-1 -> 4 | AC5: 2020-12-16 | AD5: =IFERROR(VLOOKUP(MAX(AE2:AE81),A1:Q81,17,FALSE),"") -> 0.003969514131 | AF5: 5 | AG5: 2020-12-10 | AH5: -0.0003234871919 | AK5: 2020-12-10 | AL5: 2020-12-16 | AM5: 4 | AN5: 8
A6: 5 | B6: 08:55:00 | C6: =RTD("cqg.rtd",,"StudyData",$D$12, "Bar", "", "Time","D","-5",,,,,"T") -> 2020-12-15 | D6: 2020 | E6: 12 | F6: 15 | G6: =RTD("cqg.rtd",,"StudyData",$D$12, "Bar", "", "Close","D","-5",,,,,"T") -> 12596 | H6: =RTD("cqg.rtd",,"StudyData", "Close("&$D$12&") when LocalYear("&$D$12&")="&$D$1&" and localMonth("&$D$12&") ="&$E$1&" and LocalDay("&$D$12&")="&$F$1&" and Barix("&$D$12&",reference:=StartOfSession)="&A6&"", "FG", "", "Close","5","0","PrimaryOnly",,,"False","T","EveryTick") -> 12749.25 | I6: 0.005183900343 | J6: =RTD("cqg.rtd",,"StudyData", "Close("&$D$12&") when LocalYear("&$D$12&")="&$D$2&" and localMonth("&$D$12&") ="&$E$2&" and LocalDay("&$D$12&")="&$F$2&" and Barix("&$D$12&",reference:=StartOfSession)="&A6&"", "FG", "", "Close","5","0","PrimaryOnly",,,"False","T","EveryTick") -> 12582.5 | K6: -0.01022615536 | L6: =RTD("cqg.rtd",,"StudyData", "Close("&$D$12&") when LocalYear("&$D$12&")="&$D$3&" and localMonth("&$D$12&") ="&$E$3&" and LocalDay("&$D$12&")="&$F$3&" and Barix("&$D$12&",reference:=StartOfSession)="&A6&"", "FG", "", "Close","5","0","PrimaryOnly",,,"False","T","EveryTick") -> 12725 | M6: -0.00203905576 | N6: =RTD("cqg.rtd",,"StudyData", "Close("&$D$12&") when LocalYear("&$D$12&")="&$D$4&" and localMonth("&$D$12&") ="&$E$4&" and LocalDay("&$D$12&")="&$F$4&" and Barix("&$D$12&",reference:=StartOfSession)="&A6&"", "FG", "", "Close","5","0","PrimaryOnly",,,"False","T","EveryTick") -> 12740 | O6: 0.005465343409 | P6: =RTD("cqg.rtd",,"StudyData", "Close("&$D$12&") when LocalYear("&$D$12&")="&$D$5&" and localMonth("&$D$12&") ="&$E$5&" and LocalDay("&$D$12&")="&$F$5&" and Barix("&$D$12&",reference:=StartOfSession)="&A6&"", "FG", "", "Close","5","0","PrimaryOnly",,,"False","T","EveryTick") -> 12601.25 | Q6: 0.0004167989838 | R6: =RTD("cqg.rtd",,"StudyData", "Close("&$D$12&") when LocalYear("&$D$12&")="&$D$6&" and localMonth("&$D$12&") ="&$E$6&" and LocalDay("&$D$12&")="&$F$6&" and Barix("&$D$12&",reference:=StartOfSession)="&A6&"", "FG", "", "Close","5","0","PrimaryOnly",,,"False","T","EveryTick") -> 12566 | S6: 0.008304914744 | T6: =RTD("cqg.rtd",,"StudyData", "Close("&$D$12&") when LocalYear("&$D$12&")="&$D$7&" and localMonth("&$D$12&") ="&$E$7&" and LocalDay("&$D$12&")="&$F$7&" and Barix("&$D$12&",reference:=StartOfSession)="&A6&"", "FG", "", "Close","5","0","PrimaryOnly",,,"False","T","EveryTick") -> 12519.5 | U6: 0.01222889253 | V6: =RTD("cqg.rtd",,"StudyData", "Close("&$D$12&") when LocalYear("&$D$12&")="&$D$8&" and localMonth("&$D$12&") ="&$E$8&" and LocalDay("&$D$12&")="&$F$8&" and Barix("&$D$12&",reference:=StartOfSession)="&A6&"", "FG", "", "Close","5","0","PrimaryOnly",,,"False","T","EveryTick") -> 12314.5 | W6: -0.006955224482 | X6: =RTD("cqg.rtd",,"StudyData", "Close("&$D$12&") when LocalYear("&$D$12&")="&$D$9&" and localMonth("&$D$12&") ="&$E$9&" and LocalDay("&$D$12&")="&$F$9&" and Barix("&$D$12&",reference:=StartOfSession)="&A6&"", "FG", "", "Close","5","0","PrimaryOnly",,,"False","T","EveryTick") -> 12373.5 | Y6: 0.0006671923334 | Z6: =RTD("cqg.rtd",,"StudyData", "Close("&$D$12&") when LocalYear("&$D$12&")="&$D$10&" and localMonth("&$D$12&") ="&$E$10&" and LocalDay("&$D$12&")="&$F$10&" and Barix("&$D$12&",reference:=StartOfSession)="&A6&"", "FG", "", "Close","5","0","PrimaryOnly",,,"False","T","EveryTick") -> 12633.75 | AA6: -9.893153937e-05 | AB6: =RANK(AD6,$AD$1:$AD$10)+COUNTIF($AD$1:AD6,AD6)-1 -> 2 | AC6: 2020-12-15 | AD6: =IFERROR(VLOOKUP(MAX(AE2:AE81),A1:S81,19,FALSE),"") -> 0.005877632899 | AF6: 6 | AG6: 2020-12-22 | AH6: -0.0004139236015 | AK6: 2020-12-22 | AL6: 2020-12-15 | AM6: 5 | AN6: 0
A7: 6 | B7: 09:00:00 | C7: =RTD("cqg.rtd",,"StudyData",$D$12, "Bar", "", "Time","D","-6",,,,,"T") -> 2020-12-14 | D7: 2020 | E7: 12 | F7: 14 | G7: =RTD("cqg.rtd",,"StudyData",$D$12, "Bar", "", "Close","D","-6",,,,,"T") -> 12462.5 | H7: =RTD("cqg.rtd",,"StudyData", "Close("&$D$12&") when LocalYear("&$D$12&")="&$D$1&" and localMonth("&$D$12&") ="&$E$1&" and LocalDay("&$D$12&")="&$F$1&" and Barix("&$D$12&",reference:=StartOfSession)="&A7&"", "FG", "", "Close","5","0","PrimaryOnly",,,"False","T","EveryTick") -> 12725.75 | I7: 0.00333109946 | J7: =RTD("cqg.rtd",,"StudyData", "Close("&$D$12&") when LocalYear("&$D$12&")="&$D$2&" and localMonth("&$D$12&") ="&$E$2&" and LocalDay("&$D$12&")="&$F$2&" and Barix("&$D$12&",reference:=StartOfSession)="&A7&"", "FG", "", "Close","5","0","PrimaryOnly",,,"False","T","EveryTick") -> 12534.5 | K7: -0.01400196657 | L7: =RTD("cqg.rtd",,"StudyData", "Close("&$D$12&") when LocalYear("&$D$12&")="&$D$3&" and localMonth("&$D$12&") ="&$E$3&" and LocalDay("&$D$12&")="&$F$3&" and Barix("&$D$12&",reference:=StartOfSession)="&A7&"", "FG", "", "Close","5","0","PrimaryOnly",,,"False","T","EveryTick") -> 12690.5 | M7: -0.004744725904 | N7: =RTD("cqg.rtd",,"StudyData", "Close("&$D$12&") when LocalYear("&$D$12&")="&$D$4&" and localMonth("&$D$12&") ="&$E$4&" and LocalDay("&$D$12&")="&$F$4&" and Barix("&$D$12&",reference:=StartOfSession)="&A7&"", "FG", "", "Close","5","0","PrimaryOnly",,,"False","T","EveryTick") -> 12726.25 | O7: 0.00438016692 | P7: =RTD("cqg.rtd",,"StudyData", "Close("&$D$12&") when LocalYear("&$D$12&")="&$D$5&" and localMonth("&$D$12&") ="&$E$5&" and LocalDay("&$D$12&")="&$F$5&" and Barix("&$D$12&",reference:=StartOfSession)="&A7&"", "FG", "", "Close","5","0","PrimaryOnly",,,"False","T","EveryTick") -> 12614.75 | Q7: 0.001488567799 | R7: =RTD("cqg.rtd",,"StudyData", "Close("&$D$12&") when LocalYear("&$D$12&")="&$D$6&" and localMonth("&$D$12&") ="&$E$6&" and LocalDay("&$D$12&")="&$F$6&" and Barix("&$D$12&",reference:=StartOfSession)="&A7&"", "FG", "", "Close","5","0","PrimaryOnly",,,"False","T","EveryTick") -> 12569.25 | S7: 0.008565697091 | T7: =RTD("cqg.rtd",,"StudyData", "Close("&$D$12&") when LocalYear("&$D$12&")="&$D$7&" and localMonth("&$D$12&") ="&$E$7&" and LocalDay("&$D$12&")="&$F$7&" and Barix("&$D$12&",reference:=StartOfSession)="&A7&"", "FG", "", "Close","5","0","PrimaryOnly",,,"False","T","EveryTick") -> 12519 | U7: 0.01218846644 | V7: =RTD("cqg.rtd",,"StudyData", "Close("&$D$12&") when LocalYear("&$D$12&")="&$D$8&" and localMonth("&$D$12&") ="&$E$8&" and LocalDay("&$D$12&")="&$F$8&" and Barix("&$D$12&",reference:=StartOfSession)="&A7&"", "FG", "", "Close","5","0","PrimaryOnly",,,"False","T","EveryTick") -> 12324.75 | W7: -0.006128661573 | X7: =RTD("cqg.rtd",,"StudyData", "Close("&$D$12&") when LocalYear("&$D$12&")="&$D$9&" and localMonth("&$D$12&") ="&$E$9&" and LocalDay("&$D$12&")="&$F$9&" and Barix("&$D$12&",reference:=StartOfSession)="&A7&"", "FG", "", "Close","5","0","PrimaryOnly",,,"False","T","EveryTick") -> 12360 | Y7: -0.0004245769394 | Z7: =RTD("cqg.rtd",,"StudyData", "Close("&$D$12&") when LocalYear("&$D$12&")="&$D$10&" and localMonth("&$D$12&") ="&$E$10&" and LocalDay("&$D$12&")="&$F$10&" and Barix("&$D$12&",reference:=StartOfSession)="&A7&"", "FG", "", "Close","5","0","PrimaryOnly",,,"False","T","EveryTick") -> 12611 | AA7: -0.001899485556 | AB7: =RANK(AD7,$AD$1:$AD$10)+COUNTIF($AD$1:AD7,AD7)-1 -> 1 | AC7: 2020-12-14 | AD7: =IFERROR(VLOOKUP(MAX(AE2:AE81),A1:U81,21,FALSE),"") -> 0.01061184889 | AF7: 7 | AG7: 2020-12-18 | AH7: -0.003156615167 | AK7: 2020-12-18 | AL7: 2020-12-14 | AM7: 6 | AN7: 2
A8: 7 | B8: 09:05:00 | C8: =RTD("cqg.rtd",,"StudyData",$D$12, "Bar", "", "Time","D","-7",,,,,"T") -> 2020-12-11 | D8: 2020 | E8: 12 | F8: 11 | G8: =RTD("cqg.rtd",,"StudyData",$D$12, "Bar", "", "Close","D","-7",,,,,"T") -> 12368.25 | H8: =RTD("cqg.rtd",,"StudyData", "Close("&$D$12&") when LocalYear("&$D$12&")="&$D$1&" and localMonth("&$D$12&") ="&$E$1&" and LocalDay("&$D$12&")="&$F$1&" and Barix("&$D$12&",reference:=StartOfSession)="&A8&"", "FG", "", "Close","5","0","PrimaryOnly",,,"False","T","EveryTick") -> 12743.25 | I8: 0.004710844798 | J8: =RTD("cqg.rtd",,"StudyData", "Close("&$D$12&") when LocalYear("&$D$12&")="&$D$2&" and localMonth("&$D$12&") ="&$E$2&" and LocalDay("&$D$12&")="&$F$2&" and Barix("&$D$12&",reference:=StartOfSession)="&A8&"", "FG", "", "Close","5","0","PrimaryOnly",,,"False","T","EveryTick") -> 12522.75 | K8: -0.01492625369 | L8: =RTD("cqg.rtd",,"StudyData", "Close("&$D$12&") when LocalYear("&$D$12&")="&$D$3&" and localMonth("&$D$12&") ="&$E$3&" and LocalDay("&$D$12&")="&$F$3&" and Barix("&$D$12&",reference:=StartOfSession)="&A8&"", "FG", "", "Close","5","0","PrimaryOnly",,,"False","T","EveryTick") -> 12706.5 | M8: -0.003489922359 | N8: =RTD("cqg.rtd",,"StudyData", "Close("&$D$12&") when LocalYear("&$D$12&")="&$D$4&" and localMonth("&$D$12&") ="&$E$4&" and LocalDay("&$D$12&")="&$F$4&" and Barix("&$D$12&",reference:=StartOfSession)="&A8&"", "FG", "", "Close","5","0","PrimaryOnly",,,"False","T","EveryTick") -> 12725.5 | O8: 0.004320975475 | P8: =RTD("cqg.rtd",,"StudyData", "Close("&$D$12&") when LocalYear("&$D$12&")="&$D$5&" and localMonth("&$D$12&") ="&$E$5&" and LocalDay("&$D$12&")="&$F$5&" and Barix("&$D$12&",reference:=StartOfSession)="&A8&"", "FG", "", "Close","5","0","PrimaryOnly",,,"False","T","EveryTick") -> 12617.25 | Q8: 0.001687043506 | R8: =RTD("cqg.rtd",,"StudyData", "Close("&$D$12&") when LocalYear("&$D$12&")="&$D$6&" and localMonth("&$D$12&") ="&$E$6&" and LocalDay("&$D$12&")="&$F$6&" and Barix("&$D$12&",reference:=StartOfSession)="&A8&"", "FG", "", "Close","5","0","PrimaryOnly",,,"False","T","EveryTick") -> 12558.25 | S8: 0.007683049147 | T8: =RTD("cqg.rtd",,"StudyData", "Close("&$D$12&") when LocalYear("&$D$12&")="&$D$7&" and localMonth("&$D$12&") ="&$E$7&" and LocalDay("&$D$12&")="&$F$7&" and Barix("&$D$12&",reference:=StartOfSession)="&A8&"", "FG", "", "Close","5","0","PrimaryOnly",,,"False","T","EveryTick") -> 12512.75 | U8: 0.0116831403 | V8: =RTD("cqg.rtd",,"StudyData", "Close("&$D$12&") when LocalYear("&$D$12&")="&$D$8&" and localMonth("&$D$12&") ="&$E$8&" and LocalDay("&$D$12&")="&$F$8&" and Barix("&$D$12&",reference:=StartOfSession)="&A8&"", "FG", "", "Close","5","0","PrimaryOnly",,,"False","T","EveryTick") -> 12325 | W8: -0.006108501502 | X8: =RTD("cqg.rtd",,"StudyData", "Close("&$D$12&") when LocalYear("&$D$12&")="&$D$9&" and localMonth("&$D$12&") ="&$E$9&" and LocalDay("&$D$12&")="&$F$9&" and Barix("&$D$12&",reference:=StartOfSession)="&A8&"", "FG", "", "Close","5","0","PrimaryOnly",,,"False","T","EveryTick") -> 12388.25 | Y8: 0.001860051354 | Z8: =RTD("cqg.rtd",,"StudyData", "Close("&$D$12&") when LocalYear("&$D$12&")="&$D$10&" and localMonth("&$D$12&") ="&$E$10&" and LocalDay("&$D$12&")="&$F$10&" and Barix("&$D$12&",reference:=StartOfSession)="&A8&"", "FG", "", "Close","5","0","PrimaryOnly",,,"False","T","EveryTick") -> 12606 | AA8: -0.002295211713 | AB8: =RANK(AD8,$AD$1:$AD$10)+COUNTIF($AD$1:AD8,AD8)-1 -> 9 | AC8: 2020-12-11 | AD8: =IFERROR(VLOOKUP(MAX(AE2:AE81),A1:W81,23,FALSE),"") -> -0.01036227648 | AF8: 8 | AG8: 2020-12-21 | AH8: -0.005014749263 | AK8: 2020-12-21 | AL8: 2020-12-11 | AM8: 7 | AN8: 1
A9: 8 | B9: 09:10:00 | C9: =RTD("cqg.rtd",,"StudyData",$D$12, "Bar", "", "Time","D","-8",,,,,"T") -> 2020-12-10 | D9: 2020 | E9: 12 | F9: 10 | G9: =RTD("cqg.rtd",,"StudyData",$D$12, "Bar", "", "Close","D","-8",,,,,"T") -> 12400.75 | H9: =RTD("cqg.rtd",,"StudyData", "Close("&$D$12&") when LocalYear("&$D$12&")="&$D$1&" and localMonth("&$D$12&") ="&$E$1&" and LocalDay("&$D$12&")="&$F$1&" and Barix("&$D$12&",reference:=StartOfSession)="&A9&"", "FG", "", "Close","5","0","PrimaryOnly",,,"False","T","EveryTick") -> 12694.75 | I9: 0.0008869791461 | J9: =RTD("cqg.rtd",,"StudyData", "Close("&$D$12&") when LocalYear("&$D$12&")="&$D$2&" and localMonth("&$D$12&") ="&$E$2&" and LocalDay("&$D$12&")="&$F$2&" and Barix("&$D$12&",reference:=StartOfSession)="&A9&"", "FG", "", "Close","5","0","PrimaryOnly",,,"False","T","EveryTick") -> 12503 | K9: -0.01647984267 | L9: =RTD("cqg.rtd",,"StudyData", "Close("&$D$12&") when LocalYear("&$D$12&")="&$D$3&" and localMonth("&$D$12&") ="&$E$3&" and LocalDay("&$D$12&")="&$F$3&" and Barix("&$D$12&",reference:=StartOfSession)="&A9&"", "FG", "", "Close","5","0","PrimaryOnly",,,"False","T","EveryTick") -> 12716.5 | M9: -0.002705670144 | N9: =RTD("cqg.rtd",,"StudyData", "Close("&$D$12&") when LocalYear("&$D$12&")="&$D$4&" and localMonth("&$D$12&") ="&$E$4&" and LocalDay("&$D$12&")="&$F$4&" and Barix("&$D$12&",reference:=StartOfSession)="&A9&"", "FG", "", "Close","5","0","PrimaryOnly",,,"False","T","EveryTick") -> 12715.5 | O9: 0.00353175621 | P9: =RTD("cqg.rtd",,"StudyData", "Close("&$D$12&") when LocalYear("&$D$12&")="&$D$5&" and localMonth("&$D$12&") ="&$E$5&" and LocalDay("&$D$12&")="&$F$5&" and Barix("&$D$12&",reference:=StartOfSession)="&A9&"", "FG", "", "Close","5","0","PrimaryOnly",,,"False","T","EveryTick") -> 12605.25 | Q9: 0.0007343601143 | R9: =RTD("cqg.rtd",,"StudyData", "Close("&$D$12&") when LocalYear("&$D$12&")="&$D$6&" and localMonth("&$D$12&") ="&$E$6&" and LocalDay("&$D$12&")="&$F$6&" and Barix("&$D$12&",reference:=StartOfSession)="&A9&"", "FG", "", "Close","5","0","PrimaryOnly",,,"False","T","EveryTick") -> 12556.25 | S9: 0.007522567703 | T9: =RTD("cqg.rtd",,"StudyData", "Close("&$D$12&") when LocalYear("&$D$12&")="&$D$7&" and localMonth("&$D$12&") ="&$E$7&" and LocalDay("&$D$12&")="&$F$7&" and Barix("&$D$12&",reference:=StartOfSession)="&A9&"", "FG", "", "Close","5","0","PrimaryOnly",,,"False","T","EveryTick") -> 12528.25 | U9: 0.01293634912 | V9: =RTD("cqg.rtd",,"StudyData", "Close("&$D$12&") when LocalYear("&$D$12&")="&$D$8&" and localMonth("&$D$12&") ="&$E$8&" and LocalDay("&$D$12&")="&$F$8&" and Barix("&$D$12&",reference:=StartOfSession)="&A9&"", "FG", "", "Close","5","0","PrimaryOnly",,,"False","T","EveryTick") -> 12352 | W9: -0.003931213838 | X9: =RTD("cqg.rtd",,"StudyData", "Close("&$D$12&") when LocalYear("&$D$12&")="&$D$9&" and localMonth("&$D$12&") ="&$E$9&" and LocalDay("&$D$12&")="&$F$9&" and Barix("&$D$12&",reference:=StartOfSession)="&A9&"", "FG", "", "Close","5","0","PrimaryOnly",,,"False","T","EveryTick") -> 12378 | Y9: 0.001031115424 | Z9: =RTD("cqg.rtd",,"StudyData", "Close("&$D$12&") when LocalYear("&$D$12&")="&$D$10&" and localMonth("&$D$12&") ="&$E$10&" and LocalDay("&$D$12&")="&$F$10&" and Barix("&$D$12&",reference:=StartOfSession)="&A9&"", "FG", "", "Close","5","0","PrimaryOnly",,,"False","T","EveryTick") -> 12576 | AA9: -0.004669568658 | AB9: =RANK(AD9,$AD$1:$AD$10)+COUNTIF($AD$1:AD9,AD9)-1 -> 5 | AC9: 2020-12-10 | AD9: =IFERROR(VLOOKUP(MAX(AE2:AE81),A1:Y81,25,FALSE),"") -> -0.0003234871919 | AF9: 9 | AG9: 2020-12-11 | AH9: -0.01036227648 | AK9: 2020-12-11 | AL9: 2020-12-10 | AM9: 8 | AN9: 7
A10: 9 | B10: 09:15:00 | C10: =RTD("cqg.rtd",,"StudyData",$D$12, "Bar", "", "Time","D","-9",,,,,"T") -> 2020-12-09 | D10: 2020 | E10: 12 | F10: 9 | G10: =RTD("cqg.rtd",,"StudyData",$D$12, "Bar", "", "Close","D","-9",,,,,"T") -> 12365.25 | H10: =RTD("cqg.rtd",,"StudyData", "Close("&$D$12&") when LocalYear("&$D$12&")="&$D$1&" and localMonth("&$D$12&") ="&$E$1&" and LocalDay("&$D$12&")="&$F$1&" and Barix("&$D$12&",reference:=StartOfSession)="&A10&"", "FG", "", "Close","5","0","PrimaryOnly",,,"False","T","EveryTick") -> 12702 | I10: 0.001458587929 | J10: =RTD("cqg.rtd",,"StudyData", "Close("&$D$12&") when LocalYear("&$D$12&")="&$D$2&" and localMonth("&$D$12&") ="&$E$2&" and LocalDay("&$D$12&")="&$F$2&" and Barix("&$D$12&",reference:=StartOfSession)="&A10&"", "FG", "", "Close","5","0","PrimaryOnly",,,"False","T","EveryTick") -> 12486 | K10: -0.01781710914 | L10: =RTD("cqg.rtd",,"StudyData", "Close("&$D$12&") when LocalYear("&$D$12&")="&$D$3&" and localMonth("&$D$12&") ="&$E$3&" and LocalDay("&$D$12&")="&$F$3&" and Barix("&$D$12&",reference:=StartOfSession)="&A10&"", "FG", "", "Close","5","0","PrimaryOnly",,,"False","T","EveryTick") -> 12726.5 | M10: -0.001921417928 | N10: =RTD("cqg.rtd",,"StudyData", "Close("&$D$12&") when LocalYear("&$D$12&")="&$D$4&" and localMonth("&$D$12&") ="&$E$4&" and LocalDay("&$D$12&")="&$F$4&" and Barix("&$D$12&",reference:=StartOfSession)="&A10&"", "FG", "", "Close","5","0","PrimaryOnly",,,"False","T","EveryTick") -> 12724.75 | O10: 0.00426178403 | P10: =RTD("cqg.rtd",,"StudyData", "Close("&$D$12&") when LocalYear("&$D$12&")="&$D$5&" and localMonth("&$D$12&") ="&$E$5&" and LocalDay("&$D$12&")="&$F$5&" and Barix("&$D$12&",reference:=StartOfSession)="&A10&"", "FG", "", "Close","5","0","PrimaryOnly",,,"False","T","EveryTick") -> 12593.5 | Q10: -0.0001984757066 | R10: =RTD("cqg.rtd",,"StudyData", "Close("&$D$12&") when LocalYear("&$D$12&")="&$D$6&" and localMonth("&$D$12&") ="&$E$6&" and LocalDay("&$D$12&")="&$F$6&" and Barix("&$D$12&",reference:=StartOfSession)="&A10&"", "FG", "", "Close","5","0","PrimaryOnly",,,"False","T","EveryTick") -> 12563.75 | S10: 0.008124373119 | T10: =RTD("cqg.rtd",,"StudyData", "Close("&$D$12&") when LocalYear("&$D$12&")="&$D$7&" and localMonth("&$D$12&") ="&$E$7&" and LocalDay("&$D$12&")="&$F$7&" and Barix("&$D$12&",reference:=StartOfSession)="&A10&"", "FG", "", "Close","5","0","PrimaryOnly",,,"False","T","EveryTick") -> 12526 | U10: 0.01275443171 | V10: =RTD("cqg.rtd",,"StudyData", "Close("&$D$12&") when LocalYear("&$D$12&")="&$D$8&" and localMonth("&$D$12&") ="&$E$8&" and LocalDay("&$D$12&")="&$F$8&" and Barix("&$D$12&",reference:=StartOfSession)="&A10&"", "FG", "", "Close","5","0","PrimaryOnly",,,"False","T","EveryTick") -> 12347.25 | W10: -0.004314255186 | X10: =RTD("cqg.rtd",,"StudyData", "Close("&$D$12&") when LocalYear("&$D$12&")="&$D$9&" and localMonth("&$D$12&") ="&$E$9&" and LocalDay("&$D$12&")="&$F$9&" and Barix("&$D$12&",reference:=StartOfSession)="&A10&"", "FG", "", "Close","5","0","PrimaryOnly",,,"False","T","EveryTick") -> 12397 | Y10: 0.002567679586 | Z10: =RTD("cqg.rtd",,"StudyData", "Close("&$D$12&") when LocalYear("&$D$12&")="&$D$10&" and localMonth("&$D$12&") ="&$E$10&" and LocalDay("&$D$12&")="&$F$10&" and Barix("&$D$12&",reference:=StartOfSession)="&A10&"", "FG", "", "Close","5","0","PrimaryOnly",,,"False","T","EveryTick") -> 12601.75 | AA10: -0.002631578947 | AB10: =RANK(AD10,$AD$1:$AD$10)+COUNTIF($AD$1:AD10,AD10)-1 -> 10 | AC10: 2020-12-09 | AD10: =IFERROR(VLOOKUP(MAX(AE2:AE81),A1:AA81,27,FALSE),"") -> -0.01123862287 | AF10: 10 | AG10: 2020-12-09 | AH10: -0.01123862287 | AK10: 2020-12-09 | AL10: 2020-12-09 | AM10: 9 | AN10: 9
A11: 10 | B11: 09:20:00 | C11: =RTD("cqg.rtd",,"StudyData",$D$12, "Bar", "", "Time","D","-10",,,,,"T") -> 2020-12-08 | D11: 2020 | E11: =MONTH(C11) -> 12 | F11: =DAY(C11) -> 8 | G11: =RTD("cqg.rtd",,"StudyData",$D$12, "Bar", "", "Close","D","-10",,,,,"T") -> 12635 | H11: =RTD("cqg.rtd",,"StudyData", "Close("&$D$12&") when LocalYear("&$D$12&")="&$D$1&" and localMonth("&$D$12&") ="&$E$1&" and LocalDay("&$D$12&")="&$F$1&" and Barix("&$D$12&",reference:=StartOfSession)="&A11&"", "FG", "", "Close","5","0","PrimaryOnly",,,"False","T","EveryTick") -> 12703.5 | I11: 0.001576851815 | J11: =RTD("cqg.rtd",,"StudyData", "Close("&$D$12&") when LocalYear("&$D$12&")="&$D$2&" and localMonth("&$D$12&") ="&$E$2&" and LocalDay("&$D$12&")="&$F$2&" and Barix("&$D$12&",reference:=StartOfSession)="&A11&"", "FG", "", "Close","5","0","PrimaryOnly",,,"False","T","EveryTick") -> 12512 | K11: -0.01577187807 | L11: =RTD("cqg.rtd",,"StudyData", "Close("&$D$12&") when LocalYear("&$D$12&")="&$D$3&" and localMonth("&$D$12&") ="&$E$3&" and LocalDay("&$D$12&")="&$F$3&" and Barix("&$D$12&",reference:=StartOfSession)="&A11&"", "FG", "", "Close","5","0","PrimaryOnly",,,"False","T","EveryTick") -> 12715.25 | M11: -0.00280370167 | N11: =RTD("cqg.rtd",,"StudyData", "Close("&$D$12&") when LocalYear("&$D$12&")="&$D$4&" and localMonth("&$D$12&") ="&$E$4&" and LocalDay("&$D$12&")="&$F$4&" and Barix("&$D$12&",reference:=StartOfSession)="&A11&"", "FG", "", "Close","5","0","PrimaryOnly",,,"False","T","EveryTick") -> 12718 | O11: 0.003729061026 | P11: =RTD("cqg.rtd",,"StudyData", "Close("&$D$12&") when LocalYear("&$D$12&")="&$D$5&" and localMonth("&$D$12&") ="&$E$5&" and LocalDay("&$D$12&")="&$F$5&" and Barix("&$D$12&",reference:=StartOfSession)="&A11&"", "FG", "", "Close","5","0","PrimaryOnly",,,"False","T","EveryTick") -> 12592.75 | Q11: -0.0002580184185 | R11: =RTD("cqg.rtd",,"StudyData", "Close("&$D$12&") when LocalYear("&$D$12&")="&$D$6&" and localMonth("&$D$12&") ="&$E$6&" and LocalDay("&$D$12&")="&$F$6&" and Barix("&$D$12&",reference:=StartOfSession)="&A11&"", "FG", "", "Close","5","0","PrimaryOnly",,,"False","T","EveryTick") -> 12561.75 | S11: 0.007963891675 | T11: =RTD("cqg.rtd",,"StudyData", "Close("&$D$12&") when LocalYear("&$D$12&")="&$D$7&" and localMonth("&$D$12&") ="&$E$7&" and LocalDay("&$D$12&")="&$F$7&" and Barix("&$D$12&",reference:=StartOfSession)="&A11&"", "FG", "", "Close","5","0","PrimaryOnly",,,"False","T","EveryTick") -> 12542 | U11: 0.01404806662 | V11: =RTD("cqg.rtd",,"StudyData", "Close("&$D$12&") when LocalYear("&$D$12&")="&$D$8&" and localMonth("&$D$12&") ="&$E$8&" and LocalDay("&$D$12&")="&$F$8&" and Barix("&$D$12&",reference:=StartOfSession)="&A11&"", "FG", "", "Close","5","0","PrimaryOnly",,,"False","T","EveryTick") -> 12333.75 | W11: -0.005402899018 | X11: =RTD("cqg.rtd",,"StudyData", "Close("&$D$12&") when LocalYear("&$D$12&")="&$D$9&" and localMonth("&$D$12&") ="&$E$9&" and LocalDay("&$D$12&")="&$F$9&" and Barix("&$D$12&",reference:=StartOfSession)="&A11&"", "FG", "", "Close","5","0","PrimaryOnly",,,"False","T","EveryTick") -> 12400.5 | Y11: 0.002850730879 | Z11: =RTD("cqg.rtd",,"StudyData", "Close("&$D$12&") when LocalYear("&$D$12&")="&$D$10&" and localMonth("&$D$12&") ="&$E$10&" and LocalDay("&$D$12&")="&$F$10&" and Barix("&$D$12&",reference:=StartOfSession)="&A11&"", "FG", "", "Close","5","0","PrimaryOnly",,,"False","T","EveryTick") -> 12611.75 | AA11: -0.001840126632
A12: 11 | B12: 09:25:00 | D12: =MainDisplay!B5 -> ENQ | H12: =RTD("cqg.rtd",,"StudyData", "Close("&$D$12&") when LocalYear("&$D$12&")="&$D$1&" and localMonth("&$D$12&") ="&$E$1&" and LocalDay("&$D$12&")="&$F$1&" and Barix("&$D$12&",reference:=StartOfSession)="&A12&"", "FG", "", "Close","5","0","PrimaryOnly",,,"False","T","EveryTick") -> 12706 | I12: 0.001773958292 | J12: =RTD("cqg.rtd",,"StudyData", "Close("&$D$12&") when LocalYear("&$D$12&")="&$D$2&" and localMonth("&$D$12&") ="&$E$2&" and LocalDay("&$D$12&")="&$F$2&" and Barix("&$D$12&",reference:=StartOfSession)="&A12&"", "FG", "", "Close","5","0","PrimaryOnly",,,"False","T","EveryTick") -> 12506.25 | K12: -0.01622418879 | L12: =RTD("cqg.rtd",,"StudyData", "Close("&$D$12&") when LocalYear("&$D$12&")="&$D$3&" and localMonth("&$D$12&") ="&$E$3&" and LocalDay("&$D$12&")="&$F$3&" and Barix("&$D$12&",reference:=StartOfSession)="&A12&"", "FG", "", "Close","5","0","PrimaryOnly",,,"False","T","EveryTick") -> 12713 | M12: -0.002980158419 | N12: =RTD("cqg.rtd",,"StudyData", "Close("&$D$12&") when LocalYear("&$D$12&")="&$D$4&" and localMonth("&$D$12&") ="&$E$4&" and LocalDay("&$D$12&")="&$F$4&" and Barix("&$D$12&",reference:=StartOfSession)="&A12&"", "FG", "", "Close","5","0","PrimaryOnly",,,"False","T","EveryTick") -> 12737.5 | O12: 0.005268038593 | P12: =RTD("cqg.rtd",,"StudyData", "Close("&$D$12&") when LocalYear("&$D$12&")="&$D$5&" and localMonth("&$D$12&") ="&$E$5&" and LocalDay("&$D$12&")="&$F$5&" and Barix("&$D$12&",reference:=StartOfSession)="&A12&"", "FG", "", "Close","5","0","PrimaryOnly",,,"False","T","EveryTick") -> 12612.25 | Q12: 0.001290092093 | R12: =RTD("cqg.rtd",,"StudyData", "Close("&$D$12&") when LocalYear("&$D$12&")="&$D$6&" and localMonth("&$D$12&") ="&$E$6&" and LocalDay("&$D$12&")="&$F$6&" and Barix("&$D$12&",reference:=StartOfSession)="&A12&"", "FG", "", "Close","5","0","PrimaryOnly",,,"False","T","EveryTick") -> 12553 | S12: 0.007261785356 | T12: =RTD("cqg.rtd",,"StudyData", "Close("&$D$12&") when LocalYear("&$D$12&")="&$D$7&" and localMonth("&$D$12&") ="&$E$7&" and LocalDay("&$D$12&")="&$F$7&" and Barix("&$D$12&",reference:=StartOfSession)="&A12&"", "FG", "", "Close","5","0","PrimaryOnly",,,"False","T","EveryTick") -> 12537.5 | U12: 0.0136842318 | V12: =RTD("cqg.rtd",,"StudyData", "Close("&$D$12&") when LocalYear("&$D$12&")="&$D$8&" and localMonth("&$D$12&") ="&$E$8&" and LocalDay("&$D$12&")="&$F$8&" and Barix("&$D$12&",reference:=StartOfSession)="&A12&"", "FG", "", "Close","5","0","PrimaryOnly",,,"False","T","EveryTick") -> 12346.5 | W12: -0.004374735399 | X12: =RTD("cqg.rtd",,"StudyData", "Close("&$D$12&") when LocalYear("&$D$12&")="&$D$9&" and localMonth("&$D$12&") ="&$E$9&" and LocalDay("&$D$12&")="&$F$9&" and Barix("&$D$12&",reference:=StartOfSession)="&A12&"", "FG", "", "Close","5","0","PrimaryOnly",,,"False","T","EveryTick") -> 12387.25 | Y12: 0.001779179556 | Z12: =RTD("cqg.rtd",,"StudyData", "Close("&$D$12&") when LocalYear("&$D$12&")="&$D$10&" and localMonth("&$D$12&") ="&$E$10&" and LocalDay("&$D$12&")="&$F$10&" and Barix("&$D$12&",reference:=StartOfSession)="&A12&"", "FG", "", "Close","5","0","PrimaryOnly",,,"False","T","EveryTick") -> 12612.5 | AA12: -0.001780767709 | AC12: =VLOOKUP(MAX(AE2:AE81),A1:B81,2,FALSE) -> 11:55:00
A13: 12 | B13: 09:30:00 | D13: =RTD("cqg.rtd", ,"ContractData",D12, "LastQuoteToday",, "T") -> 12678.25 | G13: =C1 -> 2020-12-22 | H13: =RTD("cqg.rtd",,"StudyData", "Close("&$D$12&") when LocalYear("&$D$12&")="&$D$1&" and localMonth("&$D$12&") ="&$E$1&" and LocalDay("&$D$12&")="&$F$1&" and Barix("&$D$12&",reference:=StartOfSession)="&A13&"", "FG", "", "Close","5","0","PrimaryOnly",,,"False","T","EveryTick") -> 12729 | I13: 0.00358733788 | J13: =RTD("cqg.rtd",,"StudyData", "Close("&$D$12&") when LocalYear("&$D$12&")="&$D$2&" and localMonth("&$D$12&") ="&$E$2&" and LocalDay("&$D$12&")="&$F$2&" and Barix("&$D$12&",reference:=StartOfSession)="&A13&"", "FG", "", "Close","5","0","PrimaryOnly",,,"False","T","EveryTick") -> 12501 | K13: -0.01663716814 | L13: =RTD("cqg.rtd",,"StudyData", "Close("&$D$12&") when LocalYear("&$D$12&")="&$D$3&" and localMonth("&$D$12&") ="&$E$3&" and LocalDay("&$D$12&")="&$F$3&" and Barix("&$D$12&",reference:=StartOfSession)="&A13&"", "FG", "", "Close","5","0","PrimaryOnly",,,"False","T","EveryTick") -> 12712.75 | M13: -0.002999764724 | N13: =RTD("cqg.rtd",,"StudyData", "Close("&$D$12&") when LocalYear("&$D$12&")="&$D$4&" and localMonth("&$D$12&") ="&$E$4&" and LocalDay("&$D$12&")="&$F$4&" and Barix("&$D$12&",reference:=StartOfSession)="&A13&"", "FG", "", "Close","5","0","PrimaryOnly",,,"False","T","EveryTick") -> 12734.75 | O13: 0.005051003295 | P13: =RTD("cqg.rtd",,"StudyData", "Close("&$D$12&") when LocalYear("&$D$12&")="&$D$5&" and localMonth("&$D$12&") ="&$E$5&" and LocalDay("&$D$12&")="&$F$5&" and Barix("&$D$12&",reference:=StartOfSession)="&A13&"", "FG", "", "Close","5","0","PrimaryOnly",,,"False","T","EveryTick") -> 12622.75 | Q13: 0.00212369006 | R13: =RTD("cqg.rtd",,"StudyData", "Close("&$D$12&") when LocalYear("&$D$12&")="&$D$6&" and localMonth("&$D$12&") ="&$E$6&" and LocalDay("&$D$12&")="&$F$6&" and Barix("&$D$12&",reference:=StartOfSession)="&A13&"", "FG", "", "Close","5","0","PrimaryOnly",,,"False","T","EveryTick") -> 12562.5 | S13: 0.008024072217 | T13: =RTD("cqg.rtd",,"StudyData", "Close("&$D$12&") when LocalYear("&$D$12&")="&$D$7&" and localMonth("&$D$12&") ="&$E$7&" and LocalDay("&$D$12&")="&$F$7&" and Barix("&$D$12&",reference:=StartOfSession)="&A13&"", "FG", "", "Close","5","0","PrimaryOnly",,,"False","T","EveryTick") -> 12523.75 | U13: 0.0125725143 | V13: =RTD("cqg.rtd",,"StudyData", "Close("&$D$12&") when LocalYear("&$D$12&")="&$D$8&" and localMonth("&$D$12&") ="&$E$8&" and LocalDay("&$D$12&")="&$F$8&" and Barix("&$D$12&",reference:=StartOfSession)="&A13&"", "FG", "", "Close","5","0","PrimaryOnly",,,"False","T","EveryTick") -> 12334.75 | W13: -0.005322258734 | X13: =RTD("cqg.rtd",,"StudyData", "Close("&$D$12&") when LocalYear("&$D$12&")="&$D$9&" and localMonth("&$D$12&") ="&$E$9&" and LocalDay("&$D$12&")="&$F$9&" and Barix("&$D$12&",reference:=StartOfSession)="&A13&"", "FG", "", "Close","5","0","PrimaryOnly",,,"False","T","EveryTick") -> 12382 | Y13: 0.001354602616 | Z13: =RTD("cqg.rtd",,"StudyData", "Close("&$D$12&") when LocalYear("&$D$12&")="&$D$10&" and localMonth("&$D$12&") ="&$E$10&" and LocalDay("&$D$12&")="&$F$10&" and Barix("&$D$12&",reference:=StartOfSession)="&A13&"", "FG", "", "Close","5","0","PrimaryOnly",,,"False","T","EveryTick") -> 12611.25 | AA13: -0.001879699248
A14: 13 | B14: 09:35:00 | D14: =RTD("cqg.rtd", ,"ContractData",D12, "LongDescription",, "T") -> E-mini NASDAQ-100, Mar 21 | G14: =C2 -> 2020-12-21 | H14: =RTD("cqg.rtd",,"StudyData", "Close("&$D$12&") when LocalYear("&$D$12&")="&$D$1&" and localMonth("&$D$12&") ="&$E$1&" and LocalDay("&$D$12&")="&$F$1&" and Barix("&$D$12&",reference:=StartOfSession)="&A14&"", "FG", "", "Close","5","0","PrimaryOnly",,,"False","T","EveryTick") -> 12732 | I14: 0.003823865652 | J14: =RTD("cqg.rtd",,"StudyData", "Close("&$D$12&") when LocalYear("&$D$12&")="&$D$2&" and localMonth("&$D$12&") ="&$E$2&" and LocalDay("&$D$12&")="&$F$2&" and Barix("&$D$12&",reference:=StartOfSession)="&A14&"", "FG", "", "Close","5","0","PrimaryOnly",,,"False","T","EveryTick") -> 12494.75 | K14: -0.01712881023 | L14: =RTD("cqg.rtd",,"StudyData", "Close("&$D$12&") when LocalYear("&$D$12&")="&$D$3&" and localMonth("&$D$12&") ="&$E$3&" and LocalDay("&$D$12&")="&$F$3&" and Barix("&$D$12&",reference:=StartOfSession)="&A14&"", "FG", "", "Close","5","0","PrimaryOnly",,,"False","T","EveryTick") -> 12706.5 | M14: -0.003489922359 | N14: =RTD("cqg.rtd",,"StudyData", "Close("&$D$12&") when LocalYear("&$D$12&")="&$D$4&" and localMonth("&$D$12&") ="&$E$4&" and LocalDay("&$D$12&")="&$F$4&" and Barix("&$D$12&",reference:=StartOfSession)="&A14&"", "FG", "", "Close","5","0","PrimaryOnly",,,"False","T","EveryTick") -> 12738.75 | O14: 0.005366691001 | P14: =RTD("cqg.rtd",,"StudyData", "Close("&$D$12&") when LocalYear("&$D$12&")="&$D$5&" and localMonth("&$D$12&") ="&$E$5&" and LocalDay("&$D$12&")="&$F$5&" and Barix("&$D$12&",reference:=StartOfSession)="&A14&"", "FG", "", "Close","5","0","PrimaryOnly",,,"False","T","EveryTick") -> 12624 | Q14: 0.002222927914 | R14: =RTD("cqg.rtd",,"StudyData", "Close("&$D$12&") when LocalYear("&$D$12&")="&$D$6&" and localMonth("&$D$12&") ="&$E$6&" and LocalDay("&$D$12&")="&$F$6&" and Barix("&$D$12&",reference:=StartOfSession)="&A14&"", "FG", "", "Close","5","0","PrimaryOnly",,,"False","T","EveryTick") -> 12535 | S14: 0.005817452357 | T14: =RTD("cqg.rtd",,"StudyData", "Close("&$D$12&") when LocalYear("&$D$12&")="&$D$7&" and localMonth("&$D$12&") ="&$E$7&" and LocalDay("&$D$12&")="&$F$7&" and Barix("&$D$12&",reference:=StartOfSession)="&A14&"", "FG", "", "Close","5","0","PrimaryOnly",,,"False","T","EveryTick") -> 12532.5 | U14: 0.01327997089 | V14: =RTD("cqg.rtd",,"StudyData", "Close("&$D$12&") when LocalYear("&$D$12&")="&$D$8&" and localMonth("&$D$12&") ="&$E$8&" and LocalDay("&$D$12&")="&$F$8&" and Barix("&$D$12&",reference:=StartOfSession)="&A14&"", "FG", "", "Close","5","0","PrimaryOnly",,,"False","T","EveryTick") -> 12331.5 | W14: -0.005584339657 | X14: =RTD("cqg.rtd",,"StudyData", "Close("&$D$12&") when LocalYear("&$D$12&")="&$D$9&" and localMonth("&$D$12&") ="&$E$9&" and LocalDay("&$D$12&")="&$F$9&" and Barix("&$D$12&",reference:=StartOfSession)="&A14&"", "FG", "", "Close","5","0","PrimaryOnly",,,"False","T","EveryTick") -> 12422.75 | Y14: 0.004650128384 | Z14: =RTD("cqg.rtd",,"StudyData", "Close("&$D$12&") when LocalYear("&$D$12&")="&$D$10&" and localMonth("&$D$12&") ="&$E$10&" and LocalDay("&$D$12&")="&$F$10&" and Barix("&$D$12&",reference:=StartOfSession)="&A14&"", "FG", "", "Close","5","0","PrimaryOnly",,,"False","T","EveryTick") -> 12589.5 | AA14: -0.003601108033
A15: 14 | B15: 09:40:00 | G15: 2020-12-18 | H15: =RTD("cqg.rtd",,"StudyData", "Close("&$D$12&") when LocalYear("&$D$12&")="&$D$1&" and localMonth("&$D$12&") ="&$E$1&" and LocalDay("&$D$12&")="&$F$1&" and Barix("&$D$12&",reference:=StartOfSession)="&A15&"", "FG", "", "Close","5","0","PrimaryOnly",,,"False","T","EveryTick") -> 12718.75 | I15: 0.002779201325 | J15: =RTD("cqg.rtd",,"StudyData", "Close("&$D$12&") when LocalYear("&$D$12&")="&$D$2&" and localMonth("&$D$12&") ="&$E$2&" and LocalDay("&$D$12&")="&$F$2&" and Barix("&$D$12&",reference:=StartOfSession)="&A15&"", "FG", "", "Close","5","0","PrimaryOnly",,,"False","T","EveryTick") -> 12494.25 | K15: -0.01716814159 | L15: =RTD("cqg.rtd",,"StudyData", "Close("&$D$12&") when LocalYear("&$D$12&")="&$D$3&" and localMonth("&$D$12&") ="&$E$3&" and LocalDay("&$D$12&")="&$F$3&" and Barix("&$D$12&",reference:=StartOfSession)="&A15&"", "FG", "", "Close","5","0","PrimaryOnly",,,"False","T","EveryTick") -> 12716.75 | M15: -0.002686063838 | N15: =RTD("cqg.rtd",,"StudyData", "Close("&$D$12&") when LocalYear("&$D$12&")="&$D$4&" and localMonth("&$D$12&") ="&$E$4&" and LocalDay("&$D$12&")="&$F$4&" and Barix("&$D$12&",reference:=StartOfSession)="&A15&"", "FG", "", "Close","5","0","PrimaryOnly",,,"False","T","EveryTick") -> 12726.25 | O15: 0.00438016692 | P15: =RTD("cqg.rtd",,"StudyData", "Close("&$D$12&") when LocalYear("&$D$12&")="&$D$5&" and localMonth("&$D$12&") ="&$E$5&" and LocalDay("&$D$12&")="&$F$5&" and Barix("&$D$12&",reference:=StartOfSession)="&A15&"", "FG", "", "Close","5","0","PrimaryOnly",,,"False","T","EveryTick") -> 12630 | Q15: 0.002699269609 | R15: =RTD("cqg.rtd",,"StudyData", "Close("&$D$12&") when LocalYear("&$D$12&")="&$D$6&" and localMonth("&$D$12&") ="&$E$6&" and LocalDay("&$D$12&")="&$F$6&" and Barix("&$D$12&",reference:=StartOfSession)="&A15&"", "FG", "", "Close","5","0","PrimaryOnly",,,"False","T","EveryTick") -> 12539.75 | S15: 0.006198595787 | T15: =RTD("cqg.rtd",,"StudyData", "Close("&$D$12&") when LocalYear("&$D$12&")="&$D$7&" and localMonth("&$D$12&") ="&$E$7&" and LocalDay("&$D$12&")="&$F$7&" and Barix("&$D$12&",reference:=StartOfSession)="&A15&"", "FG", "", "Close","5","0","PrimaryOnly",,,"False","T","EveryTick") -> 12534.75 | U15: 0.0134618883 | V15: =RTD("cqg.rtd",,"StudyData", "Close("&$D$12&") when LocalYear("&$D$12&")="&$D$8&" and localMonth("&$D$12&") ="&$E$8&" and LocalDay("&$D$12&")="&$F$8&" and Barix("&$D$12&",reference:=StartOfSession)="&A15&"", "FG", "", "Close","5","0","PrimaryOnly",,,"False","T","EveryTick") -> 12331 | W15: -0.005624659799 | X15: =RTD("cqg.rtd",,"StudyData", "Close("&$D$12&") when LocalYear("&$D$12&")="&$D$9&" and localMonth("&$D$12&") ="&$E$9&" and LocalDay("&$D$12&")="&$F$9&" and Barix("&$D$12&",reference:=StartOfSession)="&A15&"", "FG", "", "Close","5","0","PrimaryOnly",,,"False","T","EveryTick") -> 12418 | Y15: 0.004265987344 | Z15: =RTD("cqg.rtd",,"StudyData", "Close("&$D$12&") when LocalYear("&$D$12&")="&$D$10&" and localMonth("&$D$12&") ="&$E$10&" and LocalDay("&$D$12&")="&$F$10&" and Barix("&$D$12&",reference:=StartOfSession)="&A15&"", "FG", "", "Close","5","0","PrimaryOnly",,,"False","T","EveryTick") -> 12597 | AA15: -0.003007518797
A16: 15 | B16: 09:45:00 | D16: =RTD("cqg.rtd", ,"ContractData",D12, "Ticksize",, "T") -> 0.25 | G16: 2020-12-17 | H16: =RTD("cqg.rtd",,"StudyData", "Close("&$D$12&") when LocalYear("&$D$12&")="&$D$1&" and localMonth("&$D$12&") ="&$E$1&" and LocalDay("&$D$12&")="&$F$1&" and Barix("&$D$12&",reference:=StartOfSession)="&A16&"", "FG", "", "Close","5","0","PrimaryOnly",,,"False","T","EveryTick") -> 12687 | I16: 0.0002759490677 | J16: =RTD("cqg.rtd",,"StudyData", "Close("&$D$12&") when LocalYear("&$D$12&")="&$D$2&" and localMonth("&$D$12&") ="&$E$2&" and LocalDay("&$D$12&")="&$F$2&" and Barix("&$D$12&",reference:=StartOfSession)="&A16&"", "FG", "", "Close","5","0","PrimaryOnly",,,"False","T","EveryTick") -> 12473.5 | K16: -0.01880039331 | L16: =RTD("cqg.rtd",,"StudyData", "Close("&$D$12&") when LocalYear("&$D$12&")="&$D$3&" and localMonth("&$D$12&") ="&$E$3&" and LocalDay("&$D$12&")="&$F$3&" and Barix("&$D$12&",reference:=StartOfSession)="&A16&"", "FG", "", "Close","5","0","PrimaryOnly",,,"False","T","EveryTick") -> 12713.25 | M16: -0.002960552114 | N16: =RTD("cqg.rtd",,"StudyData", "Close("&$D$12&") when LocalYear("&$D$12&")="&$D$4&" and localMonth("&$D$12&") ="&$E$4&" and LocalDay("&$D$12&")="&$F$4&" and Barix("&$D$12&",reference:=StartOfSession)="&A16&"", "FG", "", "Close","5","0","PrimaryOnly",,,"False","T","EveryTick") -> 12726.25 | O16: 0.00438016692 | P16: =RTD("cqg.rtd",,"StudyData", "Close("&$D$12&") when LocalYear("&$D$12&")="&$D$5&" and localMonth("&$D$12&") ="&$E$5&" and LocalDay("&$D$12&")="&$F$5&" and Barix("&$D$12&",reference:=StartOfSession)="&A16&"", "FG", "", "Close","5","0","PrimaryOnly",,,"False","T","EveryTick") -> 12627.5 | Q16: 0.002500793903 | R16: =RTD("cqg.rtd",,"StudyData", "Close("&$D$12&") when LocalYear("&$D$12&")="&$D$6&" and localMonth("&$D$12&") ="&$E$6&" and LocalDay("&$D$12&")="&$F$6&" and Barix("&$D$12&",reference:=StartOfSession)="&A16&"", "FG", "", "Close","5","0","PrimaryOnly",,,"False","T","EveryTick") -> 12539.75 | S16: 0.006198595787 | T16: =RTD("cqg.rtd",,"StudyData", "Close("&$D$12&") when LocalYear("&$D$12&")="&$D$7&" and localMonth("&$D$12&") ="&$E$7&" and LocalDay("&$D$12&")="&$F$7&" and Barix("&$D$12&",reference:=StartOfSession)="&A16&"", "FG", "", "Close","5","0","PrimaryOnly",,,"False","T","EveryTick") -> 12518.5 | U16: 0.01214804035 | V16: =RTD("cqg.rtd",,"StudyData", "Close("&$D$12&") when LocalYear("&$D$12&")="&$D$8&" and localMonth("&$D$12&") ="&$E$8&" and LocalDay("&$D$12&")="&$F$8&" and Barix("&$D$12&",reference:=StartOfSession)="&A16&"", "FG", "", "Close","5","0","PrimaryOnly",,,"False","T","EveryTick") -> 12317.25 | W16: -0.006733463702 | X16: =RTD("cqg.rtd",,"StudyData", "Close("&$D$12&") when LocalYear("&$D$12&")="&$D$9&" and localMonth("&$D$12&") ="&$E$9&" and LocalDay("&$D$12&")="&$F$9&" and Barix("&$D$12&",reference:=StartOfSession)="&A16&"", "FG", "", "Close","5","0","PrimaryOnly",,,"False","T","EveryTick") -> 12409 | Y16: 0.003538141162 | Z16: =RTD("cqg.rtd",,"StudyData", "Close("&$D$12&") when LocalYear("&$D$12&")="&$D$10&" and localMonth("&$D$12&") ="&$E$10&" and LocalDay("&$D$12&")="&$F$10&" and Barix("&$D$12&",reference:=StartOfSession)="&A16&"", "FG", "", "Close","5","0","PrimaryOnly",,,"False","T","EveryTick") -> 12614 | AA16: -0.001662049861
A17: 16 | B17: 09:50:00 | D17: =IF(D16>=1,0,IF(LEN(D16)-2=1,2,LEN(D16)-2)) -> 2 | F17: =VLOOKUP(D17,D18:E25,2,FALSE) -> #.00 | G17: 2020-12-16 | H17: =RTD("cqg.rtd",,"StudyData", "Close("&$D$12&") when LocalYear("&$D$12&")="&$D$1&" and localMonth("&$D$12&") ="&$E$1&" and LocalDay("&$D$12&")="&$F$1&" and Barix("&$D$12&",reference:=StartOfSession)="&A17&"", "FG", "", "Close","5","0","PrimaryOnly",,,"False","T","EveryTick") -> 12695.25 | I17: 0.0009264004415 | J17: =RTD("cqg.rtd",,"StudyData", "Close("&$D$12&") when LocalYear("&$D$12&")="&$D$2&" and localMonth("&$D$12&") ="&$E$2&" and LocalDay("&$D$12&")="&$F$2&" and Barix("&$D$12&",reference:=StartOfSession)="&A17&"", "FG", "", "Close","5","0","PrimaryOnly",,,"False","T","EveryTick") -> 12480 | K17: -0.01828908555 | L17: =RTD("cqg.rtd",,"StudyData", "Close("&$D$12&") when LocalYear("&$D$12&")="&$D$3&" and localMonth("&$D$12&") ="&$E$3&" and LocalDay("&$D$12&")="&$F$3&" and Barix("&$D$12&",reference:=StartOfSession)="&A17&"", "FG", "", "Close","5","0","PrimaryOnly",,,"False","T","EveryTick") -> 12709.75 | M17: -0.003235040389 | N17: =RTD("cqg.rtd",,"StudyData", "Close("&$D$12&") when LocalYear("&$D$12&")="&$D$4&" and localMonth("&$D$12&") ="&$E$4&" and LocalDay("&$D$12&")="&$F$4&" and Barix("&$D$12&",reference:=StartOfSession)="&A17&"", "FG", "", "Close","5","0","PrimaryOnly",,,"False","T","EveryTick") -> 12718.75 | O17: 0.003788252471 | P17: =RTD("cqg.rtd",,"StudyData", "Close("&$D$12&") when LocalYear("&$D$12&")="&$D$5&" and localMonth("&$D$12&") ="&$E$5&" and LocalDay("&$D$12&")="&$F$5&" and Barix("&$D$12&",reference:=StartOfSession)="&A17&"", "FG", "", "Close","5","0","PrimaryOnly",,,"False","T","EveryTick") -> 12625.5 | Q17: 0.002342013338 | R17: =RTD("cqg.rtd",,"StudyData", "Close("&$D$12&") when LocalYear("&$D$12&")="&$D$6&" and localMonth("&$D$12&") ="&$E$6&" and LocalDay("&$D$12&")="&$F$6&" and Barix("&$D$12&",reference:=StartOfSession)="&A17&"", "FG", "", "Close","5","0","PrimaryOnly",,,"False","T","EveryTick") -> 12546.25 | S17: 0.006720160481 | T17: =RTD("cqg.rtd",,"StudyData", "Close("&$D$12&") when LocalYear("&$D$12&")="&$D$7&" and localMonth("&$D$12&") ="&$E$7&" and LocalDay("&$D$12&")="&$F$7&" and Barix("&$D$12&",reference:=StartOfSession)="&A17&"", "FG", "", "Close","5","0","PrimaryOnly",,,"False","T","EveryTick") -> 12529 | U17: 0.01299698826 | V17: =RTD("cqg.rtd",,"StudyData", "Close("&$D$12&") when LocalYear("&$D$12&")="&$D$8&" and localMonth("&$D$12&") ="&$E$8&" and LocalDay("&$D$12&")="&$F$8&" and Barix("&$D$12&",reference:=StartOfSession)="&A17&"", "FG", "", "Close","5","0","PrimaryOnly",,,"False","T","EveryTick") -> 12303 | W17: -0.007882587747 | X17: =RTD("cqg.rtd",,"StudyData", "Close("&$D$12&") when LocalYear("&$D$12&")="&$D$9&" and localMonth("&$D$12&") ="&$E$9&" and LocalDay("&$D$12&")="&$F$9&" and Barix("&$D$12&",reference:=StartOfSession)="&A17&"", "FG", "", "Close","5","0","PrimaryOnly",,,"False","T","EveryTick") -> 12428.5 | Y17: 0.005115141222 | Z17: =RTD("cqg.rtd",,"StudyData", "Close("&$D$12&") when LocalYear("&$D$12&")="&$D$10&" and localMonth("&$D$12&") ="&$E$10&" and LocalDay("&$D$12&")="&$F$10&" and Barix("&$D$12&",reference:=StartOfSession)="&A17&"", "FG", "", "Close","5","0","PrimaryOnly",,,"False","T","EveryTick") -> 12607.75 | AA17: -0.002156707558
A18: 17 | B18: 09:55:00 | D18: 0 | E18: # | G18: 2020-12-15 | H18: =RTD("cqg.rtd",,"StudyData", "Close("&$D$12&") when LocalYear("&$D$12&")="&$D$1&" and localMonth("&$D$12&") ="&$E$1&" and LocalDay("&$D$12&")="&$F$1&" and Barix("&$D$12&",reference:=StartOfSession)="&A18&"", "FG", "", "Close","5","0","PrimaryOnly",,,"False","T","EveryTick") -> 12701.25 | I18: 0.001399455986 | J18: =RTD("cqg.rtd",,"StudyData", "Close("&$D$12&") when LocalYear("&$D$12&")="&$D$2&" and localMonth("&$D$12&") ="&$E$2&" and LocalDay("&$D$12&")="&$F$2&" and Barix("&$D$12&",reference:=StartOfSession)="&A18&"", "FG", "", "Close","5","0","PrimaryOnly",,,"False","T","EveryTick") -> 12495 | K18: -0.01710914454 | L18: =RTD("cqg.rtd",,"StudyData", "Close("&$D$12&") when LocalYear("&$D$12&")="&$D$3&" and localMonth("&$D$12&") ="&$E$3&" and LocalDay("&$D$12&")="&$F$3&" and Barix("&$D$12&",reference:=StartOfSession)="&A18&"", "FG", "", "Close","5","0","PrimaryOnly",,,"False","T","EveryTick") -> 12717.5 | M18: -0.002627244922 | N18: =RTD("cqg.rtd",,"StudyData", "Close("&$D$12&") when LocalYear("&$D$12&")="&$D$4&" and localMonth("&$D$12&") ="&$E$4&" and LocalDay("&$D$12&")="&$F$4&" and Barix("&$D$12&",reference:=StartOfSession)="&A18&"", "FG", "", "Close","5","0","PrimaryOnly",,,"False","T","EveryTick") -> 12704 | O18: 0.002624154056 | P18: =RTD("cqg.rtd",,"StudyData", "Close("&$D$12&") when LocalYear("&$D$12&")="&$D$5&" and localMonth("&$D$12&") ="&$E$5&" and LocalDay("&$D$12&")="&$F$5&" and Barix("&$D$12&",reference:=StartOfSession)="&A18&"", "FG", "", "Close","5","0","PrimaryOnly",,,"False","T","EveryTick") -> 12623 | Q18: 0.002143537631 | R18: =RTD("cqg.rtd",,"StudyData", "Close("&$D$12&") when LocalYear("&$D$12&")="&$D$6&" and localMonth("&$D$12&") ="&$E$6&" and LocalDay("&$D$12&")="&$F$6&" and Barix("&$D$12&",reference:=StartOfSession)="&A18&"", "FG", "", "Close","5","0","PrimaryOnly",,,"False","T","EveryTick") -> 12529 | S18: 0.005336008024 | T18: =RTD("cqg.rtd",,"StudyData", "Close("&$D$12&") when LocalYear("&$D$12&")="&$D$7&" and localMonth("&$D$12&") ="&$E$7&" and LocalDay("&$D$12&")="&$F$7&" and Barix("&$D$12&",reference:=StartOfSession)="&A18&"", "FG", "", "Close","5","0","PrimaryOnly",,,"False","T","EveryTick") -> 12506.25 | U18: 0.01115760112 | V18: =RTD("cqg.rtd",,"StudyData", "Close("&$D$12&") when LocalYear("&$D$12&")="&$D$8&" and localMonth("&$D$12&") ="&$E$8&" and LocalDay("&$D$12&")="&$F$8&" and Barix("&$D$12&",reference:=StartOfSession)="&A18&"", "FG", "", "Close","5","0","PrimaryOnly",,,"False","T","EveryTick") -> 12311.5 | W18: -0.007197145334 | X18: =RTD("cqg.rtd",,"StudyData", "Close("&$D$12&") when LocalYear("&$D$12&")="&$D$9&" and localMonth("&$D$12&") ="&$E$9&" and LocalDay("&$D$12&")="&$F$9&" and Barix("&$D$12&",reference:=StartOfSession)="&A18&"", "FG", "", "Close","5","0","PrimaryOnly",,,"False","T","EveryTick") -> 12426.75 | Y18: 0.004973615576 | Z18: =RTD("cqg.rtd",,"StudyData", "Close("&$D$12&") when LocalYear("&$D$12&")="&$D$10&" and localMonth("&$D$12&") ="&$E$10&" and LocalDay("&$D$12&")="&$F$10&" and Barix("&$D$12&",reference:=StartOfSession)="&A18&"", "FG", "", "Close","5","0","PrimaryOnly",,,"False","T","EveryTick") -> 12613.5 | AA18: -0.001701622477
A19: 18 | B19: 10:00:00 | D19: 1 | E19: #.0 | G19: 2020-12-14 | H19: =RTD("cqg.rtd",,"StudyData", "Close("&$D$12&") when LocalYear("&$D$12&")="&$D$1&" and localMonth("&$D$12&") ="&$E$1&" and LocalDay("&$D$12&")="&$F$1&" and Barix("&$D$12&",reference:=StartOfSession)="&A19&"", "FG", "", "Close","5","0","PrimaryOnly",,,"False","T","EveryTick") -> 12679.75 | I19: -0.0002956597154 | J19: =RTD("cqg.rtd",,"StudyData", "Close("&$D$12&") when LocalYear("&$D$12&")="&$D$2&" and localMonth("&$D$12&") ="&$E$2&" and LocalDay("&$D$12&")="&$F$2&" and Barix("&$D$12&",reference:=StartOfSession)="&A19&"", "FG", "", "Close","5","0","PrimaryOnly",,,"False","T","EveryTick") -> 12516.25 | K19: -0.01543756146 | L19: =RTD("cqg.rtd",,"StudyData", "Close("&$D$12&") when LocalYear("&$D$12&")="&$D$3&" and localMonth("&$D$12&") ="&$E$3&" and LocalDay("&$D$12&")="&$F$3&" and Barix("&$D$12&",reference:=StartOfSession)="&A19&"", "FG", "", "Close","5","0","PrimaryOnly",,,"False","T","EveryTick") -> 12723.25 | M19: -0.002176299898 | N19: =RTD("cqg.rtd",,"StudyData", "Close("&$D$12&") when LocalYear("&$D$12&")="&$D$4&" and localMonth("&$D$12&") ="&$E$4&" and LocalDay("&$D$12&")="&$F$4&" and Barix("&$D$12&",reference:=StartOfSession)="&A19&"", "FG", "", "Close","5","0","PrimaryOnly",,,"False","T","EveryTick") -> 12711.25 | O19: 0.003196338023 | P19: =RTD("cqg.rtd",,"StudyData", "Close("&$D$12&") when LocalYear("&$D$12&")="&$D$5&" and localMonth("&$D$12&") ="&$E$5&" and LocalDay("&$D$12&")="&$F$5&" and Barix("&$D$12&",reference:=StartOfSession)="&A19&"", "FG", "", "Close","5","0","PrimaryOnly",,,"False","T","EveryTick") -> 12636.25 | Q19: 0.003195458876 | R19: =RTD("cqg.rtd",,"StudyData", "Close("&$D$12&") when LocalYear("&$D$12&")="&$D$6&" and localMonth("&$D$12&") ="&$E$6&" and LocalDay("&$D$12&")="&$F$6&" and Barix("&$D$12&",reference:=StartOfSession)="&A19&"", "FG", "", "Close","5","0","PrimaryOnly",,,"False","T","EveryTick") -> 12503.75 | S19: 0.003309929789 | T19: =RTD("cqg.rtd",,"StudyData", "Close("&$D$12&") when LocalYear("&$D$12&")="&$D$7&" and localMonth("&$D$12&") ="&$E$7&" and LocalDay("&$D$12&")="&$F$7&" and Barix("&$D$12&",reference:=StartOfSession)="&A19&"", "FG", "", "Close","5","0","PrimaryOnly",,,"False","T","EveryTick") -> 12518.25 | U19: 0.0121278273 | V19: =RTD("cqg.rtd",,"StudyData", "Close("&$D$12&") when LocalYear("&$D$12&")="&$D$8&" and localMonth("&$D$12&") ="&$E$8&" and LocalDay("&$D$12&")="&$F$8&" and Barix("&$D$12&",reference:=StartOfSession)="&A19&"", "FG", "", "Close","5","0","PrimaryOnly",,,"False","T","EveryTick") -> 12320.25 | W19: -0.00649154285 | X19: =RTD("cqg.rtd",,"StudyData", "Close("&$D$12&") when LocalYear("&$D$12&")="&$D$9&" and localMonth("&$D$12&") ="&$E$9&" and LocalDay("&$D$12&")="&$F$9&" and Barix("&$D$12&",reference:=StartOfSession)="&A19&"", "FG", "", "Close","5","0","PrimaryOnly",,,"False","T","EveryTick") -> 12419.5 | Y19: 0.004387295041 | Z19: =RTD("cqg.rtd",,"StudyData", "Close("&$D$12&") when LocalYear("&$D$12&")="&$D$10&" and localMonth("&$D$12&") ="&$E$10&" and LocalDay("&$D$12&")="&$F$10&" and Barix("&$D$12&",reference:=StartOfSession)="&A19&"", "FG", "", "Close","5","0","PrimaryOnly",,,"False","T","EveryTick") -> 12586.25 | AA19: -0.003858330036
A20: 19 | B20: 10:05:00 | D20: 2 | E20: #.00 | G20: 2020-12-11 | H20: =RTD("cqg.rtd",,"StudyData", "Close("&$D$12&") when LocalYear("&$D$12&")="&$D$1&" and localMonth("&$D$12&") ="&$E$1&" and LocalDay("&$D$12&")="&$F$1&" and Barix("&$D$12&",reference:=StartOfSession)="&A20&"", "FG", "", "Close","5","0","PrimaryOnly",,,"False","T","EveryTick") -> 12687 | I20: 0.0002759490677 | J20: =RTD("cqg.rtd",,"StudyData", "Close("&$D$12&") when LocalYear("&$D$12&")="&$D$2&" and localMonth("&$D$12&") ="&$E$2&" and LocalDay("&$D$12&")="&$F$2&" and Barix("&$D$12&",reference:=StartOfSession)="&A20&"", "FG", "", "Close","5","0","PrimaryOnly",,,"False","T","EveryTick") -> 12511.75 | K20: -0.01579154376 | L20: =RTD("cqg.rtd",,"StudyData", "Close("&$D$12&") when LocalYear("&$D$12&")="&$D$3&" and localMonth("&$D$12&") ="&$E$3&" and LocalDay("&$D$12&")="&$F$3&" and Barix("&$D$12&",reference:=StartOfSession)="&A20&"", "FG", "", "Close","5","0","PrimaryOnly",,,"False","T","EveryTick") -> 12709.5 | M20: -0.003254646694 | N20: =RTD("cqg.rtd",,"StudyData", "Close("&$D$12&") when LocalYear("&$D$12&")="&$D$4&" and localMonth("&$D$12&") ="&$E$4&" and LocalDay("&$D$12&")="&$F$4&" and Barix("&$D$12&",reference:=StartOfSession)="&A20&"", "FG", "", "Close","5","0","PrimaryOnly",,,"False","T","EveryTick") -> 12721.75 | O20: 0.004025018251 | P20: =RTD("cqg.rtd",,"StudyData", "Close("&$D$12&") when LocalYear("&$D$12&")="&$D$5&" and localMonth("&$D$12&") ="&$E$5&" and LocalDay("&$D$12&")="&$F$5&" and Barix("&$D$12&",reference:=StartOfSession)="&A20&"", "FG", "", "Close","5","0","PrimaryOnly",,,"False","T","EveryTick") -> 12634.25 | Q20: 0.003036678311 | R20: =RTD("cqg.rtd",,"StudyData", "Close("&$D$12&") when LocalYear("&$D$12&")="&$D$6&" and localMonth("&$D$12&") ="&$E$6&" and LocalDay("&$D$12&")="&$F$6&" and Barix("&$D$12&",reference:=StartOfSession)="&A20&"", "FG", "", "Close","5","0","PrimaryOnly",,,"False","T","EveryTick") -> 12491.25 | S20: 0.002306920762 | T20: =RTD("cqg.rtd",,"StudyData", "Close("&$D$12&") when LocalYear("&$D$12&")="&$D$7&" and localMonth("&$D$12&") ="&$E$7&" and LocalDay("&$D$12&")="&$F$7&" and Barix("&$D$12&",reference:=StartOfSession)="&A20&"", "FG", "", "Close","5","0","PrimaryOnly",,,"False","T","EveryTick") -> 12500.5 | U20: 0.01069270107 | V20: =RTD("cqg.rtd",,"StudyData", "Close("&$D$12&") when LocalYear("&$D$12&")="&$D$8&" and localMonth("&$D$12&") ="&$E$8&" and LocalDay("&$D$12&")="&$F$8&" and Barix("&$D$12&",reference:=StartOfSession)="&A20&"", "FG", "", "Close","5","0","PrimaryOnly",,,"False","T","EveryTick") -> 12314 | W20: -0.006995544624 | X20: =RTD("cqg.rtd",,"StudyData", "Close("&$D$12&") when LocalYear("&$D$12&")="&$D$9&" and localMonth("&$D$12&") ="&$E$9&" and LocalDay("&$D$12&")="&$F$9&" and Barix("&$D$12&",reference:=StartOfSession)="&A20&"", "FG", "", "Close","5","0","PrimaryOnly",,,"False","T","EveryTick") -> 12418.5 | Y20: 0.004306423243 | Z20: =RTD("cqg.rtd",,"StudyData", "Close("&$D$12&") when LocalYear("&$D$12&")="&$D$10&" and localMonth("&$D$12&") ="&$E$10&" and LocalDay("&$D$12&")="&$F$10&" and Barix("&$D$12&",reference:=StartOfSession)="&A20&"", "FG", "", "Close","5","0","PrimaryOnly",,,"False","T","EveryTick") -> 12598 | AA20: -0.002928373565
A21: 20 | B21: 10:10:00 | D21: 3 | E21: #.000 | G21: 2020-12-10 | H21: =RTD("cqg.rtd",,"StudyData", "Close("&$D$12&") when LocalYear("&$D$12&")="&$D$1&" and localMonth("&$D$12&") ="&$E$1&" and LocalDay("&$D$12&")="&$F$1&" and Barix("&$D$12&",reference:=StartOfSession)="&A21&"", "FG", "", "Close","5","0","PrimaryOnly",,,"False","T","EveryTick") -> 12684.75 | I21: 9.855323846e-05 | J21: =RTD("cqg.rtd",,"StudyData", "Close("&$D$12&") when LocalYear("&$D$12&")="&$D$2&" and localMonth("&$D$12&") ="&$E$2&" and LocalDay("&$D$12&")="&$F$2&" and Barix("&$D$12&",reference:=StartOfSession)="&A21&"", "FG", "", "Close","5","0","PrimaryOnly",,,"False","T","EveryTick") -> 12520.5 | K21: -0.01510324484 | L21: =RTD("cqg.rtd",,"StudyData", "Close("&$D$12&") when LocalYear("&$D$12&")="&$D$3&" and localMonth("&$D$12&") ="&$E$3&" and LocalDay("&$D$12&")="&$F$3&" and Barix("&$D$12&",reference:=StartOfSession)="&A21&"", "FG", "", "Close","5","0","PrimaryOnly",,,"False","T","EveryTick") -> 12678.5 | M21: -0.005685828562 | N21: =RTD("cqg.rtd",,"StudyData", "Close("&$D$12&") when LocalYear("&$D$12&")="&$D$4&" and localMonth("&$D$12&") ="&$E$4&" and LocalDay("&$D$12&")="&$F$4&" and Barix("&$D$12&",reference:=StartOfSession)="&A21&"", "FG", "", "Close","5","0","PrimaryOnly",,,"False","T","EveryTick") -> 12709.5 | O21: 0.003058224651 | P21: =RTD("cqg.rtd",,"StudyData", "Close("&$D$12&") when LocalYear("&$D$12&")="&$D$5&" and localMonth("&$D$12&") ="&$E$5&" and LocalDay("&$D$12&")="&$F$5&" and Barix("&$D$12&",reference:=StartOfSession)="&A21&"", "FG", "", "Close","5","0","PrimaryOnly",,,"False","T","EveryTick") -> 12636.5 | Q21: 0.003215306446 | R21: =RTD("cqg.rtd",,"StudyData", "Close("&$D$12&") when LocalYear("&$D$12&")="&$D$6&" and localMonth("&$D$12&") ="&$E$6&" and LocalDay("&$D$12&")="&$F$6&" and Barix("&$D$12&",reference:=StartOfSession)="&A21&"", "FG", "", "Close","5","0","PrimaryOnly",,,"False","T","EveryTick") -> 12500 | S21: 0.003009027081 | T21: =RTD("cqg.rtd",,"StudyData", "Close("&$D$12&") when LocalYear("&$D$12&")="&$D$7&" and localMonth("&$D$12&") ="&$E$7&" and LocalDay("&$D$12&")="&$F$7&" and Barix("&$D$12&",reference:=StartOfSession)="&A21&"", "FG", "", "Close","5","0","PrimaryOnly",,,"False","T","EveryTick") -> 12529.25 | U21: 0.0130172013 | V21: =RTD("cqg.rtd",,"StudyData", "Close("&$D$12&") when LocalYear("&$D$12&")="&$D$8&" and localMonth("&$D$12&") ="&$E$8&" and LocalDay("&$D$12&")="&$F$8&" and Barix("&$D$12&",reference:=StartOfSession)="&A21&"", "FG", "", "Close","5","0","PrimaryOnly",,,"False","T","EveryTick") -> 12315.75 | W21: -0.006854424128 | X21: =RTD("cqg.rtd",,"StudyData", "Close("&$D$12&") when LocalYear("&$D$12&")="&$D$9&" and localMonth("&$D$12&") ="&$E$9&" and LocalDay("&$D$12&")="&$F$9&" and Barix("&$D$12&",reference:=StartOfSession)="&A21&"", "FG", "", "Close","5","0","PrimaryOnly",,,"False","T","EveryTick") -> 12422 | Y21: 0.004589474535 | Z21: =RTD("cqg.rtd",,"StudyData", "Close("&$D$12&") when LocalYear("&$D$12&")="&$D$10&" and localMonth("&$D$12&") ="&$E$10&" and LocalDay("&$D$12&")="&$F$10&" and Barix("&$D$12&",reference:=StartOfSession)="&A21&"", "FG", "", "Close","5","0","PrimaryOnly",,,"False","T","EveryTick") -> 12590 | AA21: -0.003561535417
A22: 21 | B22: 10:15:00 | D22: 4 | E22: #.0000 | G22: 2020-12-09 | H22: =RTD("cqg.rtd",,"StudyData", "Close("&$D$12&") when LocalYear("&$D$12&")="&$D$1&" and localMonth("&$D$12&") ="&$E$1&" and LocalDay("&$D$12&")="&$F$1&" and Barix("&$D$12&",reference:=StartOfSession)="&A22&"", "FG", "", "Close","5","0","PrimaryOnly",,,"False","T","EveryTick") -> 12701 | I22: 0.001379745338 | J22: =RTD("cqg.rtd",,"StudyData", "Close("&$D$12&") when LocalYear("&$D$12&")="&$D$2&" and localMonth("&$D$12&") ="&$E$2&" and LocalDay("&$D$12&")="&$F$2&" and Barix("&$D$12&",reference:=StartOfSession)="&A22&"", "FG", "", "Close","5","0","PrimaryOnly",,,"False","T","EveryTick") -> 12520 | K22: -0.0151425762 | L22: =RTD("cqg.rtd",,"StudyData", "Close("&$D$12&") when LocalYear("&$D$12&")="&$D$3&" and localMonth("&$D$12&") ="&$E$3&" and LocalDay("&$D$12&")="&$F$3&" and Barix("&$D$12&",reference:=StartOfSession)="&A22&"", "FG", "", "Close","5","0","PrimaryOnly",,,"False","T","EveryTick") -> 12676.25 | M22: -0.005862285311 | N22: =RTD("cqg.rtd",,"StudyData", "Close("&$D$12&") when LocalYear("&$D$12&")="&$D$4&" and localMonth("&$D$12&") ="&$E$4&" and LocalDay("&$D$12&")="&$F$4&" and Barix("&$D$12&",reference:=StartOfSession)="&A22&"", "FG", "", "Close","5","0","PrimaryOnly",,,"False","T","EveryTick") -> 12713.75 | O22: 0.003393642839 | P22: =RTD("cqg.rtd",,"StudyData", "Close("&$D$12&") when LocalYear("&$D$12&")="&$D$5&" and localMonth("&$D$12&") ="&$E$5&" and LocalDay("&$D$12&")="&$F$5&" and Barix("&$D$12&",reference:=StartOfSession)="&A22&"", "FG", "", "Close","5","0","PrimaryOnly",,,"False","T","EveryTick") -> 12622.5 | Q22: 0.00210384249 | R22: =RTD("cqg.rtd",,"StudyData", "Close("&$D$12&") when LocalYear("&$D$12&")="&$D$6&" and localMonth("&$D$12&") ="&$E$6&" and LocalDay("&$D$12&")="&$F$6&" and Barix("&$D$12&",reference:=StartOfSession)="&A22&"", "FG", "", "Close","5","0","PrimaryOnly",,,"False","T","EveryTick") -> 12504.75 | S22: 0.003390170512 | T22: =RTD("cqg.rtd",,"StudyData", "Close("&$D$12&") when LocalYear("&$D$12&")="&$D$7&" and localMonth("&$D$12&") ="&$E$7&" and LocalDay("&$D$12&")="&$F$7&" and Barix("&$D$12&",reference:=StartOfSession)="&A22&"", "FG", "", "Close","5","0","PrimaryOnly",,,"False","T","EveryTick") -> 12547 | U22: 0.01445232753 | V22: =RTD("cqg.rtd",,"StudyData", "Close("&$D$12&") when LocalYear("&$D$12&")="&$D$8&" and localMonth("&$D$12&") ="&$E$8&" and LocalDay("&$D$12&")="&$F$8&" and Barix("&$D$12&",reference:=StartOfSession)="&A22&"", "FG", "", "Close","5","0","PrimaryOnly",,,"False","T","EveryTick") -> 12317 | W22: -0.006753623773 | X22: =RTD("cqg.rtd",,"StudyData", "Close("&$D$12&") when LocalYear("&$D$12&")="&$D$9&" and localMonth("&$D$12&") ="&$E$9&" and LocalDay("&$D$12&")="&$F$9&" and Barix("&$D$12&",reference:=StartOfSession)="&A22&"", "FG", "", "Close","5","0","PrimaryOnly",,,"False","T","EveryTick") -> 12430 | Y22: 0.005236448919 | Z22: =RTD("cqg.rtd",,"StudyData", "Close("&$D$12&") when LocalYear("&$D$12&")="&$D$10&" and localMonth("&$D$12&") ="&$E$10&" and LocalDay("&$D$12&")="&$F$10&" and Barix("&$D$12&",reference:=StartOfSession)="&A22&"", "FG", "", "Close","5","0","PrimaryOnly",,,"False","T","EveryTick") -> 12580 | AA22: -0.004352987732
A23: 22 | B23: 10:20:00 | D23: 5 | E23: #.00000 | H23: =RTD("cqg.rtd",,"StudyData", "Close("&$D$12&") when LocalYear("&$D$12&")="&$D$1&" and localMonth("&$D$12&") ="&$E$1&" and LocalDay("&$D$12&")="&$F$1&" and Barix("&$D$12&",reference:=StartOfSession)="&A23&"", "FG", "", "Close","5","0","PrimaryOnly",,,"False","T","EveryTick") -> 12683 | I23: -3.942129538e-05 | J23: =RTD("cqg.rtd",,"StudyData", "Close("&$D$12&") when LocalYear("&$D$12&")="&$D$2&" and localMonth("&$D$12&") ="&$E$2&" and LocalDay("&$D$12&")="&$F$2&" and Barix("&$D$12&",reference:=StartOfSession)="&A23&"", "FG", "", "Close","5","0","PrimaryOnly",,,"False","T","EveryTick") -> 12543.25 | K23: -0.01331366765 | L23: =RTD("cqg.rtd",,"StudyData", "Close("&$D$12&") when LocalYear("&$D$12&")="&$D$3&" and localMonth("&$D$12&") ="&$E$3&" and LocalDay("&$D$12&")="&$F$3&" and Barix("&$D$12&",reference:=StartOfSession)="&A23&"", "FG", "", "Close","5","0","PrimaryOnly",,,"False","T","EveryTick") -> 12690 | M23: -0.004783938515 | N23: =RTD("cqg.rtd",,"StudyData", "Close("&$D$12&") when LocalYear("&$D$12&")="&$D$4&" and localMonth("&$D$12&") ="&$E$4&" and LocalDay("&$D$12&")="&$F$4&" and Barix("&$D$12&",reference:=StartOfSession)="&A23&"", "FG", "", "Close","5","0","PrimaryOnly",,,"False","T","EveryTick") -> 12721.25 | O23: 0.003985557287 | P23: =RTD("cqg.rtd",,"StudyData", "Close("&$D$12&") when LocalYear("&$D$12&")="&$D$5&" and localMonth("&$D$12&") ="&$E$5&" and LocalDay("&$D$12&")="&$F$5&" and Barix("&$D$12&",reference:=StartOfSession)="&A23&"", "FG", "", "Close","5","0","PrimaryOnly",,,"False","T","EveryTick") -> 12625.75 | Q23: 0.002361860908 | R23: =RTD("cqg.rtd",,"StudyData", "Close("&$D$12&") when LocalYear("&$D$12&")="&$D$6&" and localMonth("&$D$12&") ="&$E$6&" and LocalDay("&$D$12&")="&$F$6&" and Barix("&$D$12&",reference:=StartOfSession)="&A23&"", "FG", "", "Close","5","0","PrimaryOnly",,,"False","T","EveryTick") -> 12495.5 | S23: 0.002647943831 | T23: =RTD("cqg.rtd",,"StudyData", "Close("&$D$12&") when LocalYear("&$D$12&")="&$D$7&" and localMonth("&$D$12&") ="&$E$7&" and LocalDay("&$D$12&")="&$F$7&" and Barix("&$D$12&",reference:=StartOfSession)="&A23&"", "FG", "", "Close","5","0","PrimaryOnly",,,"False","T","EveryTick") -> 12547.75 | U23: 0.01451296667 | V23: =RTD("cqg.rtd",,"StudyData", "Close("&$D$12&") when LocalYear("&$D$12&")="&$D$8&" and localMonth("&$D$12&") ="&$E$8&" and LocalDay("&$D$12&")="&$F$8&" and Barix("&$D$12&",reference:=StartOfSession)="&A23&"", "FG", "", "Close","5","0","PrimaryOnly",,,"False","T","EveryTick") -> 12293.75 | W23: -0.008628510372 | X23: =RTD("cqg.rtd",,"StudyData", "Close("&$D$12&") when LocalYear("&$D$12&")="&$D$9&" and localMonth("&$D$12&") ="&$E$9&" and LocalDay("&$D$12&")="&$F$9&" and Barix("&$D$12&",reference:=StartOfSession)="&A23&"", "FG", "", "Close","5","0","PrimaryOnly",,,"False","T","EveryTick") -> 12443.5 | Y23: 0.006328218192 | Z23: =RTD("cqg.rtd",,"StudyData", "Close("&$D$12&") when LocalYear("&$D$12&")="&$D$10&" and localMonth("&$D$12&") ="&$E$10&" and LocalDay("&$D$12&")="&$F$10&" and Barix("&$D$12&",reference:=StartOfSession)="&A23&"", "FG", "", "Close","5","0","PrimaryOnly",,,"False","T","EveryTick") -> 12591 | AA23: -0.003482390186
A24: 23 | B24: 10:25:00 | D24: 6 | E24: #.000000 | H24: =RTD("cqg.rtd",,"StudyData", "Close("&$D$12&") when LocalYear("&$D$12&")="&$D$1&" and localMonth("&$D$12&") ="&$E$1&" and LocalDay("&$D$12&")="&$F$1&" and Barix("&$D$12&",reference:=StartOfSession)="&A24&"", "FG", "", "Close","5","0","PrimaryOnly",,,"False","T","EveryTick") -> 12682.5 | I24: -7.884259077e-05 | J24: =RTD("cqg.rtd",,"StudyData", "Close("&$D$12&") when LocalYear("&$D$12&")="&$D$2&" and localMonth("&$D$12&") ="&$E$2&" and LocalDay("&$D$12&")="&$F$2&" and Barix("&$D$12&",reference:=StartOfSession)="&A24&"", "FG", "", "Close","5","0","PrimaryOnly",,,"False","T","EveryTick") -> 12544.5 | K24: -0.01321533923 | L24: =RTD("cqg.rtd",,"StudyData", "Close("&$D$12&") when LocalYear("&$D$12&")="&$D$3&" and localMonth("&$D$12&") ="&$E$3&" and LocalDay("&$D$12&")="&$F$3&" and Barix("&$D$12&",reference:=StartOfSession)="&A24&"", "FG", "", "Close","5","0","PrimaryOnly",,,"False","T","EveryTick") -> 12689 | M24: -0.004862363736 | N24: =RTD("cqg.rtd",,"StudyData", "Close("&$D$12&") when LocalYear("&$D$12&")="&$D$4&" and localMonth("&$D$12&") ="&$E$4&" and LocalDay("&$D$12&")="&$F$4&" and Barix("&$D$12&",reference:=StartOfSession)="&A24&"", "FG", "", "Close","5","0","PrimaryOnly",,,"False","T","EveryTick") -> 12724.5 | O24: 0.004242053549 | P24: =RTD("cqg.rtd",,"StudyData", "Close("&$D$12&") when LocalYear("&$D$12&")="&$D$5&" and localMonth("&$D$12&") ="&$E$5&" and LocalDay("&$D$12&")="&$F$5&" and Barix("&$D$12&",reference:=StartOfSession)="&A24&"", "FG", "", "Close","5","0","PrimaryOnly",,,"False","T","EveryTick") -> 12633 | Q24: 0.002937440457 | R24: =RTD("cqg.rtd",,"StudyData", "Close("&$D$12&") when LocalYear("&$D$12&")="&$D$6&" and localMonth("&$D$12&") ="&$E$6&" and LocalDay("&$D$12&")="&$F$6&" and Barix("&$D$12&",reference:=StartOfSession)="&A24&"", "FG", "", "Close","5","0","PrimaryOnly",,,"False","T","EveryTick") -> 12494 | S24: 0.002527582748 | T24: =RTD("cqg.rtd",,"StudyData", "Close("&$D$12&") when LocalYear("&$D$12&")="&$D$7&" and localMonth("&$D$12&") ="&$E$7&" and LocalDay("&$D$12&")="&$F$7&" and Barix("&$D$12&",reference:=StartOfSession)="&A24&"", "FG", "", "Close","5","0","PrimaryOnly",,,"False","T","EveryTick") -> 12528.5 | U24: 0.01295656217 | V24: =RTD("cqg.rtd",,"StudyData", "Close("&$D$12&") when LocalYear("&$D$12&")="&$D$8&" and localMonth("&$D$12&") ="&$E$8&" and LocalDay("&$D$12&")="&$F$8&" and Barix("&$D$12&",reference:=StartOfSession)="&A24&"", "FG", "", "Close","5","0","PrimaryOnly",,,"False","T","EveryTick") -> 12283.5 | W24: -0.009455073282 | X24: =RTD("cqg.rtd",,"StudyData", "Close("&$D$12&") when LocalYear("&$D$12&")="&$D$9&" and localMonth("&$D$12&") ="&$E$9&" and LocalDay("&$D$12&")="&$F$9&" and Barix("&$D$12&",reference:=StartOfSession)="&A24&"", "FG", "", "Close","5","0","PrimaryOnly",,,"False","T","EveryTick") -> 12433.25 | Y24: 0.005499282263 | Z24: =RTD("cqg.rtd",,"StudyData", "Close("&$D$12&") when LocalYear("&$D$12&")="&$D$10&" and localMonth("&$D$12&") ="&$E$10&" and LocalDay("&$D$12&")="&$F$10&" and Barix("&$D$12&",reference:=StartOfSession)="&A24&"", "FG", "", "Close","5","0","PrimaryOnly",,,"False","T","EveryTick") -> 12600.25 | AA24: -0.002750296795
A25: 24 | B25: 10:30:00 | D25: 7 | E25: #.0000000 | H25: =RTD("cqg.rtd",,"StudyData", "Close("&$D$12&") when LocalYear("&$D$12&")="&$D$1&" and localMonth("&$D$12&") ="&$E$1&" and LocalDay("&$D$12&")="&$F$1&" and Barix("&$D$12&",reference:=StartOfSession)="&A25&"", "FG", "", "Close","5","0","PrimaryOnly",,,"False","T","EveryTick") -> 12640.5 | I25: -0.003390231403 | J25: =RTD("cqg.rtd",,"StudyData", "Close("&$D$12&") when LocalYear("&$D$12&")="&$D$2&" and localMonth("&$D$12&") ="&$E$2&" and LocalDay("&$D$12&")="&$F$2&" and Barix("&$D$12&",reference:=StartOfSession)="&A25&"", "FG", "", "Close","5","0","PrimaryOnly",,,"False","T","EveryTick") -> 12556 | K25: -0.0123107178 | L25: =RTD("cqg.rtd",,"StudyData", "Close("&$D$12&") when LocalYear("&$D$12&")="&$D$3&" and localMonth("&$D$12&") ="&$E$3&" and LocalDay("&$D$12&")="&$F$3&" and Barix("&$D$12&",reference:=StartOfSession)="&A25&"", "FG", "", "Close","5","0","PrimaryOnly",,,"False","T","EveryTick") -> 12693.5 | M25: -0.004509450239 | N25: =RTD("cqg.rtd",,"StudyData", "Close("&$D$12&") when LocalYear("&$D$12&")="&$D$4&" and localMonth("&$D$12&") ="&$E$4&" and LocalDay("&$D$12&")="&$F$4&" and Barix("&$D$12&",reference:=StartOfSession)="&A25&"", "FG", "", "Close","5","0","PrimaryOnly",,,"False","T","EveryTick") -> 12719.25 | O25: 0.003827713434 | P25: =RTD("cqg.rtd",,"StudyData", "Close("&$D$12&") when LocalYear("&$D$12&")="&$D$5&" and localMonth("&$D$12&") ="&$E$5&" and LocalDay("&$D$12&")="&$F$5&" and Barix("&$D$12&",reference:=StartOfSession)="&A25&"", "FG", "", "Close","5","0","PrimaryOnly",,,"False","T","EveryTick") -> 12643.5 | Q25: 0.003771038425 | R25: =RTD("cqg.rtd",,"StudyData", "Close("&$D$12&") when LocalYear("&$D$12&")="&$D$6&" and localMonth("&$D$12&") ="&$E$6&" and LocalDay("&$D$12&")="&$F$6&" and Barix("&$D$12&",reference:=StartOfSession)="&A25&"", "FG", "", "Close","5","0","PrimaryOnly",,,"False","T","EveryTick") -> 12502 | S25: 0.003169508526 | T25: =RTD("cqg.rtd",,"StudyData", "Close("&$D$12&") when LocalYear("&$D$12&")="&$D$7&" and localMonth("&$D$12&") ="&$E$7&" and LocalDay("&$D$12&")="&$F$7&" and Barix("&$D$12&",reference:=StartOfSession)="&A25&"", "FG", "", "Close","5","0","PrimaryOnly",,,"False","T","EveryTick") -> 12516 | U25: 0.01194590989 | V25: =RTD("cqg.rtd",,"StudyData", "Close("&$D$12&") when LocalYear("&$D$12&")="&$D$8&" and localMonth("&$D$12&") ="&$E$8&" and LocalDay("&$D$12&")="&$F$8&" and Barix("&$D$12&",reference:=StartOfSession)="&A25&"", "FG", "", "Close","5","0","PrimaryOnly",,,"False","T","EveryTick") -> 12289.75 | W25: -0.008951071508 | X25: =RTD("cqg.rtd",,"StudyData", "Close("&$D$12&") when LocalYear("&$D$12&")="&$D$9&" and localMonth("&$D$12&") ="&$E$9&" and LocalDay("&$D$12&")="&$F$9&" and Barix("&$D$12&",reference:=StartOfSession)="&A25&"", "FG", "", "Close","5","0","PrimaryOnly",,,"False","T","EveryTick") -> 12428.25 | Y25: 0.005094923273 | Z25: =RTD("cqg.rtd",,"StudyData", "Close("&$D$12&") when LocalYear("&$D$12&")="&$D$10&" and localMonth("&$D$12&") ="&$E$10&" and LocalDay("&$D$12&")="&$F$10&" and Barix("&$D$12&",reference:=StartOfSession)="&A25&"", "FG", "", "Close","5","0","PrimaryOnly",,,"False","T","EveryTick") -> 12581 | AA25: -0.004273842501
A26: 25 | B26: 10:35:00 | H26: =RTD("cqg.rtd",,"StudyData", "Close("&$D$12&") when LocalYear("&$D$12&")="&$D$1&" and localMonth("&$D$12&") ="&$E$1&" and LocalDay("&$D$12&")="&$F$1&" and Barix("&$D$12&",reference:=StartOfSession)="&A26&"", "FG", "", "Close","5","0","PrimaryOnly",,,"False","T","EveryTick") -> 12631 | I26: -0.004139236015 | J26: =RTD("cqg.rtd",,"StudyData", "Close("&$D$12&") when LocalYear("&$D$12&")="&$D$2&" and localMonth("&$D$12&") ="&$E$2&" and LocalDay("&$D$12&")="&$F$2&" and Barix("&$D$12&",reference:=StartOfSession)="&A26&"", "FG", "", "Close","5","0","PrimaryOnly",,,"False","T","EveryTick") -> 12575.25 | K26: -0.01079646018 | L26: =RTD("cqg.rtd",,"StudyData", "Close("&$D$12&") when LocalYear("&$D$12&")="&$D$3&" and localMonth("&$D$12&") ="&$E$3&" and LocalDay("&$D$12&")="&$F$3&" and Barix("&$D$12&",reference:=StartOfSession)="&A26&"", "FG", "", "Close","5","0","PrimaryOnly",,,"False","T","EveryTick") -> 12692.5 | M26: -0.004587875461 | N26: =RTD("cqg.rtd",,"StudyData", "Close("&$D$12&") when LocalYear("&$D$12&")="&$D$4&" and localMonth("&$D$12&") ="&$E$4&" and LocalDay("&$D$12&")="&$F$4&" and Barix("&$D$12&",reference:=StartOfSession)="&A26&"", "FG", "", "Close","5","0","PrimaryOnly",,,"False","T","EveryTick") -> 12710.5 | O26: 0.003137146578 | P26: =RTD("cqg.rtd",,"StudyData", "Close("&$D$12&") when LocalYear("&$D$12&")="&$D$5&" and localMonth("&$D$12&") ="&$E$5&" and LocalDay("&$D$12&")="&$F$5&" and Barix("&$D$12&",reference:=StartOfSession)="&A26&"", "FG", "", "Close","5","0","PrimaryOnly",,,"False","T","EveryTick") -> 12645.75 | Q26: 0.003949666561 | R26: =RTD("cqg.rtd",,"StudyData", "Close("&$D$12&") when LocalYear("&$D$12&")="&$D$6&" and localMonth("&$D$12&") ="&$E$6&" and LocalDay("&$D$12&")="&$F$6&" and Barix("&$D$12&",reference:=StartOfSession)="&A26&"", "FG", "", "Close","5","0","PrimaryOnly",,,"False","T","EveryTick") -> 12509 | S26: 0.003731193581 | T26: =RTD("cqg.rtd",,"StudyData", "Close("&$D$12&") when LocalYear("&$D$12&")="&$D$7&" and localMonth("&$D$12&") ="&$E$7&" and LocalDay("&$D$12&")="&$F$7&" and Barix("&$D$12&",reference:=StartOfSession)="&A26&"", "FG", "", "Close","5","0","PrimaryOnly",,,"False","T","EveryTick") -> 12513.5 | U26: 0.01174377944 | V26: =RTD("cqg.rtd",,"StudyData", "Close("&$D$12&") when LocalYear("&$D$12&")="&$D$8&" and localMonth("&$D$12&") ="&$E$8&" and LocalDay("&$D$12&")="&$F$8&" and Barix("&$D$12&",reference:=StartOfSession)="&A26&"", "FG", "", "Close","5","0","PrimaryOnly",,,"False","T","EveryTick") -> 12269 | W26: -0.0106243574 | X26: =RTD("cqg.rtd",,"StudyData", "Close("&$D$12&") when LocalYear("&$D$12&")="&$D$9&" and localMonth("&$D$12&") ="&$E$9&" and LocalDay("&$D$12&")="&$F$9&" and Barix("&$D$12&",reference:=StartOfSession)="&A26&"", "FG", "", "Close","5","0","PrimaryOnly",,,"False","T","EveryTick") -> 12418 | Y26: 0.004265987344 | Z26: =RTD("cqg.rtd",,"StudyData", "Close("&$D$12&") when LocalYear("&$D$12&")="&$D$10&" and localMonth("&$D$12&") ="&$E$10&" and LocalDay("&$D$12&")="&$F$10&" and Barix("&$D$12&",reference:=StartOfSession)="&A26&"", "FG", "", "Close","5","0","PrimaryOnly",,,"False","T","EveryTick") -> 12592.75 | AA26: -0.003343886031
A27: 26 | B27: 10:40:00 | H27: =RTD("cqg.rtd",,"StudyData", "Close("&$D$12&") when LocalYear("&$D$12&")="&$D$1&" and localMonth("&$D$12&") ="&$E$1&" and LocalDay("&$D$12&")="&$F$1&" and Barix("&$D$12&",reference:=StartOfSession)="&A27&"", "FG", "", "Close","5","0","PrimaryOnly",,,"False","T","EveryTick") -> 12608.75 | I27: -0.00589348366 | J27: =RTD("cqg.rtd",,"StudyData", "Close("&$D$12&") when LocalYear("&$D$12&")="&$D$2&" and localMonth("&$D$12&") ="&$E$2&" and LocalDay("&$D$12&")="&$F$2&" and Barix("&$D$12&",reference:=StartOfSession)="&A27&"", "FG", "", "Close","5","0","PrimaryOnly",,,"False","T","EveryTick") -> 12583.25 | K27: -0.01016715831 | L27: =RTD("cqg.rtd",,"StudyData", "Close("&$D$12&") when LocalYear("&$D$12&")="&$D$3&" and localMonth("&$D$12&") ="&$E$3&" and LocalDay("&$D$12&")="&$F$3&" and Barix("&$D$12&",reference:=StartOfSession)="&A27&"", "FG", "", "Close","5","0","PrimaryOnly",,,"False","T","EveryTick") -> 12698 | M27: -0.004156536742 | N27: =RTD("cqg.rtd",,"StudyData", "Close("&$D$12&") when LocalYear("&$D$12&")="&$D$4&" and localMonth("&$D$12&") ="&$E$4&" and LocalDay("&$D$12&")="&$F$4&" and Barix("&$D$12&",reference:=StartOfSession)="&A27&"", "FG", "", "Close","5","0","PrimaryOnly",,,"False","T","EveryTick") -> 12709.75 | O27: 0.003077955133 | P27: =RTD("cqg.rtd",,"StudyData", "Close("&$D$12&") when LocalYear("&$D$12&")="&$D$5&" and localMonth("&$D$12&") ="&$E$5&" and LocalDay("&$D$12&")="&$F$5&" and Barix("&$D$12&",reference:=StartOfSession)="&A27&"", "FG", "", "Close","5","0","PrimaryOnly",,,"False","T","EveryTick") -> 12644.25 | Q27: 0.003830581137 | R27: =RTD("cqg.rtd",,"StudyData", "Close("&$D$12&") when LocalYear("&$D$12&")="&$D$6&" and localMonth("&$D$12&") ="&$E$6&" and LocalDay("&$D$12&")="&$F$6&" and Barix("&$D$12&",reference:=StartOfSession)="&A27&"", "FG", "", "Close","5","0","PrimaryOnly",,,"False","T","EveryTick") -> 12509.25 | S27: 0.003751253761 | T27: =RTD("cqg.rtd",,"StudyData", "Close("&$D$12&") when LocalYear("&$D$12&")="&$D$7&" and localMonth("&$D$12&") ="&$E$7&" and LocalDay("&$D$12&")="&$F$7&" and Barix("&$D$12&",reference:=StartOfSession)="&A27&"", "FG", "", "Close","5","0","PrimaryOnly",,,"False","T","EveryTick") -> 12514.5 | U27: 0.01182463162 | V27: =RTD("cqg.rtd",,"StudyData", "Close("&$D$12&") when LocalYear("&$D$12&")="&$D$8&" and localMonth("&$D$12&") ="&$E$8&" and LocalDay("&$D$12&")="&$F$8&" and Barix("&$D$12&",reference:=StartOfSession)="&A27&"", "FG", "", "Close","5","0","PrimaryOnly",,,"False","T","EveryTick") -> 12261.5 | W27: -0.01122915953 | X27: =RTD("cqg.rtd",,"StudyData", "Close("&$D$12&") when LocalYear("&$D$12&")="&$D$9&" and localMonth("&$D$12&") ="&$E$9&" and LocalDay("&$D$12&")="&$F$9&" and Barix("&$D$12&",reference:=StartOfSession)="&A27&"", "FG", "", "Close","5","0","PrimaryOnly",,,"False","T","EveryTick") -> 12418.5 | Y27: 0.004306423243 | Z27: =RTD("cqg.rtd",,"StudyData", "Close("&$D$12&") when LocalYear("&$D$12&")="&$D$10&" and localMonth("&$D$12&") ="&$E$10&" and LocalDay("&$D$12&")="&$F$10&" and Barix("&$D$12&",reference:=StartOfSession)="&A27&"", "FG", "", "Close","5","0","PrimaryOnly",,,"False","T","EveryTick") -> 12584.25 | AA27: -0.004016620499
A28: 27 | B28: 10:45:00 | H28: =RTD("cqg.rtd",,"StudyData", "Close("&$D$12&") when LocalYear("&$D$12&")="&$D$1&" and localMonth("&$D$12&") ="&$E$1&" and LocalDay("&$D$12&")="&$F$1&" and Barix("&$D$12&",reference:=StartOfSession)="&A28&"", "FG", "", "Close","5","0","PrimaryOnly",,,"False","T","EveryTick") -> 12628 | I28: -0.004375763788 | J28: =RTD("cqg.rtd",,"StudyData", "Close("&$D$12&") when LocalYear("&$D$12&")="&$D$2&" and localMonth("&$D$12&") ="&$E$2&" and LocalDay("&$D$12&")="&$F$2&" and Barix("&$D$12&",reference:=StartOfSession)="&A28&"", "FG", "", "Close","5","0","PrimaryOnly",,,"False","T","EveryTick") -> 12592 | K28: -0.00947885939 | L28: =RTD("cqg.rtd",,"StudyData", "Close("&$D$12&") when LocalYear("&$D$12&")="&$D$3&" and localMonth("&$D$12&") ="&$E$3&" and LocalDay("&$D$12&")="&$F$3&" and Barix("&$D$12&",reference:=StartOfSession)="&A28&"", "FG", "", "Close","5","0","PrimaryOnly",,,"False","T","EveryTick") -> 12697.5 | M28: -0.004195749353 | N28: =RTD("cqg.rtd",,"StudyData", "Close("&$D$12&") when LocalYear("&$D$12&")="&$D$4&" and localMonth("&$D$12&") ="&$E$4&" and LocalDay("&$D$12&")="&$F$4&" and Barix("&$D$12&",reference:=StartOfSession)="&A28&"", "FG", "", "Close","5","0","PrimaryOnly",,,"False","T","EveryTick") -> 12698.25 | O28: 0.002170352978 | P28: =RTD("cqg.rtd",,"StudyData", "Close("&$D$12&") when LocalYear("&$D$12&")="&$D$5&" and localMonth("&$D$12&") ="&$E$5&" and LocalDay("&$D$12&")="&$F$5&" and Barix("&$D$12&",reference:=StartOfSession)="&A28&"", "FG", "", "Close","5","0","PrimaryOnly",,,"False","T","EveryTick") -> 12648.25 | Q28: 0.004148142267 | R28: =RTD("cqg.rtd",,"StudyData", "Close("&$D$12&") when LocalYear("&$D$12&")="&$D$6&" and localMonth("&$D$12&") ="&$E$6&" and LocalDay("&$D$12&")="&$F$6&" and Barix("&$D$12&",reference:=StartOfSession)="&A28&"", "FG", "", "Close","5","0","PrimaryOnly",,,"False","T","EveryTick") -> 12488.5 | S28: 0.002086258776 | T28: =RTD("cqg.rtd",,"StudyData", "Close("&$D$12&") when LocalYear("&$D$12&")="&$D$7&" and localMonth("&$D$12&") ="&$E$7&" and LocalDay("&$D$12&")="&$F$7&" and Barix("&$D$12&",reference:=StartOfSession)="&A28&"", "FG", "", "Close","5","0","PrimaryOnly",,,"False","T","EveryTick") -> 12525.5 | U28: 0.01271400562 | V28: =RTD("cqg.rtd",,"StudyData", "Close("&$D$12&") when LocalYear("&$D$12&")="&$D$8&" and localMonth("&$D$12&") ="&$E$8&" and LocalDay("&$D$12&")="&$F$8&" and Barix("&$D$12&",reference:=StartOfSession)="&A28&"", "FG", "", "Close","5","0","PrimaryOnly",,,"False","T","EveryTick") -> 12273.25 | W28: -0.01028163619 | X28: =RTD("cqg.rtd",,"StudyData", "Close("&$D$12&") when LocalYear("&$D$12&")="&$D$9&" and localMonth("&$D$12&") ="&$E$9&" and LocalDay("&$D$12&")="&$F$9&" and Barix("&$D$12&",reference:=StartOfSession)="&A28&"", "FG", "", "Close","5","0","PrimaryOnly",,,"False","T","EveryTick") -> 12408.75 | Y28: 0.003517923212 | Z28: =RTD("cqg.rtd",,"StudyData", "Close("&$D$12&") when LocalYear("&$D$12&")="&$D$10&" and localMonth("&$D$12&") ="&$E$10&" and LocalDay("&$D$12&")="&$F$10&" and Barix("&$D$12&",reference:=StartOfSession)="&A28&"", "FG", "", "Close","5","0","PrimaryOnly",,,"False","T","EveryTick") -> 12573.5 | AA28: -0.004867431737
A29: 28 | B29: 10:50:00 | H29: =RTD("cqg.rtd",,"StudyData", "Close("&$D$12&") when LocalYear("&$D$12&")="&$D$1&" and localMonth("&$D$12&") ="&$E$1&" and LocalDay("&$D$12&")="&$F$1&" and Barix("&$D$12&",reference:=StartOfSession)="&A29&"", "FG", "", "Close","5","0","PrimaryOnly",,,"False","T","EveryTick") -> 12637.25 | I29: -0.003646469823 | J29: =RTD("cqg.rtd",,"StudyData", "Close("&$D$12&") when LocalYear("&$D$12&")="&$D$2&" and localMonth("&$D$12&") ="&$E$2&" and LocalDay("&$D$12&")="&$F$2&" and Barix("&$D$12&",reference:=StartOfSession)="&A29&"", "FG", "", "Close","5","0","PrimaryOnly",,,"False","T","EveryTick") -> 12584.75 | K29: -0.01004916421 | L29: =RTD("cqg.rtd",,"StudyData", "Close("&$D$12&") when LocalYear("&$D$12&")="&$D$3&" and localMonth("&$D$12&") ="&$E$3&" and LocalDay("&$D$12&")="&$F$3&" and Barix("&$D$12&",reference:=StartOfSession)="&A29&"", "FG", "", "Close","5","0","PrimaryOnly",,,"False","T","EveryTick") -> 12698.25 | M29: -0.004136930437 | N29: =RTD("cqg.rtd",,"StudyData", "Close("&$D$12&") when LocalYear("&$D$12&")="&$D$4&" and localMonth("&$D$12&") ="&$E$4&" and LocalDay("&$D$12&")="&$F$4&" and Barix("&$D$12&",reference:=StartOfSession)="&A29&"", "FG", "", "Close","5","0","PrimaryOnly",,,"False","T","EveryTick") -> 12689 | O29: 0.001440325158 | P29: =RTD("cqg.rtd",,"StudyData", "Close("&$D$12&") when LocalYear("&$D$12&")="&$D$5&" and localMonth("&$D$12&") ="&$E$5&" and LocalDay("&$D$12&")="&$F$5&" and Barix("&$D$12&",reference:=StartOfSession)="&A29&"", "FG", "", "Close","5","0","PrimaryOnly",,,"False","T","EveryTick") -> 12653 | Q29: 0.00452524611 | R29: =RTD("cqg.rtd",,"StudyData", "Close("&$D$12&") when LocalYear("&$D$12&")="&$D$6&" and localMonth("&$D$12&") ="&$E$6&" and LocalDay("&$D$12&")="&$F$6&" and Barix("&$D$12&",reference:=StartOfSession)="&A29&"", "FG", "", "Close","5","0","PrimaryOnly",,,"False","T","EveryTick") -> 12485.5 | S29: 0.00184553661 | T29: =RTD("cqg.rtd",,"StudyData", "Close("&$D$12&") when LocalYear("&$D$12&")="&$D$7&" and localMonth("&$D$12&") ="&$E$7&" and LocalDay("&$D$12&")="&$F$7&" and Barix("&$D$12&",reference:=StartOfSession)="&A29&"", "FG", "", "Close","5","0","PrimaryOnly",,,"False","T","EveryTick") -> 12536.25 | U29: 0.01358316658 | V29: =RTD("cqg.rtd",,"StudyData", "Close("&$D$12&") when LocalYear("&$D$12&")="&$D$8&" and localMonth("&$D$12&") ="&$E$8&" and LocalDay("&$D$12&")="&$F$8&" and Barix("&$D$12&",reference:=StartOfSession)="&A29&"", "FG", "", "Close","5","0","PrimaryOnly",,,"False","T","EveryTick") -> 12274.75 | W29: -0.01016067577 | X29: =RTD("cqg.rtd",,"StudyData", "Close("&$D$12&") when LocalYear("&$D$12&")="&$D$9&" and localMonth("&$D$12&") ="&$E$9&" and LocalDay("&$D$12&")="&$F$9&" and Barix("&$D$12&",reference:=StartOfSession)="&A29&"", "FG", "", "Close","5","0","PrimaryOnly",,,"False","T","EveryTick") -> 12391.5 | Y29: 0.002122884697 | Z29: =RTD("cqg.rtd",,"StudyData", "Close("&$D$12&") when LocalYear("&$D$12&")="&$D$10&" and localMonth("&$D$12&") ="&$E$10&" and LocalDay("&$D$12&")="&$F$10&" and Barix("&$D$12&",reference:=StartOfSession)="&A29&"", "FG", "", "Close","5","0","PrimaryOnly",,,"False","T","EveryTick") -> 12579.25 | AA29: -0.004412346656
A30: 29 | B30: 10:55:00 | H30: =RTD("cqg.rtd",,"StudyData", "Close("&$D$12&") when LocalYear("&$D$12&")="&$D$1&" and localMonth("&$D$12&") ="&$E$1&" and LocalDay("&$D$12&")="&$F$1&" and Barix("&$D$12&",reference:=StartOfSession)="&A30&"", "FG", "", "Close","5","0","PrimaryOnly",,,"False","T","EveryTick") -> 12655 | I30: -0.002247013837 | J30: =RTD("cqg.rtd",,"StudyData", "Close("&$D$12&") when LocalYear("&$D$12&")="&$D$2&" and localMonth("&$D$12&") ="&$E$2&" and LocalDay("&$D$12&")="&$F$2&" and Barix("&$D$12&",reference:=StartOfSession)="&A30&"", "FG", "", "Close","5","0","PrimaryOnly",,,"False","T","EveryTick") -> 12582.25 | K30: -0.01024582104 | L30: =RTD("cqg.rtd",,"StudyData", "Close("&$D$12&") when LocalYear("&$D$12&")="&$D$3&" and localMonth("&$D$12&") ="&$E$3&" and LocalDay("&$D$12&")="&$F$3&" and Barix("&$D$12&",reference:=StartOfSession)="&A30&"", "FG", "", "Close","5","0","PrimaryOnly",,,"False","T","EveryTick") -> 12693 | M30: -0.00454866285 | N30: =RTD("cqg.rtd",,"StudyData", "Close("&$D$12&") when LocalYear("&$D$12&")="&$D$4&" and localMonth("&$D$12&") ="&$E$4&" and LocalDay("&$D$12&")="&$F$4&" and Barix("&$D$12&",reference:=StartOfSession)="&A30&"", "FG", "", "Close","5","0","PrimaryOnly",,,"False","T","EveryTick") -> 12713.25 | O30: 0.003354181876 | P30: =RTD("cqg.rtd",,"StudyData", "Close("&$D$12&") when LocalYear("&$D$12&")="&$D$5&" and localMonth("&$D$12&") ="&$E$5&" and LocalDay("&$D$12&")="&$F$5&" and Barix("&$D$12&",reference:=StartOfSession)="&A30&"", "FG", "", "Close","5","0","PrimaryOnly",,,"False","T","EveryTick") -> 12654 | Q30: 0.004604636393 | R30: =RTD("cqg.rtd",,"StudyData", "Close("&$D$12&") when LocalYear("&$D$12&")="&$D$6&" and localMonth("&$D$12&") ="&$E$6&" and LocalDay("&$D$12&")="&$F$6&" and Barix("&$D$12&",reference:=StartOfSession)="&A30&"", "FG", "", "Close","5","0","PrimaryOnly",,,"False","T","EveryTick") -> 12503.75 | S30: 0.003309929789 | T30: =RTD("cqg.rtd",,"StudyData", "Close("&$D$12&") when LocalYear("&$D$12&")="&$D$7&" and localMonth("&$D$12&") ="&$E$7&" and LocalDay("&$D$12&")="&$F$7&" and Barix("&$D$12&",reference:=StartOfSession)="&A30&"", "FG", "", "Close","5","0","PrimaryOnly",,,"False","T","EveryTick") -> 12537.5 | U30: 0.0136842318 | V30: =RTD("cqg.rtd",,"StudyData", "Close("&$D$12&") when LocalYear("&$D$12&")="&$D$8&" and localMonth("&$D$12&") ="&$E$8&" and LocalDay("&$D$12&")="&$F$8&" and Barix("&$D$12&",reference:=StartOfSession)="&A30&"", "FG", "", "Close","5","0","PrimaryOnly",,,"False","T","EveryTick") -> 12278 | W30: -0.009898594843 | X30: =RTD("cqg.rtd",,"StudyData", "Close("&$D$12&") when LocalYear("&$D$12&")="&$D$9&" and localMonth("&$D$12&") ="&$E$9&" and LocalDay("&$D$12&")="&$F$9&" and Barix("&$D$12&",reference:=StartOfSession)="&A30&"", "FG", "", "Close","5","0","PrimaryOnly",,,"False","T","EveryTick") -> 12382.5 | Y30: 0.001395038515 | Z30: =RTD("cqg.rtd",,"StudyData", "Close("&$D$12&") when LocalYear("&$D$12&")="&$D$10&" and localMonth("&$D$12&") ="&$E$10&" and LocalDay("&$D$12&")="&$F$10&" and Barix("&$D$12&",reference:=StartOfSession)="&A30&"", "FG", "", "Close","5","0","PrimaryOnly",,,"False","T","EveryTick") -> 12588.5 | AA30: -0.003680253265
A31: 30 | B31: 11:00:00 | H31: =RTD("cqg.rtd",,"StudyData", "Close("&$D$12&") when LocalYear("&$D$12&")="&$D$1&" and localMonth("&$D$12&") ="&$E$1&" and LocalDay("&$D$12&")="&$F$1&" and Barix("&$D$12&",reference:=StartOfSession)="&A31&"", "FG", "", "Close","5","0","PrimaryOnly",,,"False","T","EveryTick") -> 12668 | I31: -0.001222060157 | J31: =RTD("cqg.rtd",,"StudyData", "Close("&$D$12&") when LocalYear("&$D$12&")="&$D$2&" and localMonth("&$D$12&") ="&$E$2&" and LocalDay("&$D$12&")="&$F$2&" and Barix("&$D$12&",reference:=StartOfSession)="&A31&"", "FG", "", "Close","5","0","PrimaryOnly",,,"False","T","EveryTick") -> 12595 | K31: -0.00924287119 | L31: =RTD("cqg.rtd",,"StudyData", "Close("&$D$12&") when LocalYear("&$D$12&")="&$D$3&" and localMonth("&$D$12&") ="&$E$3&" and LocalDay("&$D$12&")="&$F$3&" and Barix("&$D$12&",reference:=StartOfSession)="&A31&"", "FG", "", "Close","5","0","PrimaryOnly",,,"False","T","EveryTick") -> 12698 | M31: -0.004156536742 | N31: =RTD("cqg.rtd",,"StudyData", "Close("&$D$12&") when LocalYear("&$D$12&")="&$D$4&" and localMonth("&$D$12&") ="&$E$4&" and LocalDay("&$D$12&")="&$F$4&" and Barix("&$D$12&",reference:=StartOfSession)="&A31&"", "FG", "", "Close","5","0","PrimaryOnly",,,"False","T","EveryTick") -> 12718.75 | O31: 0.003788252471 | P31: =RTD("cqg.rtd",,"StudyData", "Close("&$D$12&") when LocalYear("&$D$12&")="&$D$5&" and localMonth("&$D$12&") ="&$E$5&" and LocalDay("&$D$12&")="&$F$5&" and Barix("&$D$12&",reference:=StartOfSession)="&A31&"", "FG", "", "Close","5","0","PrimaryOnly",,,"False","T","EveryTick") -> 12649 | Q31: 0.004207684979 | R31: =RTD("cqg.rtd",,"StudyData", "Close("&$D$12&") when LocalYear("&$D$12&")="&$D$6&" and localMonth("&$D$12&") ="&$E$6&" and LocalDay("&$D$12&")="&$F$6&" and Barix("&$D$12&",reference:=StartOfSession)="&A31&"", "FG", "", "Close","5","0","PrimaryOnly",,,"False","T","EveryTick") -> 12517 | S31: 0.004373119358 | T31: =RTD("cqg.rtd",,"StudyData", "Close("&$D$12&") when LocalYear("&$D$12&")="&$D$7&" and localMonth("&$D$12&") ="&$E$7&" and LocalDay("&$D$12&")="&$F$7&" and Barix("&$D$12&",reference:=StartOfSession)="&A31&"", "FG", "", "Close","5","0","PrimaryOnly",,,"False","T","EveryTick") -> 12529.25 | U31: 0.0130172013 | V31: =RTD("cqg.rtd",,"StudyData", "Close("&$D$12&") when LocalYear("&$D$12&")="&$D$8&" and localMonth("&$D$12&") ="&$E$8&" and LocalDay("&$D$12&")="&$F$8&" and Barix("&$D$12&",reference:=StartOfSession)="&A31&"", "FG", "", "Close","5","0","PrimaryOnly",,,"False","T","EveryTick") -> 12282.25 | W31: -0.009555873637 | X31: =RTD("cqg.rtd",,"StudyData", "Close("&$D$12&") when LocalYear("&$D$12&")="&$D$9&" and localMonth("&$D$12&") ="&$E$9&" and LocalDay("&$D$12&")="&$F$9&" and Barix("&$D$12&",reference:=StartOfSession)="&A31&"", "FG", "", "Close","5","0","PrimaryOnly",,,"False","T","EveryTick") -> 12398 | Y31: 0.002648551384 | Z31: =RTD("cqg.rtd",,"StudyData", "Close("&$D$12&") when LocalYear("&$D$12&")="&$D$10&" and localMonth("&$D$12&") ="&$E$10&" and LocalDay("&$D$12&")="&$F$10&" and Barix("&$D$12&",reference:=StartOfSession)="&A31&"", "FG", "", "Close","5","0","PrimaryOnly",,,"False","T","EveryTick") -> 12578 | AA31: -0.004511278195
A32: 31 | B32: 11:05:00 | H32: =RTD("cqg.rtd",,"StudyData", "Close("&$D$12&") when LocalYear("&$D$12&")="&$D$1&" and localMonth("&$D$12&") ="&$E$1&" and LocalDay("&$D$12&")="&$F$1&" and Barix("&$D$12&",reference:=StartOfSession)="&A32&"", "FG", "", "Close","5","0","PrimaryOnly",,,"False","T","EveryTick") -> 12659.5 | I32: -0.001892222178 | J32: =RTD("cqg.rtd",,"StudyData", "Close("&$D$12&") when LocalYear("&$D$12&")="&$D$2&" and localMonth("&$D$12&") ="&$E$2&" and LocalDay("&$D$12&")="&$F$2&" and Barix("&$D$12&",reference:=StartOfSession)="&A32&"", "FG", "", "Close","5","0","PrimaryOnly",,,"False","T","EveryTick") -> 12596.75 | K32: -0.009105211406 | L32: =RTD("cqg.rtd",,"StudyData", "Close("&$D$12&") when LocalYear("&$D$12&")="&$D$3&" and localMonth("&$D$12&") ="&$E$3&" and LocalDay("&$D$12&")="&$F$3&" and Barix("&$D$12&",reference:=StartOfSession)="&A32&"", "FG", "", "Close","5","0","PrimaryOnly",,,"False","T","EveryTick") -> 12698.25 | M32: -0.004136930437 | N32: =RTD("cqg.rtd",,"StudyData", "Close("&$D$12&") when LocalYear("&$D$12&")="&$D$4&" and localMonth("&$D$12&") ="&$E$4&" and LocalDay("&$D$12&")="&$F$4&" and Barix("&$D$12&",reference:=StartOfSession)="&A32&"", "FG", "", "Close","5","0","PrimaryOnly",,,"False","T","EveryTick") -> 12716 | O32: 0.003571217173 | P32: =RTD("cqg.rtd",,"StudyData", "Close("&$D$12&") when LocalYear("&$D$12&")="&$D$5&" and localMonth("&$D$12&") ="&$E$5&" and LocalDay("&$D$12&")="&$F$5&" and Barix("&$D$12&",reference:=StartOfSession)="&A32&"", "FG", "", "Close","5","0","PrimaryOnly",,,"False","T","EveryTick") -> 12656 | Q32: 0.004763416958 | R32: =RTD("cqg.rtd",,"StudyData", "Close("&$D$12&") when LocalYear("&$D$12&")="&$D$6&" and localMonth("&$D$12&") ="&$E$6&" and LocalDay("&$D$12&")="&$F$6&" and Barix("&$D$12&",reference:=StartOfSession)="&A32&"", "FG", "", "Close","5","0","PrimaryOnly",,,"False","T","EveryTick") -> 12517.25 | S32: 0.004393179539 | T32: =RTD("cqg.rtd",,"StudyData", "Close("&$D$12&") when LocalYear("&$D$12&")="&$D$7&" and localMonth("&$D$12&") ="&$E$7&" and LocalDay("&$D$12&")="&$F$7&" and Barix("&$D$12&",reference:=StartOfSession)="&A32&"", "FG", "", "Close","5","0","PrimaryOnly",,,"False","T","EveryTick") -> 12527.25 | U32: 0.01285549694 | V32: =RTD("cqg.rtd",,"StudyData", "Close("&$D$12&") when LocalYear("&$D$12&")="&$D$8&" and localMonth("&$D$12&") ="&$E$8&" and LocalDay("&$D$12&")="&$F$8&" and Barix("&$D$12&",reference:=StartOfSession)="&A32&"", "FG", "", "Close","5","0","PrimaryOnly",,,"False","T","EveryTick") -> 12278.75 | W32: -0.00983811463 | X32: =RTD("cqg.rtd",,"StudyData", "Close("&$D$12&") when LocalYear("&$D$12&")="&$D$9&" and localMonth("&$D$12&") ="&$E$9&" and LocalDay("&$D$12&")="&$F$9&" and Barix("&$D$12&",reference:=StartOfSession)="&A32&"", "FG", "", "Close","5","0","PrimaryOnly",,,"False","T","EveryTick") -> 12409 | Y32: 0.003538141162 | Z32: =RTD("cqg.rtd",,"StudyData", "Close("&$D$12&") when LocalYear("&$D$12&")="&$D$10&" and localMonth("&$D$12&") ="&$E$10&" and LocalDay("&$D$12&")="&$F$10&" and Barix("&$D$12&",reference:=StartOfSession)="&A32&"", "FG", "", "Close","5","0","PrimaryOnly",,,"False","T","EveryTick") -> 12572 | AA32: -0.004986149584
A33: 32 | B33: 11:10:00 | H33: =RTD("cqg.rtd",,"StudyData", "Close("&$D$12&") when LocalYear("&$D$12&")="&$D$1&" and localMonth("&$D$12&") ="&$E$1&" and LocalDay("&$D$12&")="&$F$1&" and Barix("&$D$12&",reference:=StartOfSession)="&A33&"", "FG", "", "Close","5","0","PrimaryOnly",,,"False","T","EveryTick") -> 12673.75 | I33: -0.00076871526 | J33: =RTD("cqg.rtd",,"StudyData", "Close("&$D$12&") when LocalYear("&$D$12&")="&$D$2&" and localMonth("&$D$12&") ="&$E$2&" and LocalDay("&$D$12&")="&$F$2&" and Barix("&$D$12&",reference:=StartOfSession)="&A33&"", "FG", "", "Close","5","0","PrimaryOnly",,,"False","T","EveryTick") -> 12586.5 | K33: -0.009911504425 | L33: =RTD("cqg.rtd",,"StudyData", "Close("&$D$12&") when LocalYear("&$D$12&")="&$D$3&" and localMonth("&$D$12&") ="&$E$3&" and LocalDay("&$D$12&")="&$F$3&" and Barix("&$D$12&",reference:=StartOfSession)="&A33&"", "FG", "", "Close","5","0","PrimaryOnly",,,"False","T","EveryTick") -> 12708.75 | M33: -0.003313465611 | N33: =RTD("cqg.rtd",,"StudyData", "Close("&$D$12&") when LocalYear("&$D$12&")="&$D$4&" and localMonth("&$D$12&") ="&$E$4&" and LocalDay("&$D$12&")="&$F$4&" and Barix("&$D$12&",reference:=StartOfSession)="&A33&"", "FG", "", "Close","5","0","PrimaryOnly",,,"False","T","EveryTick") -> 12710.25 | O33: 0.003117416096 | P33: =RTD("cqg.rtd",,"StudyData", "Close("&$D$12&") when LocalYear("&$D$12&")="&$D$5&" and localMonth("&$D$12&") ="&$E$5&" and LocalDay("&$D$12&")="&$F$5&" and Barix("&$D$12&",reference:=StartOfSession)="&A33&"", "FG", "", "Close","5","0","PrimaryOnly",,,"False","T","EveryTick") -> 12653 | Q33: 0.00452524611 | R33: =RTD("cqg.rtd",,"StudyData", "Close("&$D$12&") when LocalYear("&$D$12&")="&$D$6&" and localMonth("&$D$12&") ="&$E$6&" and LocalDay("&$D$12&")="&$F$6&" and Barix("&$D$12&",reference:=StartOfSession)="&A33&"", "FG", "", "Close","5","0","PrimaryOnly",,,"False","T","EveryTick") -> 12516.75 | S33: 0.004353059178 | T33: =RTD("cqg.rtd",,"StudyData", "Close("&$D$12&") when LocalYear("&$D$12&")="&$D$7&" and localMonth("&$D$12&") ="&$E$7&" and LocalDay("&$D$12&")="&$F$7&" and Barix("&$D$12&",reference:=StartOfSession)="&A33&"", "FG", "", "Close","5","0","PrimaryOnly",,,"False","T","EveryTick") -> 12529.75 | U33: 0.01305762739 | V33: =RTD("cqg.rtd",,"StudyData", "Close("&$D$12&") when LocalYear("&$D$12&")="&$D$8&" and localMonth("&$D$12&") ="&$E$8&" and LocalDay("&$D$12&")="&$F$8&" and Barix("&$D$12&",reference:=StartOfSession)="&A33&"", "FG", "", "Close","5","0","PrimaryOnly",,,"False","T","EveryTick") -> 12261.25 | W33: -0.0112493196 | X33: =RTD("cqg.rtd",,"StudyData", "Close("&$D$12&") when LocalYear("&$D$12&")="&$D$9&" and localMonth("&$D$12&") ="&$E$9&" and LocalDay("&$D$12&")="&$F$9&" and Barix("&$D$12&",reference:=StartOfSession)="&A33&"", "FG", "", "Close","5","0","PrimaryOnly",,,"False","T","EveryTick") -> 12397.5 | Y33: 0.002608115485 | Z33: =RTD("cqg.rtd",,"StudyData", "Close("&$D$12&") when LocalYear("&$D$12&")="&$D$10&" and localMonth("&$D$12&") ="&$E$10&" and LocalDay("&$D$12&")="&$F$10&" and Barix("&$D$12&",reference:=StartOfSession)="&A33&"", "FG", "", "Close","5","0","PrimaryOnly",,,"False","T","EveryTick") -> 12563 | AA33: -0.005698456668
A34: 33 | B34: 11:15:00 | H34: =RTD("cqg.rtd",,"StudyData", "Close("&$D$12&") when LocalYear("&$D$12&")="&$D$1&" and localMonth("&$D$12&") ="&$E$1&" and LocalDay("&$D$12&")="&$F$1&" and Barix("&$D$12&",reference:=StartOfSession)="&A34&"", "FG", "", "Close","5","0","PrimaryOnly",,,"False","T","EveryTick") -> 12670.5 | I34: -0.00102495368 | J34: =RTD("cqg.rtd",,"StudyData", "Close("&$D$12&") when LocalYear("&$D$12&")="&$D$2&" and localMonth("&$D$12&") ="&$E$2&" and LocalDay("&$D$12&")="&$F$2&" and Barix("&$D$12&",reference:=StartOfSession)="&A34&"", "FG", "", "Close","5","0","PrimaryOnly",,,"False","T","EveryTick") -> 12584.25 | K34: -0.01008849558 | L34: =RTD("cqg.rtd",,"StudyData", "Close("&$D$12&") when LocalYear("&$D$12&")="&$D$3&" and localMonth("&$D$12&") ="&$E$3&" and LocalDay("&$D$12&")="&$F$3&" and Barix("&$D$12&",reference:=StartOfSession)="&A34&"", "FG", "", "Close","5","0","PrimaryOnly",,,"False","T","EveryTick") -> 12707.25 | M34: -0.003431103443 | N34: =RTD("cqg.rtd",,"StudyData", "Close("&$D$12&") when LocalYear("&$D$12&")="&$D$4&" and localMonth("&$D$12&") ="&$E$4&" and LocalDay("&$D$12&")="&$F$4&" and Barix("&$D$12&",reference:=StartOfSession)="&A34&"", "FG", "", "Close","5","0","PrimaryOnly",,,"False","T","EveryTick") -> 12707 | O34: 0.002860919835 | P34: =RTD("cqg.rtd",,"StudyData", "Close("&$D$12&") when LocalYear("&$D$12&")="&$D$5&" and localMonth("&$D$12&") ="&$E$5&" and LocalDay("&$D$12&")="&$F$5&" and Barix("&$D$12&",reference:=StartOfSession)="&A34&"", "FG", "", "Close","5","0","PrimaryOnly",,,"False","T","EveryTick") -> 12655.25 | Q34: 0.004703874246 | R34: =RTD("cqg.rtd",,"StudyData", "Close("&$D$12&") when LocalYear("&$D$12&")="&$D$6&" and localMonth("&$D$12&") ="&$E$6&" and LocalDay("&$D$12&")="&$F$6&" and Barix("&$D$12&",reference:=StartOfSession)="&A34&"", "FG", "", "Close","5","0","PrimaryOnly",,,"False","T","EveryTick") -> 12520.5 | S34: 0.004653961886 | T34: =RTD("cqg.rtd",,"StudyData", "Close("&$D$12&") when LocalYear("&$D$12&")="&$D$7&" and localMonth("&$D$12&") ="&$E$7&" and LocalDay("&$D$12&")="&$F$7&" and Barix("&$D$12&",reference:=StartOfSession)="&A34&"", "FG", "", "Close","5","0","PrimaryOnly",,,"False","T","EveryTick") -> 12521 | U34: 0.0123501708 | V34: =RTD("cqg.rtd",,"StudyData", "Close("&$D$12&") when LocalYear("&$D$12&")="&$D$8&" and localMonth("&$D$12&") ="&$E$8&" and LocalDay("&$D$12&")="&$F$8&" and Barix("&$D$12&",reference:=StartOfSession)="&A34&"", "FG", "", "Close","5","0","PrimaryOnly",,,"False","T","EveryTick") -> 12257.5 | W34: -0.01155172066 | X34: =RTD("cqg.rtd",,"StudyData", "Close("&$D$12&") when LocalYear("&$D$12&")="&$D$9&" and localMonth("&$D$12&") ="&$E$9&" and LocalDay("&$D$12&")="&$F$9&" and Barix("&$D$12&",reference:=StartOfSession)="&A34&"", "FG", "", "Close","5","0","PrimaryOnly",,,"False","T","EveryTick") -> 12392.25 | Y34: 0.002183538546 | Z34: =RTD("cqg.rtd",,"StudyData", "Close("&$D$12&") when LocalYear("&$D$12&")="&$D$10&" and localMonth("&$D$12&") ="&$E$10&" and LocalDay("&$D$12&")="&$F$10&" and Barix("&$D$12&",reference:=StartOfSession)="&A34&"", "FG", "", "Close","5","0","PrimaryOnly",,,"False","T","EveryTick") -> 12539 | AA34: -0.007597942224
A35: 34 | B35: 11:20:00 | H35: =RTD("cqg.rtd",,"StudyData", "Close("&$D$12&") when LocalYear("&$D$12&")="&$D$1&" and localMonth("&$D$12&") ="&$E$1&" and LocalDay("&$D$12&")="&$F$1&" and Barix("&$D$12&",reference:=StartOfSession)="&A35&"", "FG", "", "Close","5","0","PrimaryOnly",,,"False","T","EveryTick") -> 12675.25 | I35: -0.0006504513738 | J35: =RTD("cqg.rtd",,"StudyData", "Close("&$D$12&") when LocalYear("&$D$12&")="&$D$2&" and localMonth("&$D$12&") ="&$E$2&" and LocalDay("&$D$12&")="&$F$2&" and Barix("&$D$12&",reference:=StartOfSession)="&A35&"", "FG", "", "Close","5","0","PrimaryOnly",,,"False","T","EveryTick") -> 12612.75 | K35: -0.00784660767 | L35: =RTD("cqg.rtd",,"StudyData", "Close("&$D$12&") when LocalYear("&$D$12&")="&$D$3&" and localMonth("&$D$12&") ="&$E$3&" and LocalDay("&$D$12&")="&$F$3&" and Barix("&$D$12&",reference:=StartOfSession)="&A35&"", "FG", "", "Close","5","0","PrimaryOnly",,,"False","T","EveryTick") -> 12709.25 | M35: -0.003274253 | N35: =RTD("cqg.rtd",,"StudyData", "Close("&$D$12&") when LocalYear("&$D$12&")="&$D$4&" and localMonth("&$D$12&") ="&$E$4&" and LocalDay("&$D$12&")="&$F$4&" and Barix("&$D$12&",reference:=StartOfSession)="&A35&"", "FG", "", "Close","5","0","PrimaryOnly",,,"False","T","EveryTick") -> 12711.25 | O35: 0.003196338023 | P35: =RTD("cqg.rtd",,"StudyData", "Close("&$D$12&") when LocalYear("&$D$12&")="&$D$5&" and localMonth("&$D$12&") ="&$E$5&" and LocalDay("&$D$12&")="&$F$5&" and Barix("&$D$12&",reference:=StartOfSession)="&A35&"", "FG", "", "Close","5","0","PrimaryOnly",,,"False","T","EveryTick") -> 12645 | Q35: 0.003890123849 | R35: =RTD("cqg.rtd",,"StudyData", "Close("&$D$12&") when LocalYear("&$D$12&")="&$D$6&" and localMonth("&$D$12&") ="&$E$6&" and LocalDay("&$D$12&")="&$F$6&" and Barix("&$D$12&",reference:=StartOfSession)="&A35&"", "FG", "", "Close","5","0","PrimaryOnly",,,"False","T","EveryTick") -> 12527 | S35: 0.00517552658 | T35: =RTD("cqg.rtd",,"StudyData", "Close("&$D$12&") when LocalYear("&$D$12&")="&$D$7&" and localMonth("&$D$12&") ="&$E$7&" and LocalDay("&$D$12&")="&$F$7&" and Barix("&$D$12&",reference:=StartOfSession)="&A35&"", "FG", "", "Close","5","0","PrimaryOnly",,,"False","T","EveryTick") -> 12524.25 | U35: 0.01261294039 | V35: =RTD("cqg.rtd",,"StudyData", "Close("&$D$12&") when LocalYear("&$D$12&")="&$D$8&" and localMonth("&$D$12&") ="&$E$8&" and LocalDay("&$D$12&")="&$F$8&" and Barix("&$D$12&",reference:=StartOfSession)="&A35&"", "FG", "", "Close","5","0","PrimaryOnly",,,"False","T","EveryTick") -> 12249.25 | W35: -0.012217003 | X35: =RTD("cqg.rtd",,"StudyData", "Close("&$D$12&") when LocalYear("&$D$12&")="&$D$9&" and localMonth("&$D$12&") ="&$E$9&" and LocalDay("&$D$12&")="&$F$9&" and Barix("&$D$12&",reference:=StartOfSession)="&A35&"", "FG", "", "Close","5","0","PrimaryOnly",,,"False","T","EveryTick") -> 12391 | Y35: 0.002082448798 | Z35: =RTD("cqg.rtd",,"StudyData", "Close("&$D$12&") when LocalYear("&$D$12&")="&$D$10&" and localMonth("&$D$12&") ="&$E$10&" and LocalDay("&$D$12&")="&$F$10&" and Barix("&$D$12&",reference:=StartOfSession)="&A35&"", "FG", "", "Close","5","0","PrimaryOnly",,,"False","T","EveryTick") -> 12541.25 | AA35: -0.007419865453
A36: 35 | B36: 11:25:00 | H36: =RTD("cqg.rtd",,"StudyData", "Close("&$D$12&") when LocalYear("&$D$12&")="&$D$1&" and localMonth("&$D$12&") ="&$E$1&" and LocalDay("&$D$12&")="&$F$1&" and Barix("&$D$12&",reference:=StartOfSession)="&A36&"", "FG", "", "Close","5","0","PrimaryOnly",,,"False","T","EveryTick") -> 12660.75 | I36: -0.00179366894 | J36: =RTD("cqg.rtd",,"StudyData", "Close("&$D$12&") when LocalYear("&$D$12&")="&$D$2&" and localMonth("&$D$12&") ="&$E$2&" and LocalDay("&$D$12&")="&$F$2&" and Barix("&$D$12&",reference:=StartOfSession)="&A36&"", "FG", "", "Close","5","0","PrimaryOnly",,,"False","T","EveryTick") -> 12624 | K36: -0.006961651917 | L36: =RTD("cqg.rtd",,"StudyData", "Close("&$D$12&") when LocalYear("&$D$12&")="&$D$3&" and localMonth("&$D$12&") ="&$E$3&" and LocalDay("&$D$12&")="&$F$3&" and Barix("&$D$12&",reference:=StartOfSession)="&A36&"", "FG", "", "Close","5","0","PrimaryOnly",,,"False","T","EveryTick") -> 12713 | M36: -0.002980158419 | N36: =RTD("cqg.rtd",,"StudyData", "Close("&$D$12&") when LocalYear("&$D$12&")="&$D$4&" and localMonth("&$D$12&") ="&$E$4&" and LocalDay("&$D$12&")="&$F$4&" and Barix("&$D$12&",reference:=StartOfSession)="&A36&"", "FG", "", "Close","5","0","PrimaryOnly",,,"False","T","EveryTick") -> 12716.75 | O36: 0.003630408618 | P36: =RTD("cqg.rtd",,"StudyData", "Close("&$D$12&") when LocalYear("&$D$12&")="&$D$5&" and localMonth("&$D$12&") ="&$E$5&" and LocalDay("&$D$12&")="&$F$5&" and Barix("&$D$12&",reference:=StartOfSession)="&A36&"", "FG", "", "Close","5","0","PrimaryOnly",,,"False","T","EveryTick") -> 12646 | Q36: 0.003969514131 | R36: =RTD("cqg.rtd",,"StudyData", "Close("&$D$12&") when LocalYear("&$D$12&")="&$D$6&" and localMonth("&$D$12&") ="&$E$6&" and LocalDay("&$D$12&")="&$F$6&" and Barix("&$D$12&",reference:=StartOfSession)="&A36&"", "FG", "", "Close","5","0","PrimaryOnly",,,"False","T","EveryTick") -> 12527.5 | S36: 0.005215646941 | T36: =RTD("cqg.rtd",,"StudyData", "Close("&$D$12&") when LocalYear("&$D$12&")="&$D$7&" and localMonth("&$D$12&") ="&$E$7&" and LocalDay("&$D$12&")="&$F$7&" and Barix("&$D$12&",reference:=StartOfSession)="&A36&"", "FG", "", "Close","5","0","PrimaryOnly",,,"False","T","EveryTick") -> 12519.5 | U36: 0.01222889253 | V36: =RTD("cqg.rtd",,"StudyData", "Close("&$D$12&") when LocalYear("&$D$12&")="&$D$8&" and localMonth("&$D$12&") ="&$E$8&" and LocalDay("&$D$12&")="&$F$8&" and Barix("&$D$12&",reference:=StartOfSession)="&A36&"", "FG", "", "Close","5","0","PrimaryOnly",,,"False","T","EveryTick") -> 12256.75 | W36: -0.01161220087 | X36: =RTD("cqg.rtd",,"StudyData", "Close("&$D$12&") when LocalYear("&$D$12&")="&$D$9&" and localMonth("&$D$12&") ="&$E$9&" and LocalDay("&$D$12&")="&$F$9&" and Barix("&$D$12&",reference:=StartOfSession)="&A36&"", "FG", "", "Close","5","0","PrimaryOnly",,,"False","T","EveryTick") -> 12387 | Y36: 0.001758961606 | Z36: =RTD("cqg.rtd",,"StudyData", "Close("&$D$12&") when LocalYear("&$D$12&")="&$D$10&" and localMonth("&$D$12&") ="&$E$10&" and LocalDay("&$D$12&")="&$F$10&" and Barix("&$D$12&",reference:=StartOfSession)="&A36&"", "FG", "", "Close","5","0","PrimaryOnly",,,"False","T","EveryTick") -> 12550 | AA36: -0.006727344677
A37: 36 | B37: 11:30:00 | H37: =RTD("cqg.rtd",,"StudyData", "Close("&$D$12&") when LocalYear("&$D$12&")="&$D$1&" and localMonth("&$D$12&") ="&$E$1&" and LocalDay("&$D$12&")="&$F$1&" and Barix("&$D$12&",reference:=StartOfSession)="&A37&"", "FG", "", "Close","5","0","PrimaryOnly",,,"False","T","EveryTick") -> 12674.5 | I37: -0.0007095833169 | J37: =RTD("cqg.rtd",,"StudyData", "Close("&$D$12&") when LocalYear("&$D$12&")="&$D$2&" and localMonth("&$D$12&") ="&$E$2&" and LocalDay("&$D$12&")="&$F$2&" and Barix("&$D$12&",reference:=StartOfSession)="&A37&"", "FG", "", "Close","5","0","PrimaryOnly",,,"False","T","EveryTick") -> 12630.25 | K37: -0.006470009833 | L37: =RTD("cqg.rtd",,"StudyData", "Close("&$D$12&") when LocalYear("&$D$12&")="&$D$3&" and localMonth("&$D$12&") ="&$E$3&" and LocalDay("&$D$12&")="&$F$3&" and Barix("&$D$12&",reference:=StartOfSession)="&A37&"", "FG", "", "Close","5","0","PrimaryOnly",,,"False","T","EveryTick") -> 12716 | M37: -0.002744882754 | N37: =RTD("cqg.rtd",,"StudyData", "Close("&$D$12&") when LocalYear("&$D$12&")="&$D$4&" and localMonth("&$D$12&") ="&$E$4&" and LocalDay("&$D$12&")="&$F$4&" and Barix("&$D$12&",reference:=StartOfSession)="&A37&"", "FG", "", "Close","5","0","PrimaryOnly",,,"False","T","EveryTick") -> 12713 | O37: 0.003334451394 | P37: =RTD("cqg.rtd",,"StudyData", "Close("&$D$12&") when LocalYear("&$D$12&")="&$D$5&" and localMonth("&$D$12&") ="&$E$5&" and LocalDay("&$D$12&")="&$F$5&" and Barix("&$D$12&",reference:=StartOfSession)="&A37&"", "FG", "", "Close","5","0","PrimaryOnly",,,"False","T","EveryTick") -> 12642.5 | Q37: 0.003691648142 | R37: =RTD("cqg.rtd",,"StudyData", "Close("&$D$12&") when LocalYear("&$D$12&")="&$D$6&" and localMonth("&$D$12&") ="&$E$6&" and LocalDay("&$D$12&")="&$F$6&" and Barix("&$D$12&",reference:=StartOfSession)="&A37&"", "FG", "", "Close","5","0","PrimaryOnly",,,"False","T","EveryTick") -> 12523.25 | S37: 0.004874623872 | T37: =RTD("cqg.rtd",,"StudyData", "Close("&$D$12&") when LocalYear("&$D$12&")="&$D$7&" and localMonth("&$D$12&") ="&$E$7&" and LocalDay("&$D$12&")="&$F$7&" and Barix("&$D$12&",reference:=StartOfSession)="&A37&"", "FG", "", "Close","5","0","PrimaryOnly",,,"False","T","EveryTick") -> 12519.25 | U37: 0.01220867948 | V37: =RTD("cqg.rtd",,"StudyData", "Close("&$D$12&") when LocalYear("&$D$12&")="&$D$8&" and localMonth("&$D$12&") ="&$E$8&" and LocalDay("&$D$12&")="&$F$8&" and Barix("&$D$12&",reference:=StartOfSession)="&A37&"", "FG", "", "Close","5","0","PrimaryOnly",,,"False","T","EveryTick") -> 12244 | W37: -0.01264036449 | X37: =RTD("cqg.rtd",,"StudyData", "Close("&$D$12&") when LocalYear("&$D$12&")="&$D$9&" and localMonth("&$D$12&") ="&$E$9&" and LocalDay("&$D$12&")="&$F$9&" and Barix("&$D$12&",reference:=StartOfSession)="&A37&"", "FG", "", "Close","5","0","PrimaryOnly",,,"False","T","EveryTick") -> 12394 | Y37: 0.002325064192 | Z37: =RTD("cqg.rtd",,"StudyData", "Close("&$D$12&") when LocalYear("&$D$12&")="&$D$10&" and localMonth("&$D$12&") ="&$E$10&" and LocalDay("&$D$12&")="&$F$10&" and Barix("&$D$12&",reference:=StartOfSession)="&A37&"", "FG", "", "Close","5","0","PrimaryOnly",,,"False","T","EveryTick") -> 12537.5 | AA37: -0.007716660071
A38: 37 | B38: 11:35:00 | C38: -40 | D38: =RTD("cqg.rtd",,"StudyData", $D$12, "Tick", "FlatTicks=0", "Tick","D",C38,"PrimaryOnly") -> 12677.5 | F38: ENQ | H38: =RTD("cqg.rtd",,"StudyData", "Close("&$D$12&") when LocalYear("&$D$12&")="&$D$1&" and localMonth("&$D$12&") ="&$E$1&" and LocalDay("&$D$12&")="&$F$1&" and Barix("&$D$12&",reference:=StartOfSession)="&A38&"", "FG", "", "Close","5","0","PrimaryOnly",,,"False","T","EveryTick") -> 12671.5 | I38: -0.0009461110892 | J38: =RTD("cqg.rtd",,"StudyData", "Close("&$D$12&") when LocalYear("&$D$12&")="&$D$2&" and localMonth("&$D$12&") ="&$E$2&" and LocalDay("&$D$12&")="&$F$2&" and Barix("&$D$12&",reference:=StartOfSession)="&A38&"", "FG", "", "Close","5","0","PrimaryOnly",,,"False","T","EveryTick") -> 12633.5 | K38: -0.006214355949 | L38: =RTD("cqg.rtd",,"StudyData", "Close("&$D$12&") when LocalYear("&$D$12&")="&$D$3&" and localMonth("&$D$12&") ="&$E$3&" and LocalDay("&$D$12&")="&$F$3&" and Barix("&$D$12&",reference:=StartOfSession)="&A38&"", "FG", "", "Close","5","0","PrimaryOnly",,,"False","T","EveryTick") -> 12721.25 | M38: -0.002333150341 | N38: =RTD("cqg.rtd",,"StudyData", "Close("&$D$12&") when LocalYear("&$D$12&")="&$D$4&" and localMonth("&$D$12&") ="&$E$4&" and LocalDay("&$D$12&")="&$F$4&" and Barix("&$D$12&",reference:=StartOfSession)="&A38&"", "FG", "", "Close","5","0","PrimaryOnly",,,"False","T","EveryTick") -> 12712.5 | O38: 0.003294990431 | P38: =RTD("cqg.rtd",,"StudyData", "Close("&$D$12&") when LocalYear("&$D$12&")="&$D$5&" and localMonth("&$D$12&") ="&$E$5&" and LocalDay("&$D$12&")="&$F$5&" and Barix("&$D$12&",reference:=StartOfSession)="&A38&"", "FG", "", "Close","5","0","PrimaryOnly",,,"False","T","EveryTick") -> 12642.5 | Q38: 0.003691648142 | R38: =RTD("cqg.rtd",,"StudyData", "Close("&$D$12&") when LocalYear("&$D$12&")="&$D$6&" and localMonth("&$D$12&") ="&$E$6&" and LocalDay("&$D$12&")="&$F$6&" and Barix("&$D$12&",reference:=StartOfSession)="&A38&"", "FG", "", "Close","5","0","PrimaryOnly",,,"False","T","EveryTick") -> 12533 | S38: 0.005656970913 | T38: =RTD("cqg.rtd",,"StudyData", "Close("&$D$12&") when LocalYear("&$D$12&")="&$D$7&" and localMonth("&$D$12&") ="&$E$7&" and LocalDay("&$D$12&")="&$F$7&" and Barix("&$D$12&",reference:=StartOfSession)="&A38&"", "FG", "", "Close","5","0","PrimaryOnly",,,"False","T","EveryTick") -> 12509 | U38: 0.01137994462 | V38: =RTD("cqg.rtd",,"StudyData", "Close("&$D$12&") when LocalYear("&$D$12&")="&$D$8&" and localMonth("&$D$12&") ="&$E$8&" and LocalDay("&$D$12&")="&$F$8&" and Barix("&$D$12&",reference:=StartOfSession)="&A38&"", "FG", "", "Close","5","0","PrimaryOnly",,,"False","T","EveryTick") -> 12238.25 | W38: -0.01310404613 | X38: =RTD("cqg.rtd",,"StudyData", "Close("&$D$12&") when LocalYear("&$D$12&")="&$D$9&" and localMonth("&$D$12&") ="&$E$9&" and LocalDay("&$D$12&")="&$F$9&" and Barix("&$D$12&",reference:=StartOfSession)="&A38&"", "FG", "", "Close","5","0","PrimaryOnly",,,"False","T","EveryTick") -> 12382 | Y38: 0.001354602616 | Z38: =RTD("cqg.rtd",,"StudyData", "Close("&$D$12&") when LocalYear("&$D$12&")="&$D$10&" and localMonth("&$D$12&") ="&$E$10&" and LocalDay("&$D$12&")="&$F$10&" and Barix("&$D$12&",reference:=StartOfSession)="&A38&"", "FG", "", "Close","5","0","PrimaryOnly",,,"False","T","EveryTick") -> 12507.25 | AA38: -0.01011080332
A39: 38 | B39: 11:40:00 | C39: =C38+1 -> -39 | D39: =RTD("cqg.rtd",,"StudyData", $D$12, "Tick", "FlatTicks=0", "Tick","D",C39,"PrimaryOnly") -> 12677.75 | F39: EP | H39: =RTD("cqg.rtd",,"StudyData", "Close("&$D$12&") when LocalYear("&$D$12&")="&$D$1&" and localMonth("&$D$12&") ="&$E$1&" and LocalDay("&$D$12&")="&$F$1&" and Barix("&$D$12&",reference:=StartOfSession)="&A39&"", "FG", "", "Close","5","0","PrimaryOnly",,,"False","T","EveryTick") -> 12684.75 | I39: 9.855323846e-05 | J39: =RTD("cqg.rtd",,"StudyData", "Close("&$D$12&") when LocalYear("&$D$12&")="&$D$2&" and localMonth("&$D$12&") ="&$E$2&" and LocalDay("&$D$12&")="&$F$2&" and Barix("&$D$12&",reference:=StartOfSession)="&A39&"", "FG", "", "Close","5","0","PrimaryOnly",,,"False","T","EveryTick") -> 12631.5 | K39: -0.006371681416 | L39: =RTD("cqg.rtd",,"StudyData", "Close("&$D$12&") when LocalYear("&$D$12&")="&$D$3&" and localMonth("&$D$12&") ="&$E$3&" and LocalDay("&$D$12&")="&$F$3&" and Barix("&$D$12&",reference:=StartOfSession)="&A39&"", "FG", "", "Close","5","0","PrimaryOnly",,,"False","T","EveryTick") -> 12719.75 | M39: -0.002450788173 | N39: =RTD("cqg.rtd",,"StudyData", "Close("&$D$12&") when LocalYear("&$D$12&")="&$D$4&" and localMonth("&$D$12&") ="&$E$4&" and LocalDay("&$D$12&")="&$F$4&" and Barix("&$D$12&",reference:=StartOfSession)="&A39&"", "FG", "", "Close","5","0","PrimaryOnly",,,"False","T","EveryTick") -> 12723.5 | O39: 0.004163131622 | P39: =RTD("cqg.rtd",,"StudyData", "Close("&$D$12&") when LocalYear("&$D$12&")="&$D$5&" and localMonth("&$D$12&") ="&$E$5&" and LocalDay("&$D$12&")="&$F$5&" and Barix("&$D$12&",reference:=StartOfSession)="&A39&"", "FG", "", "Close","5","0","PrimaryOnly",,,"False","T","EveryTick") -> 12644.25 | Q39: 0.003830581137 | R39: =RTD("cqg.rtd",,"StudyData", "Close("&$D$12&") when LocalYear("&$D$12&")="&$D$6&" and localMonth("&$D$12&") ="&$E$6&" and LocalDay("&$D$12&")="&$F$6&" and Barix("&$D$12&",reference:=StartOfSession)="&A39&"", "FG", "", "Close","5","0","PrimaryOnly",,,"False","T","EveryTick") -> 12529.25 | S39: 0.005356068205 | T39: =RTD("cqg.rtd",,"StudyData", "Close("&$D$12&") when LocalYear("&$D$12&")="&$D$7&" and localMonth("&$D$12&") ="&$E$7&" and LocalDay("&$D$12&")="&$F$7&" and Barix("&$D$12&",reference:=StartOfSession)="&A39&"", "FG", "", "Close","5","0","PrimaryOnly",,,"False","T","EveryTick") -> 12511.75 | U39: 0.01160228812 | V39: =RTD("cqg.rtd",,"StudyData", "Close("&$D$12&") when LocalYear("&$D$12&")="&$D$8&" and localMonth("&$D$12&") ="&$E$8&" and LocalDay("&$D$12&")="&$F$8&" and Barix("&$D$12&",reference:=StartOfSession)="&A39&"", "FG", "", "Close","5","0","PrimaryOnly",,,"False","T","EveryTick") -> 12246.75 | W39: -0.01241860371 | X39: =RTD("cqg.rtd",,"StudyData", "Close("&$D$12&") when LocalYear("&$D$12&")="&$D$9&" and localMonth("&$D$12&") ="&$E$9&" and LocalDay("&$D$12&")="&$F$9&" and Barix("&$D$12&",reference:=StartOfSession)="&A39&"", "FG", "", "Close","5","0","PrimaryOnly",,,"False","T","EveryTick") -> 12387.75 | Y39: 0.001819615455 | Z39: =RTD("cqg.rtd",,"StudyData", "Close("&$D$12&") when LocalYear("&$D$12&")="&$D$10&" and localMonth("&$D$12&") ="&$E$10&" and LocalDay("&$D$12&")="&$F$10&" and Barix("&$D$12&",reference:=StartOfSession)="&A39&"", "FG", "", "Close","5","0","PrimaryOnly",,,"False","T","EveryTick") -> 12494.75 | AA39: -0.01110011872
A40: 39 | B40: 11:45:00 | C40: =C39+1 -> -38 | D40: =RTD("cqg.rtd",,"StudyData", $D$12, "Tick", "FlatTicks=0", "Tick","D",C40,"PrimaryOnly") -> 12678 | F40: YM | H40: =RTD("cqg.rtd",,"StudyData", "Close("&$D$12&") when LocalYear("&$D$12&")="&$D$1&" and localMonth("&$D$12&") ="&$E$1&" and LocalDay("&$D$12&")="&$F$1&" and Barix("&$D$12&",reference:=StartOfSession)="&A40&"", "FG", "", "Close","5","0","PrimaryOnly",,,"False","T","EveryTick") -> 12677 | I40: -0.00051247684 | J40: =RTD("cqg.rtd",,"StudyData", "Close("&$D$12&") when LocalYear("&$D$12&")="&$D$2&" and localMonth("&$D$12&") ="&$E$2&" and LocalDay("&$D$12&")="&$F$2&" and Barix("&$D$12&",reference:=StartOfSession)="&A40&"", "FG", "", "Close","5","0","PrimaryOnly",,,"False","T","EveryTick") -> 12630.75 | K40: -0.006430678466 | L40: =RTD("cqg.rtd",,"StudyData", "Close("&$D$12&") when LocalYear("&$D$12&")="&$D$3&" and localMonth("&$D$12&") ="&$E$3&" and LocalDay("&$D$12&")="&$F$3&" and Barix("&$D$12&",reference:=StartOfSession)="&A40&"", "FG", "", "Close","5","0","PrimaryOnly",,,"False","T","EveryTick") -> 12713.5 | M40: -0.002940945808 | N40: =RTD("cqg.rtd",,"StudyData", "Close("&$D$12&") when LocalYear("&$D$12&")="&$D$4&" and localMonth("&$D$12&") ="&$E$4&" and LocalDay("&$D$12&")="&$F$4&" and Barix("&$D$12&",reference:=StartOfSession)="&A40&"", "FG", "", "Close","5","0","PrimaryOnly",,,"False","T","EveryTick") -> 12729.5 | O40: 0.004636663181 | P40: =RTD("cqg.rtd",,"StudyData", "Close("&$D$12&") when LocalYear("&$D$12&")="&$D$5&" and localMonth("&$D$12&") ="&$E$5&" and LocalDay("&$D$12&")="&$F$5&" and Barix("&$D$12&",reference:=StartOfSession)="&A40&"", "FG", "", "Close","5","0","PrimaryOnly",,,"False","T","EveryTick") -> 12639.25 | Q40: 0.003433629724 | R40: =RTD("cqg.rtd",,"StudyData", "Close("&$D$12&") when LocalYear("&$D$12&")="&$D$6&" and localMonth("&$D$12&") ="&$E$6&" and LocalDay("&$D$12&")="&$F$6&" and Barix("&$D$12&",reference:=StartOfSession)="&A40&"", "FG", "", "Close","5","0","PrimaryOnly",,,"False","T","EveryTick") -> 12530.5 | S40: 0.005456369107 | T40: =RTD("cqg.rtd",,"StudyData", "Close("&$D$12&") when LocalYear("&$D$12&")="&$D$7&" and localMonth("&$D$12&") ="&$E$7&" and LocalDay("&$D$12&")="&$F$7&" and Barix("&$D$12&",reference:=StartOfSession)="&A40&"", "FG", "", "Close","5","0","PrimaryOnly",,,"False","T","EveryTick") -> 12510.75 | U40: 0.01152143593 | V40: =RTD("cqg.rtd",,"StudyData", "Close("&$D$12&") when LocalYear("&$D$12&")="&$D$8&" and localMonth("&$D$12&") ="&$E$8&" and LocalDay("&$D$12&")="&$F$8&" and Barix("&$D$12&",reference:=StartOfSession)="&A40&"", "FG", "", "Close","5","0","PrimaryOnly",,,"False","T","EveryTick") -> 12254.25 | W40: -0.01181380158 | X40: =RTD("cqg.rtd",,"StudyData", "Close("&$D$12&") when LocalYear("&$D$12&")="&$D$9&" and localMonth("&$D$12&") ="&$E$9&" and LocalDay("&$D$12&")="&$F$9&" and Barix("&$D$12&",reference:=StartOfSession)="&A40&"", "FG", "", "Close","5","0","PrimaryOnly",,,"False","T","EveryTick") -> 12364.5 | Y40: -6.065384849e-05 | Z40: =RTD("cqg.rtd",,"StudyData", "Close("&$D$12&") when LocalYear("&$D$12&")="&$D$10&" and localMonth("&$D$12&") ="&$E$10&" and LocalDay("&$D$12&")="&$F$10&" and Barix("&$D$12&",reference:=StartOfSession)="&A40&"", "FG", "", "Close","5","0","PrimaryOnly",,,"False","T","EveryTick") -> 12468.5 | AA40: -0.01317768104
A41: 40 | B41: 11:50:00 | C41: -37 | D41: =RTD("cqg.rtd",,"StudyData", $D$12, "Tick", "FlatTicks=0", "Tick","D",C41,"PrimaryOnly") -> 12677.75 | F41: RTY | H41: =RTD("cqg.rtd",,"StudyData", "Close("&$D$12&") when LocalYear("&$D$12&")="&$D$1&" and localMonth("&$D$12&") ="&$E$1&" and LocalDay("&$D$12&")="&$F$1&" and Barix("&$D$12&",reference:=StartOfSession)="&A41&"", "FG", "", "Close","5","0","PrimaryOnly",,,"False","T","EveryTick") -> 12676.25 | I41: -0.0005716087831 | J41: =RTD("cqg.rtd",,"StudyData", "Close("&$D$12&") when LocalYear("&$D$12&")="&$D$2&" and localMonth("&$D$12&") ="&$E$2&" and LocalDay("&$D$12&")="&$F$2&" and Barix("&$D$12&",reference:=StartOfSession)="&A41&"", "FG", "", "Close","5","0","PrimaryOnly",,,"False","T","EveryTick") -> 12646.5 | K41: -0.005191740413 | L41: =RTD("cqg.rtd",,"StudyData", "Close("&$D$12&") when LocalYear("&$D$12&")="&$D$3&" and localMonth("&$D$12&") ="&$E$3&" and LocalDay("&$D$12&")="&$F$3&" and Barix("&$D$12&",reference:=StartOfSession)="&A41&"", "FG", "", "Close","5","0","PrimaryOnly",,,"False","T","EveryTick") -> 12712.25 | M41: -0.003038977335 | N41: =RTD("cqg.rtd",,"StudyData", "Close("&$D$12&") when LocalYear("&$D$12&")="&$D$4&" and localMonth("&$D$12&") ="&$E$4&" and LocalDay("&$D$12&")="&$F$4&" and Barix("&$D$12&",reference:=StartOfSession)="&A41&"", "FG", "", "Close","5","0","PrimaryOnly",,,"False","T","EveryTick") -> 12731 | O41: 0.004755046071 | P41: =RTD("cqg.rtd",,"StudyData", "Close("&$D$12&") when LocalYear("&$D$12&")="&$D$5&" and localMonth("&$D$12&") ="&$E$5&" and LocalDay("&$D$12&")="&$F$5&" and Barix("&$D$12&",reference:=StartOfSession)="&A41&"", "FG", "", "Close","5","0","PrimaryOnly",,,"False","T","EveryTick") -> 12641.75 | Q41: 0.00363210543 | R41: =RTD("cqg.rtd",,"StudyData", "Close("&$D$12&") when LocalYear("&$D$12&")="&$D$6&" and localMonth("&$D$12&") ="&$E$6&" and LocalDay("&$D$12&")="&$F$6&" and Barix("&$D$12&",reference:=StartOfSession)="&A41&"", "FG", "", "Close","5","0","PrimaryOnly",,,"False","T","EveryTick") -> 12536 | S41: 0.005897693079 | T41: =RTD("cqg.rtd",,"StudyData", "Close("&$D$12&") when LocalYear("&$D$12&")="&$D$7&" and localMonth("&$D$12&") ="&$E$7&" and LocalDay("&$D$12&")="&$F$7&" and Barix("&$D$12&",reference:=StartOfSession)="&A41&"", "FG", "", "Close","5","0","PrimaryOnly",,,"False","T","EveryTick") -> 12505.75 | U41: 0.01111717502 | V41: =RTD("cqg.rtd",,"StudyData", "Close("&$D$12&") when LocalYear("&$D$12&")="&$D$8&" and localMonth("&$D$12&") ="&$E$8&" and LocalDay("&$D$12&")="&$F$8&" and Barix("&$D$12&",reference:=StartOfSession)="&A41&"", "FG", "", "Close","5","0","PrimaryOnly",,,"False","T","EveryTick") -> 12268.5 | W41: -0.01066467754 | X41: =RTD("cqg.rtd",,"StudyData", "Close("&$D$12&") when LocalYear("&$D$12&")="&$D$9&" and localMonth("&$D$12&") ="&$E$9&" and LocalDay("&$D$12&")="&$F$9&" and Barix("&$D$12&",reference:=StartOfSession)="&A41&"", "FG", "", "Close","5","0","PrimaryOnly",,,"False","T","EveryTick") -> 12355 | Y41: -0.0008289359293 | Z41: =RTD("cqg.rtd",,"StudyData", "Close("&$D$12&") when LocalYear("&$D$12&")="&$D$10&" and localMonth("&$D$12&") ="&$E$10&" and LocalDay("&$D$12&")="&$F$10&" and Barix("&$D$12&",reference:=StartOfSession)="&A41&"", "FG", "", "Close","5","0","PrimaryOnly",,,"False","T","EveryTick") -> 12486 | AA41: -0.01179263949
A42: 41 | B42: 11:55:00 | C42: -36 | D42: =RTD("cqg.rtd",,"StudyData", $D$12, "Tick", "FlatTicks=0", "Tick","D",C42,"PrimaryOnly") -> 12678 | H42: =RTD("cqg.rtd",,"StudyData", "Close("&$D$12&") when LocalYear("&$D$12&")="&$D$1&" and localMonth("&$D$12&") ="&$E$1&" and LocalDay("&$D$12&")="&$F$1&" and Barix("&$D$12&",reference:=StartOfSession)="&A42&"", "FG", "", "Close","5","0","PrimaryOnly",,,"False","T","EveryTick") -> 12678.25 | I42: -0.0004139236015 | J42: =RTD("cqg.rtd",,"StudyData", "Close("&$D$12&") when LocalYear("&$D$12&")="&$D$2&" and localMonth("&$D$12&") ="&$E$2&" and LocalDay("&$D$12&")="&$F$2&" and Barix("&$D$12&",reference:=StartOfSession)="&A42&"", "FG", "", "Close","5","0","PrimaryOnly",,,"False","T","EveryTick") -> 12648.75 | K42: -0.005014749263 | L42: =RTD("cqg.rtd",,"StudyData", "Close("&$D$12&") when LocalYear("&$D$12&")="&$D$3&" and localMonth("&$D$12&") ="&$E$3&" and LocalDay("&$D$12&")="&$F$3&" and Barix("&$D$12&",reference:=StartOfSession)="&A42&"", "FG", "", "Close","5","0","PrimaryOnly",,,"False","T","EveryTick") -> 12710.75 | M42: -0.003156615167 | N42: =RTD("cqg.rtd",,"StudyData", "Close("&$D$12&") when LocalYear("&$D$12&")="&$D$4&" and localMonth("&$D$12&") ="&$E$4&" and LocalDay("&$D$12&")="&$F$4&" and Barix("&$D$12&",reference:=StartOfSession)="&A42&"", "FG", "", "Close","5","0","PrimaryOnly",,,"False","T","EveryTick") -> 12727 | O42: 0.004439358365 | P42: =RTD("cqg.rtd",,"StudyData", "Close("&$D$12&") when LocalYear("&$D$12&")="&$D$5&" and localMonth("&$D$12&") ="&$E$5&" and LocalDay("&$D$12&")="&$F$5&" and Barix("&$D$12&",reference:=StartOfSession)="&A42&"", "FG", "", "Close","5","0","PrimaryOnly",,,"False","T","EveryTick") -> 12646 | Q42: 0.003969514131 | R42: =RTD("cqg.rtd",,"StudyData", "Close("&$D$12&") when LocalYear("&$D$12&")="&$D$6&" and localMonth("&$D$12&") ="&$E$6&" and LocalDay("&$D$12&")="&$F$6&" and Barix("&$D$12&",reference:=StartOfSession)="&A42&"", "FG", "", "Close","5","0","PrimaryOnly",,,"False","T","EveryTick") -> 12535.75 | S42: 0.005877632899 | T42: =RTD("cqg.rtd",,"StudyData", "Close("&$D$12&") when LocalYear("&$D$12&")="&$D$7&" and localMonth("&$D$12&") ="&$E$7&" and LocalDay("&$D$12&")="&$F$7&" and Barix("&$D$12&",reference:=StartOfSession)="&A42&"", "FG", "", "Close","5","0","PrimaryOnly",,,"False","T","EveryTick") -> 12499.5 | U42: 0.01061184889 | V42: =RTD("cqg.rtd",,"StudyData", "Close("&$D$12&") when LocalYear("&$D$12&")="&$D$8&" and localMonth("&$D$12&") ="&$E$8&" and LocalDay("&$D$12&")="&$F$8&" and Barix("&$D$12&",reference:=StartOfSession)="&A42&"", "FG", "", "Close","5","0","PrimaryOnly",,,"False","T","EveryTick") -> 12272.25 | W42: -0.01036227648 | X42: =RTD("cqg.rtd",,"StudyData", "Close("&$D$12&") when LocalYear("&$D$12&")="&$D$9&" and localMonth("&$D$12&") ="&$E$9&" and LocalDay("&$D$12&")="&$F$9&" and Barix("&$D$12&",reference:=StartOfSession)="&A42&"", "FG", "", "Close","5","0","PrimaryOnly",,,"False","T","EveryTick") -> 12361.25 | Y42: -0.0003234871919 | Z42: =RTD("cqg.rtd",,"StudyData", "Close("&$D$12&") when LocalYear("&$D$12&")="&$D$10&" and localMonth("&$D$12&") ="&$E$10&" and LocalDay("&$D$12&")="&$F$10&" and Barix("&$D$12&",reference:=StartOfSession)="&A42&"", "FG", "", "Close","5","0","PrimaryOnly",,,"False","T","EveryTick") -> 12493 | AA42: -0.01123862287 | AE42: 41
A43: 42 | B43: 12:00:00 | C43: -35 | D43: =RTD("cqg.rtd",,"StudyData", $D$12, "Tick", "FlatTicks=0", "Tick","D",C43,"PrimaryOnly") -> 12677.5 | H43: =RTD("cqg.rtd",,"StudyData", "Close("&$D$12&") when LocalYear("&$D$12&")="&$D$1&" and localMonth("&$D$12&") ="&$E$1&" and LocalDay("&$D$12&")="&$F$1&" and Barix("&$D$12&",reference:=StartOfSession)="&A43&"", "FG", "", "Close","5","0","PrimaryOnly",,,"False","T","EveryTick") ->  | J43: =RTD("cqg.rtd",,"StudyData", "Close("&$D$12&") when LocalYear("&$D$12&")="&$D$2&" and localMonth("&$D$12&") ="&$E$2&" and LocalDay("&$D$12&")="&$F$2&" and Barix("&$D$12&",reference:=StartOfSession)="&A43&"", "FG", "", "Close","5","0","PrimaryOnly",,,"False","T","EveryTick") -> 12643.75 | K43: -0.00540806293 | L43: =RTD("cqg.rtd",,"StudyData", "Close("&$D$12&") when LocalYear("&$D$12&")="&$D$3&" and localMonth("&$D$12&") ="&$E$3&" and LocalDay("&$D$12&")="&$F$3&" and Barix("&$D$12&",reference:=StartOfSession)="&A43&"", "FG", "", "Close","5","0","PrimaryOnly",,,"False","T","EveryTick") -> 12710.25 | M43: -0.003195827778 | N43: =RTD("cqg.rtd",,"StudyData", "Close("&$D$12&") when LocalYear("&$D$12&")="&$D$4&" and localMonth("&$D$12&") ="&$E$4&" and LocalDay("&$D$12&")="&$F$4&" and Barix("&$D$12&",reference:=StartOfSession)="&A43&"", "FG", "", "Close","5","0","PrimaryOnly",,,"False","T","EveryTick") -> 12729 | O43: 0.004597202218 | P43: =RTD("cqg.rtd",,"StudyData", "Close("&$D$12&") when LocalYear("&$D$12&")="&$D$5&" and localMonth("&$D$12&") ="&$E$5&" and LocalDay("&$D$12&")="&$F$5&" and Barix("&$D$12&",reference:=StartOfSession)="&A43&"", "FG", "", "Close","5","0","PrimaryOnly",,,"False","T","EveryTick") -> 12642.5 | Q43: 0.003691648142 | R43: =RTD("cqg.rtd",,"StudyData", "Close("&$D$12&") when LocalYear("&$D$12&")="&$D$6&" and localMonth("&$D$12&") ="&$E$6&" and LocalDay("&$D$12&")="&$F$6&" and Barix("&$D$12&",reference:=StartOfSession)="&A43&"", "FG", "", "Close","5","0","PrimaryOnly",,,"False","T","EveryTick") -> 12537.75 | S43: 0.006038114343 | T43: =RTD("cqg.rtd",,"StudyData", "Close("&$D$12&") when LocalYear("&$D$12&")="&$D$7&" and localMonth("&$D$12&") ="&$E$7&" and LocalDay("&$D$12&")="&$F$7&" and Barix("&$D$12&",reference:=StartOfSession)="&A43&"", "FG", "", "Close","5","0","PrimaryOnly",,,"False","T","EveryTick") -> 12498 | U43: 0.01049057061 | V43: =RTD("cqg.rtd",,"StudyData", "Close("&$D$12&") when LocalYear("&$D$12&")="&$D$8&" and localMonth("&$D$12&") ="&$E$8&" and LocalDay("&$D$12&")="&$F$8&" and Barix("&$D$12&",reference:=StartOfSession)="&A43&"", "FG", "", "Close","5","0","PrimaryOnly",,,"False","T","EveryTick") -> 12286.5 | W43: -0.00921315243 | X43: =RTD("cqg.rtd",,"StudyData", "Close("&$D$12&") when LocalYear("&$D$12&")="&$D$9&" and localMonth("&$D$12&") ="&$E$9&" and LocalDay("&$D$12&")="&$F$9&" and Barix("&$D$12&",reference:=StartOfSession)="&A43&"", "FG", "", "Close","5","0","PrimaryOnly",,,"False","T","EveryTick") -> 12383.25 | Y43: 0.001455692364 | Z43: =RTD("cqg.rtd",,"StudyData", "Close("&$D$12&") when LocalYear("&$D$12&")="&$D$10&" and localMonth("&$D$12&") ="&$E$10&" and LocalDay("&$D$12&")="&$F$10&" and Barix("&$D$12&",reference:=StartOfSession)="&A43&"", "FG", "", "Close","5","0","PrimaryOnly",,,"False","T","EveryTick") -> 12463 | AA43: -0.01361297982
A44: 43 | B44: 12:05:00 | C44: -34 | D44: =RTD("cqg.rtd",,"StudyData", $D$12, "Tick", "FlatTicks=0", "Tick","D",C44,"PrimaryOnly") -> 12677.25 | H44: =RTD("cqg.rtd",,"StudyData", "Close("&$D$12&") when LocalYear("&$D$12&")="&$D$1&" and localMonth("&$D$12&") ="&$E$1&" and LocalDay("&$D$12&")="&$F$1&" and Barix("&$D$12&",reference:=StartOfSession)="&A44&"", "FG", "", "Close","5","0","PrimaryOnly",,,"False","T","EveryTick") ->  | J44: =RTD("cqg.rtd",,"StudyData", "Close("&$D$12&") when LocalYear("&$D$12&")="&$D$2&" and localMonth("&$D$12&") ="&$E$2&" and LocalDay("&$D$12&")="&$F$2&" and Barix("&$D$12&",reference:=StartOfSession)="&A44&"", "FG", "", "Close","5","0","PrimaryOnly",,,"False","T","EveryTick") -> 12660 | K44: -0.00412979351 | L44: =RTD("cqg.rtd",,"StudyData", "Close("&$D$12&") when LocalYear("&$D$12&")="&$D$3&" and localMonth("&$D$12&") ="&$E$3&" and LocalDay("&$D$12&")="&$F$3&" and Barix("&$D$12&",reference:=StartOfSession)="&A44&"", "FG", "", "Close","5","0","PrimaryOnly",,,"False","T","EveryTick") -> 12713.5 | M44: -0.002940945808 | N44: =RTD("cqg.rtd",,"StudyData", "Close("&$D$12&") when LocalYear("&$D$12&")="&$D$4&" and localMonth("&$D$12&") ="&$E$4&" and LocalDay("&$D$12&")="&$F$4&" and Barix("&$D$12&",reference:=StartOfSession)="&A44&"", "FG", "", "Close","5","0","PrimaryOnly",,,"False","T","EveryTick") -> 12730.25 | O44: 0.004695854626 | P44: =RTD("cqg.rtd",,"StudyData", "Close("&$D$12&") when LocalYear("&$D$12&")="&$D$5&" and localMonth("&$D$12&") ="&$E$5&" and LocalDay("&$D$12&")="&$F$5&" and Barix("&$D$12&",reference:=StartOfSession)="&A44&"", "FG", "", "Close","5","0","PrimaryOnly",,,"False","T","EveryTick") -> 12629 | Q44: 0.002619879327 | R44: =RTD("cqg.rtd",,"StudyData", "Close("&$D$12&") when LocalYear("&$D$12&")="&$D$6&" and localMonth("&$D$12&") ="&$E$6&" and LocalDay("&$D$12&")="&$F$6&" and Barix("&$D$12&",reference:=StartOfSession)="&A44&"", "FG", "", "Close","5","0","PrimaryOnly",,,"False","T","EveryTick") -> 12548.25 | S44: 0.006880641926 | T44: =RTD("cqg.rtd",,"StudyData", "Close("&$D$12&") when LocalYear("&$D$12&")="&$D$7&" and localMonth("&$D$12&") ="&$E$7&" and LocalDay("&$D$12&")="&$F$7&" and Barix("&$D$12&",reference:=StartOfSession)="&A44&"", "FG", "", "Close","5","0","PrimaryOnly",,,"False","T","EveryTick") -> 12472.75 | U44: 0.008449053019 | V44: =RTD("cqg.rtd",,"StudyData", "Close("&$D$12&") when LocalYear("&$D$12&")="&$D$8&" and localMonth("&$D$12&") ="&$E$8&" and LocalDay("&$D$12&")="&$F$8&" and Barix("&$D$12&",reference:=StartOfSession)="&A44&"", "FG", "", "Close","5","0","PrimaryOnly",,,"False","T","EveryTick") -> 12286.75 | W44: -0.009192992359 | X44: =RTD("cqg.rtd",,"StudyData", "Close("&$D$12&") when LocalYear("&$D$12&")="&$D$9&" and localMonth("&$D$12&") ="&$E$9&" and LocalDay("&$D$12&")="&$F$9&" and Barix("&$D$12&",reference:=StartOfSession)="&A44&"", "FG", "", "Close","5","0","PrimaryOnly",,,"False","T","EveryTick") -> 12394 | Y44: 0.002325064192 | Z44: =RTD("cqg.rtd",,"StudyData", "Close("&$D$12&") when LocalYear("&$D$12&")="&$D$10&" and localMonth("&$D$12&") ="&$E$10&" and LocalDay("&$D$12&")="&$F$10&" and Barix("&$D$12&",reference:=StartOfSession)="&A44&"", "FG", "", "Close","5","0","PrimaryOnly",,,"False","T","EveryTick") -> 12500 | AA44: -0.01068460625
A45: 44 | B45: 12:10:00 | C45: -33 | D45: =RTD("cqg.rtd",,"StudyData", $D$12, "Tick", "FlatTicks=0", "Tick","D",C45,"PrimaryOnly") -> 12677.75 | H45: =RTD("cqg.rtd",,"StudyData", "Close("&$D$12&") when LocalYear("&$D$12&")="&$D$1&" and localMonth("&$D$12&") ="&$E$1&" and LocalDay("&$D$12&")="&$F$1&" and Barix("&$D$12&",reference:=StartOfSession)="&A45&"", "FG", "", "Close","5","0","PrimaryOnly",,,"False","T","EveryTick") ->  | J45: =RTD("cqg.rtd",,"StudyData", "Close("&$D$12&") when LocalYear("&$D$12&")="&$D$2&" and localMonth("&$D$12&") ="&$E$2&" and LocalDay("&$D$12&")="&$F$2&" and Barix("&$D$12&",reference:=StartOfSession)="&A45&"", "FG", "", "Close","5","0","PrimaryOnly",,,"False","T","EveryTick") -> 12675.75 | K45: -0.002890855457 | L45: =RTD("cqg.rtd",,"StudyData", "Close("&$D$12&") when LocalYear("&$D$12&")="&$D$3&" and localMonth("&$D$12&") ="&$E$3&" and LocalDay("&$D$12&")="&$F$3&" and Barix("&$D$12&",reference:=StartOfSession)="&A45&"", "FG", "", "Close","5","0","PrimaryOnly",,,"False","T","EveryTick") -> 12717.75 | M45: -0.002607638617 | N45: =RTD("cqg.rtd",,"StudyData", "Close("&$D$12&") when LocalYear("&$D$12&")="&$D$4&" and localMonth("&$D$12&") ="&$E$4&" and LocalDay("&$D$12&")="&$F$4&" and Barix("&$D$12&",reference:=StartOfSession)="&A45&"", "FG", "", "Close","5","0","PrimaryOnly",,,"False","T","EveryTick") -> 12727.75 | O45: 0.00449854981 | P45: =RTD("cqg.rtd",,"StudyData", "Close("&$D$12&") when LocalYear("&$D$12&")="&$D$5&" and localMonth("&$D$12&") ="&$E$5&" and LocalDay("&$D$12&")="&$F$5&" and Barix("&$D$12&",reference:=StartOfSession)="&A45&"", "FG", "", "Close","5","0","PrimaryOnly",,,"False","T","EveryTick") -> 12643 | Q45: 0.003731343284 | R45: =RTD("cqg.rtd",,"StudyData", "Close("&$D$12&") when LocalYear("&$D$12&")="&$D$6&" and localMonth("&$D$12&") ="&$E$6&" and LocalDay("&$D$12&")="&$F$6&" and Barix("&$D$12&",reference:=StartOfSession)="&A45&"", "FG", "", "Close","5","0","PrimaryOnly",,,"False","T","EveryTick") -> 12546.5 | S45: 0.006740220662 | T45: =RTD("cqg.rtd",,"StudyData", "Close("&$D$12&") when LocalYear("&$D$12&")="&$D$7&" and localMonth("&$D$12&") ="&$E$7&" and LocalDay("&$D$12&")="&$F$7&" and Barix("&$D$12&",reference:=StartOfSession)="&A45&"", "FG", "", "Close","5","0","PrimaryOnly",,,"False","T","EveryTick") -> 12486.25 | U45: 0.009540557476 | V45: =RTD("cqg.rtd",,"StudyData", "Close("&$D$12&") when LocalYear("&$D$12&")="&$D$8&" and localMonth("&$D$12&") ="&$E$8&" and LocalDay("&$D$12&")="&$F$8&" and Barix("&$D$12&",reference:=StartOfSession)="&A45&"", "FG", "", "Close","5","0","PrimaryOnly",,,"False","T","EveryTick") -> 12299 | W45: -0.008205148882 | X45: =RTD("cqg.rtd",,"StudyData", "Close("&$D$12&") when LocalYear("&$D$12&")="&$D$9&" and localMonth("&$D$12&") ="&$E$9&" and LocalDay("&$D$12&")="&$F$9&" and Barix("&$D$12&",reference:=StartOfSession)="&A45&"", "FG", "", "Close","5","0","PrimaryOnly",,,"False","T","EveryTick") -> 12401.25 | Y45: 0.002911384727 | Z45: =RTD("cqg.rtd",,"StudyData", "Close("&$D$12&") when LocalYear("&$D$12&")="&$D$10&" and localMonth("&$D$12&") ="&$E$10&" and LocalDay("&$D$12&")="&$F$10&" and Barix("&$D$12&",reference:=StartOfSession)="&A45&"", "FG", "", "Close","5","0","PrimaryOnly",,,"False","T","EveryTick") -> 12475 | AA45: -0.01266323704
A46: 45 | B46: 12:15:00 | C46: -32 | D46: =RTD("cqg.rtd",,"StudyData", $D$12, "Tick", "FlatTicks=0", "Tick","D",C46,"PrimaryOnly") -> 12677.5 | H46: =RTD("cqg.rtd",,"StudyData", "Close("&$D$12&") when LocalYear("&$D$12&")="&$D$1&" and localMonth("&$D$12&") ="&$E$1&" and LocalDay("&$D$12&")="&$F$1&" and Barix("&$D$12&",reference:=StartOfSession)="&A46&"", "FG", "", "Close","5","0","PrimaryOnly",,,"False","T","EveryTick") ->  | J46: =RTD("cqg.rtd",,"StudyData", "Close("&$D$12&") when LocalYear("&$D$12&")="&$D$2&" and localMonth("&$D$12&") ="&$E$2&" and LocalDay("&$D$12&")="&$F$2&" and Barix("&$D$12&",reference:=StartOfSession)="&A46&"", "FG", "", "Close","5","0","PrimaryOnly",,,"False","T","EveryTick") -> 12675.75 | K46: -0.002890855457 | L46: =RTD("cqg.rtd",,"StudyData", "Close("&$D$12&") when LocalYear("&$D$12&")="&$D$3&" and localMonth("&$D$12&") ="&$E$3&" and LocalDay("&$D$12&")="&$F$3&" and Barix("&$D$12&",reference:=StartOfSession)="&A46&"", "FG", "", "Close","5","0","PrimaryOnly",,,"False","T","EveryTick") -> 12714 | M46: -0.002901733197 | N46: =RTD("cqg.rtd",,"StudyData", "Close("&$D$12&") when LocalYear("&$D$12&")="&$D$4&" and localMonth("&$D$12&") ="&$E$4&" and LocalDay("&$D$12&")="&$F$4&" and Barix("&$D$12&",reference:=StartOfSession)="&A46&"", "FG", "", "Close","5","0","PrimaryOnly",,,"False","T","EveryTick") -> 12720 | O46: 0.003886904879 | P46: =RTD("cqg.rtd",,"StudyData", "Close("&$D$12&") when LocalYear("&$D$12&")="&$D$5&" and localMonth("&$D$12&") ="&$E$5&" and LocalDay("&$D$12&")="&$F$5&" and Barix("&$D$12&",reference:=StartOfSession)="&A46&"", "FG", "", "Close","5","0","PrimaryOnly",,,"False","T","EveryTick") -> 12640.25 | Q46: 0.003513020006 | R46: =RTD("cqg.rtd",,"StudyData", "Close("&$D$12&") when LocalYear("&$D$12&")="&$D$6&" and localMonth("&$D$12&") ="&$E$6&" and LocalDay("&$D$12&")="&$F$6&" and Barix("&$D$12&",reference:=StartOfSession)="&A46&"", "FG", "", "Close","5","0","PrimaryOnly",,,"False","T","EveryTick") -> 12548.75 | S46: 0.006920762287 | T46: =RTD("cqg.rtd",,"StudyData", "Close("&$D$12&") when LocalYear("&$D$12&")="&$D$7&" and localMonth("&$D$12&") ="&$E$7&" and LocalDay("&$D$12&")="&$F$7&" and Barix("&$D$12&",reference:=StartOfSession)="&A46&"", "FG", "", "Close","5","0","PrimaryOnly",,,"False","T","EveryTick") -> 12495.5 | U46: 0.01028844016 | V46: =RTD("cqg.rtd",,"StudyData", "Close("&$D$12&") when LocalYear("&$D$12&")="&$D$8&" and localMonth("&$D$12&") ="&$E$8&" and LocalDay("&$D$12&")="&$F$8&" and Barix("&$D$12&",reference:=StartOfSession)="&A46&"", "FG", "", "Close","5","0","PrimaryOnly",,,"False","T","EveryTick") -> 12293.75 | W46: -0.008628510372 | X46: =RTD("cqg.rtd",,"StudyData", "Close("&$D$12&") when LocalYear("&$D$12&")="&$D$9&" and localMonth("&$D$12&") ="&$E$9&" and LocalDay("&$D$12&")="&$F$9&" and Barix("&$D$12&",reference:=StartOfSession)="&A46&"", "FG", "", "Close","5","0","PrimaryOnly",,,"False","T","EveryTick") -> 12400.75 | Y46: 0.002870948828 | Z46: =RTD("cqg.rtd",,"StudyData", "Close("&$D$12&") when LocalYear("&$D$12&")="&$D$10&" and localMonth("&$D$12&") ="&$E$10&" and LocalDay("&$D$12&")="&$F$10&" and Barix("&$D$12&",reference:=StartOfSession)="&A46&"", "FG", "", "Close","5","0","PrimaryOnly",,,"False","T","EveryTick") -> 12466.5 | AA46: -0.01333597151
A47: 46 | B47: 12:20:00 | C47: -31 | D47: =RTD("cqg.rtd",,"StudyData", $D$12, "Tick", "FlatTicks=0", "Tick","D",C47,"PrimaryOnly") -> 12677.75 | H47: =RTD("cqg.rtd",,"StudyData", "Close("&$D$12&") when LocalYear("&$D$12&")="&$D$1&" and localMonth("&$D$12&") ="&$E$1&" and LocalDay("&$D$12&")="&$F$1&" and Barix("&$D$12&",reference:=StartOfSession)="&A47&"", "FG", "", "Close","5","0","PrimaryOnly",,,"False","T","EveryTick") ->  | J47: =RTD("cqg.rtd",,"StudyData", "Close("&$D$12&") when LocalYear("&$D$12&")="&$D$2&" and localMonth("&$D$12&") ="&$E$2&" and LocalDay("&$D$12&")="&$F$2&" and Barix("&$D$12&",reference:=StartOfSession)="&A47&"", "FG", "", "Close","5","0","PrimaryOnly",,,"False","T","EveryTick") -> 12671.25 | K47: -0.003244837758 | L47: =RTD("cqg.rtd",,"StudyData", "Close("&$D$12&") when LocalYear("&$D$12&")="&$D$3&" and localMonth("&$D$12&") ="&$E$3&" and LocalDay("&$D$12&")="&$F$3&" and Barix("&$D$12&",reference:=StartOfSession)="&A47&"", "FG", "", "Close","5","0","PrimaryOnly",,,"False","T","EveryTick") -> 12694.75 | M47: -0.004411418712 | N47: =RTD("cqg.rtd",,"StudyData", "Close("&$D$12&") when LocalYear("&$D$12&")="&$D$4&" and localMonth("&$D$12&") ="&$E$4&" and LocalDay("&$D$12&")="&$F$4&" and Barix("&$D$12&",reference:=StartOfSession)="&A47&"", "FG", "", "Close","5","0","PrimaryOnly",,,"False","T","EveryTick") -> 12725.75 | O47: 0.004340705957 | P47: =RTD("cqg.rtd",,"StudyData", "Close("&$D$12&") when LocalYear("&$D$12&")="&$D$5&" and localMonth("&$D$12&") ="&$E$5&" and LocalDay("&$D$12&")="&$F$5&" and Barix("&$D$12&",reference:=StartOfSession)="&A47&"", "FG", "", "Close","5","0","PrimaryOnly",,,"False","T","EveryTick") -> 12641.75 | Q47: 0.00363210543 | R47: =RTD("cqg.rtd",,"StudyData", "Close("&$D$12&") when LocalYear("&$D$12&")="&$D$6&" and localMonth("&$D$12&") ="&$E$6&" and LocalDay("&$D$12&")="&$F$6&" and Barix("&$D$12&",reference:=StartOfSession)="&A47&"", "FG", "", "Close","5","0","PrimaryOnly",,,"False","T","EveryTick") -> 12545.25 | S47: 0.006639919759 | T47: =RTD("cqg.rtd",,"StudyData", "Close("&$D$12&") when LocalYear("&$D$12&")="&$D$7&" and localMonth("&$D$12&") ="&$E$7&" and LocalDay("&$D$12&")="&$F$7&" and Barix("&$D$12&",reference:=StartOfSession)="&A47&"", "FG", "", "Close","5","0","PrimaryOnly",,,"False","T","EveryTick") -> 12492.75 | U47: 0.01006609666 | V47: =RTD("cqg.rtd",,"StudyData", "Close("&$D$12&") when LocalYear("&$D$12&")="&$D$8&" and localMonth("&$D$12&") ="&$E$8&" and LocalDay("&$D$12&")="&$F$8&" and Barix("&$D$12&",reference:=StartOfSession)="&A47&"", "FG", "", "Close","5","0","PrimaryOnly",,,"False","T","EveryTick") -> 12281.75 | W47: -0.009596193779 | X47: =RTD("cqg.rtd",,"StudyData", "Close("&$D$12&") when LocalYear("&$D$12&")="&$D$9&" and localMonth("&$D$12&") ="&$E$9&" and LocalDay("&$D$12&")="&$F$9&" and Barix("&$D$12&",reference:=StartOfSession)="&A47&"", "FG", "", "Close","5","0","PrimaryOnly",,,"False","T","EveryTick") -> 12395.25 | Y47: 0.002426153939 | Z47: =RTD("cqg.rtd",,"StudyData", "Close("&$D$12&") when LocalYear("&$D$12&")="&$D$10&" and localMonth("&$D$12&") ="&$E$10&" and LocalDay("&$D$12&")="&$F$10&" and Barix("&$D$12&",reference:=StartOfSession)="&A47&"", "FG", "", "Close","5","0","PrimaryOnly",,,"False","T","EveryTick") -> 12464 | AA47: -0.01353383459
A48: 47 | B48: 12:25:00 | C48: -30 | D48: =RTD("cqg.rtd",,"StudyData", $D$12, "Tick", "FlatTicks=0", "Tick","D",C48,"PrimaryOnly") -> 12677.25 | H48: =RTD("cqg.rtd",,"StudyData", "Close("&$D$12&") when LocalYear("&$D$12&")="&$D$1&" and localMonth("&$D$12&") ="&$E$1&" and LocalDay("&$D$12&")="&$F$1&" and Barix("&$D$12&",reference:=StartOfSession)="&A48&"", "FG", "", "Close","5","0","PrimaryOnly",,,"False","T","EveryTick") ->  | J48: =RTD("cqg.rtd",,"StudyData", "Close("&$D$12&") when LocalYear("&$D$12&")="&$D$2&" and localMonth("&$D$12&") ="&$E$2&" and LocalDay("&$D$12&")="&$F$2&" and Barix("&$D$12&",reference:=StartOfSession)="&A48&"", "FG", "", "Close","5","0","PrimaryOnly",,,"False","T","EveryTick") -> 12670.5 | K48: -0.003303834808 | L48: =RTD("cqg.rtd",,"StudyData", "Close("&$D$12&") when LocalYear("&$D$12&")="&$D$3&" and localMonth("&$D$12&") ="&$E$3&" and LocalDay("&$D$12&")="&$F$3&" and Barix("&$D$12&",reference:=StartOfSession)="&A48&"", "FG", "", "Close","5","0","PrimaryOnly",,,"False","T","EveryTick") -> 12700.75 | M48: -0.003940867383 | N48: =RTD("cqg.rtd",,"StudyData", "Close("&$D$12&") when LocalYear("&$D$12&")="&$D$4&" and localMonth("&$D$12&") ="&$E$4&" and LocalDay("&$D$12&")="&$F$4&" and Barix("&$D$12&",reference:=StartOfSession)="&A48&"", "FG", "", "Close","5","0","PrimaryOnly",,,"False","T","EveryTick") -> 12722 | O48: 0.004044748732 | P48: =RTD("cqg.rtd",,"StudyData", "Close("&$D$12&") when LocalYear("&$D$12&")="&$D$5&" and localMonth("&$D$12&") ="&$E$5&" and LocalDay("&$D$12&")="&$F$5&" and Barix("&$D$12&",reference:=StartOfSession)="&A48&"", "FG", "", "Close","5","0","PrimaryOnly",,,"False","T","EveryTick") -> 12634 | Q48: 0.00301683074 | R48: =RTD("cqg.rtd",,"StudyData", "Close("&$D$12&") when LocalYear("&$D$12&")="&$D$6&" and localMonth("&$D$12&") ="&$E$6&" and LocalDay("&$D$12&")="&$F$6&" and Barix("&$D$12&",reference:=StartOfSession)="&A48&"", "FG", "", "Close","5","0","PrimaryOnly",,,"False","T","EveryTick") -> 12545.5 | S48: 0.00665997994 | T48: =RTD("cqg.rtd",,"StudyData", "Close("&$D$12&") when LocalYear("&$D$12&")="&$D$7&" and localMonth("&$D$12&") ="&$E$7&" and LocalDay("&$D$12&")="&$F$7&" and Barix("&$D$12&",reference:=StartOfSession)="&A48&"", "FG", "", "Close","5","0","PrimaryOnly",,,"False","T","EveryTick") -> 12489.25 | U48: 0.009783114022 | V48: =RTD("cqg.rtd",,"StudyData", "Close("&$D$12&") when LocalYear("&$D$12&")="&$D$8&" and localMonth("&$D$12&") ="&$E$8&" and LocalDay("&$D$12&")="&$F$8&" and Barix("&$D$12&",reference:=StartOfSession)="&A48&"", "FG", "", "Close","5","0","PrimaryOnly",,,"False","T","EveryTick") -> 12292.25 | W48: -0.008749470798 | X48: =RTD("cqg.rtd",,"StudyData", "Close("&$D$12&") when LocalYear("&$D$12&")="&$D$9&" and localMonth("&$D$12&") ="&$E$9&" and LocalDay("&$D$12&")="&$F$9&" and Barix("&$D$12&",reference:=StartOfSession)="&A48&"", "FG", "", "Close","5","0","PrimaryOnly",,,"False","T","EveryTick") -> 12408 | Y48: 0.003457269364 | Z48: =RTD("cqg.rtd",,"StudyData", "Close("&$D$12&") when LocalYear("&$D$12&")="&$D$10&" and localMonth("&$D$12&") ="&$E$10&" and LocalDay("&$D$12&")="&$F$10&" and Barix("&$D$12&",reference:=StartOfSession)="&A48&"", "FG", "", "Close","5","0","PrimaryOnly",,,"False","T","EveryTick") -> 12432.75 | AA48: -0.01600712307
A49: 48 | B49: 12:30:00 | C49: -29 | D49: =RTD("cqg.rtd",,"StudyData", $D$12, "Tick", "FlatTicks=0", "Tick","D",C49,"PrimaryOnly") -> 12677 | H49: =RTD("cqg.rtd",,"StudyData", "Close("&$D$12&") when LocalYear("&$D$12&")="&$D$1&" and localMonth("&$D$12&") ="&$E$1&" and LocalDay("&$D$12&")="&$F$1&" and Barix("&$D$12&",reference:=StartOfSession)="&A49&"", "FG", "", "Close","5","0","PrimaryOnly",,,"False","T","EveryTick") ->  | J49: =RTD("cqg.rtd",,"StudyData", "Close("&$D$12&") when LocalYear("&$D$12&")="&$D$2&" and localMonth("&$D$12&") ="&$E$2&" and LocalDay("&$D$12&")="&$F$2&" and Barix("&$D$12&",reference:=StartOfSession)="&A49&"", "FG", "", "Close","5","0","PrimaryOnly",,,"False","T","EveryTick") -> 12681 | K49: -0.002477876106 | L49: =RTD("cqg.rtd",,"StudyData", "Close("&$D$12&") when LocalYear("&$D$12&")="&$D$3&" and localMonth("&$D$12&") ="&$E$3&" and LocalDay("&$D$12&")="&$F$3&" and Barix("&$D$12&",reference:=StartOfSession)="&A49&"", "FG", "", "Close","5","0","PrimaryOnly",,,"False","T","EveryTick") -> 12693.5 | M49: -0.004509450239 | N49: =RTD("cqg.rtd",,"StudyData", "Close("&$D$12&") when LocalYear("&$D$12&")="&$D$4&" and localMonth("&$D$12&") ="&$E$4&" and LocalDay("&$D$12&")="&$F$4&" and Barix("&$D$12&",reference:=StartOfSession)="&A49&"", "FG", "", "Close","5","0","PrimaryOnly",,,"False","T","EveryTick") -> 12719.5 | O49: 0.003847443916 | P49: =RTD("cqg.rtd",,"StudyData", "Close("&$D$12&") when LocalYear("&$D$12&")="&$D$5&" and localMonth("&$D$12&") ="&$E$5&" and LocalDay("&$D$12&")="&$F$5&" and Barix("&$D$12&",reference:=StartOfSession)="&A49&"", "FG", "", "Close","5","0","PrimaryOnly",,,"False","T","EveryTick") -> 12647.5 | Q49: 0.004088599555 | R49: =RTD("cqg.rtd",,"StudyData", "Close("&$D$12&") when LocalYear("&$D$12&")="&$D$6&" and localMonth("&$D$12&") ="&$E$6&" and LocalDay("&$D$12&")="&$F$6&" and Barix("&$D$12&",reference:=StartOfSession)="&A49&"", "FG", "", "Close","5","0","PrimaryOnly",,,"False","T","EveryTick") -> 12547.75 | S49: 0.006840521565 | T49: =RTD("cqg.rtd",,"StudyData", "Close("&$D$12&") when LocalYear("&$D$12&")="&$D$7&" and localMonth("&$D$12&") ="&$E$7&" and LocalDay("&$D$12&")="&$F$7&" and Barix("&$D$12&",reference:=StartOfSession)="&A49&"", "FG", "", "Close","5","0","PrimaryOnly",,,"False","T","EveryTick") -> 12504 | U49: 0.01097568371 | V49: =RTD("cqg.rtd",,"StudyData", "Close("&$D$12&") when LocalYear("&$D$12&")="&$D$8&" and localMonth("&$D$12&") ="&$E$8&" and LocalDay("&$D$12&")="&$F$8&" and Barix("&$D$12&",reference:=StartOfSession)="&A49&"", "FG", "", "Close","5","0","PrimaryOnly",,,"False","T","EveryTick") -> 12309 | W49: -0.007398746044 | X49: =RTD("cqg.rtd",,"StudyData", "Close("&$D$12&") when LocalYear("&$D$12&")="&$D$9&" and localMonth("&$D$12&") ="&$E$9&" and LocalDay("&$D$12&")="&$F$9&" and Barix("&$D$12&",reference:=StartOfSession)="&A49&"", "FG", "", "Close","5","0","PrimaryOnly",,,"False","T","EveryTick") -> 12398.25 | Y49: 0.002668769333 | Z49: =RTD("cqg.rtd",,"StudyData", "Close("&$D$12&") when LocalYear("&$D$12&")="&$D$10&" and localMonth("&$D$12&") ="&$E$10&" and LocalDay("&$D$12&")="&$F$10&" and Barix("&$D$12&",reference:=StartOfSession)="&A49&"", "FG", "", "Close","5","0","PrimaryOnly",,,"False","T","EveryTick") -> 12395.75 | AA49: -0.01893549664
A50: 49 | B50: 12:35:00 | C50: -28 | D50: =RTD("cqg.rtd",,"StudyData", $D$12, "Tick", "FlatTicks=0", "Tick","D",C50,"PrimaryOnly") -> 12676.75 | H50: =RTD("cqg.rtd",,"StudyData", "Close("&$D$12&") when LocalYear("&$D$12&")="&$D$1&" and localMonth("&$D$12&") ="&$E$1&" and LocalDay("&$D$12&")="&$F$1&" and Barix("&$D$12&",reference:=StartOfSession)="&A50&"", "FG", "", "Close","5","0","PrimaryOnly",,,"False","T","EveryTick") ->  | J50: =RTD("cqg.rtd",,"StudyData", "Close("&$D$12&") when LocalYear("&$D$12&")="&$D$2&" and localMonth("&$D$12&") ="&$E$2&" and LocalDay("&$D$12&")="&$F$2&" and Barix("&$D$12&",reference:=StartOfSession)="&A50&"", "FG", "", "Close","5","0","PrimaryOnly",,,"False","T","EveryTick") -> 12679.25 | K50: -0.00261553589 | L50: =RTD("cqg.rtd",,"StudyData", "Close("&$D$12&") when LocalYear("&$D$12&")="&$D$3&" and localMonth("&$D$12&") ="&$E$3&" and LocalDay("&$D$12&")="&$F$3&" and Barix("&$D$12&",reference:=StartOfSession)="&A50&"", "FG", "", "Close","5","0","PrimaryOnly",,,"False","T","EveryTick") -> 12677 | M50: -0.005803466395 | N50: =RTD("cqg.rtd",,"StudyData", "Close("&$D$12&") when LocalYear("&$D$12&")="&$D$4&" and localMonth("&$D$12&") ="&$E$4&" and LocalDay("&$D$12&")="&$F$4&" and Barix("&$D$12&",reference:=StartOfSession)="&A50&"", "FG", "", "Close","5","0","PrimaryOnly",,,"False","T","EveryTick") -> 12718.25 | O50: 0.003748791508 | P50: =RTD("cqg.rtd",,"StudyData", "Close("&$D$12&") when LocalYear("&$D$12&")="&$D$5&" and localMonth("&$D$12&") ="&$E$5&" and LocalDay("&$D$12&")="&$F$5&" and Barix("&$D$12&",reference:=StartOfSession)="&A50&"", "FG", "", "Close","5","0","PrimaryOnly",,,"False","T","EveryTick") -> 12649.25 | Q50: 0.00422753255 | R50: =RTD("cqg.rtd",,"StudyData", "Close("&$D$12&") when LocalYear("&$D$12&")="&$D$6&" and localMonth("&$D$12&") ="&$E$6&" and LocalDay("&$D$12&")="&$F$6&" and Barix("&$D$12&",reference:=StartOfSession)="&A50&"", "FG", "", "Close","5","0","PrimaryOnly",,,"False","T","EveryTick") -> 12557.25 | S50: 0.007602808425 | T50: =RTD("cqg.rtd",,"StudyData", "Close("&$D$12&") when LocalYear("&$D$12&")="&$D$7&" and localMonth("&$D$12&") ="&$E$7&" and LocalDay("&$D$12&")="&$F$7&" and Barix("&$D$12&",reference:=StartOfSession)="&A50&"", "FG", "", "Close","5","0","PrimaryOnly",,,"False","T","EveryTick") -> 12505.25 | U50: 0.01107674893 | V50: =RTD("cqg.rtd",,"StudyData", "Close("&$D$12&") when LocalYear("&$D$12&")="&$D$8&" and localMonth("&$D$12&") ="&$E$8&" and LocalDay("&$D$12&")="&$F$8&" and Barix("&$D$12&",reference:=StartOfSession)="&A50&"", "FG", "", "Close","5","0","PrimaryOnly",,,"False","T","EveryTick") -> 12318.75 | W50: -0.006612503276 | X50: =RTD("cqg.rtd",,"StudyData", "Close("&$D$12&") when LocalYear("&$D$12&")="&$D$9&" and localMonth("&$D$12&") ="&$E$9&" and LocalDay("&$D$12&")="&$F$9&" and Barix("&$D$12&",reference:=StartOfSession)="&A50&"", "FG", "", "Close","5","0","PrimaryOnly",,,"False","T","EveryTick") -> 12398.25 | Y50: 0.002668769333 | Z50: =RTD("cqg.rtd",,"StudyData", "Close("&$D$12&") when LocalYear("&$D$12&")="&$D$10&" and localMonth("&$D$12&") ="&$E$10&" and LocalDay("&$D$12&")="&$F$10&" and Barix("&$D$12&",reference:=StartOfSession)="&A50&"", "FG", "", "Close","5","0","PrimaryOnly",,,"False","T","EveryTick") -> 12407 | AA50: -0.01804511278
A51: 50 | B51: 12:40:00 | C51: -27 | D51: =RTD("cqg.rtd",,"StudyData", $D$12, "Tick", "FlatTicks=0", "Tick","D",C51,"PrimaryOnly") -> 12676.5 | H51: =RTD("cqg.rtd",,"StudyData", "Close("&$D$12&") when LocalYear("&$D$12&")="&$D$1&" and localMonth("&$D$12&") ="&$E$1&" and LocalDay("&$D$12&")="&$F$1&" and Barix("&$D$12&",reference:=StartOfSession)="&A51&"", "FG", "", "Close","5","0","PrimaryOnly",,,"False","T","EveryTick") ->  | J51: =RTD("cqg.rtd",,"StudyData", "Close("&$D$12&") when LocalYear("&$D$12&")="&$D$2&" and localMonth("&$D$12&") ="&$E$2&" and LocalDay("&$D$12&")="&$F$2&" and Barix("&$D$12&",reference:=StartOfSession)="&A51&"", "FG", "", "Close","5","0","PrimaryOnly",,,"False","T","EveryTick") -> 12688.75 | K51: -0.001868239921 | L51: =RTD("cqg.rtd",,"StudyData", "Close("&$D$12&") when LocalYear("&$D$12&")="&$D$3&" and localMonth("&$D$12&") ="&$E$3&" and LocalDay("&$D$12&")="&$F$3&" and Barix("&$D$12&",reference:=StartOfSession)="&A51&"", "FG", "", "Close","5","0","PrimaryOnly",,,"False","T","EveryTick") -> 12686.75 | M51: -0.005038820485 | N51: =RTD("cqg.rtd",,"StudyData", "Close("&$D$12&") when LocalYear("&$D$12&")="&$D$4&" and localMonth("&$D$12&") ="&$E$4&" and LocalDay("&$D$12&")="&$F$4&" and Barix("&$D$12&",reference:=StartOfSession)="&A51&"", "FG", "", "Close","5","0","PrimaryOnly",,,"False","T","EveryTick") -> 12724.25 | O51: 0.004222323067 | P51: =RTD("cqg.rtd",,"StudyData", "Close("&$D$12&") when LocalYear("&$D$12&")="&$D$5&" and localMonth("&$D$12&") ="&$E$5&" and LocalDay("&$D$12&")="&$F$5&" and Barix("&$D$12&",reference:=StartOfSession)="&A51&"", "FG", "", "Close","5","0","PrimaryOnly",,,"False","T","EveryTick") -> 12652 | Q51: 0.004445855827 | R51: =RTD("cqg.rtd",,"StudyData", "Close("&$D$12&") when LocalYear("&$D$12&")="&$D$6&" and localMonth("&$D$12&") ="&$E$6&" and LocalDay("&$D$12&")="&$F$6&" and Barix("&$D$12&",reference:=StartOfSession)="&A51&"", "FG", "", "Close","5","0","PrimaryOnly",,,"False","T","EveryTick") -> 12550.25 | S51: 0.00704112337 | T51: =RTD("cqg.rtd",,"StudyData", "Close("&$D$12&") when LocalYear("&$D$12&")="&$D$7&" and localMonth("&$D$12&") ="&$E$7&" and LocalDay("&$D$12&")="&$F$7&" and Barix("&$D$12&",reference:=StartOfSession)="&A51&"", "FG", "", "Close","5","0","PrimaryOnly",,,"False","T","EveryTick") -> 12507 | U51: 0.01121824025 | V51: =RTD("cqg.rtd",,"StudyData", "Close("&$D$12&") when LocalYear("&$D$12&")="&$D$8&" and localMonth("&$D$12&") ="&$E$8&" and LocalDay("&$D$12&")="&$F$8&" and Barix("&$D$12&",reference:=StartOfSession)="&A51&"", "FG", "", "Close","5","0","PrimaryOnly",,,"False","T","EveryTick") -> 12317.25 | W51: -0.006733463702 | X51: =RTD("cqg.rtd",,"StudyData", "Close("&$D$12&") when LocalYear("&$D$12&")="&$D$9&" and localMonth("&$D$12&") ="&$E$9&" and LocalDay("&$D$12&")="&$F$9&" and Barix("&$D$12&",reference:=StartOfSession)="&A51&"", "FG", "", "Close","5","0","PrimaryOnly",,,"False","T","EveryTick") -> 12390 | Y51: 0.002001577 | Z51: =RTD("cqg.rtd",,"StudyData", "Close("&$D$12&") when LocalYear("&$D$12&")="&$D$10&" and localMonth("&$D$12&") ="&$E$10&" and LocalDay("&$D$12&")="&$F$10&" and Barix("&$D$12&",reference:=StartOfSession)="&A51&"", "FG", "", "Close","5","0","PrimaryOnly",,,"False","T","EveryTick") -> 12397.25 | AA51: -0.01881677879
A52: 51 | B52: 12:45:00 | C52: -26 | D52: =RTD("cqg.rtd",,"StudyData", $D$12, "Tick", "FlatTicks=0", "Tick","D",C52,"PrimaryOnly") -> 12676.75 | H52: =RTD("cqg.rtd",,"StudyData", "Close("&$D$12&") when LocalYear("&$D$12&")="&$D$1&" and localMonth("&$D$12&") ="&$E$1&" and LocalDay("&$D$12&")="&$F$1&" and Barix("&$D$12&",reference:=StartOfSession)="&A52&"", "FG", "", "Close","5","0","PrimaryOnly",,,"False","T","EveryTick") ->  | J52: =RTD("cqg.rtd",,"StudyData", "Close("&$D$12&") when LocalYear("&$D$12&")="&$D$2&" and localMonth("&$D$12&") ="&$E$2&" and LocalDay("&$D$12&")="&$F$2&" and Barix("&$D$12&",reference:=StartOfSession)="&A52&"", "FG", "", "Close","5","0","PrimaryOnly",,,"False","T","EveryTick") -> 12681.25 | K52: -0.002458210423 | L52: =RTD("cqg.rtd",,"StudyData", "Close("&$D$12&") when LocalYear("&$D$12&")="&$D$3&" and localMonth("&$D$12&") ="&$E$3&" and LocalDay("&$D$12&")="&$F$3&" and Barix("&$D$12&",reference:=StartOfSession)="&A52&"", "FG", "", "Close","5","0","PrimaryOnly",,,"False","T","EveryTick") -> 12685.75 | M52: -0.005117245706 | N52: =RTD("cqg.rtd",,"StudyData", "Close("&$D$12&") when LocalYear("&$D$12&")="&$D$4&" and localMonth("&$D$12&") ="&$E$4&" and LocalDay("&$D$12&")="&$F$4&" and Barix("&$D$12&",reference:=StartOfSession)="&A52&"", "FG", "", "Close","5","0","PrimaryOnly",,,"False","T","EveryTick") -> 12731 | O52: 0.004755046071 | P52: =RTD("cqg.rtd",,"StudyData", "Close("&$D$12&") when LocalYear("&$D$12&")="&$D$5&" and localMonth("&$D$12&") ="&$E$5&" and LocalDay("&$D$12&")="&$F$5&" and Barix("&$D$12&",reference:=StartOfSession)="&A52&"", "FG", "", "Close","5","0","PrimaryOnly",,,"False","T","EveryTick") -> 12650 | Q52: 0.004287075262 | R52: =RTD("cqg.rtd",,"StudyData", "Close("&$D$12&") when LocalYear("&$D$12&")="&$D$6&" and localMonth("&$D$12&") ="&$E$6&" and LocalDay("&$D$12&")="&$F$6&" and Barix("&$D$12&",reference:=StartOfSession)="&A52&"", "FG", "", "Close","5","0","PrimaryOnly",,,"False","T","EveryTick") -> 12553 | S52: 0.007261785356 | T52: =RTD("cqg.rtd",,"StudyData", "Close("&$D$12&") when LocalYear("&$D$12&")="&$D$7&" and localMonth("&$D$12&") ="&$E$7&" and LocalDay("&$D$12&")="&$F$7&" and Barix("&$D$12&",reference:=StartOfSession)="&A52&"", "FG", "", "Close","5","0","PrimaryOnly",,,"False","T","EveryTick") -> 12501.25 | U52: 0.01075334021 | V52: =RTD("cqg.rtd",,"StudyData", "Close("&$D$12&") when LocalYear("&$D$12&")="&$D$8&" and localMonth("&$D$12&") ="&$E$8&" and LocalDay("&$D$12&")="&$F$8&" and Barix("&$D$12&",reference:=StartOfSession)="&A52&"", "FG", "", "Close","5","0","PrimaryOnly",,,"False","T","EveryTick") -> 12318.5 | W52: -0.006632663347 | X52: =RTD("cqg.rtd",,"StudyData", "Close("&$D$12&") when LocalYear("&$D$12&")="&$D$9&" and localMonth("&$D$12&") ="&$E$9&" and LocalDay("&$D$12&")="&$F$9&" and Barix("&$D$12&",reference:=StartOfSession)="&A52&"", "FG", "", "Close","5","0","PrimaryOnly",,,"False","T","EveryTick") -> 12388 | Y52: 0.001839833404 | Z52: =RTD("cqg.rtd",,"StudyData", "Close("&$D$12&") when LocalYear("&$D$12&")="&$D$10&" and localMonth("&$D$12&") ="&$E$10&" and LocalDay("&$D$12&")="&$F$10&" and Barix("&$D$12&",reference:=StartOfSession)="&A52&"", "FG", "", "Close","5","0","PrimaryOnly",,,"False","T","EveryTick") -> 12408.5 | AA52: -0.01792639493
A53: 52 | B53: 12:50:00 | C53: -25 | D53: =RTD("cqg.rtd",,"StudyData", $D$12, "Tick", "FlatTicks=0", "Tick","D",C53,"PrimaryOnly") -> 12677.25 | H53: =RTD("cqg.rtd",,"StudyData", "Close("&$D$12&") when LocalYear("&$D$12&")="&$D$1&" and localMonth("&$D$12&") ="&$E$1&" and LocalDay("&$D$12&")="&$F$1&" and Barix("&$D$12&",reference:=StartOfSession)="&A53&"", "FG", "", "Close","5","0","PrimaryOnly",,,"False","T","EveryTick") ->  | J53: =RTD("cqg.rtd",,"StudyData", "Close("&$D$12&") when LocalYear("&$D$12&")="&$D$2&" and localMonth("&$D$12&") ="&$E$2&" and LocalDay("&$D$12&")="&$F$2&" and Barix("&$D$12&",reference:=StartOfSession)="&A53&"", "FG", "", "Close","5","0","PrimaryOnly",,,"False","T","EveryTick") -> 12696.25 | K53: -0.00127826942 | L53: =RTD("cqg.rtd",,"StudyData", "Close("&$D$12&") when LocalYear("&$D$12&")="&$D$3&" and localMonth("&$D$12&") ="&$E$3&" and LocalDay("&$D$12&")="&$F$3&" and Barix("&$D$12&",reference:=StartOfSession)="&A53&"", "FG", "", "Close","5","0","PrimaryOnly",,,"False","T","EveryTick") -> 12684.25 | M53: -0.005234883539 | N53: =RTD("cqg.rtd",,"StudyData", "Close("&$D$12&") when LocalYear("&$D$12&")="&$D$4&" and localMonth("&$D$12&") ="&$E$4&" and LocalDay("&$D$12&")="&$F$4&" and Barix("&$D$12&",reference:=StartOfSession)="&A53&"", "FG", "", "Close","5","0","PrimaryOnly",,,"False","T","EveryTick") -> 12733.75 | O53: 0.004972081369 | P53: =RTD("cqg.rtd",,"StudyData", "Close("&$D$12&") when LocalYear("&$D$12&")="&$D$5&" and localMonth("&$D$12&") ="&$E$5&" and LocalDay("&$D$12&")="&$F$5&" and Barix("&$D$12&",reference:=StartOfSession)="&A53&"", "FG", "", "Close","5","0","PrimaryOnly",,,"False","T","EveryTick") -> 12650 | Q53: 0.004287075262 | R53: =RTD("cqg.rtd",,"StudyData", "Close("&$D$12&") when LocalYear("&$D$12&")="&$D$6&" and localMonth("&$D$12&") ="&$E$6&" and LocalDay("&$D$12&")="&$F$6&" and Barix("&$D$12&",reference:=StartOfSession)="&A53&"", "FG", "", "Close","5","0","PrimaryOnly",,,"False","T","EveryTick") -> 12551.5 | S53: 0.007141424273 | T53: =RTD("cqg.rtd",,"StudyData", "Close("&$D$12&") when LocalYear("&$D$12&")="&$D$7&" and localMonth("&$D$12&") ="&$E$7&" and LocalDay("&$D$12&")="&$F$7&" and Barix("&$D$12&",reference:=StartOfSession)="&A53&"", "FG", "", "Close","5","0","PrimaryOnly",,,"False","T","EveryTick") -> 12518 | U53: 0.01210761425 | V53: =RTD("cqg.rtd",,"StudyData", "Close("&$D$12&") when LocalYear("&$D$12&")="&$D$8&" and localMonth("&$D$12&") ="&$E$8&" and LocalDay("&$D$12&")="&$F$8&" and Barix("&$D$12&",reference:=StartOfSession)="&A53&"", "FG", "", "Close","5","0","PrimaryOnly",,,"False","T","EveryTick") -> 12336 | W53: -0.00522145838 | X53: =RTD("cqg.rtd",,"StudyData", "Close("&$D$12&") when LocalYear("&$D$12&")="&$D$9&" and localMonth("&$D$12&") ="&$E$9&" and LocalDay("&$D$12&")="&$F$9&" and Barix("&$D$12&",reference:=StartOfSession)="&A53&"", "FG", "", "Close","5","0","PrimaryOnly",,,"False","T","EveryTick") -> 12398.75 | Y53: 0.002709205232 | Z53: =RTD("cqg.rtd",,"StudyData", "Close("&$D$12&") when LocalYear("&$D$12&")="&$D$10&" and localMonth("&$D$12&") ="&$E$10&" and LocalDay("&$D$12&")="&$F$10&" and Barix("&$D$12&",reference:=StartOfSession)="&A53&"", "FG", "", "Close","5","0","PrimaryOnly",,,"False","T","EveryTick") -> 12381 | AA53: -0.0201028888
A54: 53 | B54: 12:55:00 | C54: -24 | D54: =RTD("cqg.rtd",,"StudyData", $D$12, "Tick", "FlatTicks=0", "Tick","D",C54,"PrimaryOnly") -> 12676.75 | H54: =RTD("cqg.rtd",,"StudyData", "Close("&$D$12&") when LocalYear("&$D$12&")="&$D$1&" and localMonth("&$D$12&") ="&$E$1&" and LocalDay("&$D$12&")="&$F$1&" and Barix("&$D$12&",reference:=StartOfSession)="&A54&"", "FG", "", "Close","5","0","PrimaryOnly",,,"False","T","EveryTick") ->  | J54: =RTD("cqg.rtd",,"StudyData", "Close("&$D$12&") when LocalYear("&$D$12&")="&$D$2&" and localMonth("&$D$12&") ="&$E$2&" and LocalDay("&$D$12&")="&$F$2&" and Barix("&$D$12&",reference:=StartOfSession)="&A54&"", "FG", "", "Close","5","0","PrimaryOnly",,,"False","T","EveryTick") -> 12687.5 | K54: -0.001966568338 | L54: =RTD("cqg.rtd",,"StudyData", "Close("&$D$12&") when LocalYear("&$D$12&")="&$D$3&" and localMonth("&$D$12&") ="&$E$3&" and LocalDay("&$D$12&")="&$F$3&" and Barix("&$D$12&",reference:=StartOfSession)="&A54&"", "FG", "", "Close","5","0","PrimaryOnly",,,"False","T","EveryTick") -> 12691.75 | M54: -0.004646694377 | N54: =RTD("cqg.rtd",,"StudyData", "Close("&$D$12&") when LocalYear("&$D$12&")="&$D$4&" and localMonth("&$D$12&") ="&$E$4&" and LocalDay("&$D$12&")="&$F$4&" and Barix("&$D$12&",reference:=StartOfSession)="&A54&"", "FG", "", "Close","5","0","PrimaryOnly",,,"False","T","EveryTick") -> 12733.5 | O54: 0.004952350887 | P54: =RTD("cqg.rtd",,"StudyData", "Close("&$D$12&") when LocalYear("&$D$12&")="&$D$5&" and localMonth("&$D$12&") ="&$E$5&" and LocalDay("&$D$12&")="&$F$5&" and Barix("&$D$12&",reference:=StartOfSession)="&A54&"", "FG", "", "Close","5","0","PrimaryOnly",,,"False","T","EveryTick") -> 12645.5 | Q54: 0.00392981899 | R54: =RTD("cqg.rtd",,"StudyData", "Close("&$D$12&") when LocalYear("&$D$12&")="&$D$6&" and localMonth("&$D$12&") ="&$E$6&" and LocalDay("&$D$12&")="&$F$6&" and Barix("&$D$12&",reference:=StartOfSession)="&A54&"", "FG", "", "Close","5","0","PrimaryOnly",,,"False","T","EveryTick") -> 12556.25 | S54: 0.007522567703 | T54: =RTD("cqg.rtd",,"StudyData", "Close("&$D$12&") when LocalYear("&$D$12&")="&$D$7&" and localMonth("&$D$12&") ="&$E$7&" and LocalDay("&$D$12&")="&$F$7&" and Barix("&$D$12&",reference:=StartOfSession)="&A54&"", "FG", "", "Close","5","0","PrimaryOnly",,,"False","T","EveryTick") -> 12517.25 | U54: 0.01204697512 | V54: =RTD("cqg.rtd",,"StudyData", "Close("&$D$12&") when LocalYear("&$D$12&")="&$D$8&" and localMonth("&$D$12&") ="&$E$8&" and LocalDay("&$D$12&")="&$F$8&" and Barix("&$D$12&",reference:=StartOfSession)="&A54&"", "FG", "", "Close","5","0","PrimaryOnly",,,"False","T","EveryTick") -> 12330.5 | W54: -0.005664979941 | X54: =RTD("cqg.rtd",,"StudyData", "Close("&$D$12&") when LocalYear("&$D$12&")="&$D$9&" and localMonth("&$D$12&") ="&$E$9&" and LocalDay("&$D$12&")="&$F$9&" and Barix("&$D$12&",reference:=StartOfSession)="&A54&"", "FG", "", "Close","5","0","PrimaryOnly",,,"False","T","EveryTick") -> 12390.75 | Y54: 0.002062230849 | Z54: =RTD("cqg.rtd",,"StudyData", "Close("&$D$12&") when LocalYear("&$D$12&")="&$D$10&" and localMonth("&$D$12&") ="&$E$10&" and LocalDay("&$D$12&")="&$F$10&" and Barix("&$D$12&",reference:=StartOfSession)="&A54&"", "FG", "", "Close","5","0","PrimaryOnly",,,"False","T","EveryTick") -> 12335.75 | AA54: -0.02368421053
A55: 54 | B55: 13:00:00 | C55: -23 | D55: =RTD("cqg.rtd",,"StudyData", $D$12, "Tick", "FlatTicks=0", "Tick","D",C55,"PrimaryOnly") -> 12676.5 | H55: =RTD("cqg.rtd",,"StudyData", "Close("&$D$12&") when LocalYear("&$D$12&")="&$D$1&" and localMonth("&$D$12&") ="&$E$1&" and LocalDay("&$D$12&")="&$F$1&" and Barix("&$D$12&",reference:=StartOfSession)="&A55&"", "FG", "", "Close","5","0","PrimaryOnly",,,"False","T","EveryTick") ->  | J55: =RTD("cqg.rtd",,"StudyData", "Close("&$D$12&") when LocalYear("&$D$12&")="&$D$2&" and localMonth("&$D$12&") ="&$E$2&" and LocalDay("&$D$12&")="&$F$2&" and Barix("&$D$12&",reference:=StartOfSession)="&A55&"", "FG", "", "Close","5","0","PrimaryOnly",,,"False","T","EveryTick") -> 12685.5 | K55: -0.002123893805 | L55: =RTD("cqg.rtd",,"StudyData", "Close("&$D$12&") when LocalYear("&$D$12&")="&$D$3&" and localMonth("&$D$12&") ="&$E$3&" and LocalDay("&$D$12&")="&$F$3&" and Barix("&$D$12&",reference:=StartOfSession)="&A55&"", "FG", "", "Close","5","0","PrimaryOnly",,,"False","T","EveryTick") -> 12674.25 | M55: -0.006019135754 | N55: =RTD("cqg.rtd",,"StudyData", "Close("&$D$12&") when LocalYear("&$D$12&")="&$D$4&" and localMonth("&$D$12&") ="&$E$4&" and LocalDay("&$D$12&")="&$F$4&" and Barix("&$D$12&",reference:=StartOfSession)="&A55&"", "FG", "", "Close","5","0","PrimaryOnly",,,"False","T","EveryTick") -> 12731.5 | O55: 0.004794507034 | P55: =RTD("cqg.rtd",,"StudyData", "Close("&$D$12&") when LocalYear("&$D$12&")="&$D$5&" and localMonth("&$D$12&") ="&$E$5&" and LocalDay("&$D$12&")="&$F$5&" and Barix("&$D$12&",reference:=StartOfSession)="&A55&"", "FG", "", "Close","5","0","PrimaryOnly",,,"False","T","EveryTick") -> 12637.5 | Q55: 0.003294696729 | R55: =RTD("cqg.rtd",,"StudyData", "Close("&$D$12&") when LocalYear("&$D$12&")="&$D$6&" and localMonth("&$D$12&") ="&$E$6&" and LocalDay("&$D$12&")="&$F$6&" and Barix("&$D$12&",reference:=StartOfSession)="&A55&"", "FG", "", "Close","5","0","PrimaryOnly",,,"False","T","EveryTick") -> 12552 | S55: 0.007181544634 | T55: =RTD("cqg.rtd",,"StudyData", "Close("&$D$12&") when LocalYear("&$D$12&")="&$D$7&" and localMonth("&$D$12&") ="&$E$7&" and LocalDay("&$D$12&")="&$F$7&" and Barix("&$D$12&",reference:=StartOfSession)="&A55&"", "FG", "", "Close","5","0","PrimaryOnly",,,"False","T","EveryTick") -> 12511.5 | U55: 0.01158207507 | V55: =RTD("cqg.rtd",,"StudyData", "Close("&$D$12&") when LocalYear("&$D$12&")="&$D$8&" and localMonth("&$D$12&") ="&$E$8&" and LocalDay("&$D$12&")="&$F$8&" and Barix("&$D$12&",reference:=StartOfSession)="&A55&"", "FG", "", "Close","5","0","PrimaryOnly",,,"False","T","EveryTick") -> 12322.5 | W55: -0.006310102212 | X55: =RTD("cqg.rtd",,"StudyData", "Close("&$D$12&") when LocalYear("&$D$12&")="&$D$9&" and localMonth("&$D$12&") ="&$E$9&" and LocalDay("&$D$12&")="&$F$9&" and Barix("&$D$12&",reference:=StartOfSession)="&A55&"", "FG", "", "Close","5","0","PrimaryOnly",,,"False","T","EveryTick") -> 12387.5 | Y55: 0.001799397505 | Z55: =RTD("cqg.rtd",,"StudyData", "Close("&$D$12&") when LocalYear("&$D$12&")="&$D$10&" and localMonth("&$D$12&") ="&$E$10&" and LocalDay("&$D$12&")="&$F$10&" and Barix("&$D$12&",reference:=StartOfSession)="&A55&"", "FG", "", "Close","5","0","PrimaryOnly",,,"False","T","EveryTick") -> 12370.75 | AA55: -0.02091412742
A56: 55 | B56: 13:05:00 | C56: -22 | D56: =RTD("cqg.rtd",,"StudyData", $D$12, "Tick", "FlatTicks=0", "Tick","D",C56,"PrimaryOnly") -> 12676.75 | H56: =RTD("cqg.rtd",,"StudyData", "Close("&$D$12&") when LocalYear("&$D$12&")="&$D$1&" and localMonth("&$D$12&") ="&$E$1&" and LocalDay("&$D$12&")="&$F$1&" and Barix("&$D$12&",reference:=StartOfSession)="&A56&"", "FG", "", "Close","5","0","PrimaryOnly",,,"False","T","EveryTick") ->  | J56: =RTD("cqg.rtd",,"StudyData", "Close("&$D$12&") when LocalYear("&$D$12&")="&$D$2&" and localMonth("&$D$12&") ="&$E$2&" and LocalDay("&$D$12&")="&$F$2&" and Barix("&$D$12&",reference:=StartOfSession)="&A56&"", "FG", "", "Close","5","0","PrimaryOnly",,,"False","T","EveryTick") -> 12675.25 | K56: -0.002930186824 | L56: =RTD("cqg.rtd",,"StudyData", "Close("&$D$12&") when LocalYear("&$D$12&")="&$D$3&" and localMonth("&$D$12&") ="&$E$3&" and LocalDay("&$D$12&")="&$F$3&" and Barix("&$D$12&",reference:=StartOfSession)="&A56&"", "FG", "", "Close","5","0","PrimaryOnly",,,"False","T","EveryTick") -> 12679.5 | M56: -0.005607403341 | N56: =RTD("cqg.rtd",,"StudyData", "Close("&$D$12&") when LocalYear("&$D$12&")="&$D$4&" and localMonth("&$D$12&") ="&$E$4&" and LocalDay("&$D$12&")="&$F$4&" and Barix("&$D$12&",reference:=StartOfSession)="&A56&"", "FG", "", "Close","5","0","PrimaryOnly",,,"False","T","EveryTick") -> 12731.5 | O56: 0.004794507034 | P56: =RTD("cqg.rtd",,"StudyData", "Close("&$D$12&") when LocalYear("&$D$12&")="&$D$5&" and localMonth("&$D$12&") ="&$E$5&" and LocalDay("&$D$12&")="&$F$5&" and Barix("&$D$12&",reference:=StartOfSession)="&A56&"", "FG", "", "Close","5","0","PrimaryOnly",,,"False","T","EveryTick") -> 12622.25 | Q56: 0.002083994919 | R56: =RTD("cqg.rtd",,"StudyData", "Close("&$D$12&") when LocalYear("&$D$12&")="&$D$6&" and localMonth("&$D$12&") ="&$E$6&" and LocalDay("&$D$12&")="&$F$6&" and Barix("&$D$12&",reference:=StartOfSession)="&A56&"", "FG", "", "Close","5","0","PrimaryOnly",,,"False","T","EveryTick") -> 12557.5 | S56: 0.007622868606 | T56: =RTD("cqg.rtd",,"StudyData", "Close("&$D$12&") when LocalYear("&$D$12&")="&$D$7&" and localMonth("&$D$12&") ="&$E$7&" and LocalDay("&$D$12&")="&$F$7&" and Barix("&$D$12&",reference:=StartOfSession)="&A56&"", "FG", "", "Close","5","0","PrimaryOnly",,,"False","T","EveryTick") -> 12519.25 | U56: 0.01220867948 | V56: =RTD("cqg.rtd",,"StudyData", "Close("&$D$12&") when LocalYear("&$D$12&")="&$D$8&" and localMonth("&$D$12&") ="&$E$8&" and LocalDay("&$D$12&")="&$F$8&" and Barix("&$D$12&",reference:=StartOfSession)="&A56&"", "FG", "", "Close","5","0","PrimaryOnly",,,"False","T","EveryTick") -> 12336.5 | W56: -0.005181138238 | X56: =RTD("cqg.rtd",,"StudyData", "Close("&$D$12&") when LocalYear("&$D$12&")="&$D$9&" and localMonth("&$D$12&") ="&$E$9&" and LocalDay("&$D$12&")="&$F$9&" and Barix("&$D$12&",reference:=StartOfSession)="&A56&"", "FG", "", "Close","5","0","PrimaryOnly",,,"False","T","EveryTick") -> 12393 | Y56: 0.002244192394 | Z56: =RTD("cqg.rtd",,"StudyData", "Close("&$D$12&") when LocalYear("&$D$12&")="&$D$10&" and localMonth("&$D$12&") ="&$E$10&" and LocalDay("&$D$12&")="&$F$10&" and Barix("&$D$12&",reference:=StartOfSession)="&A56&"", "FG", "", "Close","5","0","PrimaryOnly",,,"False","T","EveryTick") -> 12372.25 | AA56: -0.02079540958
A57: 56 | B57: 13:10:00 | C57: -21 | D57: =RTD("cqg.rtd",,"StudyData", $D$12, "Tick", "FlatTicks=0", "Tick","D",C57,"PrimaryOnly") -> 12676.5 | H57: =RTD("cqg.rtd",,"StudyData", "Close("&$D$12&") when LocalYear("&$D$12&")="&$D$1&" and localMonth("&$D$12&") ="&$E$1&" and LocalDay("&$D$12&")="&$F$1&" and Barix("&$D$12&",reference:=StartOfSession)="&A57&"", "FG", "", "Close","5","0","PrimaryOnly",,,"False","T","EveryTick") ->  | J57: =RTD("cqg.rtd",,"StudyData", "Close("&$D$12&") when LocalYear("&$D$12&")="&$D$2&" and localMonth("&$D$12&") ="&$E$2&" and LocalDay("&$D$12&")="&$F$2&" and Barix("&$D$12&",reference:=StartOfSession)="&A57&"", "FG", "", "Close","5","0","PrimaryOnly",,,"False","T","EveryTick") -> 12683.5 | K57: -0.002281219272 | L57: =RTD("cqg.rtd",,"StudyData", "Close("&$D$12&") when LocalYear("&$D$12&")="&$D$3&" and localMonth("&$D$12&") ="&$E$3&" and LocalDay("&$D$12&")="&$F$3&" and Barix("&$D$12&",reference:=StartOfSession)="&A57&"", "FG", "", "Close","5","0","PrimaryOnly",,,"False","T","EveryTick") -> 12674.25 | M57: -0.006019135754 | N57: =RTD("cqg.rtd",,"StudyData", "Close("&$D$12&") when LocalYear("&$D$12&")="&$D$4&" and localMonth("&$D$12&") ="&$E$4&" and LocalDay("&$D$12&")="&$F$4&" and Barix("&$D$12&",reference:=StartOfSession)="&A57&"", "FG", "", "Close","5","0","PrimaryOnly",,,"False","T","EveryTick") -> 12731.5 | O57: 0.004794507034 | P57: =RTD("cqg.rtd",,"StudyData", "Close("&$D$12&") when LocalYear("&$D$12&")="&$D$5&" and localMonth("&$D$12&") ="&$E$5&" and LocalDay("&$D$12&")="&$F$5&" and Barix("&$D$12&",reference:=StartOfSession)="&A57&"", "FG", "", "Close","5","0","PrimaryOnly",,,"False","T","EveryTick") -> 12622.25 | Q57: 0.002083994919 | R57: =RTD("cqg.rtd",,"StudyData", "Close("&$D$12&") when LocalYear("&$D$12&")="&$D$6&" and localMonth("&$D$12&") ="&$E$6&" and LocalDay("&$D$12&")="&$F$6&" and Barix("&$D$12&",reference:=StartOfSession)="&A57&"", "FG", "", "Close","5","0","PrimaryOnly",,,"False","T","EveryTick") -> 12566.5 | S57: 0.008345035105 | T57: =RTD("cqg.rtd",,"StudyData", "Close("&$D$12&") when LocalYear("&$D$12&")="&$D$7&" and localMonth("&$D$12&") ="&$E$7&" and LocalDay("&$D$12&")="&$F$7&" and Barix("&$D$12&",reference:=StartOfSession)="&A57&"", "FG", "", "Close","5","0","PrimaryOnly",,,"False","T","EveryTick") -> 12517 | U57: 0.01202676207 | V57: =RTD("cqg.rtd",,"StudyData", "Close("&$D$12&") when LocalYear("&$D$12&")="&$D$8&" and localMonth("&$D$12&") ="&$E$8&" and LocalDay("&$D$12&")="&$F$8&" and Barix("&$D$12&",reference:=StartOfSession)="&A57&"", "FG", "", "Close","5","0","PrimaryOnly",,,"False","T","EveryTick") -> 12328.25 | W57: -0.005846420579 | X57: =RTD("cqg.rtd",,"StudyData", "Close("&$D$12&") when LocalYear("&$D$12&")="&$D$9&" and localMonth("&$D$12&") ="&$E$9&" and LocalDay("&$D$12&")="&$F$9&" and Barix("&$D$12&",reference:=StartOfSession)="&A57&"", "FG", "", "Close","5","0","PrimaryOnly",,,"False","T","EveryTick") -> 12377.5 | Y57: 0.0009906795253 | Z57: =RTD("cqg.rtd",,"StudyData", "Close("&$D$12&") when LocalYear("&$D$12&")="&$D$10&" and localMonth("&$D$12&") ="&$E$10&" and LocalDay("&$D$12&")="&$F$10&" and Barix("&$D$12&",reference:=StartOfSession)="&A57&"", "FG", "", "Close","5","0","PrimaryOnly",,,"False","T","EveryTick") -> 12373.5 | AA57: -0.02069647804
A58: 57 | B58: 13:15:00 | C58: -20 | D58: =RTD("cqg.rtd",,"StudyData", $D$12, "Tick", "FlatTicks=0", "Tick","D",C58,"PrimaryOnly") -> 12676.75 | H58: =RTD("cqg.rtd",,"StudyData", "Close("&$D$12&") when LocalYear("&$D$12&")="&$D$1&" and localMonth("&$D$12&") ="&$E$1&" and LocalDay("&$D$12&")="&$F$1&" and Barix("&$D$12&",reference:=StartOfSession)="&A58&"", "FG", "", "Close","5","0","PrimaryOnly",,,"False","T","EveryTick") ->  | J58: =RTD("cqg.rtd",,"StudyData", "Close("&$D$12&") when LocalYear("&$D$12&")="&$D$2&" and localMonth("&$D$12&") ="&$E$2&" and LocalDay("&$D$12&")="&$F$2&" and Barix("&$D$12&",reference:=StartOfSession)="&A58&"", "FG", "", "Close","5","0","PrimaryOnly",,,"False","T","EveryTick") -> 12679.5 | K58: -0.002595870206 | L58: =RTD("cqg.rtd",,"StudyData", "Close("&$D$12&") when LocalYear("&$D$12&")="&$D$3&" and localMonth("&$D$12&") ="&$E$3&" and LocalDay("&$D$12&")="&$F$3&" and Barix("&$D$12&",reference:=StartOfSession)="&A58&"", "FG", "", "Close","5","0","PrimaryOnly",,,"False","T","EveryTick") -> 12668.75 | M58: -0.006450474473 | N58: =RTD("cqg.rtd",,"StudyData", "Close("&$D$12&") when LocalYear("&$D$12&")="&$D$4&" and localMonth("&$D$12&") ="&$E$4&" and LocalDay("&$D$12&")="&$F$4&" and Barix("&$D$12&",reference:=StartOfSession)="&A58&"", "FG", "", "Close","5","0","PrimaryOnly",,,"False","T","EveryTick") -> 12736.25 | O58: 0.005169386185 | P58: =RTD("cqg.rtd",,"StudyData", "Close("&$D$12&") when LocalYear("&$D$12&")="&$D$5&" and localMonth("&$D$12&") ="&$E$5&" and LocalDay("&$D$12&")="&$F$5&" and Barix("&$D$12&",reference:=StartOfSession)="&A58&"", "FG", "", "Close","5","0","PrimaryOnly",,,"False","T","EveryTick") -> 12619 | Q58: 0.0018259765 | R58: =RTD("cqg.rtd",,"StudyData", "Close("&$D$12&") when LocalYear("&$D$12&")="&$D$6&" and localMonth("&$D$12&") ="&$E$6&" and LocalDay("&$D$12&")="&$F$6&" and Barix("&$D$12&",reference:=StartOfSession)="&A58&"", "FG", "", "Close","5","0","PrimaryOnly",,,"False","T","EveryTick") -> 12567.5 | S58: 0.008425275827 | T58: =RTD("cqg.rtd",,"StudyData", "Close("&$D$12&") when LocalYear("&$D$12&")="&$D$7&" and localMonth("&$D$12&") ="&$E$7&" and LocalDay("&$D$12&")="&$F$7&" and Barix("&$D$12&",reference:=StartOfSession)="&A58&"", "FG", "", "Close","5","0","PrimaryOnly",,,"False","T","EveryTick") -> 12521.25 | U58: 0.01237038385 | V58: =RTD("cqg.rtd",,"StudyData", "Close("&$D$12&") when LocalYear("&$D$12&")="&$D$8&" and localMonth("&$D$12&") ="&$E$8&" and LocalDay("&$D$12&")="&$F$8&" and Barix("&$D$12&",reference:=StartOfSession)="&A58&"", "FG", "", "Close","5","0","PrimaryOnly",,,"False","T","EveryTick") -> 12334.5 | W58: -0.005342418805 | X58: =RTD("cqg.rtd",,"StudyData", "Close("&$D$12&") when LocalYear("&$D$12&")="&$D$9&" and localMonth("&$D$12&") ="&$E$9&" and LocalDay("&$D$12&")="&$F$9&" and Barix("&$D$12&",reference:=StartOfSession)="&A58&"", "FG", "", "Close","5","0","PrimaryOnly",,,"False","T","EveryTick") -> 12370.5 | Y58: 0.0004245769394 | Z58: =RTD("cqg.rtd",,"StudyData", "Close("&$D$12&") when LocalYear("&$D$12&")="&$D$10&" and localMonth("&$D$12&") ="&$E$10&" and LocalDay("&$D$12&")="&$F$10&" and Barix("&$D$12&",reference:=StartOfSession)="&A58&"", "FG", "", "Close","5","0","PrimaryOnly",,,"False","T","EveryTick") -> 12376.75 | AA58: -0.02043925603
A59: 58 | B59: 13:20:00 | C59: =C58+1 -> -19 | D59: =RTD("cqg.rtd",,"StudyData", $D$12, "Tick", "FlatTicks=0", "Tick","D",C59,"PrimaryOnly") -> 12677 | H59: =RTD("cqg.rtd",,"StudyData", "Close("&$D$12&") when LocalYear("&$D$12&")="&$D$1&" and localMonth("&$D$12&") ="&$E$1&" and LocalDay("&$D$12&")="&$F$1&" and Barix("&$D$12&",reference:=StartOfSession)="&A59&"", "FG", "", "Close","5","0","PrimaryOnly",,,"False","T","EveryTick") ->  | J59: =RTD("cqg.rtd",,"StudyData", "Close("&$D$12&") when LocalYear("&$D$12&")="&$D$2&" and localMonth("&$D$12&") ="&$E$2&" and LocalDay("&$D$12&")="&$F$2&" and Barix("&$D$12&",reference:=StartOfSession)="&A59&"", "FG", "", "Close","5","0","PrimaryOnly",,,"False","T","EveryTick") -> 12676.5 | K59: -0.002831858407 | L59: =RTD("cqg.rtd",,"StudyData", "Close("&$D$12&") when LocalYear("&$D$12&")="&$D$3&" and localMonth("&$D$12&") ="&$E$3&" and LocalDay("&$D$12&")="&$F$3&" and Barix("&$D$12&",reference:=StartOfSession)="&A59&"", "FG", "", "Close","5","0","PrimaryOnly",,,"False","T","EveryTick") -> 12671.75 | M59: -0.006215198808 | N59: =RTD("cqg.rtd",,"StudyData", "Close("&$D$12&") when LocalYear("&$D$12&")="&$D$4&" and localMonth("&$D$12&") ="&$E$4&" and LocalDay("&$D$12&")="&$F$4&" and Barix("&$D$12&",reference:=StartOfSession)="&A59&"", "FG", "", "Close","5","0","PrimaryOnly",,,"False","T","EveryTick") -> 12733.5 | O59: 0.004952350887 | P59: =RTD("cqg.rtd",,"StudyData", "Close("&$D$12&") when LocalYear("&$D$12&")="&$D$5&" and localMonth("&$D$12&") ="&$E$5&" and LocalDay("&$D$12&")="&$F$5&" and Barix("&$D$12&",reference:=StartOfSession)="&A59&"", "FG", "", "Close","5","0","PrimaryOnly",,,"False","T","EveryTick") -> 12634.25 | Q59: 0.003036678311 | R59: =RTD("cqg.rtd",,"StudyData", "Close("&$D$12&") when LocalYear("&$D$12&")="&$D$6&" and localMonth("&$D$12&") ="&$E$6&" and LocalDay("&$D$12&")="&$F$6&" and Barix("&$D$12&",reference:=StartOfSession)="&A59&"", "FG", "", "Close","5","0","PrimaryOnly",,,"False","T","EveryTick") -> 12566 | S59: 0.008304914744 | T59: =RTD("cqg.rtd",,"StudyData", "Close("&$D$12&") when LocalYear("&$D$12&")="&$D$7&" and localMonth("&$D$12&") ="&$E$7&" and LocalDay("&$D$12&")="&$F$7&" and Barix("&$D$12&",reference:=StartOfSession)="&A59&"", "FG", "", "Close","5","0","PrimaryOnly",,,"False","T","EveryTick") -> 12522 | U59: 0.01243102298 | V59: =RTD("cqg.rtd",,"StudyData", "Close("&$D$12&") when LocalYear("&$D$12&")="&$D$8&" and localMonth("&$D$12&") ="&$E$8&" and LocalDay("&$D$12&")="&$F$8&" and Barix("&$D$12&",reference:=StartOfSession)="&A59&"", "FG", "", "Close","5","0","PrimaryOnly",,,"False","T","EveryTick") -> 12338.5 | W59: -0.00501985767 | X59: =RTD("cqg.rtd",,"StudyData", "Close("&$D$12&") when LocalYear("&$D$12&")="&$D$9&" and localMonth("&$D$12&") ="&$E$9&" and LocalDay("&$D$12&")="&$F$9&" and Barix("&$D$12&",reference:=StartOfSession)="&A59&"", "FG", "", "Close","5","0","PrimaryOnly",,,"False","T","EveryTick") -> 12372.25 | Y59: 0.0005661025859 | Z59: =RTD("cqg.rtd",,"StudyData", "Close("&$D$12&") when LocalYear("&$D$12&")="&$D$10&" and localMonth("&$D$12&") ="&$E$10&" and LocalDay("&$D$12&")="&$F$10&" and Barix("&$D$12&",reference:=StartOfSession)="&A59&"", "FG", "", "Close","5","0","PrimaryOnly",,,"False","T","EveryTick") -> 12390 | AA59: -0.01939058172
A60: 59 | B60: 13:25:00 | C60: =C59+1 -> -18 | D60: =RTD("cqg.rtd",,"StudyData", $D$12, "Tick", "FlatTicks=0", "Tick","D",C60,"PrimaryOnly") -> 12677.5 | H60: =RTD("cqg.rtd",,"StudyData", "Close("&$D$12&") when LocalYear("&$D$12&")="&$D$1&" and localMonth("&$D$12&") ="&$E$1&" and LocalDay("&$D$12&")="&$F$1&" and Barix("&$D$12&",reference:=StartOfSession)="&A60&"", "FG", "", "Close","5","0","PrimaryOnly",,,"False","T","EveryTick") ->  | J60: =RTD("cqg.rtd",,"StudyData", "Close("&$D$12&") when LocalYear("&$D$12&")="&$D$2&" and localMonth("&$D$12&") ="&$E$2&" and LocalDay("&$D$12&")="&$F$2&" and Barix("&$D$12&",reference:=StartOfSession)="&A60&"", "FG", "", "Close","5","0","PrimaryOnly",,,"False","T","EveryTick") -> 12688.5 | K60: -0.001887905605 | L60: =RTD("cqg.rtd",,"StudyData", "Close("&$D$12&") when LocalYear("&$D$12&")="&$D$3&" and localMonth("&$D$12&") ="&$E$3&" and LocalDay("&$D$12&")="&$F$3&" and Barix("&$D$12&",reference:=StartOfSession)="&A60&"", "FG", "", "Close","5","0","PrimaryOnly",,,"False","T","EveryTick") -> 12674 | M60: -0.006038742059 | N60: =RTD("cqg.rtd",,"StudyData", "Close("&$D$12&") when LocalYear("&$D$12&")="&$D$4&" and localMonth("&$D$12&") ="&$E$4&" and LocalDay("&$D$12&")="&$F$4&" and Barix("&$D$12&",reference:=StartOfSession)="&A60&"", "FG", "", "Close","5","0","PrimaryOnly",,,"False","T","EveryTick") -> 12726.75 | O60: 0.004419627883 | P60: =RTD("cqg.rtd",,"StudyData", "Close("&$D$12&") when LocalYear("&$D$12&")="&$D$5&" and localMonth("&$D$12&") ="&$E$5&" and LocalDay("&$D$12&")="&$F$5&" and Barix("&$D$12&",reference:=StartOfSession)="&A60&"", "FG", "", "Close","5","0","PrimaryOnly",,,"False","T","EveryTick") -> 12630.25 | Q60: 0.00271911718 | R60: =RTD("cqg.rtd",,"StudyData", "Close("&$D$12&") when LocalYear("&$D$12&")="&$D$6&" and localMonth("&$D$12&") ="&$E$6&" and LocalDay("&$D$12&")="&$F$6&" and Barix("&$D$12&",reference:=StartOfSession)="&A60&"", "FG", "", "Close","5","0","PrimaryOnly",,,"False","T","EveryTick") -> 12561 | S60: 0.007903711133 | T60: =RTD("cqg.rtd",,"StudyData", "Close("&$D$12&") when LocalYear("&$D$12&")="&$D$7&" and localMonth("&$D$12&") ="&$E$7&" and LocalDay("&$D$12&")="&$F$7&" and Barix("&$D$12&",reference:=StartOfSession)="&A60&"", "FG", "", "Close","5","0","PrimaryOnly",,,"False","T","EveryTick") -> 12520.25 | U60: 0.01228953166 | V60: =RTD("cqg.rtd",,"StudyData", "Close("&$D$12&") when LocalYear("&$D$12&")="&$D$8&" and localMonth("&$D$12&") ="&$E$8&" and LocalDay("&$D$12&")="&$F$8&" and Barix("&$D$12&",reference:=StartOfSession)="&A60&"", "FG", "", "Close","5","0","PrimaryOnly",,,"False","T","EveryTick") -> 12335.75 | W60: -0.00524161845 | X60: =RTD("cqg.rtd",,"StudyData", "Close("&$D$12&") when LocalYear("&$D$12&")="&$D$9&" and localMonth("&$D$12&") ="&$E$9&" and LocalDay("&$D$12&")="&$F$9&" and Barix("&$D$12&",reference:=StartOfSession)="&A60&"", "FG", "", "Close","5","0","PrimaryOnly",,,"False","T","EveryTick") -> 12371.25 | Y60: 0.0004852307879 | Z60: =RTD("cqg.rtd",,"StudyData", "Close("&$D$12&") when LocalYear("&$D$12&")="&$D$10&" and localMonth("&$D$12&") ="&$E$10&" and LocalDay("&$D$12&")="&$F$10&" and Barix("&$D$12&",reference:=StartOfSession)="&A60&"", "FG", "", "Close","5","0","PrimaryOnly",,,"False","T","EveryTick") -> 12403 | AA60: -0.01836169371
A61: 60 | B61: 13:30:00 | C61: -17 | D61: =RTD("cqg.rtd",,"StudyData", $D$12, "Tick", "FlatTicks=0", "Tick","D",C61,"PrimaryOnly") -> 12676.75 | H61: =RTD("cqg.rtd",,"StudyData", "Close("&$D$12&") when LocalYear("&$D$12&")="&$D$1&" and localMonth("&$D$12&") ="&$E$1&" and LocalDay("&$D$12&")="&$F$1&" and Barix("&$D$12&",reference:=StartOfSession)="&A61&"", "FG", "", "Close","5","0","PrimaryOnly",,,"False","T","EveryTick") ->  | J61: =RTD("cqg.rtd",,"StudyData", "Close("&$D$12&") when LocalYear("&$D$12&")="&$D$2&" and localMonth("&$D$12&") ="&$E$2&" and LocalDay("&$D$12&")="&$F$2&" and Barix("&$D$12&",reference:=StartOfSession)="&A61&"", "FG", "", "Close","5","0","PrimaryOnly",,,"False","T","EveryTick") -> 12692.25 | K61: -0.001592920354 | L61: =RTD("cqg.rtd",,"StudyData", "Close("&$D$12&") when LocalYear("&$D$12&")="&$D$3&" and localMonth("&$D$12&") ="&$E$3&" and LocalDay("&$D$12&")="&$F$3&" and Barix("&$D$12&",reference:=StartOfSession)="&A61&"", "FG", "", "Close","5","0","PrimaryOnly",,,"False","T","EveryTick") -> 12685.25 | M61: -0.005156458317 | N61: =RTD("cqg.rtd",,"StudyData", "Close("&$D$12&") when LocalYear("&$D$12&")="&$D$4&" and localMonth("&$D$12&") ="&$E$4&" and LocalDay("&$D$12&")="&$F$4&" and Barix("&$D$12&",reference:=StartOfSession)="&A61&"", "FG", "", "Close","5","0","PrimaryOnly",,,"False","T","EveryTick") -> 12726.75 | O61: 0.004419627883 | P61: =RTD("cqg.rtd",,"StudyData", "Close("&$D$12&") when LocalYear("&$D$12&")="&$D$5&" and localMonth("&$D$12&") ="&$E$5&" and LocalDay("&$D$12&")="&$F$5&" and Barix("&$D$12&",reference:=StartOfSession)="&A61&"", "FG", "", "Close","5","0","PrimaryOnly",,,"False","T","EveryTick") -> 12649.25 | Q61: 0.00422753255 | R61: =RTD("cqg.rtd",,"StudyData", "Close("&$D$12&") when LocalYear("&$D$12&")="&$D$6&" and localMonth("&$D$12&") ="&$E$6&" and LocalDay("&$D$12&")="&$F$6&" and Barix("&$D$12&",reference:=StartOfSession)="&A61&"", "FG", "", "Close","5","0","PrimaryOnly",,,"False","T","EveryTick") -> 12563 | S61: 0.008064192578 | T61: =RTD("cqg.rtd",,"StudyData", "Close("&$D$12&") when LocalYear("&$D$12&")="&$D$7&" and localMonth("&$D$12&") ="&$E$7&" and LocalDay("&$D$12&")="&$F$7&" and Barix("&$D$12&",reference:=StartOfSession)="&A61&"", "FG", "", "Close","5","0","PrimaryOnly",,,"False","T","EveryTick") -> 12495 | U61: 0.01024801407 | V61: =RTD("cqg.rtd",,"StudyData", "Close("&$D$12&") when LocalYear("&$D$12&")="&$D$8&" and localMonth("&$D$12&") ="&$E$8&" and LocalDay("&$D$12&")="&$F$8&" and Barix("&$D$12&",reference:=StartOfSession)="&A61&"", "FG", "", "Close","5","0","PrimaryOnly",,,"False","T","EveryTick") -> 12349.75 | W61: -0.004112654477 | X61: =RTD("cqg.rtd",,"StudyData", "Close("&$D$12&") when LocalYear("&$D$12&")="&$D$9&" and localMonth("&$D$12&") ="&$E$9&" and LocalDay("&$D$12&")="&$F$9&" and Barix("&$D$12&",reference:=StartOfSession)="&A61&"", "FG", "", "Close","5","0","PrimaryOnly",,,"False","T","EveryTick") -> 12381.75 | Y61: 0.001334384667 | Z61: =RTD("cqg.rtd",,"StudyData", "Close("&$D$12&") when LocalYear("&$D$12&")="&$D$10&" and localMonth("&$D$12&") ="&$E$10&" and LocalDay("&$D$12&")="&$F$10&" and Barix("&$D$12&",reference:=StartOfSession)="&A61&"", "FG", "", "Close","5","0","PrimaryOnly",,,"False","T","EveryTick") -> 12373.75 | AA61: -0.02067669173
A62: 61 | B62: 13:35:00 | C62: -16 | D62: =RTD("cqg.rtd",,"StudyData", $D$12, "Tick", "FlatTicks=0", "Tick","D",C62,"PrimaryOnly") -> 12677 | H62: =RTD("cqg.rtd",,"StudyData", "Close("&$D$12&") when LocalYear("&$D$12&")="&$D$1&" and localMonth("&$D$12&") ="&$E$1&" and LocalDay("&$D$12&")="&$F$1&" and Barix("&$D$12&",reference:=StartOfSession)="&A62&"", "FG", "", "Close","5","0","PrimaryOnly",,,"False","T","EveryTick") ->  | J62: =RTD("cqg.rtd",,"StudyData", "Close("&$D$12&") when LocalYear("&$D$12&")="&$D$2&" and localMonth("&$D$12&") ="&$E$2&" and LocalDay("&$D$12&")="&$F$2&" and Barix("&$D$12&",reference:=StartOfSession)="&A62&"", "FG", "", "Close","5","0","PrimaryOnly",,,"False","T","EveryTick") -> 12688 | K62: -0.001927236971 | L62: =RTD("cqg.rtd",,"StudyData", "Close("&$D$12&") when LocalYear("&$D$12&")="&$D$3&" and localMonth("&$D$12&") ="&$E$3&" and LocalDay("&$D$12&")="&$F$3&" and Barix("&$D$12&",reference:=StartOfSession)="&A62&"", "FG", "", "Close","5","0","PrimaryOnly",,,"False","T","EveryTick") -> 12687 | M62: -0.005019214179 | N62: =RTD("cqg.rtd",,"StudyData", "Close("&$D$12&") when LocalYear("&$D$12&")="&$D$4&" and localMonth("&$D$12&") ="&$E$4&" and LocalDay("&$D$12&")="&$F$4&" and Barix("&$D$12&",reference:=StartOfSession)="&A62&"", "FG", "", "Close","5","0","PrimaryOnly",,,"False","T","EveryTick") -> 12723.75 | O62: 0.004182862104 | P62: =RTD("cqg.rtd",,"StudyData", "Close("&$D$12&") when LocalYear("&$D$12&")="&$D$5&" and localMonth("&$D$12&") ="&$E$5&" and LocalDay("&$D$12&")="&$F$5&" and Barix("&$D$12&",reference:=StartOfSession)="&A62&"", "FG", "", "Close","5","0","PrimaryOnly",,,"False","T","EveryTick") -> 12668.75 | Q62: 0.005775643061 | R62: =RTD("cqg.rtd",,"StudyData", "Close("&$D$12&") when LocalYear("&$D$12&")="&$D$6&" and localMonth("&$D$12&") ="&$E$6&" and LocalDay("&$D$12&")="&$F$6&" and Barix("&$D$12&",reference:=StartOfSession)="&A62&"", "FG", "", "Close","5","0","PrimaryOnly",,,"False","T","EveryTick") -> 12567.75 | S62: 0.008445336008 | T62: =RTD("cqg.rtd",,"StudyData", "Close("&$D$12&") when LocalYear("&$D$12&")="&$D$7&" and localMonth("&$D$12&") ="&$E$7&" and LocalDay("&$D$12&")="&$F$7&" and Barix("&$D$12&",reference:=StartOfSession)="&A62&"", "FG", "", "Close","5","0","PrimaryOnly",,,"False","T","EveryTick") -> 12487.5 | U62: 0.009641622703 | V62: =RTD("cqg.rtd",,"StudyData", "Close("&$D$12&") when LocalYear("&$D$12&")="&$D$8&" and localMonth("&$D$12&") ="&$E$8&" and LocalDay("&$D$12&")="&$F$8&" and Barix("&$D$12&",reference:=StartOfSession)="&A62&"", "FG", "", "Close","5","0","PrimaryOnly",,,"False","T","EveryTick") -> 12350.25 | W62: -0.004072334335 | X62: =RTD("cqg.rtd",,"StudyData", "Close("&$D$12&") when LocalYear("&$D$12&")="&$D$9&" and localMonth("&$D$12&") ="&$E$9&" and LocalDay("&$D$12&")="&$F$9&" and Barix("&$D$12&",reference:=StartOfSession)="&A62&"", "FG", "", "Close","5","0","PrimaryOnly",,,"False","T","EveryTick") -> 12387.75 | Y62: 0.001819615455 | Z62: =RTD("cqg.rtd",,"StudyData", "Close("&$D$12&") when LocalYear("&$D$12&")="&$D$10&" and localMonth("&$D$12&") ="&$E$10&" and LocalDay("&$D$12&")="&$F$10&" and Barix("&$D$12&",reference:=StartOfSession)="&A62&"", "FG", "", "Close","5","0","PrimaryOnly",,,"False","T","EveryTick") -> 12363 | AA62: -0.02152750297
A63: 62 | B63: 13:40:00 | C63: -15 | D63: =RTD("cqg.rtd",,"StudyData", $D$12, "Tick", "FlatTicks=0", "Tick","D",C63,"PrimaryOnly") -> 12677.25 | H63: =RTD("cqg.rtd",,"StudyData", "Close("&$D$12&") when LocalYear("&$D$12&")="&$D$1&" and localMonth("&$D$12&") ="&$E$1&" and LocalDay("&$D$12&")="&$F$1&" and Barix("&$D$12&",reference:=StartOfSession)="&A63&"", "FG", "", "Close","5","0","PrimaryOnly",,,"False","T","EveryTick") ->  | J63: =RTD("cqg.rtd",,"StudyData", "Close("&$D$12&") when LocalYear("&$D$12&")="&$D$2&" and localMonth("&$D$12&") ="&$E$2&" and LocalDay("&$D$12&")="&$F$2&" and Barix("&$D$12&",reference:=StartOfSession)="&A63&"", "FG", "", "Close","5","0","PrimaryOnly",,,"False","T","EveryTick") -> 12689.75 | K63: -0.001789577188 | L63: =RTD("cqg.rtd",,"StudyData", "Close("&$D$12&") when LocalYear("&$D$12&")="&$D$3&" and localMonth("&$D$12&") ="&$E$3&" and LocalDay("&$D$12&")="&$F$3&" and Barix("&$D$12&",reference:=StartOfSession)="&A63&"", "FG", "", "Close","5","0","PrimaryOnly",,,"False","T","EveryTick") -> 12686 | M63: -0.005097639401 | N63: =RTD("cqg.rtd",,"StudyData", "Close("&$D$12&") when LocalYear("&$D$12&")="&$D$4&" and localMonth("&$D$12&") ="&$E$4&" and LocalDay("&$D$12&")="&$F$4&" and Barix("&$D$12&",reference:=StartOfSession)="&A63&"", "FG", "", "Close","5","0","PrimaryOnly",,,"False","T","EveryTick") -> 12723.5 | O63: 0.004163131622 | P63: =RTD("cqg.rtd",,"StudyData", "Close("&$D$12&") when LocalYear("&$D$12&")="&$D$5&" and localMonth("&$D$12&") ="&$E$5&" and LocalDay("&$D$12&")="&$F$5&" and Barix("&$D$12&",reference:=StartOfSession)="&A63&"", "FG", "", "Close","5","0","PrimaryOnly",,,"False","T","EveryTick") -> 12672.25 | Q63: 0.00605350905 | R63: =RTD("cqg.rtd",,"StudyData", "Close("&$D$12&") when LocalYear("&$D$12&")="&$D$6&" and localMonth("&$D$12&") ="&$E$6&" and LocalDay("&$D$12&")="&$F$6&" and Barix("&$D$12&",reference:=StartOfSession)="&A63&"", "FG", "", "Close","5","0","PrimaryOnly",,,"False","T","EveryTick") -> 12573 | S63: 0.008866599799 | T63: =RTD("cqg.rtd",,"StudyData", "Close("&$D$12&") when LocalYear("&$D$12&")="&$D$7&" and localMonth("&$D$12&") ="&$E$7&" and LocalDay("&$D$12&")="&$F$7&" and Barix("&$D$12&",reference:=StartOfSession)="&A63&"", "FG", "", "Close","5","0","PrimaryOnly",,,"False","T","EveryTick") -> 12500 | U63: 0.01065227498 | V63: =RTD("cqg.rtd",,"StudyData", "Close("&$D$12&") when LocalYear("&$D$12&")="&$D$8&" and localMonth("&$D$12&") ="&$E$8&" and LocalDay("&$D$12&")="&$F$8&" and Barix("&$D$12&",reference:=StartOfSession)="&A63&"", "FG", "", "Close","5","0","PrimaryOnly",,,"False","T","EveryTick") -> 12354 | W63: -0.00376993327 | X63: =RTD("cqg.rtd",,"StudyData", "Close("&$D$12&") when LocalYear("&$D$12&")="&$D$9&" and localMonth("&$D$12&") ="&$E$9&" and LocalDay("&$D$12&")="&$F$9&" and Barix("&$D$12&",reference:=StartOfSession)="&A63&"", "FG", "", "Close","5","0","PrimaryOnly",,,"False","T","EveryTick") -> 12385 | Y63: 0.00159721801 | Z63: =RTD("cqg.rtd",,"StudyData", "Close("&$D$12&") when LocalYear("&$D$12&")="&$D$10&" and localMonth("&$D$12&") ="&$E$10&" and LocalDay("&$D$12&")="&$F$10&" and Barix("&$D$12&",reference:=StartOfSession)="&A63&"", "FG", "", "Close","5","0","PrimaryOnly",,,"False","T","EveryTick") -> 12339.25 | AA63: -0.02340720222
A64: 63 | B64: 13:45:00 | C64: -14 | D64: =RTD("cqg.rtd",,"StudyData", $D$12, "Tick", "FlatTicks=0", "Tick","D",C64,"PrimaryOnly") -> 12677.5 | H64: =RTD("cqg.rtd",,"StudyData", "Close("&$D$12&") when LocalYear("&$D$12&")="&$D$1&" and localMonth("&$D$12&") ="&$E$1&" and LocalDay("&$D$12&")="&$F$1&" and Barix("&$D$12&",reference:=StartOfSession)="&A64&"", "FG", "", "Close","5","0","PrimaryOnly",,,"False","T","EveryTick") ->  | J64: =RTD("cqg.rtd",,"StudyData", "Close("&$D$12&") when LocalYear("&$D$12&")="&$D$2&" and localMonth("&$D$12&") ="&$E$2&" and LocalDay("&$D$12&")="&$F$2&" and Barix("&$D$12&",reference:=StartOfSession)="&A64&"", "FG", "", "Close","5","0","PrimaryOnly",,,"False","T","EveryTick") -> 12687.25 | K64: -0.001986234022 | L64: =RTD("cqg.rtd",,"StudyData", "Close("&$D$12&") when LocalYear("&$D$12&")="&$D$3&" and localMonth("&$D$12&") ="&$E$3&" and LocalDay("&$D$12&")="&$F$3&" and Barix("&$D$12&",reference:=StartOfSession)="&A64&"", "FG", "", "Close","5","0","PrimaryOnly",,,"False","T","EveryTick") -> 12686.75 | M64: -0.005038820485 | N64: =RTD("cqg.rtd",,"StudyData", "Close("&$D$12&") when LocalYear("&$D$12&")="&$D$4&" and localMonth("&$D$12&") ="&$E$4&" and LocalDay("&$D$12&")="&$F$4&" and Barix("&$D$12&",reference:=StartOfSession)="&A64&"", "FG", "", "Close","5","0","PrimaryOnly",,,"False","T","EveryTick") -> 12731 | O64: 0.004755046071 | P64: =RTD("cqg.rtd",,"StudyData", "Close("&$D$12&") when LocalYear("&$D$12&")="&$D$5&" and localMonth("&$D$12&") ="&$E$5&" and LocalDay("&$D$12&")="&$F$5&" and Barix("&$D$12&",reference:=StartOfSession)="&A64&"", "FG", "", "Close","5","0","PrimaryOnly",,,"False","T","EveryTick") -> 12679.25 | Q64: 0.006609241029 | R64: =RTD("cqg.rtd",,"StudyData", "Close("&$D$12&") when LocalYear("&$D$12&")="&$D$6&" and localMonth("&$D$12&") ="&$E$6&" and LocalDay("&$D$12&")="&$F$6&" and Barix("&$D$12&",reference:=StartOfSession)="&A64&"", "FG", "", "Close","5","0","PrimaryOnly",,,"False","T","EveryTick") -> 12574.5 | S64: 0.008986960883 | T64: =RTD("cqg.rtd",,"StudyData", "Close("&$D$12&") when LocalYear("&$D$12&")="&$D$7&" and localMonth("&$D$12&") ="&$E$7&" and LocalDay("&$D$12&")="&$F$7&" and Barix("&$D$12&",reference:=StartOfSession)="&A64&"", "FG", "", "Close","5","0","PrimaryOnly",,,"False","T","EveryTick") -> 12503.5 | U64: 0.01093525762 | V64: =RTD("cqg.rtd",,"StudyData", "Close("&$D$12&") when LocalYear("&$D$12&")="&$D$8&" and localMonth("&$D$12&") ="&$E$8&" and LocalDay("&$D$12&")="&$F$8&" and Barix("&$D$12&",reference:=StartOfSession)="&A64&"", "FG", "", "Close","5","0","PrimaryOnly",,,"False","T","EveryTick") -> 12356 | W64: -0.003608652702 | X64: =RTD("cqg.rtd",,"StudyData", "Close("&$D$12&") when LocalYear("&$D$12&")="&$D$9&" and localMonth("&$D$12&") ="&$E$9&" and LocalDay("&$D$12&")="&$F$9&" and Barix("&$D$12&",reference:=StartOfSession)="&A64&"", "FG", "", "Close","5","0","PrimaryOnly",,,"False","T","EveryTick") -> 12376.5 | Y64: 0.0009098077273 | Z64: =RTD("cqg.rtd",,"StudyData", "Close("&$D$12&") when LocalYear("&$D$12&")="&$D$10&" and localMonth("&$D$12&") ="&$E$10&" and LocalDay("&$D$12&")="&$F$10&" and Barix("&$D$12&",reference:=StartOfSession)="&A64&"", "FG", "", "Close","5","0","PrimaryOnly",,,"False","T","EveryTick") -> 12357 | AA64: -0.02200237436
A65: 64 | B65: 13:50:00 | C65: -13 | D65: =RTD("cqg.rtd",,"StudyData", $D$12, "Tick", "FlatTicks=0", "Tick","D",C65,"PrimaryOnly") -> 12677.25 | H65: =RTD("cqg.rtd",,"StudyData", "Close("&$D$12&") when LocalYear("&$D$12&")="&$D$1&" and localMonth("&$D$12&") ="&$E$1&" and LocalDay("&$D$12&")="&$F$1&" and Barix("&$D$12&",reference:=StartOfSession)="&A65&"", "FG", "", "Close","5","0","PrimaryOnly",,,"False","T","EveryTick") ->  | J65: =RTD("cqg.rtd",,"StudyData", "Close("&$D$12&") when LocalYear("&$D$12&")="&$D$2&" and localMonth("&$D$12&") ="&$E$2&" and LocalDay("&$D$12&")="&$F$2&" and Barix("&$D$12&",reference:=StartOfSession)="&A65&"", "FG", "", "Close","5","0","PrimaryOnly",,,"False","T","EveryTick") -> 12688.75 | K65: -0.001868239921 | L65: =RTD("cqg.rtd",,"StudyData", "Close("&$D$12&") when LocalYear("&$D$12&")="&$D$3&" and localMonth("&$D$12&") ="&$E$3&" and LocalDay("&$D$12&")="&$F$3&" and Barix("&$D$12&",reference:=StartOfSession)="&A65&"", "FG", "", "Close","5","0","PrimaryOnly",,,"False","T","EveryTick") -> 12675.5 | M65: -0.005921104227 | N65: =RTD("cqg.rtd",,"StudyData", "Close("&$D$12&") when LocalYear("&$D$12&")="&$D$4&" and localMonth("&$D$12&") ="&$E$4&" and LocalDay("&$D$12&")="&$F$4&" and Barix("&$D$12&",reference:=StartOfSession)="&A65&"", "FG", "", "Close","5","0","PrimaryOnly",,,"False","T","EveryTick") -> 12731 | O65: 0.004755046071 | P65: =RTD("cqg.rtd",,"StudyData", "Close("&$D$12&") when LocalYear("&$D$12&")="&$D$5&" and localMonth("&$D$12&") ="&$E$5&" and LocalDay("&$D$12&")="&$F$5&" and Barix("&$D$12&",reference:=StartOfSession)="&A65&"", "FG", "", "Close","5","0","PrimaryOnly",,,"False","T","EveryTick") -> 12675.75 | Q65: 0.00633137504 | R65: =RTD("cqg.rtd",,"StudyData", "Close("&$D$12&") when LocalYear("&$D$12&")="&$D$6&" and localMonth("&$D$12&") ="&$E$6&" and LocalDay("&$D$12&")="&$F$6&" and Barix("&$D$12&",reference:=StartOfSession)="&A65&"", "FG", "", "Close","5","0","PrimaryOnly",,,"False","T","EveryTick") -> 12572 | S65: 0.008786359077 | T65: =RTD("cqg.rtd",,"StudyData", "Close("&$D$12&") when LocalYear("&$D$12&")="&$D$7&" and localMonth("&$D$12&") ="&$E$7&" and LocalDay("&$D$12&")="&$F$7&" and Barix("&$D$12&",reference:=StartOfSession)="&A65&"", "FG", "", "Close","5","0","PrimaryOnly",,,"False","T","EveryTick") -> 12518.75 | U65: 0.01216825339 | V65: =RTD("cqg.rtd",,"StudyData", "Close("&$D$12&") when LocalYear("&$D$12&")="&$D$8&" and localMonth("&$D$12&") ="&$E$8&" and LocalDay("&$D$12&")="&$F$8&" and Barix("&$D$12&",reference:=StartOfSession)="&A65&"", "FG", "", "Close","5","0","PrimaryOnly",,,"False","T","EveryTick") -> 12345.75 | W65: -0.004435215612 | X65: =RTD("cqg.rtd",,"StudyData", "Close("&$D$12&") when LocalYear("&$D$12&")="&$D$9&" and localMonth("&$D$12&") ="&$E$9&" and LocalDay("&$D$12&")="&$F$9&" and Barix("&$D$12&",reference:=StartOfSession)="&A65&"", "FG", "", "Close","5","0","PrimaryOnly",,,"False","T","EveryTick") -> 12377.25 | Y65: 0.0009704615758 | Z65: =RTD("cqg.rtd",,"StudyData", "Close("&$D$12&") when LocalYear("&$D$12&")="&$D$10&" and localMonth("&$D$12&") ="&$E$10&" and LocalDay("&$D$12&")="&$F$10&" and Barix("&$D$12&",reference:=StartOfSession)="&A65&"", "FG", "", "Close","5","0","PrimaryOnly",,,"False","T","EveryTick") -> 12353 | AA65: -0.02231895528
A66: 65 | B66: 13:55:00 | C66: -12 | D66: =RTD("cqg.rtd",,"StudyData", $D$12, "Tick", "FlatTicks=0", "Tick","D",C66,"PrimaryOnly") -> 12677 | H66: =RTD("cqg.rtd",,"StudyData", "Close("&$D$12&") when LocalYear("&$D$12&")="&$D$1&" and localMonth("&$D$12&") ="&$E$1&" and LocalDay("&$D$12&")="&$F$1&" and Barix("&$D$12&",reference:=StartOfSession)="&A66&"", "FG", "", "Close","5","0","PrimaryOnly",,,"False","T","EveryTick") ->  | J66: =RTD("cqg.rtd",,"StudyData", "Close("&$D$12&") when LocalYear("&$D$12&")="&$D$2&" and localMonth("&$D$12&") ="&$E$2&" and LocalDay("&$D$12&")="&$F$2&" and Barix("&$D$12&",reference:=StartOfSession)="&A66&"", "FG", "", "Close","5","0","PrimaryOnly",,,"False","T","EveryTick") -> 12681.75 | K66: =IFERROR((J66-$G$3)/$G$3,NA()) -> -0.002418879056 | L66: =RTD("cqg.rtd",,"StudyData", "Close("&$D$12&") when LocalYear("&$D$12&")="&$D$3&" and localMonth("&$D$12&") ="&$E$3&" and LocalDay("&$D$12&")="&$F$3&" and Barix("&$D$12&",reference:=StartOfSession)="&A66&"", "FG", "", "Close","5","0","PrimaryOnly",,,"False","T","EveryTick") -> 12663.25 | M66: =IFERROR((L66-$G$4)/$G$4,NA()) -> -0.006881813191 | N66: =RTD("cqg.rtd",,"StudyData", "Close("&$D$12&") when LocalYear("&$D$12&")="&$D$4&" and localMonth("&$D$12&") ="&$E$4&" and LocalDay("&$D$12&")="&$F$4&" and Barix("&$D$12&",reference:=StartOfSession)="&A66&"", "FG", "", "Close","5","0","PrimaryOnly",,,"False","T","EveryTick") -> 12729.25 | O66: =IFERROR((N66-$G$5)/$G$5,NA()) -> 0.004616932699 | P66: =RTD("cqg.rtd",,"StudyData", "Close("&$D$12&") when LocalYear("&$D$12&")="&$D$5&" and localMonth("&$D$12&") ="&$E$5&" and LocalDay("&$D$12&")="&$F$5&" and Barix("&$D$12&",reference:=StartOfSession)="&A66&"", "FG", "", "Close","5","0","PrimaryOnly",,,"False","T","EveryTick") -> 12680.25 | Q66: =IFERROR((P66-$G$6)/$G$6,NA()) -> 0.006688631312 | R66: =RTD("cqg.rtd",,"StudyData", "Close("&$D$12&") when LocalYear("&$D$12&")="&$D$6&" and localMonth("&$D$12&") ="&$E$6&" and LocalDay("&$D$12&")="&$F$6&" and Barix("&$D$12&",reference:=StartOfSession)="&A66&"", "FG", "", "Close","5","0","PrimaryOnly",,,"False","T","EveryTick") -> 12577.5 | S66: =IFERROR((R66-$G$7)/$G$7,NA()) -> 0.009227683049 | T66: =RTD("cqg.rtd",,"StudyData", "Close("&$D$12&") when LocalYear("&$D$12&")="&$D$7&" and localMonth("&$D$12&") ="&$E$7&" and LocalDay("&$D$12&")="&$F$7&" and Barix("&$D$12&",reference:=StartOfSession)="&A66&"", "FG", "", "Close","5","0","PrimaryOnly",,,"False","T","EveryTick") -> 12518.5 | U66: =IFERROR((T66-$G$8)/$G$8,NA()) -> 0.01214804035 | V66: =RTD("cqg.rtd",,"StudyData", "Close("&$D$12&") when LocalYear("&$D$12&")="&$D$8&" and localMonth("&$D$12&") ="&$E$8&" and LocalDay("&$D$12&")="&$F$8&" and Barix("&$D$12&",reference:=StartOfSession)="&A66&"", "FG", "", "Close","5","0","PrimaryOnly",,,"False","T","EveryTick") -> 12345.75 | W66: =IFERROR((V66-$G$9)/$G$9,NA()) -> -0.004435215612 | X66: =RTD("cqg.rtd",,"StudyData", "Close("&$D$12&") when LocalYear("&$D$12&")="&$D$9&" and localMonth("&$D$12&") ="&$E$9&" and LocalDay("&$D$12&")="&$F$9&" and Barix("&$D$12&",reference:=StartOfSession)="&A66&"", "FG", "", "Close","5","0","PrimaryOnly",,,"False","T","EveryTick") -> 12361.75 | Y66: =IFERROR((X66-$G$10)/$G$10,NA()) -> -0.0002830512929 | Z66: =RTD("cqg.rtd",,"StudyData", "Close("&$D$12&") when LocalYear("&$D$12&")="&$D$10&" and localMonth("&$D$12&") ="&$E$10&" and LocalDay("&$D$12&")="&$F$10&" and Barix("&$D$12&",reference:=StartOfSession)="&A66&"", "FG", "", "Close","5","0","PrimaryOnly",,,"False","T","EveryTick") -> 12372.5 | AA66: =IFERROR((Z66-$G$11)/$G$11,NA()) -> -0.02077562327
A67: =A66+1 -> 66 | B67: 14:00:00 | C67: -11 | D67: =RTD("cqg.rtd",,"StudyData", $D$12, "Tick", "FlatTicks=0", "Tick","D",C67,"PrimaryOnly") -> 12677.25 | H67: =RTD("cqg.rtd",,"StudyData", "Close("&$D$12&") when LocalYear("&$D$12&")="&$D$1&" and localMonth("&$D$12&") ="&$E$1&" and LocalDay("&$D$12&")="&$F$1&" and Barix("&$D$12&",reference:=StartOfSession)="&A67&"", "FG", "", "Close","5","0","PrimaryOnly",,,"False","T","EveryTick") ->  | I67: =IFERROR((H67-$G$2)/$G$2,NA()) ->  | J67: =RTD("cqg.rtd",,"StudyData", "Close("&$D$12&") when LocalYear("&$D$12&")="&$D$2&" and localMonth("&$D$12&") ="&$E$2&" and LocalDay("&$D$12&")="&$F$2&" and Barix("&$D$12&",reference:=StartOfSession)="&A67&"", "FG", "", "Close","5","0","PrimaryOnly",,,"False","T","EveryTick") -> 12681.75 | K67: -0.002418879056 | L67: =RTD("cqg.rtd",,"StudyData", "Close("&$D$12&") when LocalYear("&$D$12&")="&$D$3&" and localMonth("&$D$12&") ="&$E$3&" and LocalDay("&$D$12&")="&$F$3&" and Barix("&$D$12&",reference:=StartOfSession)="&A67&"", "FG", "", "Close","5","0","PrimaryOnly",,,"False","T","EveryTick") -> 12647 | M67: -0.008156223041 | N67: =RTD("cqg.rtd",,"StudyData", "Close("&$D$12&") when LocalYear("&$D$12&")="&$D$4&" and localMonth("&$D$12&") ="&$E$4&" and LocalDay("&$D$12&")="&$F$4&" and Barix("&$D$12&",reference:=StartOfSession)="&A67&"", "FG", "", "Close","5","0","PrimaryOnly",,,"False","T","EveryTick") -> 12721 | O67: 0.003965826806 | P67: =RTD("cqg.rtd",,"StudyData", "Close("&$D$12&") when LocalYear("&$D$12&")="&$D$5&" and localMonth("&$D$12&") ="&$E$5&" and LocalDay("&$D$12&")="&$F$5&" and Barix("&$D$12&",reference:=StartOfSession)="&A67&"", "FG", "", "Close","5","0","PrimaryOnly",,,"False","T","EveryTick") -> 12681.5 | Q67: 0.006787869165 | R67: =RTD("cqg.rtd",,"StudyData", "Close("&$D$12&") when LocalYear("&$D$12&")="&$D$6&" and localMonth("&$D$12&") ="&$E$6&" and LocalDay("&$D$12&")="&$F$6&" and Barix("&$D$12&",reference:=StartOfSession)="&A67&"", "FG", "", "Close","5","0","PrimaryOnly",,,"False","T","EveryTick") -> 12572.75 | S67: 0.008846539619 | T67: =RTD("cqg.rtd",,"StudyData", "Close("&$D$12&") when LocalYear("&$D$12&")="&$D$7&" and localMonth("&$D$12&") ="&$E$7&" and LocalDay("&$D$12&")="&$F$7&" and Barix("&$D$12&",reference:=StartOfSession)="&A67&"", "FG", "", "Close","5","0","PrimaryOnly",,,"False","T","EveryTick") -> 12513 | U67: 0.01170335334 | V67: =RTD("cqg.rtd",,"StudyData", "Close("&$D$12&") when LocalYear("&$D$12&")="&$D$8&" and localMonth("&$D$12&") ="&$E$8&" and LocalDay("&$D$12&")="&$F$8&" and Barix("&$D$12&",reference:=StartOfSession)="&A67&"", "FG", "", "Close","5","0","PrimaryOnly",,,"False","T","EveryTick") -> 12332.25 | W67: -0.005523859444 | X67: =RTD("cqg.rtd",,"StudyData", "Close("&$D$12&") when LocalYear("&$D$12&")="&$D$9&" and localMonth("&$D$12&") ="&$E$9&" and LocalDay("&$D$12&")="&$F$9&" and Barix("&$D$12&",reference:=StartOfSession)="&A67&"", "FG", "", "Close","5","0","PrimaryOnly",,,"False","T","EveryTick") -> 12372 | Y67: 0.0005458846364 | Z67: =RTD("cqg.rtd",,"StudyData", "Close("&$D$12&") when LocalYear("&$D$12&")="&$D$10&" and localMonth("&$D$12&") ="&$E$10&" and LocalDay("&$D$12&")="&$F$10&" and Barix("&$D$12&",reference:=StartOfSession)="&A67&"", "FG", "", "Close","5","0","PrimaryOnly",,,"False","T","EveryTick") -> 12355.75 | AA67: -0.0221013059 | AE67: =IF(AND(H66<>"",H67<>"",H68=""),A67,"") -> 
A68: 67 | B68: 14:05:00 | C68: -10 | D68: =RTD("cqg.rtd",,"StudyData", $D$12, "Tick", "FlatTicks=0", "Tick","D",C68,"PrimaryOnly") -> 12677.5 | H68: =RTD("cqg.rtd",,"StudyData", "Close("&$D$12&") when LocalYear("&$D$12&")="&$D$1&" and localMonth("&$D$12&") ="&$E$1&" and LocalDay("&$D$12&")="&$F$1&" and Barix("&$D$12&",reference:=StartOfSession)="&A68&"", "FG", "", "Close","5","0","PrimaryOnly",,,"False","T","EveryTick") ->  | J68: =RTD("cqg.rtd",,"StudyData", "Close("&$D$12&") when LocalYear("&$D$12&")="&$D$2&" and localMonth("&$D$12&") ="&$E$2&" and LocalDay("&$D$12&")="&$F$2&" and Barix("&$D$12&",reference:=StartOfSession)="&A68&"", "FG", "", "Close","5","0","PrimaryOnly",,,"False","T","EveryTick") -> 12665 | K68: -0.003736479843 | L68: =RTD("cqg.rtd",,"StudyData", "Close("&$D$12&") when LocalYear("&$D$12&")="&$D$3&" and localMonth("&$D$12&") ="&$E$3&" and LocalDay("&$D$12&")="&$F$3&" and Barix("&$D$12&",reference:=StartOfSession)="&A68&"", "FG", "", "Close","5","0","PrimaryOnly",,,"False","T","EveryTick") -> 12653.25 | M68: -0.007666065407 | N68: =RTD("cqg.rtd",,"StudyData", "Close("&$D$12&") when LocalYear("&$D$12&")="&$D$4&" and localMonth("&$D$12&") ="&$E$4&" and LocalDay("&$D$12&")="&$F$4&" and Barix("&$D$12&",reference:=StartOfSession)="&A68&"", "FG", "", "Close","5","0","PrimaryOnly",,,"False","T","EveryTick") -> 12721 | O68: 0.003965826806 | P68: =RTD("cqg.rtd",,"StudyData", "Close("&$D$12&") when LocalYear("&$D$12&")="&$D$5&" and localMonth("&$D$12&") ="&$E$5&" and LocalDay("&$D$12&")="&$F$5&" and Barix("&$D$12&",reference:=StartOfSession)="&A68&"", "FG", "", "Close","5","0","PrimaryOnly",,,"False","T","EveryTick") -> 12677.25 | Q68: 0.006450460464 | R68: =RTD("cqg.rtd",,"StudyData", "Close("&$D$12&") when LocalYear("&$D$12&")="&$D$6&" and localMonth("&$D$12&") ="&$E$6&" and LocalDay("&$D$12&")="&$F$6&" and Barix("&$D$12&",reference:=StartOfSession)="&A68&"", "FG", "", "Close","5","0","PrimaryOnly",,,"False","T","EveryTick") -> 12576.75 | S68: 0.009167502508 | T68: =RTD("cqg.rtd",,"StudyData", "Close("&$D$12&") when LocalYear("&$D$12&")="&$D$7&" and localMonth("&$D$12&") ="&$E$7&" and LocalDay("&$D$12&")="&$F$7&" and Barix("&$D$12&",reference:=StartOfSession)="&A68&"", "FG", "", "Close","5","0","PrimaryOnly",,,"False","T","EveryTick") -> 12506.5 | U68: 0.01117781416 | V68: =RTD("cqg.rtd",,"StudyData", "Close("&$D$12&") when LocalYear("&$D$12&")="&$D$8&" and localMonth("&$D$12&") ="&$E$8&" and LocalDay("&$D$12&")="&$F$8&" and Barix("&$D$12&",reference:=StartOfSession)="&A68&"", "FG", "", "Close","5","0","PrimaryOnly",,,"False","T","EveryTick") -> 12336 | W68: -0.00522145838 | X68: =RTD("cqg.rtd",,"StudyData", "Close("&$D$12&") when LocalYear("&$D$12&")="&$D$9&" and localMonth("&$D$12&") ="&$E$9&" and LocalDay("&$D$12&")="&$F$9&" and Barix("&$D$12&",reference:=StartOfSession)="&A68&"", "FG", "", "Close","5","0","PrimaryOnly",,,"False","T","EveryTick") -> 12369.75 | Y68: 0.0003639230909 | Z68: =RTD("cqg.rtd",,"StudyData", "Close("&$D$12&") when LocalYear("&$D$12&")="&$D$10&" and localMonth("&$D$12&") ="&$E$10&" and LocalDay("&$D$12&")="&$F$10&" and Barix("&$D$12&",reference:=StartOfSession)="&A68&"", "FG", "", "Close","5","0","PrimaryOnly",,,"False","T","EveryTick") -> 12381.25 | AA68: -0.02008310249
A69: 68 | B69: 14:10:00 | C69: =C68+1 -> -9 | D69: =RTD("cqg.rtd",,"StudyData", $D$12, "Tick", "FlatTicks=0", "Tick","D",C69,"PrimaryOnly") -> 12678 | H69: =RTD("cqg.rtd",,"StudyData", "Close("&$D$12&") when LocalYear("&$D$12&")="&$D$1&" and localMonth("&$D$12&") ="&$E$1&" and LocalDay("&$D$12&")="&$F$1&" and Barix("&$D$12&",reference:=StartOfSession)="&A69&"", "FG", "", "Close","5","0","PrimaryOnly",,,"False","T","EveryTick") ->  | J69: =RTD("cqg.rtd",,"StudyData", "Close("&$D$12&") when LocalYear("&$D$12&")="&$D$2&" and localMonth("&$D$12&") ="&$E$2&" and LocalDay("&$D$12&")="&$F$2&" and Barix("&$D$12&",reference:=StartOfSession)="&A69&"", "FG", "", "Close","5","0","PrimaryOnly",,,"False","T","EveryTick") -> 12671.5 | K69: -0.003225172075 | L69: =RTD("cqg.rtd",,"StudyData", "Close("&$D$12&") when LocalYear("&$D$12&")="&$D$3&" and localMonth("&$D$12&") ="&$E$3&" and LocalDay("&$D$12&")="&$F$3&" and Barix("&$D$12&",reference:=StartOfSession)="&A69&"", "FG", "", "Close","5","0","PrimaryOnly",,,"False","T","EveryTick") -> 12652 | M69: -0.007764096934 | N69: =RTD("cqg.rtd",,"StudyData", "Close("&$D$12&") when LocalYear("&$D$12&")="&$D$4&" and localMonth("&$D$12&") ="&$E$4&" and LocalDay("&$D$12&")="&$F$4&" and Barix("&$D$12&",reference:=StartOfSession)="&A69&"", "FG", "", "Close","5","0","PrimaryOnly",,,"False","T","EveryTick") -> 12720.25 | O69: 0.003906635361 | P69: =RTD("cqg.rtd",,"StudyData", "Close("&$D$12&") when LocalYear("&$D$12&")="&$D$5&" and localMonth("&$D$12&") ="&$E$5&" and LocalDay("&$D$12&")="&$F$5&" and Barix("&$D$12&",reference:=StartOfSession)="&A69&"", "FG", "", "Close","5","0","PrimaryOnly",,,"False","T","EveryTick") -> 12675 | Q69: 0.006271832328 | R69: =RTD("cqg.rtd",,"StudyData", "Close("&$D$12&") when LocalYear("&$D$12&")="&$D$6&" and localMonth("&$D$12&") ="&$E$6&" and LocalDay("&$D$12&")="&$F$6&" and Barix("&$D$12&",reference:=StartOfSession)="&A69&"", "FG", "", "Close","5","0","PrimaryOnly",,,"False","T","EveryTick") -> 12578.5 | S69: 0.009307923771 | T69: =RTD("cqg.rtd",,"StudyData", "Close("&$D$12&") when LocalYear("&$D$12&")="&$D$7&" and localMonth("&$D$12&") ="&$E$7&" and LocalDay("&$D$12&")="&$F$7&" and Barix("&$D$12&",reference:=StartOfSession)="&A69&"", "FG", "", "Close","5","0","PrimaryOnly",,,"False","T","EveryTick") -> 12517.25 | U69: 0.01204697512 | V69: =RTD("cqg.rtd",,"StudyData", "Close("&$D$12&") when LocalYear("&$D$12&")="&$D$8&" and localMonth("&$D$12&") ="&$E$8&" and LocalDay("&$D$12&")="&$F$8&" and Barix("&$D$12&",reference:=StartOfSession)="&A69&"", "FG", "", "Close","5","0","PrimaryOnly",,,"False","T","EveryTick") -> 12349.25 | W69: -0.004152974618 | X69: =RTD("cqg.rtd",,"StudyData", "Close("&$D$12&") when LocalYear("&$D$12&")="&$D$9&" and localMonth("&$D$12&") ="&$E$9&" and LocalDay("&$D$12&")="&$F$9&" and Barix("&$D$12&",reference:=StartOfSession)="&A69&"", "FG", "", "Close","5","0","PrimaryOnly",,,"False","T","EveryTick") -> 12386.25 | Y69: 0.001698307758 | Z69: =RTD("cqg.rtd",,"StudyData", "Close("&$D$12&") when LocalYear("&$D$12&")="&$D$10&" and localMonth("&$D$12&") ="&$E$10&" and LocalDay("&$D$12&")="&$F$10&" and Barix("&$D$12&",reference:=StartOfSession)="&A69&"", "FG", "", "Close","5","0","PrimaryOnly",,,"False","T","EveryTick") -> 12366.75 | AA69: -0.02123070835
A70: 69 | B70: 14:15:00 | C70: -8 | D70: =RTD("cqg.rtd",,"StudyData", $D$12, "Tick", "FlatTicks=0", "Tick","D",C70,"PrimaryOnly") -> 12677.5 | H70: =RTD("cqg.rtd",,"StudyData", "Close("&$D$12&") when LocalYear("&$D$12&")="&$D$1&" and localMonth("&$D$12&") ="&$E$1&" and LocalDay("&$D$12&")="&$F$1&" and Barix("&$D$12&",reference:=StartOfSession)="&A70&"", "FG", "", "Close","5","0","PrimaryOnly",,,"False","T","EveryTick") ->  | J70: =RTD("cqg.rtd",,"StudyData", "Close("&$D$12&") when LocalYear("&$D$12&")="&$D$2&" and localMonth("&$D$12&") ="&$E$2&" and LocalDay("&$D$12&")="&$F$2&" and Barix("&$D$12&",reference:=StartOfSession)="&A70&"", "FG", "", "Close","5","0","PrimaryOnly",,,"False","T","EveryTick") -> 12666 | K70: -0.003657817109 | L70: =RTD("cqg.rtd",,"StudyData", "Close("&$D$12&") when LocalYear("&$D$12&")="&$D$3&" and localMonth("&$D$12&") ="&$E$3&" and LocalDay("&$D$12&")="&$F$3&" and Barix("&$D$12&",reference:=StartOfSession)="&A70&"", "FG", "", "Close","5","0","PrimaryOnly",,,"False","T","EveryTick") -> 12653 | M70: -0.007685671712 | N70: =RTD("cqg.rtd",,"StudyData", "Close("&$D$12&") when LocalYear("&$D$12&")="&$D$4&" and localMonth("&$D$12&") ="&$E$4&" and LocalDay("&$D$12&")="&$F$4&" and Barix("&$D$12&",reference:=StartOfSession)="&A70&"", "FG", "", "Close","5","0","PrimaryOnly",,,"False","T","EveryTick") -> 12724.75 | O70: 0.00426178403 | P70: =RTD("cqg.rtd",,"StudyData", "Close("&$D$12&") when LocalYear("&$D$12&")="&$D$5&" and localMonth("&$D$12&") ="&$E$5&" and LocalDay("&$D$12&")="&$F$5&" and Barix("&$D$12&",reference:=StartOfSession)="&A70&"", "FG", "", "Close","5","0","PrimaryOnly",,,"False","T","EveryTick") -> 12681.5 | Q70: 0.006787869165 | R70: =RTD("cqg.rtd",,"StudyData", "Close("&$D$12&") when LocalYear("&$D$12&")="&$D$6&" and localMonth("&$D$12&") ="&$E$6&" and LocalDay("&$D$12&")="&$F$6&" and Barix("&$D$12&",reference:=StartOfSession)="&A70&"", "FG", "", "Close","5","0","PrimaryOnly",,,"False","T","EveryTick") -> 12575.5 | S70: 0.009067201605 | T70: =RTD("cqg.rtd",,"StudyData", "Close("&$D$12&") when LocalYear("&$D$12&")="&$D$7&" and localMonth("&$D$12&") ="&$E$7&" and LocalDay("&$D$12&")="&$F$7&" and Barix("&$D$12&",reference:=StartOfSession)="&A70&"", "FG", "", "Close","5","0","PrimaryOnly",,,"False","T","EveryTick") -> 12517 | U70: 0.01202676207 | V70: =RTD("cqg.rtd",,"StudyData", "Close("&$D$12&") when LocalYear("&$D$12&")="&$D$8&" and localMonth("&$D$12&") ="&$E$8&" and LocalDay("&$D$12&")="&$F$8&" and Barix("&$D$12&",reference:=StartOfSession)="&A70&"", "FG", "", "Close","5","0","PrimaryOnly",,,"False","T","EveryTick") -> 12375.25 | W70: -0.002056327238 | X70: =RTD("cqg.rtd",,"StudyData", "Close("&$D$12&") when LocalYear("&$D$12&")="&$D$9&" and localMonth("&$D$12&") ="&$E$9&" and LocalDay("&$D$12&")="&$F$9&" and Barix("&$D$12&",reference:=StartOfSession)="&A70&"", "FG", "", "Close","5","0","PrimaryOnly",,,"False","T","EveryTick") -> 12395.5 | Y70: 0.002446371889 | Z70: =RTD("cqg.rtd",,"StudyData", "Close("&$D$12&") when LocalYear("&$D$12&")="&$D$10&" and localMonth("&$D$12&") ="&$E$10&" and LocalDay("&$D$12&")="&$F$10&" and Barix("&$D$12&",reference:=StartOfSession)="&A70&"", "FG", "", "Close","5","0","PrimaryOnly",,,"False","T","EveryTick") -> 12355 | AA70: -0.02216066482
A71: 70 | B71: 14:20:00 | C71: -7 | D71: =RTD("cqg.rtd",,"StudyData", $D$12, "Tick", "FlatTicks=0", "Tick","D",C71,"PrimaryOnly") -> 12677.25 | H71: =RTD("cqg.rtd",,"StudyData", "Close("&$D$12&") when LocalYear("&$D$12&")="&$D$1&" and localMonth("&$D$12&") ="&$E$1&" and LocalDay("&$D$12&")="&$F$1&" and Barix("&$D$12&",reference:=StartOfSession)="&A71&"", "FG", "", "Close","5","0","PrimaryOnly",,,"False","T","EveryTick") ->  | J71: =RTD("cqg.rtd",,"StudyData", "Close("&$D$12&") when LocalYear("&$D$12&")="&$D$2&" and localMonth("&$D$12&") ="&$E$2&" and LocalDay("&$D$12&")="&$F$2&" and Barix("&$D$12&",reference:=StartOfSession)="&A71&"", "FG", "", "Close","5","0","PrimaryOnly",,,"False","T","EveryTick") -> 12669.25 | K71: -0.003402163225 | L71: =RTD("cqg.rtd",,"StudyData", "Close("&$D$12&") when LocalYear("&$D$12&")="&$D$3&" and localMonth("&$D$12&") ="&$E$3&" and LocalDay("&$D$12&")="&$F$3&" and Barix("&$D$12&",reference:=StartOfSession)="&A71&"", "FG", "", "Close","5","0","PrimaryOnly",,,"False","T","EveryTick") -> 12636.25 | M71: -0.008999294173 | N71: =RTD("cqg.rtd",,"StudyData", "Close("&$D$12&") when LocalYear("&$D$12&")="&$D$4&" and localMonth("&$D$12&") ="&$E$4&" and LocalDay("&$D$12&")="&$F$4&" and Barix("&$D$12&",reference:=StartOfSession)="&A71&"", "FG", "", "Close","5","0","PrimaryOnly",,,"False","T","EveryTick") -> 12729.75 | O71: 0.004656393663 | P71: =RTD("cqg.rtd",,"StudyData", "Close("&$D$12&") when LocalYear("&$D$12&")="&$D$5&" and localMonth("&$D$12&") ="&$E$5&" and LocalDay("&$D$12&")="&$F$5&" and Barix("&$D$12&",reference:=StartOfSession)="&A71&"", "FG", "", "Close","5","0","PrimaryOnly",,,"False","T","EveryTick") -> 12690 | Q71: 0.007462686567 | R71: =RTD("cqg.rtd",,"StudyData", "Close("&$D$12&") when LocalYear("&$D$12&")="&$D$6&" and localMonth("&$D$12&") ="&$E$6&" and LocalDay("&$D$12&")="&$F$6&" and Barix("&$D$12&",reference:=StartOfSession)="&A71&"", "FG", "", "Close","5","0","PrimaryOnly",,,"False","T","EveryTick") -> 12592 | S71: 0.01039117352 | T71: =RTD("cqg.rtd",,"StudyData", "Close("&$D$12&") when LocalYear("&$D$12&")="&$D$7&" and localMonth("&$D$12&") ="&$E$7&" and LocalDay("&$D$12&")="&$F$7&" and Barix("&$D$12&",reference:=StartOfSession)="&A71&"", "FG", "", "Close","5","0","PrimaryOnly",,,"False","T","EveryTick") -> 12521 | U71: 0.0123501708 | V71: =RTD("cqg.rtd",,"StudyData", "Close("&$D$12&") when LocalYear("&$D$12&")="&$D$8&" and localMonth("&$D$12&") ="&$E$8&" and LocalDay("&$D$12&")="&$F$8&" and Barix("&$D$12&",reference:=StartOfSession)="&A71&"", "FG", "", "Close","5","0","PrimaryOnly",,,"False","T","EveryTick") -> 12363 | W71: -0.003044170715 | X71: =RTD("cqg.rtd",,"StudyData", "Close("&$D$12&") when LocalYear("&$D$12&")="&$D$9&" and localMonth("&$D$12&") ="&$E$9&" and LocalDay("&$D$12&")="&$F$9&" and Barix("&$D$12&",reference:=StartOfSession)="&A71&"", "FG", "", "Close","5","0","PrimaryOnly",,,"False","T","EveryTick") -> 12399 | Y71: 0.002729423182 | Z71: =RTD("cqg.rtd",,"StudyData", "Close("&$D$12&") when LocalYear("&$D$12&")="&$D$10&" and localMonth("&$D$12&") ="&$E$10&" and LocalDay("&$D$12&")="&$F$10&" and Barix("&$D$12&",reference:=StartOfSession)="&A71&"", "FG", "", "Close","5","0","PrimaryOnly",,,"False","T","EveryTick") -> 12335.75 | AA71: -0.02368421053
A72: 71 | B72: 14:25:00 | C72: -6 | D72: =RTD("cqg.rtd",,"StudyData", $D$12, "Tick", "FlatTicks=0", "Tick","D",C72,"PrimaryOnly") -> 12677 | H72: =RTD("cqg.rtd",,"StudyData", "Close("&$D$12&") when LocalYear("&$D$12&")="&$D$1&" and localMonth("&$D$12&") ="&$E$1&" and LocalDay("&$D$12&")="&$F$1&" and Barix("&$D$12&",reference:=StartOfSession)="&A72&"", "FG", "", "Close","5","0","PrimaryOnly",,,"False","T","EveryTick") ->  | J72: =RTD("cqg.rtd",,"StudyData", "Close("&$D$12&") when LocalYear("&$D$12&")="&$D$2&" and localMonth("&$D$12&") ="&$E$2&" and LocalDay("&$D$12&")="&$F$2&" and Barix("&$D$12&",reference:=StartOfSession)="&A72&"", "FG", "", "Close","5","0","PrimaryOnly",,,"False","T","EveryTick") -> 12666.75 | K72: -0.003598820059 | L72: =RTD("cqg.rtd",,"StudyData", "Close("&$D$12&") when LocalYear("&$D$12&")="&$D$3&" and localMonth("&$D$12&") ="&$E$3&" and LocalDay("&$D$12&")="&$F$3&" and Barix("&$D$12&",reference:=StartOfSession)="&A72&"", "FG", "", "Close","5","0","PrimaryOnly",,,"False","T","EveryTick") -> 12636.25 | M72: -0.008999294173 | N72: =RTD("cqg.rtd",,"StudyData", "Close("&$D$12&") when LocalYear("&$D$12&")="&$D$4&" and localMonth("&$D$12&") ="&$E$4&" and LocalDay("&$D$12&")="&$F$4&" and Barix("&$D$12&",reference:=StartOfSession)="&A72&"", "FG", "", "Close","5","0","PrimaryOnly",,,"False","T","EveryTick") -> 12715.5 | O72: 0.00353175621 | P72: =RTD("cqg.rtd",,"StudyData", "Close("&$D$12&") when LocalYear("&$D$12&")="&$D$5&" and localMonth("&$D$12&") ="&$E$5&" and LocalDay("&$D$12&")="&$F$5&" and Barix("&$D$12&",reference:=StartOfSession)="&A72&"", "FG", "", "Close","5","0","PrimaryOnly",,,"False","T","EveryTick") -> 12691.25 | Q72: 0.00756192442 | R72: =RTD("cqg.rtd",,"StudyData", "Close("&$D$12&") when LocalYear("&$D$12&")="&$D$6&" and localMonth("&$D$12&") ="&$E$6&" and LocalDay("&$D$12&")="&$F$6&" and Barix("&$D$12&",reference:=StartOfSession)="&A72&"", "FG", "", "Close","5","0","PrimaryOnly",,,"False","T","EveryTick") -> 12585.75 | S72: 0.009889669007 | T72: =RTD("cqg.rtd",,"StudyData", "Close("&$D$12&") when LocalYear("&$D$12&")="&$D$7&" and localMonth("&$D$12&") ="&$E$7&" and LocalDay("&$D$12&")="&$F$7&" and Barix("&$D$12&",reference:=StartOfSession)="&A72&"", "FG", "", "Close","5","0","PrimaryOnly",,,"False","T","EveryTick") -> 12517.5 | U72: 0.01206718816 | V72: =RTD("cqg.rtd",,"StudyData", "Close("&$D$12&") when LocalYear("&$D$12&")="&$D$8&" and localMonth("&$D$12&") ="&$E$8&" and LocalDay("&$D$12&")="&$F$8&" and Barix("&$D$12&",reference:=StartOfSession)="&A72&"", "FG", "", "Close","5","0","PrimaryOnly",,,"False","T","EveryTick") -> 12358.75 | W72: -0.003386891922 | X72: =RTD("cqg.rtd",,"StudyData", "Close("&$D$12&") when LocalYear("&$D$12&")="&$D$9&" and localMonth("&$D$12&") ="&$E$9&" and LocalDay("&$D$12&")="&$F$9&" and Barix("&$D$12&",reference:=StartOfSession)="&A72&"", "FG", "", "Close","5","0","PrimaryOnly",,,"False","T","EveryTick") -> 12401 | Y72: 0.002891166778 | Z72: =RTD("cqg.rtd",,"StudyData", "Close("&$D$12&") when LocalYear("&$D$12&")="&$D$10&" and localMonth("&$D$12&") ="&$E$10&" and LocalDay("&$D$12&")="&$F$10&" and Barix("&$D$12&",reference:=StartOfSession)="&A72&"", "FG", "", "Close","5","0","PrimaryOnly",,,"False","T","EveryTick") -> 12306.25 | AA72: -0.02601899486
A73: 72 | B73: 14:30:00 | C73: -5 | D73: =RTD("cqg.rtd",,"StudyData", $D$12, "Tick", "FlatTicks=0", "Tick","D",C73,"PrimaryOnly") -> 12677.5 | H73: =RTD("cqg.rtd",,"StudyData", "Close("&$D$12&") when LocalYear("&$D$12&")="&$D$1&" and localMonth("&$D$12&") ="&$E$1&" and LocalDay("&$D$12&")="&$F$1&" and Barix("&$D$12&",reference:=StartOfSession)="&A73&"", "FG", "", "Close","5","0","PrimaryOnly",,,"False","T","EveryTick") ->  | J73: =RTD("cqg.rtd",,"StudyData", "Close("&$D$12&") when LocalYear("&$D$12&")="&$D$2&" and localMonth("&$D$12&") ="&$E$2&" and LocalDay("&$D$12&")="&$F$2&" and Barix("&$D$12&",reference:=StartOfSession)="&A73&"", "FG", "", "Close","5","0","PrimaryOnly",,,"False","T","EveryTick") -> 12642.75 | K73: -0.005486725664 | L73: =RTD("cqg.rtd",,"StudyData", "Close("&$D$12&") when LocalYear("&$D$12&")="&$D$3&" and localMonth("&$D$12&") ="&$E$3&" and LocalDay("&$D$12&")="&$F$3&" and Barix("&$D$12&",reference:=StartOfSession)="&A73&"", "FG", "", "Close","5","0","PrimaryOnly",,,"False","T","EveryTick") -> 12641 | M73: -0.008626774371 | N73: =RTD("cqg.rtd",,"StudyData", "Close("&$D$12&") when LocalYear("&$D$12&")="&$D$4&" and localMonth("&$D$12&") ="&$E$4&" and LocalDay("&$D$12&")="&$F$4&" and Barix("&$D$12&",reference:=StartOfSession)="&A73&"", "FG", "", "Close","5","0","PrimaryOnly",,,"False","T","EveryTick") -> 12715 | O73: 0.003492295247 | P73: =RTD("cqg.rtd",,"StudyData", "Close("&$D$12&") when LocalYear("&$D$12&")="&$D$5&" and localMonth("&$D$12&") ="&$E$5&" and LocalDay("&$D$12&")="&$F$5&" and Barix("&$D$12&",reference:=StartOfSession)="&A73&"", "FG", "", "Close","5","0","PrimaryOnly",,,"False","T","EveryTick") -> 12702 | Q73: 0.008415369959 | R73: =RTD("cqg.rtd",,"StudyData", "Close("&$D$12&") when LocalYear("&$D$12&")="&$D$6&" and localMonth("&$D$12&") ="&$E$6&" and LocalDay("&$D$12&")="&$F$6&" and Barix("&$D$12&",reference:=StartOfSession)="&A73&"", "FG", "", "Close","5","0","PrimaryOnly",,,"False","T","EveryTick") -> 12575.5 | S73: 0.009067201605 | T73: =RTD("cqg.rtd",,"StudyData", "Close("&$D$12&") when LocalYear("&$D$12&")="&$D$7&" and localMonth("&$D$12&") ="&$E$7&" and LocalDay("&$D$12&")="&$F$7&" and Barix("&$D$12&",reference:=StartOfSession)="&A73&"", "FG", "", "Close","5","0","PrimaryOnly",,,"False","T","EveryTick") -> 12488.75 | U73: 0.009742687931 | V73: =RTD("cqg.rtd",,"StudyData", "Close("&$D$12&") when LocalYear("&$D$12&")="&$D$8&" and localMonth("&$D$12&") ="&$E$8&" and LocalDay("&$D$12&")="&$F$8&" and Barix("&$D$12&",reference:=StartOfSession)="&A73&"", "FG", "", "Close","5","0","PrimaryOnly",,,"False","T","EveryTick") -> 12356.75 | W73: -0.00354817249 | X73: =RTD("cqg.rtd",,"StudyData", "Close("&$D$12&") when LocalYear("&$D$12&")="&$D$9&" and localMonth("&$D$12&") ="&$E$9&" and LocalDay("&$D$12&")="&$F$9&" and Barix("&$D$12&",reference:=StartOfSession)="&A73&"", "FG", "", "Close","5","0","PrimaryOnly",,,"False","T","EveryTick") -> 12403 | Y73: 0.003052910374 | Z73: =RTD("cqg.rtd",,"StudyData", "Close("&$D$12&") when LocalYear("&$D$12&")="&$D$10&" and localMonth("&$D$12&") ="&$E$10&" and LocalDay("&$D$12&")="&$F$10&" and Barix("&$D$12&",reference:=StartOfSession)="&A73&"", "FG", "", "Close","5","0","PrimaryOnly",,,"False","T","EveryTick") -> 12321.25 | AA73: -0.02483181638
A74: 73 | B74: 14:35:00 | C74: -4 | D74: =RTD("cqg.rtd",,"StudyData", $D$12, "Tick", "FlatTicks=0", "Tick","D",C74,"PrimaryOnly") -> 12677.75 | H74: =RTD("cqg.rtd",,"StudyData", "Close("&$D$12&") when LocalYear("&$D$12&")="&$D$1&" and localMonth("&$D$12&") ="&$E$1&" and LocalDay("&$D$12&")="&$F$1&" and Barix("&$D$12&",reference:=StartOfSession)="&A74&"", "FG", "", "Close","5","0","PrimaryOnly",,,"False","T","EveryTick") ->  | J74: =RTD("cqg.rtd",,"StudyData", "Close("&$D$12&") when LocalYear("&$D$12&")="&$D$2&" and localMonth("&$D$12&") ="&$E$2&" and LocalDay("&$D$12&")="&$F$2&" and Barix("&$D$12&",reference:=StartOfSession)="&A74&"", "FG", "", "Close","5","0","PrimaryOnly",,,"False","T","EveryTick") -> 12665.75 | K74: -0.003677482793 | L74: =RTD("cqg.rtd",,"StudyData", "Close("&$D$12&") when LocalYear("&$D$12&")="&$D$3&" and localMonth("&$D$12&") ="&$E$3&" and LocalDay("&$D$12&")="&$F$3&" and Barix("&$D$12&",reference:=StartOfSession)="&A74&"", "FG", "", "Close","5","0","PrimaryOnly",,,"False","T","EveryTick") -> 12617.75 | M74: -0.01045016077 | N74: =RTD("cqg.rtd",,"StudyData", "Close("&$D$12&") when LocalYear("&$D$12&")="&$D$4&" and localMonth("&$D$12&") ="&$E$4&" and LocalDay("&$D$12&")="&$F$4&" and Barix("&$D$12&",reference:=StartOfSession)="&A74&"", "FG", "", "Close","5","0","PrimaryOnly",,,"False","T","EveryTick") -> 12725 | O74: 0.004281514512 | P74: =RTD("cqg.rtd",,"StudyData", "Close("&$D$12&") when LocalYear("&$D$12&")="&$D$5&" and localMonth("&$D$12&") ="&$E$5&" and LocalDay("&$D$12&")="&$F$5&" and Barix("&$D$12&",reference:=StartOfSession)="&A74&"", "FG", "", "Close","5","0","PrimaryOnly",,,"False","T","EveryTick") -> 12699.25 | Q74: 0.008197046681 | R74: =RTD("cqg.rtd",,"StudyData", "Close("&$D$12&") when LocalYear("&$D$12&")="&$D$6&" and localMonth("&$D$12&") ="&$E$6&" and LocalDay("&$D$12&")="&$F$6&" and Barix("&$D$12&",reference:=StartOfSession)="&A74&"", "FG", "", "Close","5","0","PrimaryOnly",,,"False","T","EveryTick") -> 12576.25 | S74: 0.009127382146 | T74: =RTD("cqg.rtd",,"StudyData", "Close("&$D$12&") when LocalYear("&$D$12&")="&$D$7&" and localMonth("&$D$12&") ="&$E$7&" and LocalDay("&$D$12&")="&$F$7&" and Barix("&$D$12&",reference:=StartOfSession)="&A74&"", "FG", "", "Close","5","0","PrimaryOnly",,,"False","T","EveryTick") -> 12482.75 | U74: 0.009257574839 | V74: =RTD("cqg.rtd",,"StudyData", "Close("&$D$12&") when LocalYear("&$D$12&")="&$D$8&" and localMonth("&$D$12&") ="&$E$8&" and LocalDay("&$D$12&")="&$F$8&" and Barix("&$D$12&",reference:=StartOfSession)="&A74&"", "FG", "", "Close","5","0","PrimaryOnly",,,"False","T","EveryTick") -> 12360.75 | W74: -0.003225611354 | X74: =RTD("cqg.rtd",,"StudyData", "Close("&$D$12&") when LocalYear("&$D$12&")="&$D$9&" and localMonth("&$D$12&") ="&$E$9&" and LocalDay("&$D$12&")="&$F$9&" and Barix("&$D$12&",reference:=StartOfSession)="&A74&"", "FG", "", "Close","5","0","PrimaryOnly",,,"False","T","EveryTick") -> 12422.25 | Y74: 0.004609692485 | Z74: =RTD("cqg.rtd",,"StudyData", "Close("&$D$12&") when LocalYear("&$D$12&")="&$D$10&" and localMonth("&$D$12&") ="&$E$10&" and LocalDay("&$D$12&")="&$F$10&" and Barix("&$D$12&",reference:=StartOfSession)="&A74&"", "FG", "", "Close","5","0","PrimaryOnly",,,"False","T","EveryTick") -> 12330.75 | AA74: -0.02407993668
A75: 74 | B75: 14:40:00 | C75: -3 | D75: =RTD("cqg.rtd",,"StudyData", $D$12, "Tick", "FlatTicks=0", "Tick","D",C75,"PrimaryOnly") -> 12678.25 | H75: =RTD("cqg.rtd",,"StudyData", "Close("&$D$12&") when LocalYear("&$D$12&")="&$D$1&" and localMonth("&$D$12&") ="&$E$1&" and LocalDay("&$D$12&")="&$F$1&" and Barix("&$D$12&",reference:=StartOfSession)="&A75&"", "FG", "", "Close","5","0","PrimaryOnly",,,"False","T","EveryTick") ->  | J75: =RTD("cqg.rtd",,"StudyData", "Close("&$D$12&") when LocalYear("&$D$12&")="&$D$2&" and localMonth("&$D$12&") ="&$E$2&" and LocalDay("&$D$12&")="&$F$2&" and Barix("&$D$12&",reference:=StartOfSession)="&A75&"", "FG", "", "Close","5","0","PrimaryOnly",,,"False","T","EveryTick") -> 12655.5 | K75: -0.004483775811 | L75: =RTD("cqg.rtd",,"StudyData", "Close("&$D$12&") when LocalYear("&$D$12&")="&$D$3&" and localMonth("&$D$12&") ="&$E$3&" and LocalDay("&$D$12&")="&$F$3&" and Barix("&$D$12&",reference:=StartOfSession)="&A75&"", "FG", "", "Close","5","0","PrimaryOnly",,,"False","T","EveryTick") -> 12637.25 | M75: -0.008920868951 | N75: =RTD("cqg.rtd",,"StudyData", "Close("&$D$12&") when LocalYear("&$D$12&")="&$D$4&" and localMonth("&$D$12&") ="&$E$4&" and LocalDay("&$D$12&")="&$F$4&" and Barix("&$D$12&",reference:=StartOfSession)="&A75&"", "FG", "", "Close","5","0","PrimaryOnly",,,"False","T","EveryTick") -> 12729 | O75: 0.004597202218 | P75: =RTD("cqg.rtd",,"StudyData", "Close("&$D$12&") when LocalYear("&$D$12&")="&$D$5&" and localMonth("&$D$12&") ="&$E$5&" and LocalDay("&$D$12&")="&$F$5&" and Barix("&$D$12&",reference:=StartOfSession)="&A75&"", "FG", "", "Close","5","0","PrimaryOnly",,,"False","T","EveryTick") -> 12695.25 | Q75: 0.007879485551 | R75: =RTD("cqg.rtd",,"StudyData", "Close("&$D$12&") when LocalYear("&$D$12&")="&$D$6&" and localMonth("&$D$12&") ="&$E$6&" and LocalDay("&$D$12&")="&$F$6&" and Barix("&$D$12&",reference:=StartOfSession)="&A75&"", "FG", "", "Close","5","0","PrimaryOnly",,,"False","T","EveryTick") -> 12584.25 | S75: 0.009769307924 | T75: =RTD("cqg.rtd",,"StudyData", "Close("&$D$12&") when LocalYear("&$D$12&")="&$D$7&" and localMonth("&$D$12&") ="&$E$7&" and LocalDay("&$D$12&")="&$F$7&" and Barix("&$D$12&",reference:=StartOfSession)="&A75&"", "FG", "", "Close","5","0","PrimaryOnly",,,"False","T","EveryTick") -> 12470.25 | U75: 0.008246922564 | V75: =RTD("cqg.rtd",,"StudyData", "Close("&$D$12&") when LocalYear("&$D$12&")="&$D$8&" and localMonth("&$D$12&") ="&$E$8&" and LocalDay("&$D$12&")="&$F$8&" and Barix("&$D$12&",reference:=StartOfSession)="&A75&"", "FG", "", "Close","5","0","PrimaryOnly",,,"False","T","EveryTick") -> 12356.5 | W75: -0.003568332561 | X75: =RTD("cqg.rtd",,"StudyData", "Close("&$D$12&") when LocalYear("&$D$12&")="&$D$9&" and localMonth("&$D$12&") ="&$E$9&" and LocalDay("&$D$12&")="&$F$9&" and Barix("&$D$12&",reference:=StartOfSession)="&A75&"", "FG", "", "Close","5","0","PrimaryOnly",,,"False","T","EveryTick") -> 12415.25 | Y75: 0.004043589899 | Z75: =RTD("cqg.rtd",,"StudyData", "Close("&$D$12&") when LocalYear("&$D$12&")="&$D$10&" and localMonth("&$D$12&") ="&$E$10&" and LocalDay("&$D$12&")="&$F$10&" and Barix("&$D$12&",reference:=StartOfSession)="&A75&"", "FG", "", "Close","5","0","PrimaryOnly",,,"False","T","EveryTick") -> 12364.5 | AA75: -0.02140878512
A76: 75 | B76: 14:45:00 | C76: -2 | D76: =RTD("cqg.rtd",,"StudyData", $D$12, "Tick", "FlatTicks=0", "Tick","D",C76,"PrimaryOnly") -> 12678.5 | H76: =RTD("cqg.rtd",,"StudyData", "Close("&$D$12&") when LocalYear("&$D$12&")="&$D$1&" and localMonth("&$D$12&") ="&$E$1&" and LocalDay("&$D$12&")="&$F$1&" and Barix("&$D$12&",reference:=StartOfSession)="&A76&"", "FG", "", "Close","5","0","PrimaryOnly",,,"False","T","EveryTick") ->  | J76: =RTD("cqg.rtd",,"StudyData", "Close("&$D$12&") when LocalYear("&$D$12&")="&$D$2&" and localMonth("&$D$12&") ="&$E$2&" and LocalDay("&$D$12&")="&$F$2&" and Barix("&$D$12&",reference:=StartOfSession)="&A76&"", "FG", "", "Close","5","0","PrimaryOnly",,,"False","T","EveryTick") -> 12658.75 | K76: -0.004228121927 | L76: =RTD("cqg.rtd",,"StudyData", "Close("&$D$12&") when LocalYear("&$D$12&")="&$D$3&" and localMonth("&$D$12&") ="&$E$3&" and LocalDay("&$D$12&")="&$F$3&" and Barix("&$D$12&",reference:=StartOfSession)="&A76&"", "FG", "", "Close","5","0","PrimaryOnly",,,"False","T","EveryTick") -> 12639.5 | M76: -0.008744412203 | N76: =RTD("cqg.rtd",,"StudyData", "Close("&$D$12&") when LocalYear("&$D$12&")="&$D$4&" and localMonth("&$D$12&") ="&$E$4&" and LocalDay("&$D$12&")="&$F$4&" and Barix("&$D$12&",reference:=StartOfSession)="&A76&"", "FG", "", "Close","5","0","PrimaryOnly",,,"False","T","EveryTick") -> 12729.75 | O76: 0.004656393663 | P76: =RTD("cqg.rtd",,"StudyData", "Close("&$D$12&") when LocalYear("&$D$12&")="&$D$5&" and localMonth("&$D$12&") ="&$E$5&" and LocalDay("&$D$12&")="&$F$5&" and Barix("&$D$12&",reference:=StartOfSession)="&A76&"", "FG", "", "Close","5","0","PrimaryOnly",,,"False","T","EveryTick") -> 12694.5 | Q76: 0.007819942839 | R76: =RTD("cqg.rtd",,"StudyData", "Close("&$D$12&") when LocalYear("&$D$12&")="&$D$6&" and localMonth("&$D$12&") ="&$E$6&" and LocalDay("&$D$12&")="&$F$6&" and Barix("&$D$12&",reference:=StartOfSession)="&A76&"", "FG", "", "Close","5","0","PrimaryOnly",,,"False","T","EveryTick") -> 12582.75 | S76: 0.009648946841 | T76: =RTD("cqg.rtd",,"StudyData", "Close("&$D$12&") when LocalYear("&$D$12&")="&$D$7&" and localMonth("&$D$12&") ="&$E$7&" and LocalDay("&$D$12&")="&$F$7&" and Barix("&$D$12&",reference:=StartOfSession)="&A76&"", "FG", "", "Close","5","0","PrimaryOnly",,,"False","T","EveryTick") -> 12483.25 | U76: 0.00929800093 | V76: =RTD("cqg.rtd",,"StudyData", "Close("&$D$12&") when LocalYear("&$D$12&")="&$D$8&" and localMonth("&$D$12&") ="&$E$8&" and LocalDay("&$D$12&")="&$F$8&" and Barix("&$D$12&",reference:=StartOfSession)="&A76&"", "FG", "", "Close","5","0","PrimaryOnly",,,"False","T","EveryTick") -> 12341.75 | W76: -0.004757776747 | X76: =RTD("cqg.rtd",,"StudyData", "Close("&$D$12&") when LocalYear("&$D$12&")="&$D$9&" and localMonth("&$D$12&") ="&$E$9&" and LocalDay("&$D$12&")="&$F$9&" and Barix("&$D$12&",reference:=StartOfSession)="&A76&"", "FG", "", "Close","5","0","PrimaryOnly",,,"False","T","EveryTick") -> 12414.5 | Y76: 0.003982936051 | Z76: =RTD("cqg.rtd",,"StudyData", "Close("&$D$12&") when LocalYear("&$D$12&")="&$D$10&" and localMonth("&$D$12&") ="&$E$10&" and LocalDay("&$D$12&")="&$F$10&" and Barix("&$D$12&",reference:=StartOfSession)="&A76&"", "FG", "", "Close","5","0","PrimaryOnly",,,"False","T","EveryTick") -> 12344 | AA76: -0.02303126237
A77: 76 | B77: 14:50:00 | C77: -1 | D77: =RTD("cqg.rtd",,"StudyData", $D$12, "Tick", "FlatTicks=0", "Tick","D",C77,"PrimaryOnly") -> 12678 | H77: =RTD("cqg.rtd",,"StudyData", "Close("&$D$12&") when LocalYear("&$D$12&")="&$D$1&" and localMonth("&$D$12&") ="&$E$1&" and LocalDay("&$D$12&")="&$F$1&" and Barix("&$D$12&",reference:=StartOfSession)="&A77&"", "FG", "", "Close","5","0","PrimaryOnly",,,"False","T","EveryTick") ->  | J77: =RTD("cqg.rtd",,"StudyData", "Close("&$D$12&") when LocalYear("&$D$12&")="&$D$2&" and localMonth("&$D$12&") ="&$E$2&" and LocalDay("&$D$12&")="&$F$2&" and Barix("&$D$12&",reference:=StartOfSession)="&A77&"", "FG", "", "Close","5","0","PrimaryOnly",,,"False","T","EveryTick") -> 12663.75 | K77: -0.00383480826 | L77: =RTD("cqg.rtd",,"StudyData", "Close("&$D$12&") when LocalYear("&$D$12&")="&$D$3&" and localMonth("&$D$12&") ="&$E$3&" and LocalDay("&$D$12&")="&$F$3&" and Barix("&$D$12&",reference:=StartOfSession)="&A77&"", "FG", "", "Close","5","0","PrimaryOnly",,,"False","T","EveryTick") -> 12689.75 | M77: -0.00480354482 | N77: =RTD("cqg.rtd",,"StudyData", "Close("&$D$12&") when LocalYear("&$D$12&")="&$D$4&" and localMonth("&$D$12&") ="&$E$4&" and LocalDay("&$D$12&")="&$F$4&" and Barix("&$D$12&",reference:=StartOfSession)="&A77&"", "FG", "", "Close","5","0","PrimaryOnly",,,"False","T","EveryTick") -> 12754 | O77: 0.00657025038 | P77: =RTD("cqg.rtd",,"StudyData", "Close("&$D$12&") when LocalYear("&$D$12&")="&$D$5&" and localMonth("&$D$12&") ="&$E$5&" and LocalDay("&$D$12&")="&$F$5&" and Barix("&$D$12&",reference:=StartOfSession)="&A77&"", "FG", "", "Close","5","0","PrimaryOnly",,,"False","T","EveryTick") -> 12685.75 | Q77: 0.007125277866 | R77: =RTD("cqg.rtd",,"StudyData", "Close("&$D$12&") when LocalYear("&$D$12&")="&$D$6&" and localMonth("&$D$12&") ="&$E$6&" and LocalDay("&$D$12&")="&$F$6&" and Barix("&$D$12&",reference:=StartOfSession)="&A77&"", "FG", "", "Close","5","0","PrimaryOnly",,,"False","T","EveryTick") -> 12594 | S77: 0.01055165496 | T77: =RTD("cqg.rtd",,"StudyData", "Close("&$D$12&") when LocalYear("&$D$12&")="&$D$7&" and localMonth("&$D$12&") ="&$E$7&" and LocalDay("&$D$12&")="&$F$7&" and Barix("&$D$12&",reference:=StartOfSession)="&A77&"", "FG", "", "Close","5","0","PrimaryOnly",,,"False","T","EveryTick") -> 12490.25 | U77: 0.009863966204 | V77: =RTD("cqg.rtd",,"StudyData", "Close("&$D$12&") when LocalYear("&$D$12&")="&$D$8&" and localMonth("&$D$12&") ="&$E$8&" and LocalDay("&$D$12&")="&$F$8&" and Barix("&$D$12&",reference:=StartOfSession)="&A77&"", "FG", "", "Close","5","0","PrimaryOnly",,,"False","T","EveryTick") -> 12360.5 | W77: -0.003245771425 | X77: =RTD("cqg.rtd",,"StudyData", "Close("&$D$12&") when LocalYear("&$D$12&")="&$D$9&" and localMonth("&$D$12&") ="&$E$9&" and LocalDay("&$D$12&")="&$F$9&" and Barix("&$D$12&",reference:=StartOfSession)="&A77&"", "FG", "", "Close","5","0","PrimaryOnly",,,"False","T","EveryTick") -> 12419.75 | Y77: 0.00440751299 | Z77: =RTD("cqg.rtd",,"StudyData", "Close("&$D$12&") when LocalYear("&$D$12&")="&$D$10&" and localMonth("&$D$12&") ="&$E$10&" and LocalDay("&$D$12&")="&$F$10&" and Barix("&$D$12&",reference:=StartOfSession)="&A77&"", "FG", "", "Close","5","0","PrimaryOnly",,,"False","T","EveryTick") -> 12360 | AA77: -0.02176493866
A78: 77 | B78: 14:55:00 | C78: =C77+1 -> 0 | D78: =RTD("cqg.rtd",,"StudyData", $D$12, "Tick", "FlatTicks=0", "Tick","D",C78,"PrimaryOnly") -> 12678.25 | H78: =RTD("cqg.rtd",,"StudyData", "Close("&$D$12&") when LocalYear("&$D$12&")="&$D$1&" and localMonth("&$D$12&") ="&$E$1&" and LocalDay("&$D$12&")="&$F$1&" and Barix("&$D$12&",reference:=StartOfSession)="&A78&"", "FG", "", "Close","5","0","PrimaryOnly",,,"False","T","EveryTick") ->  | J78: =RTD("cqg.rtd",,"StudyData", "Close("&$D$12&") when LocalYear("&$D$12&")="&$D$2&" and localMonth("&$D$12&") ="&$E$2&" and LocalDay("&$D$12&")="&$F$2&" and Barix("&$D$12&",reference:=StartOfSession)="&A78&"", "FG", "", "Close","5","0","PrimaryOnly",,,"False","T","EveryTick") -> 12683.5 | K78: -0.002281219272 | L78: =RTD("cqg.rtd",,"StudyData", "Close("&$D$12&") when LocalYear("&$D$12&")="&$D$3&" and localMonth("&$D$12&") ="&$E$3&" and LocalDay("&$D$12&")="&$F$3&" and Barix("&$D$12&",reference:=StartOfSession)="&A78&"", "FG", "", "Close","5","0","PrimaryOnly",,,"False","T","EveryTick") -> 12712.5 | M78: -0.00301937103 | N78: =RTD("cqg.rtd",,"StudyData", "Close("&$D$12&") when LocalYear("&$D$12&")="&$D$4&" and localMonth("&$D$12&") ="&$E$4&" and LocalDay("&$D$12&")="&$F$4&" and Barix("&$D$12&",reference:=StartOfSession)="&A78&"", "FG", "", "Close","5","0","PrimaryOnly",,,"False","T","EveryTick") -> 12751 | O78: 0.0063334846 | P78: =RTD("cqg.rtd",,"StudyData", "Close("&$D$12&") when LocalYear("&$D$12&")="&$D$5&" and localMonth("&$D$12&") ="&$E$5&" and LocalDay("&$D$12&")="&$F$5&" and Barix("&$D$12&",reference:=StartOfSession)="&A78&"", "FG", "", "Close","5","0","PrimaryOnly",,,"False","T","EveryTick") -> 12670.75 | Q78: 0.005934423627 | R78: =RTD("cqg.rtd",,"StudyData", "Close("&$D$12&") when LocalYear("&$D$12&")="&$D$6&" and localMonth("&$D$12&") ="&$E$6&" and LocalDay("&$D$12&")="&$F$6&" and Barix("&$D$12&",reference:=StartOfSession)="&A78&"", "FG", "", "Close","5","0","PrimaryOnly",,,"False","T","EveryTick") -> 12596 | S78: 0.01071213641 | T78: =RTD("cqg.rtd",,"StudyData", "Close("&$D$12&") when LocalYear("&$D$12&")="&$D$7&" and localMonth("&$D$12&") ="&$E$7&" and LocalDay("&$D$12&")="&$F$7&" and Barix("&$D$12&",reference:=StartOfSession)="&A78&"", "FG", "", "Close","5","0","PrimaryOnly",,,"False","T","EveryTick") -> 12462.5 | U78: 0.007620318153 | V78: =RTD("cqg.rtd",,"StudyData", "Close("&$D$12&") when LocalYear("&$D$12&")="&$D$8&" and localMonth("&$D$12&") ="&$E$8&" and LocalDay("&$D$12&")="&$F$8&" and Barix("&$D$12&",reference:=StartOfSession)="&A78&"", "FG", "", "Close","5","0","PrimaryOnly",,,"False","T","EveryTick") -> 12368.25 | W78: -0.002620809225 | X78: =RTD("cqg.rtd",,"StudyData", "Close("&$D$12&") when LocalYear("&$D$12&")="&$D$9&" and localMonth("&$D$12&") ="&$E$9&" and LocalDay("&$D$12&")="&$F$9&" and Barix("&$D$12&",reference:=StartOfSession)="&A78&"", "FG", "", "Close","5","0","PrimaryOnly",,,"False","T","EveryTick") -> 12400.75 | Y78: 0.002870948828 | Z78: =RTD("cqg.rtd",,"StudyData", "Close("&$D$12&") when LocalYear("&$D$12&")="&$D$10&" and localMonth("&$D$12&") ="&$E$10&" and LocalDay("&$D$12&")="&$F$10&" and Barix("&$D$12&",reference:=StartOfSession)="&A78&"", "FG", "", "Close","5","0","PrimaryOnly",,,"False","T","EveryTick") -> 12365.25 | AA78: -0.0213494262
A79: 78 | B79: 15:00:00 | H79: =RTD("cqg.rtd",,"StudyData", "Close("&$D$12&") when LocalYear("&$D$12&")="&$D$1&" and localMonth("&$D$12&") ="&$E$1&" and LocalDay("&$D$12&")="&$F$1&" and Barix("&$D$12&",reference:=StartOfSession)="&A79&"", "FG", "", "Close","5","0","PrimaryOnly",,,"False","T","EveryTick") ->  | J79: =RTD("cqg.rtd",,"StudyData", "Close("&$D$12&") when LocalYear("&$D$12&")="&$D$2&" and localMonth("&$D$12&") ="&$E$2&" and LocalDay("&$D$12&")="&$F$2&" and Barix("&$D$12&",reference:=StartOfSession)="&A79&"", "FG", "", "Close","5","0","PrimaryOnly",,,"False","T","EveryTick") -> 12682.5 | K79: -0.002359882006 | L79: =RTD("cqg.rtd",,"StudyData", "Close("&$D$12&") when LocalYear("&$D$12&")="&$D$3&" and localMonth("&$D$12&") ="&$E$3&" and LocalDay("&$D$12&")="&$F$3&" and Barix("&$D$12&",reference:=StartOfSession)="&A79&"", "FG", "", "Close","5","0","PrimaryOnly",,,"False","T","EveryTick") -> 12739.5 | M79: -0.0009018900478 | N79: =RTD("cqg.rtd",,"StudyData", "Close("&$D$12&") when LocalYear("&$D$12&")="&$D$4&" and localMonth("&$D$12&") ="&$E$4&" and LocalDay("&$D$12&")="&$F$4&" and Barix("&$D$12&",reference:=StartOfSession)="&A79&"", "FG", "", "Close","5","0","PrimaryOnly",,,"False","T","EveryTick") -> 12759.25 | O79: 0.006984590494 | P79: =RTD("cqg.rtd",,"StudyData", "Close("&$D$12&") when LocalYear("&$D$12&")="&$D$5&" and localMonth("&$D$12&") ="&$E$5&" and LocalDay("&$D$12&")="&$F$5&" and Barix("&$D$12&",reference:=StartOfSession)="&A79&"", "FG", "", "Close","5","0","PrimaryOnly",,,"False","T","EveryTick") -> 12673.5 | Q79: 0.006152746904 | R79: =RTD("cqg.rtd",,"StudyData", "Close("&$D$12&") when LocalYear("&$D$12&")="&$D$6&" and localMonth("&$D$12&") ="&$E$6&" and LocalDay("&$D$12&")="&$F$6&" and Barix("&$D$12&",reference:=StartOfSession)="&A79&"", "FG", "", "Close","5","0","PrimaryOnly",,,"False","T","EveryTick") -> 12600 | S79: 0.0110330993 | T79: =RTD("cqg.rtd",,"StudyData", "Close("&$D$12&") when LocalYear("&$D$12&")="&$D$7&" and localMonth("&$D$12&") ="&$E$7&" and LocalDay("&$D$12&")="&$F$7&" and Barix("&$D$12&",reference:=StartOfSession)="&A79&"", "FG", "", "Close","5","0","PrimaryOnly",,,"False","T","EveryTick") -> 12477.5 | U79: 0.008833100883 | V79: =RTD("cqg.rtd",,"StudyData", "Close("&$D$12&") when LocalYear("&$D$12&")="&$D$8&" and localMonth("&$D$12&") ="&$E$8&" and LocalDay("&$D$12&")="&$F$8&" and Barix("&$D$12&",reference:=StartOfSession)="&A79&"", "FG", "", "Close","5","0","PrimaryOnly",,,"False","T","EveryTick") -> 12373.75 | W79: -0.002177287664 | X79: =RTD("cqg.rtd",,"StudyData", "Close("&$D$12&") when LocalYear("&$D$12&")="&$D$9&" and localMonth("&$D$12&") ="&$E$9&" and LocalDay("&$D$12&")="&$F$9&" and Barix("&$D$12&",reference:=StartOfSession)="&A79&"", "FG", "", "Close","5","0","PrimaryOnly",,,"False","T","EveryTick") -> 12400.5 | Y79: 0.002850730879 | Z79: =RTD("cqg.rtd",,"StudyData", "Close("&$D$12&") when LocalYear("&$D$12&")="&$D$10&" and localMonth("&$D$12&") ="&$E$10&" and LocalDay("&$D$12&")="&$F$10&" and Barix("&$D$12&",reference:=StartOfSession)="&A79&"", "FG", "", "Close","5","0","PrimaryOnly",,,"False","T","EveryTick") -> 12338.5 | AA79: -0.02346656114
A80: 79 | B80: 15:05:00 | H80: =RTD("cqg.rtd",,"StudyData", "Close("&$D$12&") when LocalYear("&$D$12&")="&$D$1&" and localMonth("&$D$12&") ="&$E$1&" and LocalDay("&$D$12&")="&$F$1&" and Barix("&$D$12&",reference:=StartOfSession)="&A80&"", "FG", "", "Close","5","0","PrimaryOnly",,,"False","T","EveryTick") ->  | J80: =RTD("cqg.rtd",,"StudyData", "Close("&$D$12&") when LocalYear("&$D$12&")="&$D$2&" and localMonth("&$D$12&") ="&$E$2&" and LocalDay("&$D$12&")="&$F$2&" and Barix("&$D$12&",reference:=StartOfSession)="&A80&"", "FG", "", "Close","5","0","PrimaryOnly",,,"False","T","EveryTick") -> 12686.75 | K80: -0.002025565388 | L80: =RTD("cqg.rtd",,"StudyData", "Close("&$D$12&") when LocalYear("&$D$12&")="&$D$3&" and localMonth("&$D$12&") ="&$E$3&" and LocalDay("&$D$12&")="&$F$3&" and Barix("&$D$12&",reference:=StartOfSession)="&A80&"", "FG", "", "Close","5","0","PrimaryOnly",,,"False","T","EveryTick") -> 12734.75 | M80: -0.00127440985 | N80: =RTD("cqg.rtd",,"StudyData", "Close("&$D$12&") when LocalYear("&$D$12&")="&$D$4&" and localMonth("&$D$12&") ="&$E$4&" and LocalDay("&$D$12&")="&$F$4&" and Barix("&$D$12&",reference:=StartOfSession)="&A80&"", "FG", "", "Close","5","0","PrimaryOnly",,,"False","T","EveryTick") -> 12756.5 | O80: 0.006767555196 | P80: =RTD("cqg.rtd",,"StudyData", "Close("&$D$12&") when LocalYear("&$D$12&")="&$D$5&" and localMonth("&$D$12&") ="&$E$5&" and LocalDay("&$D$12&")="&$F$5&" and Barix("&$D$12&",reference:=StartOfSession)="&A80&"", "FG", "", "Close","5","0","PrimaryOnly",,,"False","T","EveryTick") -> 12676 | Q80: 0.00635122261 | R80: =RTD("cqg.rtd",,"StudyData", "Close("&$D$12&") when LocalYear("&$D$12&")="&$D$6&" and localMonth("&$D$12&") ="&$E$6&" and LocalDay("&$D$12&")="&$F$6&" and Barix("&$D$12&",reference:=StartOfSession)="&A80&"", "FG", "", "Close","5","0","PrimaryOnly",,,"False","T","EveryTick") -> 12603.25 | S80: 0.01129388164 | T80: =RTD("cqg.rtd",,"StudyData", "Close("&$D$12&") when LocalYear("&$D$12&")="&$D$7&" and localMonth("&$D$12&") ="&$E$7&" and LocalDay("&$D$12&")="&$F$7&" and Barix("&$D$12&",reference:=StartOfSession)="&A80&"", "FG", "", "Close","5","0","PrimaryOnly",,,"False","T","EveryTick") -> 12472.5 | U80: 0.008428839973 | V80: =RTD("cqg.rtd",,"StudyData", "Close("&$D$12&") when LocalYear("&$D$12&")="&$D$8&" and localMonth("&$D$12&") ="&$E$8&" and LocalDay("&$D$12&")="&$F$8&" and Barix("&$D$12&",reference:=StartOfSession)="&A80&"", "FG", "", "Close","5","0","PrimaryOnly",,,"False","T","EveryTick") -> 12371 | W80: -0.002399048445 | X80: =RTD("cqg.rtd",,"StudyData", "Close("&$D$12&") when LocalYear("&$D$12&")="&$D$9&" and localMonth("&$D$12&") ="&$E$9&" and LocalDay("&$D$12&")="&$F$9&" and Barix("&$D$12&",reference:=StartOfSession)="&A80&"", "FG", "", "Close","5","0","PrimaryOnly",,,"False","T","EveryTick") -> 12392.5 | Y80: 0.002203756495 | Z80: =RTD("cqg.rtd",,"StudyData", "Close("&$D$12&") when LocalYear("&$D$12&")="&$D$10&" and localMonth("&$D$12&") ="&$E$10&" and LocalDay("&$D$12&")="&$F$10&" and Barix("&$D$12&",reference:=StartOfSession)="&A80&"", "FG", "", "Close","5","0","PrimaryOnly",,,"False","T","EveryTick") -> 12340 | AA80: -0.02334784329
A81: 80 | B81: 15:10:00 | H81: =RTD("cqg.rtd",,"StudyData", "Close("&$D$12&") when LocalYear("&$D$12&")="&$D$1&" and localMonth("&$D$12&") ="&$E$1&" and LocalDay("&$D$12&")="&$F$1&" and Barix("&$D$12&",reference:=StartOfSession)="&A81&"", "FG", "", "Close","5","0","PrimaryOnly",,,"False","T","EveryTick") ->  | J81: =RTD("cqg.rtd",,"StudyData", "Close("&$D$12&") when LocalYear("&$D$12&")="&$D$2&" and localMonth("&$D$12&") ="&$E$2&" and LocalDay("&$D$12&")="&$F$2&" and Barix("&$D$12&",reference:=StartOfSession)="&A81&"", "FG", "", "Close","5","0","PrimaryOnly",,,"False","T","EveryTick") -> 12689.25 | K81: -0.001828908555 | L81: =RTD("cqg.rtd",,"StudyData", "Close("&$D$12&") when LocalYear("&$D$12&")="&$D$3&" and localMonth("&$D$12&") ="&$E$3&" and LocalDay("&$D$12&")="&$F$3&" and Barix("&$D$12&",reference:=StartOfSession)="&A81&"", "FG", "", "Close","5","0","PrimaryOnly",,,"False","T","EveryTick") -> 12739 | M81: -0.0009411026586 | N81: =RTD("cqg.rtd",,"StudyData", "Close("&$D$12&") when LocalYear("&$D$12&")="&$D$4&" and localMonth("&$D$12&") ="&$E$4&" and LocalDay("&$D$12&")="&$F$4&" and Barix("&$D$12&",reference:=StartOfSession)="&A81&"", "FG", "", "Close","5","0","PrimaryOnly",,,"False","T","EveryTick") -> 12748.75 | O81: 0.006155910266 | P81: =RTD("cqg.rtd",,"StudyData", "Close("&$D$12&") when LocalYear("&$D$12&")="&$D$5&" and localMonth("&$D$12&") ="&$E$5&" and LocalDay("&$D$12&")="&$F$5&" and Barix("&$D$12&",reference:=StartOfSession)="&A81&"", "FG", "", "Close","5","0","PrimaryOnly",,,"False","T","EveryTick") -> 12675.5 | Q81: 0.006311527469 | R81: =RTD("cqg.rtd",,"StudyData", "Close("&$D$12&") when LocalYear("&$D$12&")="&$D$6&" and localMonth("&$D$12&") ="&$E$6&" and LocalDay("&$D$12&")="&$F$6&" and Barix("&$D$12&",reference:=StartOfSession)="&A81&"", "FG", "", "Close","5","0","PrimaryOnly",,,"False","T","EveryTick") -> 12599.5 | S81: 0.01099297894 | T81: =RTD("cqg.rtd",,"StudyData", "Close("&$D$12&") when LocalYear("&$D$12&")="&$D$7&" and localMonth("&$D$12&") ="&$E$7&" and LocalDay("&$D$12&")="&$F$7&" and Barix("&$D$12&",reference:=StartOfSession)="&A81&"", "FG", "", "Close","5","0","PrimaryOnly",,,"False","T","EveryTick") -> 12468.5 | U81: 0.008105431245 | V81: =RTD("cqg.rtd",,"StudyData", "Close("&$D$12&") when LocalYear("&$D$12&")="&$D$8&" and localMonth("&$D$12&") ="&$E$8&" and LocalDay("&$D$12&")="&$F$8&" and Barix("&$D$12&",reference:=StartOfSession)="&A81&"", "FG", "", "Close","5","0","PrimaryOnly",,,"False","T","EveryTick") -> 12366.25 | W81: -0.002782089793 | X81: =RTD("cqg.rtd",,"StudyData", "Close("&$D$12&") when LocalYear("&$D$12&")="&$D$9&" and localMonth("&$D$12&") ="&$E$9&" and LocalDay("&$D$12&")="&$F$9&" and Barix("&$D$12&",reference:=StartOfSession)="&A81&"", "FG", "", "Close","5","0","PrimaryOnly",,,"False","T","EveryTick") -> 12384.75 | Y81: 0.001577000061 | Z81: =RTD("cqg.rtd",,"StudyData", "Close("&$D$12&") when LocalYear("&$D$12&")="&$D$10&" and localMonth("&$D$12&") ="&$E$10&" and LocalDay("&$D$12&")="&$F$10&" and Barix("&$D$12&",reference:=StartOfSession)="&A81&"", "FG", "", "Close","5","0","PrimaryOnly",,,"False","T","EveryTick") -> 12345 | AA81: -0.02295211713
AE83: =MAX(AE1:AE81) -> 41
